Workbook

Sheet Anleitung
B1: ANLEITUNG
B3: Einleitung
B5: Mit dem vorliegenden Excel-Tool können die Lebenszykluskosten (Definition siehe Anhang) von Gebäudetechnik-Anlagen berechnet werden. Die enthaltenen Produktegruppen werden zukünftig ausgebaut - als erstes stehen 'Heizungen/Wärmeerzeugung' zur Verfügung. Das Tool wurde von der Geschäftsstelle Vorbild Energie und Klima entwickelt und unterstützt die Akteure bei der Umsetzung der gemeinsamen Massnahme 'Nr. 10 Lebenszykluskosten-Betrachtung'. Das Tool richtet sich in erster Linie an Beschaffer, kann aber auch anderen Nutzergruppen dienlich sein. Bei komplexen Beschaffungen wird die Zusammenarbeit mit Fachexperten erwartet, die beim Befüllen der gefragten Daten unterstützen. Im Tabellenblatt "Anhang" finden Sie Quellenangaben sowie weitere Informationen zum Tool und zu verwendeten Begriffen.
B6: Vorgehen
C8: 1) | D8: Wählen Sie die Produktegruppe (solange keine Produktegruppe ausgewählt ist, wird alles eingeblendet). Geben Sie allgemeine Angaben wie Kalkulationszinssatz und Energiepreise ein, falls Sie nicht mit den Default-Werten rechnen wollen.
C9: 2) | D9: Füllen Sie die gefragen Daten zum Produkt ein.
D10: Bei Produktegruppen mit komplexer Eingabe (z.B. Heizungen) ist für jede Variante ein eigenes Input-Blatt (Produkt_V1 bis Produkt_V5) verfügbar. Falls Sie die Berechnungen einsehen möchten, finden Sie diese auf dem jeweiligen Produkteblatt (gruppiert ausgeblendet, siehe Hinweis dazu unten).
C11: 3) | D11: Vergleichen Sie die Lebenszykluskosten der Varianten.
B13: Bedienung
D15: Eingabefelder und Überschreiben von Default-Werten. Wenn Default-Werte verfügbar sind, müssen keine eigenen Daten eingesetzt werden und die Default-Werte werden für die Berechnungen verwendet.
B17: BITTE WÄHLEN | D17: Auswahlfelder: Durch Anklicken erscheint ein Dropdown.
B19: K | D19: Kommentarfelder mit Hilfestellungen zur Dateneingabe, Quellenangaben, etc. Kommentarfelder sind, wo möglich, am linken Rand.
D21: Alle Berechnungen können eingesehen werden. Damit das Tool übersichtlich erscheint, sind die Berechnungen teilweise durch Gruppierung ausgeblendet. Diese können durch Klicken auf das "+" in den Zeilen-, respektive Spaltenüberschriften jederzeit eingeblendet werden.
B22: Das Excel-Tool ist ohne Passwort geschützt. Der Blattschutz kann unter "Überprüfen -> Blattschutz aufheben" aufgehoben werden. Das Tool kann grundsätzlich nach eigenen Bedürfnissen angepasst werden. Es ist jedoch zu berücksichtigen, dass dadurch Berechnungsfehler entstehen könnten. Möglicherweise muss auch der Visual Basic Code angepasst werden.
B23: Hinweise zum Tool
B25: Die Geschäftsstelle Vorbild Energie und Klima übernimmt keine Haftung für die Richtigkeit der Berechnungen.

Sheet Input_Generell
B1: GRUNDLAGENDATEN
B3: Wahl der Produktegruppe
A5: K | B5: Produktegruppe | C5: Heizungen/Wärmeerzeugung
B7: Angaben zu den Energieträgern | O7: Rechenhilfe Energiepreise | W7: Rechenwerte
A8: K | B8: Energieträger | C8: Leistungspreis [CHF/kW/Jahr] | E8: Energiepreis [Rp./kWh] | G8: Treibhausgase [g CO2eq/kWh] | K8: Umweltbelastungsp. UBP'13 [UBP/kWh] | N8: K | O8: Energieträger | P8: Einheit | Q8: Preis | R8: Preis in Rp./kWh | T8: Umrechnungsfaktor in kWh(Heizwert) | W8: Energietr.-Nr. | X8: Leistungspreis [CHF/kW/a] | Y8: Energiepreis / HT [Rp./kWh] | Z8: Niedertarif [Rp./kWh] | AA8: Treibhausgase [g CO2eq/kWh] | AB8: UBP'13 [UBP/kWh]
D9: Default über-schreiben | F9: Default über-schreiben | J9: Default über-schreiben | L9: Default über-schreiben | W9: 0 | X9: 0 | Y9: 0 | Z9: 0 | AA9: 0 | AB9: 0
A10: K | B10: Erdgas | C10: 0 | E10: 8.5 | I10: 228 | K10: 137 | O10: =B10 -> Erdgas | P10: Rp./kWhBrennwert | R10: =Q10*U10 -> 0 | T10: kWh/kWh | U10: 1.111111111 | W10: 1 | X10: =IF(ISNUMBER(D10),D10,C10) -> 0 | Y10: =IF(ISNUMBER(F10),F10,E10) -> 8.5 | AA10: =IF(ISNUMBER(J10),J10,I10) -> 228 | AB10: =IF(ISNUMBER(L10),L10,K10) -> 137
B11: Biogas Brennstoff | C11: 0 | E11: 17.6 | I11: 130 | K11: 109 | O11: =B11 -> Biogas Brennstoff | P11: Rp./kWhBrennwert | R11: =Q11*U11 -> 0 | T11: kWh/kWh | U11: 1.111111111 | W11: 2 | X11: =IF(ISNUMBER(D11),D11,C11) -> 0 | Y11: =IF(ISNUMBER(F11),F11,E11) -> 17.6 | AA11: =IF(ISNUMBER(J11),J11,I11) -> 130 | AB11: =IF(ISNUMBER(L11),L11,K11) -> 109
A12: K | B12: Heizöl extraleicht | E12: 7.7 | I12: 301 | K12: 234 | O12: =B12 -> Heizöl extraleicht | P12: CHF/100 Liter | R12: =Q12*U12 -> 0 | T12: Liter/kWh | U12: 0.1000191 | W12: 3 | Y12: =IF(ISNUMBER(F12),F12,E12) -> 7.7 | AA12: =IF(ISNUMBER(J12),J12,I12) -> 301 | AB12: 234
B13: Pellets | E13: 6.8 | I13: 27 | K13: 81.1 | O13: =B13 -> Pellets | P13: Rp./kg | R13: =Q13*U13 -> 0 | T13: kg/kWh | U13: 0.25 | W13: 4 | Y13: =IF(ISNUMBER(F13),F13,E13) -> 6.8 | AA13: 27 | AB13: 81.1
B14: Holzschnitzel | E14: 4.8 | I14: 11 | K14: 80.8 | O14: =B14 -> Holzschnitzel | W14: 5 | Y14: 4.8 | AA14: 11 | AB14: 80.8
B15: Fernwärme | C15: 6 | E15: 7.5 | H15: K | I15: 89 | K15: 75.5 | O15: BITTE WÄHLEN | P15: CHF/SRm | R15: =Q15*U15*100 -> 0 | T15: SRm/kWh | U15: =IFERROR(1/VLOOKUP(O15,D54:E58,2,0),0) -> 0 | W15: 6 | X15: =IF(ISNUMBER(D15),D15,C15) -> 6 | Y15: 7.5 | AA15: 89 | AB15: 75.5
B16: Weitere | C16: kein Default | E16: kein Default | I16: kein Default | K16: kein Default | W16: 11 | X16: =D16 -> 0 | Y16: =F16 -> 0 | AA16: =J16 -> 0 | AB16: =L16 -> 0
C17: Leistungspreis [CHF/kW/Monat] | E17: Hochtarif [Rp./kWh] | G17: Niedertarif [Rp./kWh] | I17: Treibhausgase [g CO2eq/kWh] | K17: Umweltbelastungsp. UBP'13 [UBP/kWh]
B18: Strom | D18: Default über-schreiben | F18: Default über-schreiben | H18: Default über-schreiben | J18: Default über-schreiben | L18: Default über-schreiben | X18: Leistungspreis [CHF/kW/mt]
A19: K | B19: STROMPRODUKT BITTE WÄHLEN | C19: =VLOOKUP($B$19,$B$37:$H$43,7,0) -> 0 | E19: =VLOOKUP($B$19,$B$37:$H$43,3,0) -> 0 | G19: =VLOOKUP($B$19,$B$37:$H$43,4,0) -> 0 | I19: =VLOOKUP($B$19,$B$37:$H$43,5,0) -> 0 | K19: =VLOOKUP($B$19,$B$37:$H$43,6,0) -> 0 | O19: Strom | P19: CHF/MWh | R19: =Q19*U19*100 -> 0 | T19: MWh/kWh | U19: 0.001 | W19: 13 | X19: =IF(ISNUMBER(D19),D19,C19) -> 0 | Y19: =IF(ISNUMBER(F19),F19,E19) -> 0 | Z19: =IF(ISNUMBER(H19),H19,G19) -> 0 | AA19: =IF(ISNUMBER(J19),J19,I19) -> 0 | AB19: =IF(ISNUMBER(L19),L19,K19) -> 0
B20: Strom Wärmepumpe
A21: K | B21: STROMPRODUKT BITTE WÄHLEN | C21: =VLOOKUP($B$21,$B$37:$H$43,7,0) -> 0 | E21: =VLOOKUP($B$21,$B$37:$H$43,3,0) -> 0 | G21: =VLOOKUP($B$21,$B$37:$H$43,4,0) -> 0 | I21: =VLOOKUP($B$21,$B$37:$H$43,5,0) -> 0 | K21: =VLOOKUP($B$21,$B$37:$H$43,6,0) -> 0 | O21: Strom | P21: CHF/MWh | R21: =Q21*U21*100 -> 0 | T21: MWh/kWh | U21: 0.001 | W21: 14 | X21: =IF(ISNUMBER(D21),D21,C21) -> 0 | Y21: =IF(ISNUMBER(F21),F21,E21) -> 0 | Z21: =IF(ISNUMBER(H21),H21,G21) -> 0 | AA21: =IF(ISNUMBER(J21),J21,I21) -> 0 | AB21: =IF(ISNUMBER(L21),L21,K21) -> 0
B22: Wie sollen die externen Kosten von Treibhausgasemissionen (THG) in die LCC-Berechnung eingerechnet werden? | E22: Default über-schreiben
A23: K | B23: BITTE WÄHLEN | C23: CHF/tCO2eq | D23: =VLOOKUP(B23,B47:C50,2,0) -> 0 | X23: =IF(ISNUMBER(E23),E23,D23) -> 0
B25: Angaben zu Zinssatz und Preissteigerungen
E26: Default über-schreiben
A27: K | B27: Energiepreissteigerung | D27: 0.01 | X27: =IF(ISNUMBER(E27),E27,D27) -> 0.01
A28: K | B28: Kalkulationszinssatz | D28: 0.025 | X28: =IF(ISNUMBER(E28),E28,D28) -> 0.025
A29: K | B29: Preissteigerung | D29: 0.01 | X29: =IF(ISNUMBER(E29),E29,D29) -> 0.01
B34: Auswahllisten
B35: Auswahlliste Strommix und Defaultwerte
B36: Stromprodukt | C36: Energie-preis [Rp./kWh] | D36: Hochtarif [Rp./kWh] | E36: Niedertarif [Rp./kWh] | F36: Treibhaus-gase [gCO2eq/ kWh] | G36: UBP'13 [UBP/kWh] | H36: Leistungs-preis [CHF/kW]
B37: STROMPRODUKT BITTE WÄHLEN | C37: 0 | D37: 0 | E37: 0 | F37: 0 | G37: 0 | H37: 0
B38: Mix Stromprodukte aus erneuerbaren Energien | C38: =1.5*C39 -> 13.5 | D38: =1.5*D39 -> 15 | E38: 12 | F38: 15 | G38: 47.8 | H38: 10
B39: CH-Verbrauchermix (nicht erneuerb. Strompr.) | C39: 9 | D39: 10 | E39: 8 | F39: 102 | G39: 347 | H39: 10
B40: ENTSO-E-Mix (Strom aus europäischem Netz) | C40: 9 | D40: 10 | E40: 8 | F40: 524 | G40: 548 | H40: 10
B41: Photovoltaik | C41: =2*C39 -> 18 | D41: =2*D39 -> 20 | E41: 16 | F41: 96 | G41: 174 | H41: 10
B42: Wasserkraft | C42: =1.5*C39 -> 13.5 | D42: =1.5*D39 -> 15 | E42: 12 | F42: 12 | G42: 43.8 | H42: 10
B43: Weitere | C43: kein Default | D43: kein Default | E43: kein Default | F43: kein Default | G43: kein Default | H43: 10
B45: Auswahlliste Kosten Treibhausgase
B46: Kostenpunkt | C46: CHF/tCO2eq | D46: Anzeige
B47: BITTE WÄHLEN | C47: 0 | D47: Kosten für THG: nicht gewählt
B48: Keine Kosten für THG berücksichtigen | C48: 0 | D48: Kosten für THG: nicht berücksichtigt
B49: Externe Kosten Treibhausgasemissionen | C49: 121.5 | D49: Externe Kosten Treibhausgasemissionen
B50: Kompensationskosten Treibhausgase | C50: 30 | D50: Kompensationskosten Treibhausgase
A52: K | B52: Auswahlliste Produktegruppe | D52: Auswahlliste Holzschnitzel
B53: BITTE WÄHLEN | D53: Feuchtig-keit | E53: Energie-inhalt [kWh/Sm3]
B54: Heizungen/Wärmeerzeugung | D54: BITTE WÄHLEN | E54: 0
D55: Fichte/Tanne frisch | E55: 500
D56: Fichte/Tanne trocken | E56: 650
D57: Laubholz frisch | E57: 850
D58: Laubholz trocken | E58: 1000

Sheet Input_Heizung
B1: DATENEINGABE HEIZUNG / WÄRMEERZEUGUNG
B3: Allgemeine Angaben (durch den Beschaffer einzugeben)
B5: Projekt
B6: Unternehmen
B7: Zuständig
B8: Datum
A9: K | B9: Wärmeverbrauch (gemäss Energierechnungen, siehe auch Kommentar)
B10: Heizung ohne Warmwasser | D10: MWh/a
B11: Warmwasser | D11: MWh/a
A13: K | B13: Betrachtungszeit der Lebenszyklusrechnung | D13: Jahre
B15: Angaben des Anbieters (mit Angebot abzugeben)
B17: Angaben der verschiedenen Varianten werden in den Tabellenblättern Heizung_V1 bis Heizung_V5 eingegeben.

Sheet Heizung_V1
B1: DATENEINGABE HEIZUNG/WÄRMEERZEUGUNG
B3: Angaben des Anbieters (mit Angebot abzugeben)
B5: Variante | C5: V1
B6: Variantenbeschreibung
A7: K | B7: Wärmeerzeuger 1 | C7: BITTE WÄHLEN | D7: =IF(OR(C13=3,C13=1),"VBE erlaubt keine fossilen Wärmeerzeugungssysteme (siehe auch Kommentar)","") -> 
B8: =IF(C12=9,"Kollektorfläche","Heizleistung") -> Heizleistung | D8: =IF(C12=9,"m2","kW") -> kW
A9: K | B9: Wärmeabgabe (Nutzenergie) | D9: MWh/a
A10: K | B10: =VLOOKUP(C12,$C$279:$F$293,4,0) -> Wirkungsgrad/Jahresarbeitszahl JAZ | D10: =IF(C13=0,"% / -",IF(C13=14,"","%")) -> % / - | E10: =IF(AND(C13=14,C10>7),"JAZ > 7, bitte prüfen",IF(AND(B10="Wirkungsgrad",C10<>"",OR(C10>100,C10<80)),"Wirkungsgrad < 80% oder > 100%, bitte prüfen","")) -> 
B11: ="Endenergieverbrauch ("&VLOOKUP(C12,$C$279:$E$293,3,0)&")" -> Endenergieverbrauch (Energieträger) | C11: =IFERROR(IF(C13=14,C9/C10,C9/C10%),0) -> 0 | D11: MWh/a
B12: Wärmeversorgung Nummer | C12: =IF(ISBLANK(C7),0,VLOOKUP(C7,$B$279:$G$293,2,0)) -> 0
B13: Energieträger Nummer | C13: =IF(ISBLANK(C7),0,VLOOKUP(C7,$B$279:$F$293,3,0)) -> 0
A15: K | B15: Wärmeerzeuger 2 | C15: BITTE WÄHLEN | D15: =IF(OR(C21=3,C21=1),"VBE erlaubt keine fossilen Wärmeerzeugungssysteme (s. auch Komm. unter Wärmeerz. 1)","") -> 
B16: =IF(C20=9,"Kollektorfläche","Heizleistung") -> Heizleistung | D16: =IF(C20=9,"m2","kW") -> kW
A17: K | B17: Wärmeabgabe (Nutzenergie) | D17: MWh/a
A18: K | B18: =VLOOKUP(C20,$C$279:$F$293,4,0) -> Wirkungsgrad/Jahresarbeitszahl JAZ | D18: =IF(C21=0,"% / -",IF(C21=14,"","%")) -> % / - | E18: =IF(AND(C21=14,C18>7),"JAZ > 7, bitte prüfen",IF(AND(B18="Wirkungsgrad",C18<>"",OR(C18>100,C18<80)),"Wirkungsgrad < 80% oder > 100%, bitte prüfen","")) -> 
B19: ="Endenergieverbrauch ("&VLOOKUP(C20,$C$279:$E$293,3,0)&")" -> Endenergieverbrauch (Energieträger) | C19: =IFERROR(IF(C21=14,C17/C18,C17/C18%),0) -> 0 | D19: MWh/a
B20: Wärmeversorgung Nummer | C20: =IF(ISBLANK(C15),0,VLOOKUP(C15,$B$279:$F$293,2,0)) -> 0 | CE20: Darstellung der Katergorie der Investitionskosten abhängig vom Wärmeerzeuger
B21: Energieträger Nummer | C21: =IF(ISBLANK(C15),0,VLOOKUP(C15,$B$279:$F$293,3,0)) -> 0 | CF21: BITTE WÄHLEN | CG21: Seewasser-Wärmepumpe | CH21: Grundwasser-Wärmepumpe | CI21: Erdsonden-Wärmepumpe | CJ21: Luft-Wärmepumpe | CK21: Andere Wärmepumpe (z.B. Abwärme) | CL21: Fernwärme | CM21: Pellets | CN21: Holzschnitzel | CO21: Solarthermie | CP21: Direkte Abwärmenutzung | CQ21: Biogas | CR21: Erdgas | CS21: Heizöl
B23: Förderbeiträge total | D23: CHF
B24: Investitionskosten detailliert eingeben? | C24: nein | K24: Rechenwerte | P24: Berechnungen | AX24: Berechnungen | CE24: Anzeige
A25: K | B25: Investitionskosten (Wärmeerzeuger 1 und 2) | C25: Beschreibung | D25: Investition [CHF] | E25: Lebensdauer [a] | F25: Default überschreiben | G25: Wartung [% Inv.] | H25: Default überschreiben [% Inv. oder CHF/a] | K25: Lebens- dauer [a] | L25: Wartung [% Inv.] | M25: Wartung [CHF/a] | N25: Jährliche Ab-schreibung [CHF/a] | Q25: (Re)Investition in CHF im Jahr… | AV25: Restwert am Ende der Betrachtungszeit | AX25: Restwert nach Abschreibung am Ende des Jahres… (Berücksichtigt Reinvestition nach Ablauf der Lebensdauer) | CF25: 0 | CG25: 1 | CH25: 2 | CI25: 3 | CJ25: 4 | CK25: 5 | CL25: 6 | CM25: 7 | CN25: 8 | CO25: 9 | CP25: 10 | CQ25: 11 | CR25: 12 | CS25: 13 | CT25: Zeile für Wärmerzeuger 1 | CU25: Zeile für Wärmerzeuger 2 | CV25: Zeile einblenden (1=ja)
A26: K | B26: 1. Wärmequelle Baumeister | P26: =B26 -> 1. Wärmequelle Baumeister | Q26: 0 | R26: 1 | S26: 2 | T26: 3 | U26: 4 | V26: 5 | W26: 6 | X26: 7 | Y26: 8 | Z26: 9 | AA26: 10 | AB26: 11 | AC26: 12 | AD26: 13 | AE26: 14 | AF26: 15 | AG26: 16 | AH26: 17 | AI26: 18 | AJ26: 19 | AK26: 20 | AL26: 21 | AM26: 22 | AN26: 23 | AO26: 24 | AP26: 25 | AQ26: 26 | AR26: 27 | AS26: 28 | AT26: 29 | AU26: 30 | AX26: 0 | AY26: 1 | AZ26: 2 | BA26: 3 | BB26: 4 | BC26: 5 | BD26: 6 | BE26: 7 | BF26: 8 | BG26: 9 | BH26: 10 | BI26: 11 | BJ26: 12 | BK26: 13 | BL26: 14 | BM26: 15 | BN26: 16 | BO26: 17 | BP26: 18 | BQ26: 19 | BR26: 20 | BS26: 21 | BT26: 22 | BU26: 23 | BV26: 24 | BW26: 25 | BX26: 26 | BY26: 27 | BZ26: 28 | CA26: 29 | CB26: 30 | CE26: =B26 -> 1. Wärmequelle Baumeister | CF26: 1 | CG26: 1 | CH26: 1 | CI26: 1 | CJ26: 1 | CK26: 1 | CL26: 1 | CM26: 1 | CN26: 1 | CO26: 1 | CP26: 1 | CQ26: 1 | CR26: 1 | CS26: 1 | CT26: =SUMIF($CF$25:$CS$25,$C$12,CF26:CS26) -> 1 | CU26: =SUMIF($CF$25:$CS$25,$C$20,CF26:CS26) -> 1 | CV26: =IF(CT26+CU26>0,1,0) -> 1
B27: Grundwasserbohrung | E27: 30 | G27: 0.015 | I27: [% Inv.] | K27: =IF(ISNUMBER(F27),F27,IF(ISNUMBER(E27),E27,0)) -> 30 | L27: =IF(ISNUMBER(H27),IF(I27=$D$332,IFERROR(H27/D27,"-"),H27/100),IF(ISNUMBER(G27),G27,0)) -> 0.015 | M27: =IF(AND(ISNUMBER(H27),I27=$D$332),H27,L27*D27) -> 0 | N27: =1/K27*D27 -> 0 | P27: Grundwasserbohrung | Q27: =D27 -> 0 | R27: =IF(Betrachtungszeit_Heizung<R$26,0,IF(AND(Q$26<>0,Q$26/($K27)=INT(Q$26/($K27))),$D27,0)) -> 0 | S27: 0 | T27: 0 | U27: 0 | V27: 0 | W27: 0 | X27: 0 | Y27: 0 | Z27: 0 | AA27: 0 | AB27: 0 | AC27: 0 | AD27: 0 | AE27: 0 | AF27: 0 | AG27: 0 | AH27: 0 | AI27: 0 | AJ27: 0 | AK27: 0 | AL27: 0 | AM27: 0 | AN27: 0 | AO27: 0 | AP27: 0 | AQ27: 0 | AR27: 0 | AS27: 0 | AT27: 0 | AU27: 0 | AV27: =SUMIF($AX$26:$CB$26,Betrachtungszeit_Heizung,AX27:CB27) -> 0 | AX27: =$D27 -> 0 | AY27: =AX27-$N27+R27 -> 0 | AZ27: =AY27-$N27+S27 -> 0 | BA27: 0 | BB27: 0 | BC27: 0 | BD27: 0 | BE27: 0 | BF27: 0 | BG27: 0 | BH27: 0 | BI27: 0 | BJ27: 0 | BK27: 0 | BL27: 0 | BM27: 0 | BN27: 0 | BO27: 0 | BP27: 0 | BQ27: 0 | BR27: 0 | BS27: 0 | BT27: 0 | BU27: 0 | BV27: 0 | BW27: 0 | BX27: 0 | BY27: 0 | BZ27: 0 | CA27: 0 | CB27: 0 | CE27: Grundwasserbohrung | CH27: 1 | CT27: 0 | CU27: 0 | CV27: =IF(CT27+CU27>0,1,0) -> 0
B28: Wasserfassungsbau Gewässer (inkl. Rückgabe) | E28: 30 | G28: 0.02 | I28: [% Inv.] | K28: =IF(ISNUMBER(F28),F28,IF(ISNUMBER(E28),E28,0)) -> 30 | L28: =IF(ISNUMBER(H28),IF(I28=$D$332,IFERROR(H28/D28,"-"),H28/100),IF(ISNUMBER(G28),G28,0)) -> 0.02 | M28: =IF(AND(ISNUMBER(H28),I28=$D$332),H28,L28*D28) -> 0 | N28: =1/K28*D28 -> 0 | P28: =B28 -> Wasserfassungsbau Gewässer (inkl. Rückgabe) | Q28: =D28 -> 0 | R28: =IF(Betrachtungszeit_Heizung<R$26,0,IF(AND(Q$26<>0,Q$26/($K28)=INT(Q$26/($K28))),$D28,0)) -> 0 | S28: 0 | T28: 0 | U28: 0 | V28: 0 | W28: 0 | X28: 0 | Y28: 0 | Z28: 0 | AA28: 0 | AB28: 0 | AC28: 0 | AD28: 0 | AE28: 0 | AF28: 0 | AG28: 0 | AH28: 0 | AI28: 0 | AJ28: 0 | AK28: 0 | AL28: 0 | AM28: 0 | AN28: 0 | AO28: 0 | AP28: 0 | AQ28: 0 | AR28: 0 | AS28: 0 | AT28: 0 | AU28: 0 | AV28: 0 | AX28: =$D28 -> 0 | AY28: =AX28-$N28+R28 -> 0 | AZ28: =AY28-$N28+S28 -> 0 | BA28: =AZ28-$N28+T28 -> 0 | BB28: =BA28-$N28+U28 -> 0 | BC28: =BB28-$N28+V28 -> 0 | BD28: =BC28-$N28+W28 -> 0 | BE28: =BD28-$N28+X28 -> 0 | BF28: =BE28-$N28+Y28 -> 0 | BG28: =BF28-$N28+Z28 -> 0 | BH28: =BG28-$N28+AA28 -> 0 | BI28: =BH28-$N28+AB28 -> 0 | BJ28: =BI28-$N28+AC28 -> 0 | BK28: =BJ28-$N28+AD28 -> 0 | BL28: =BK28-$N28+AE28 -> 0 | BM28: =BL28-$N28+AF28 -> 0 | BN28: =BM28-$N28+AG28 -> 0 | BO28: =BN28-$N28+AH28 -> 0 | BP28: =BO28-$N28+AI28 -> 0 | BQ28: =BP28-$N28+AJ28 -> 0 | BR28: =BQ28-$N28+AK28 -> 0 | BS28: =BR28-$N28+AL28 -> 0 | BT28: =BS28-$N28+AM28 -> 0 | BU28: =BT28-$N28+AN28 -> 0 | BV28: =BU28-$N28+AO28 -> 0 | BW28: =BV28-$N28+AP28 -> 0 | BX28: =BW28-$N28+AQ28 -> 0 | BY28: =BX28-$N28+AR28 -> 0 | BZ28: =BY28-$N28+AS28 -> 0 | CA28: =BZ28-$N28+AT28 -> 0 | CB28: =CA28-$N28+AU28 -> 0 | CE28: Wasserfassungsbau Gewässer (inkl. Rückgabe) | CG28: 1 | CT28: 0 | CU28: 0 | CV28: 0
B29: Versickerungsgalerie/-brunnen | E29: 30 | G29: 0.005 | I29: [% Inv.] | K29: 30 | L29: 0.005 | M29: 0 | N29: 0 | P29: Versickerungsgalerie/-brunnen | Q29: 0 | R29: =IF(Betrachtungszeit_Heizung<R$26,0,IF(AND(Q$26<>0,Q$26/($K29)=INT(Q$26/($K29))),$D29,0)) -> 0 | S29: 0 | T29: 0 | U29: 0 | V29: 0 | W29: 0 | X29: 0 | Y29: 0 | Z29: 0 | AA29: 0 | AB29: 0 | AC29: 0 | AD29: 0 | AE29: 0 | AF29: 0 | AG29: 0 | AH29: 0 | AI29: 0 | AJ29: 0 | AK29: 0 | AL29: 0 | AM29: 0 | AN29: 0 | AO29: 0 | AP29: 0 | AQ29: 0 | AR29: 0 | AS29: 0 | AT29: 0 | AU29: 0 | AV29: 0 | AX29: 0 | AY29: 0 | AZ29: 0 | BA29: 0 | BB29: 0 | BC29: 0 | BD29: 0 | BE29: 0 | BF29: 0 | BG29: 0 | BH29: 0 | BI29: 0 | BJ29: 0 | BK29: 0 | BL29: 0 | BM29: 0 | BN29: 0 | BO29: 0 | BP29: 0 | BQ29: 0 | BR29: 0 | BS29: 0 | BT29: 0 | BU29: 0 | BV29: 0 | BW29: 0 | BX29: 0 | BY29: 0 | BZ29: 0 | CA29: 0 | CB29: 0 | CE29: Versickerungsgalerie/-brunnen | CH29: 1 | CT29: 0 | CU29: 0 | CV29: 0
B30: Graben Wasserfassung | E30: 30 | G30: 0.005 | I30: [% Inv.] | K30: 30 | L30: 0.005 | M30: 0 | N30: 0 | P30: Graben Wasserfassung | Q30: 0 | R30: =IF(Betrachtungszeit_Heizung<R$26,0,IF(AND(Q$26<>0,Q$26/($K30)=INT(Q$26/($K30))),$D30,0)) -> 0 | S30: 0 | T30: 0 | U30: 0 | V30: 0 | W30: 0 | X30: 0 | Y30: 0 | Z30: 0 | AA30: 0 | AB30: 0 | AC30: 0 | AD30: 0 | AE30: 0 | AF30: 0 | AG30: 0 | AH30: 0 | AI30: 0 | AJ30: 0 | AK30: 0 | AL30: 0 | AM30: 0 | AN30: 0 | AO30: 0 | AP30: 0 | AQ30: 0 | AR30: 0 | AS30: 0 | AT30: 0 | AU30: 0 | AV30: 0 | AX30: 0 | AY30: 0 | AZ30: 0 | BA30: 0 | BB30: 0 | BC30: 0 | BD30: 0 | BE30: 0 | BF30: 0 | BG30: 0 | BH30: 0 | BI30: 0 | BJ30: 0 | BK30: 0 | BL30: 0 | BM30: 0 | BN30: 0 | BO30: 0 | BP30: 0 | BQ30: 0 | BR30: 0 | BS30: 0 | BT30: 0 | BU30: 0 | BV30: 0 | BW30: 0 | BX30: 0 | BY30: 0 | BZ30: 0 | CA30: 0 | CB30: 0 | CE30: Graben Wasserfassung | CG30: 1 | CH30: 1 | CT30: 0 | CU30: 0 | CV30: 0
B31: Graben Erdsondenanschluss | E31: 30 | G31: 0.005 | I31: [% Inv.] | K31: 30 | L31: 0.005 | M31: 0 | N31: 0 | P31: Graben Erdsondenanschluss | Q31: 0 | R31: =IF(Betrachtungszeit_Heizung<R$26,0,IF(AND(Q$26<>0,Q$26/($K31)=INT(Q$26/($K31))),$D31,0)) -> 0 | S31: 0 | T31: 0 | U31: 0 | V31: 0 | W31: 0 | X31: 0 | Y31: 0 | Z31: 0 | AA31: 0 | AB31: 0 | AC31: 0 | AD31: 0 | AE31: 0 | AF31: 0 | AG31: 0 | AH31: 0 | AI31: 0 | AJ31: 0 | AK31: 0 | AL31: 0 | AM31: 0 | AN31: 0 | AO31: 0 | AP31: 0 | AQ31: 0 | AR31: 0 | AS31: 0 | AT31: 0 | AU31: 0 | AV31: 0 | AX31: 0 | AY31: 0 | AZ31: 0 | BA31: 0 | BB31: 0 | BC31: 0 | BD31: 0 | BE31: 0 | BF31: 0 | BG31: 0 | BH31: 0 | BI31: 0 | BJ31: 0 | BK31: 0 | BL31: 0 | BM31: 0 | BN31: 0 | BO31: 0 | BP31: 0 | BQ31: 0 | BR31: 0 | BS31: 0 | BT31: 0 | BU31: 0 | BV31: 0 | BW31: 0 | BX31: 0 | BY31: 0 | BZ31: 0 | CA31: 0 | CB31: 0 | CE31: Graben Erdsondenanschluss | CI31: 1 | CT31: 0 | CU31: 0 | CV31: 0
B32: Fundamente Rückkühler | E32: 30 | G32: 0.001 | I32: [% Inv.] | K32: 30 | L32: 0.001 | M32: 0 | N32: 0 | P32: Fundamente Rückkühler | Q32: 0 | R32: =IF(Betrachtungszeit_Heizung<R$26,0,IF(AND(Q$26<>0,Q$26/($K32)=INT(Q$26/($K32))),$D32,0)) -> 0 | S32: 0 | T32: 0 | U32: 0 | V32: 0 | W32: 0 | X32: 0 | Y32: 0 | Z32: 0 | AA32: 0 | AB32: 0 | AC32: 0 | AD32: 0 | AE32: 0 | AF32: 0 | AG32: 0 | AH32: 0 | AI32: 0 | AJ32: 0 | AK32: 0 | AL32: 0 | AM32: 0 | AN32: 0 | AO32: 0 | AP32: 0 | AQ32: 0 | AR32: 0 | AS32: 0 | AT32: 0 | AU32: 0 | AV32: 0 | AX32: 0 | AY32: 0 | AZ32: 0 | BA32: 0 | BB32: 0 | BC32: 0 | BD32: 0 | BE32: 0 | BF32: 0 | BG32: 0 | BH32: 0 | BI32: 0 | BJ32: 0 | BK32: 0 | BL32: 0 | BM32: 0 | BN32: 0 | BO32: 0 | BP32: 0 | BQ32: 0 | BR32: 0 | BS32: 0 | BT32: 0 | BU32: 0 | BV32: 0 | BW32: 0 | BX32: 0 | BY32: 0 | BZ32: 0 | CA32: 0 | CB32: 0 | CE32: Fundamente Rückkühler | CI32: 1 | CT32: 0 | CU32: 0 | CV32: 0
B33: Tankraum | E33: 30 | G33: 0.015 | I33: [% Inv.] | K33: 30 | L33: 0.015 | M33: 0 | N33: 0 | P33: Tankraum | Q33: 0 | R33: =IF(Betrachtungszeit_Heizung<R$26,0,IF(AND(Q$26<>0,Q$26/($K33)=INT(Q$26/($K33))),$D33,0)) -> 0 | S33: 0 | T33: 0 | U33: 0 | V33: 0 | W33: 0 | X33: 0 | Y33: 0 | Z33: 0 | AA33: 0 | AB33: 0 | AC33: 0 | AD33: 0 | AE33: 0 | AF33: 0 | AG33: 0 | AH33: 0 | AI33: 0 | AJ33: 0 | AK33: 0 | AL33: 0 | AM33: 0 | AN33: 0 | AO33: 0 | AP33: 0 | AQ33: 0 | AR33: 0 | AS33: 0 | AT33: 0 | AU33: 0 | AV33: 0 | AX33: 0 | AY33: 0 | AZ33: 0 | BA33: 0 | BB33: 0 | BC33: 0 | BD33: 0 | BE33: 0 | BF33: 0 | BG33: 0 | BH33: 0 | BI33: 0 | BJ33: 0 | BK33: 0 | BL33: 0 | BM33: 0 | BN33: 0 | BO33: 0 | BP33: 0 | BQ33: 0 | BR33: 0 | BS33: 0 | BT33: 0 | BU33: 0 | BV33: 0 | BW33: 0 | BX33: 0 | BY33: 0 | BZ33: 0 | CA33: 0 | CB33: 0 | CE33: Tankraum | CS33: 1 | CT33: 0 | CU33: 0 | CV33: 0
B34: Schnitzel-/Pelletsilo | E34: 30 | G34: 0.025 | I34: [% Inv.] | K34: 30 | L34: 0.025 | M34: 0 | N34: 0 | P34: Schnitzel-/Pelletsilo | Q34: 0 | R34: =IF(Betrachtungszeit_Heizung<R$26,0,IF(AND(Q$26<>0,Q$26/($K34)=INT(Q$26/($K34))),$D34,0)) -> 0 | S34: 0 | T34: 0 | U34: 0 | V34: 0 | W34: 0 | X34: 0 | Y34: 0 | Z34: 0 | AA34: 0 | AB34: 0 | AC34: 0 | AD34: 0 | AE34: 0 | AF34: 0 | AG34: 0 | AH34: 0 | AI34: 0 | AJ34: 0 | AK34: 0 | AL34: 0 | AM34: 0 | AN34: 0 | AO34: 0 | AP34: 0 | AQ34: 0 | AR34: 0 | AS34: 0 | AT34: 0 | AU34: 0 | AV34: 0 | AX34: 0 | AY34: 0 | AZ34: 0 | BA34: 0 | BB34: 0 | BC34: 0 | BD34: 0 | BE34: 0 | BF34: 0 | BG34: 0 | BH34: 0 | BI34: 0 | BJ34: 0 | BK34: 0 | BL34: 0 | BM34: 0 | BN34: 0 | BO34: 0 | BP34: 0 | BQ34: 0 | BR34: 0 | BS34: 0 | BT34: 0 | BU34: 0 | BV34: 0 | BW34: 0 | BX34: 0 | BY34: 0 | BZ34: 0 | CA34: 0 | CB34: 0 | CE34: Schnitzel-/Pelletsilo | CM34: 1 | CN34: 1 | CT34: 0 | CU34: 0 | CV34: 0
B35: Weiteres | E35: 30 | G35: kein Default | I35: [% Inv.] | K35: =IF(ISNUMBER(F35),F35,IF(ISNUMBER(E35),E35,0)) -> 30 | L35: 0 | M35: 0 | N35: 0 | P35: Weiteres | Q35: 0 | R35: =IF(Betrachtungszeit_Heizung<R$26,0,IF(AND(Q$26<>0,Q$26/($K35)=INT(Q$26/($K35))),$D35,0)) -> 0 | S35: 0 | T35: 0 | U35: 0 | V35: 0 | W35: 0 | X35: 0 | Y35: 0 | Z35: 0 | AA35: 0 | AB35: 0 | AC35: 0 | AD35: 0 | AE35: 0 | AF35: 0 | AG35: 0 | AH35: 0 | AI35: 0 | AJ35: 0 | AK35: 0 | AL35: 0 | AM35: 0 | AN35: 0 | AO35: 0 | AP35: 0 | AQ35: 0 | AR35: 0 | AS35: 0 | AT35: 0 | AU35: 0 | AV35: 0 | AX35: 0 | AY35: 0 | AZ35: 0 | BA35: 0 | BB35: 0 | BC35: 0 | BD35: 0 | BE35: 0 | BF35: 0 | BG35: 0 | BH35: 0 | BI35: 0 | BJ35: 0 | BK35: 0 | BL35: 0 | BM35: 0 | BN35: 0 | BO35: 0 | BP35: 0 | BQ35: 0 | BR35: 0 | BS35: 0 | BT35: 0 | BU35: 0 | BV35: 0 | BW35: 0 | BX35: 0 | BY35: 0 | BZ35: 0 | CA35: 0 | CB35: 0 | CE35: Weiteres | CG35: 1 | CH35: 1 | CI35: 1 | CJ35: 1 | CK35: 1 | CL35: 1 | CM35: 1 | CN35: 1 | CO35: 1 | CP35: 1 | CQ35: 1 | CR35: 1 | CS35: 1 | CT35: 0 | CU35: 0 | CV35: 0
B36: 2. Wärmequelle Technisch | P36: 2. Wärmequelle Technisch | CE36: 2. Wärmequelle Technisch | CF36: 1 | CG36: 1 | CH36: 1 | CI36: 1 | CJ36: 1 | CK36: 1 | CL36: 1 | CM36: 1 | CN36: 1 | CO36: 1 | CP36: 1 | CQ36: 1 | CR36: 1 | CS36: 1 | CT36: 1 | CU36: 1 | CV36: 1
B37: Erdsonden inkl. Bohrung | E37: 50 | G37: 0.01 | I37: [% Inv.] | K37: 50 | L37: =IF(ISNUMBER(H37),IF(I37=$D$332,IFERROR(H37/D37,"-"),H37/100),IF(ISNUMBER(G37),G37,0)) -> 0.01 | M37: =IF(AND(ISNUMBER(H37),I37=$D$332),H37,L37*D37) -> 0 | N37: =1/K37*D37 -> 0 | P37: Erdsonden inkl. Bohrung | Q37: 0 | R37: =IF(Betrachtungszeit_Heizung<R$26,0,IF(AND(Q$26<>0,Q$26/($K37)=INT(Q$26/($K37))),$D37,0)) -> 0 | S37: 0 | T37: 0 | U37: 0 | V37: 0 | W37: 0 | X37: 0 | Y37: 0 | Z37: 0 | AA37: 0 | AB37: 0 | AC37: 0 | AD37: 0 | AE37: 0 | AF37: 0 | AG37: 0 | AH37: 0 | AI37: 0 | AJ37: 0 | AK37: 0 | AL37: 0 | AM37: 0 | AN37: 0 | AO37: 0 | AP37: 0 | AQ37: 0 | AR37: 0 | AS37: 0 | AT37: 0 | AU37: 0 | AV37: =SUMIF($AX$26:$CB$26,Betrachtungszeit_Heizung,AX37:CB37) -> 0 | AX37: =$D37 -> 0 | AY37: 0 | AZ37: 0 | BA37: 0 | BB37: 0 | BC37: 0 | BD37: 0 | BE37: 0 | BF37: 0 | BG37: 0 | BH37: 0 | BI37: 0 | BJ37: 0 | BK37: 0 | BL37: 0 | BM37: 0 | BN37: 0 | BO37: 0 | BP37: 0 | BQ37: 0 | BR37: 0 | BS37: 0 | BT37: 0 | BU37: 0 | BV37: 0 | BW37: 0 | BX37: 0 | BY37: 0 | BZ37: 0 | CA37: 0 | CB37: 0 | CE37: Erdsonden inkl. Bohrung | CI37: 1 | CT37: 0 | CU37: 0 | CV37: 0
B38: Erdregister | E38: 30 | G38: 0.01 | I38: [% Inv.] | K38: 30 | L38: 0.01 | M38: 0 | N38: 0 | P38: Erdregister | Q38: 0 | R38: =IF(Betrachtungszeit_Heizung<R$26,0,IF(AND(Q$26<>0,Q$26/($K38)=INT(Q$26/($K38))),$D38,0)) -> 0 | S38: 0 | T38: 0 | U38: 0 | V38: 0 | W38: 0 | X38: 0 | Y38: 0 | Z38: 0 | AA38: 0 | AB38: 0 | AC38: 0 | AD38: 0 | AE38: 0 | AF38: 0 | AG38: 0 | AH38: 0 | AI38: 0 | AJ38: 0 | AK38: 0 | AL38: 0 | AM38: 0 | AN38: 0 | AO38: 0 | AP38: 0 | AQ38: 0 | AR38: 0 | AS38: 0 | AT38: 0 | AU38: 0 | AV38: 0 | AX38: =$D38 -> 0 | AY38: 0 | AZ38: 0 | BA38: 0 | BB38: 0 | BC38: 0 | BD38: 0 | BE38: 0 | BF38: 0 | BG38: 0 | BH38: 0 | BI38: 0 | BJ38: 0 | BK38: 0 | BL38: 0 | BM38: 0 | BN38: 0 | BO38: 0 | BP38: 0 | BQ38: 0 | BR38: 0 | BS38: 0 | BT38: 0 | BU38: 0 | BV38: 0 | BW38: 0 | BX38: 0 | BY38: 0 | BZ38: 0 | CA38: 0 | CB38: 0 | CE38: Erdregister | CI38: 1 | CT38: 0 | CU38: 0 | CV38: 0
B39: Sonnenkollektoren | E39: 20 | G39: 0.035 | I39: [% Inv.] | K39: 20 | L39: 0.035 | M39: 0 | N39: 0 | P39: Sonnenkollektoren | Q39: 0 | R39: =IF(Betrachtungszeit_Heizung<R$26,0,IF(AND(Q$26<>0,Q$26/($K39)=INT(Q$26/($K39))),$D39,0)) -> 0 | S39: 0 | T39: 0 | U39: 0 | V39: 0 | W39: 0 | X39: 0 | Y39: 0 | Z39: 0 | AA39: 0 | AB39: 0 | AC39: 0 | AD39: 0 | AE39: 0 | AF39: 0 | AG39: 0 | AH39: 0 | AI39: 0 | AJ39: 0 | AK39: 0 | AL39: 0 | AM39: 0 | AN39: 0 | AO39: 0 | AP39: 0 | AQ39: 0 | AR39: 0 | AS39: 0 | AT39: 0 | AU39: 0 | AV39: 0 | AX39: 0 | AY39: 0 | AZ39: 0 | BA39: 0 | BB39: 0 | BC39: 0 | BD39: 0 | BE39: 0 | BF39: 0 | BG39: 0 | BH39: 0 | BI39: 0 | BJ39: 0 | BK39: 0 | BL39: 0 | BM39: 0 | BN39: 0 | BO39: 0 | BP39: 0 | BQ39: 0 | BR39: 0 | BS39: 0 | BT39: 0 | BU39: 0 | BV39: 0 | BW39: 0 | BX39: 0 | BY39: 0 | BZ39: 0 | CA39: 0 | CB39: 0 | CE39: Sonnenkollektoren | CO39: 1 | CT39: 0 | CU39: 0 | CV39: 0
B40: Expansion | E40: 20 | G40: 0.035 | I40: [% Inv.] | K40: 20 | L40: 0.035 | M40: 0 | N40: 0 | P40: Expansion | Q40: 0 | R40: =IF(Betrachtungszeit_Heizung<R$26,0,IF(AND(Q$26<>0,Q$26/($K40)=INT(Q$26/($K40))),$D40,0)) -> 0 | S40: 0 | T40: 0 | U40: 0 | V40: 0 | W40: 0 | X40: 0 | Y40: 0 | Z40: 0 | AA40: 0 | AB40: 0 | AC40: 0 | AD40: 0 | AE40: 0 | AF40: 0 | AG40: 0 | AH40: 0 | AI40: 0 | AJ40: 0 | AK40: 0 | AL40: 0 | AM40: 0 | AN40: 0 | AO40: 0 | AP40: 0 | AQ40: 0 | AR40: 0 | AS40: 0 | AT40: 0 | AU40: 0 | AV40: 0 | AX40: 0 | AY40: 0 | AZ40: 0 | BA40: 0 | BB40: 0 | BC40: 0 | BD40: 0 | BE40: 0 | BF40: 0 | BG40: 0 | BH40: 0 | BI40: 0 | BJ40: 0 | BK40: 0 | BL40: 0 | BM40: 0 | BN40: 0 | BO40: 0 | BP40: 0 | BQ40: 0 | BR40: 0 | BS40: 0 | BT40: 0 | BU40: 0 | BV40: 0 | BW40: 0 | BX40: 0 | BY40: 0 | BZ40: 0 | CA40: 0 | CB40: 0 | CE40: Expansion | CG40: 1 | CH40: 1 | CI40: 1 | CJ40: 1 | CK40: 1 | CL40: 1 | CM40: 1 | CN40: 1 | CO40: 1 | CP40: 1 | CQ40: 1 | CR40: 1 | CS40: 1 | CT40: 0 | CU40: 0 | CV40: 0
B41: Filteranlage | E41: 20 | G41: 0.03 | I41: [% Inv.] | K41: 20 | L41: 0.03 | M41: 0 | N41: 0 | P41: Filteranlage | Q41: 0 | R41: =IF(Betrachtungszeit_Heizung<R$26,0,IF(AND(Q$26<>0,Q$26/($K41)=INT(Q$26/($K41))),$D41,0)) -> 0 | S41: 0 | T41: 0 | U41: 0 | V41: 0 | W41: 0 | X41: 0 | Y41: 0 | Z41: 0 | AA41: 0 | AB41: 0 | AC41: 0 | AD41: 0 | AE41: 0 | AF41: 0 | AG41: 0 | AH41: 0 | AI41: 0 | AJ41: 0 | AK41: 0 | AL41: 0 | AM41: 0 | AN41: 0 | AO41: 0 | AP41: 0 | AQ41: 0 | AR41: 0 | AS41: 0 | AT41: 0 | AU41: 0 | AV41: 0 | AX41: 0 | AY41: 0 | AZ41: 0 | BA41: 0 | BB41: 0 | BC41: 0 | BD41: 0 | BE41: 0 | BF41: 0 | BG41: 0 | BH41: 0 | BI41: 0 | BJ41: 0 | BK41: 0 | BL41: 0 | BM41: 0 | BN41: 0 | BO41: 0 | BP41: 0 | BQ41: 0 | BR41: 0 | BS41: 0 | BT41: 0 | BU41: 0 | BV41: 0 | BW41: 0 | BX41: 0 | BY41: 0 | BZ41: 0 | CA41: 0 | CB41: 0 | CE41: Filteranlage | CG41: 1 | CT41: 0 | CU41: 0 | CV41: 0
B42: Pumpenstation | E42: 20 | G42: 0.02 | I42: [% Inv.] | K42: 20 | L42: 0.02 | M42: 0 | N42: 0 | P42: Pumpenstation | Q42: 0 | R42: =IF(Betrachtungszeit_Heizung<R$26,0,IF(AND(Q$26<>0,Q$26/($K42)=INT(Q$26/($K42))),$D42,0)) -> 0 | S42: 0 | T42: 0 | U42: 0 | V42: 0 | W42: 0 | X42: 0 | Y42: 0 | Z42: 0 | AA42: 0 | AB42: 0 | AC42: 0 | AD42: 0 | AE42: 0 | AF42: 0 | AG42: 0 | AH42: 0 | AI42: 0 | AJ42: 0 | AK42: 0 | AL42: 0 | AM42: 0 | AN42: 0 | AO42: 0 | AP42: 0 | AQ42: 0 | AR42: 0 | AS42: 0 | AT42: 0 | AU42: 0 | AV42: 0 | AX42: 0 | AY42: 0 | AZ42: 0 | BA42: 0 | BB42: 0 | BC42: 0 | BD42: 0 | BE42: 0 | BF42: 0 | BG42: 0 | BH42: 0 | BI42: 0 | BJ42: 0 | BK42: 0 | BL42: 0 | BM42: 0 | BN42: 0 | BO42: 0 | BP42: 0 | BQ42: 0 | BR42: 0 | BS42: 0 | BT42: 0 | BU42: 0 | BV42: 0 | BW42: 0 | BX42: 0 | BY42: 0 | BZ42: 0 | CA42: 0 | CB42: 0 | CE42: Pumpenstation | CG42: 1 | CH42: 1 | CI42: 1 | CJ42: 1 | CK42: 1 | CL42: 1 | CM42: 1 | CN42: 1 | CO42: 1 | CP42: 1 | CQ42: 1 | CR42: 1 | CS42: 1 | CT42: 0 | CU42: 0 | CV42: 0
B43: Systemtrennung | E43: 20 | G43: 0.03 | I43: [% Inv.] | K43: 20 | L43: 0.03 | M43: 0 | N43: 0 | P43: Systemtrennung | Q43: 0 | R43: =IF(Betrachtungszeit_Heizung<R$26,0,IF(AND(Q$26<>0,Q$26/($K43)=INT(Q$26/($K43))),$D43,0)) -> 0 | S43: 0 | T43: 0 | U43: 0 | V43: 0 | W43: 0 | X43: 0 | Y43: 0 | Z43: 0 | AA43: 0 | AB43: 0 | AC43: 0 | AD43: 0 | AE43: 0 | AF43: 0 | AG43: 0 | AH43: 0 | AI43: 0 | AJ43: 0 | AK43: 0 | AL43: 0 | AM43: 0 | AN43: 0 | AO43: 0 | AP43: 0 | AQ43: 0 | AR43: 0 | AS43: 0 | AT43: 0 | AU43: 0 | AV43: 0 | AX43: 0 | AY43: 0 | AZ43: 0 | BA43: 0 | BB43: 0 | BC43: 0 | BD43: 0 | BE43: 0 | BF43: 0 | BG43: 0 | BH43: 0 | BI43: 0 | BJ43: 0 | BK43: 0 | BL43: 0 | BM43: 0 | BN43: 0 | BO43: 0 | BP43: 0 | BQ43: 0 | BR43: 0 | BS43: 0 | BT43: 0 | BU43: 0 | BV43: 0 | BW43: 0 | BX43: 0 | BY43: 0 | BZ43: 0 | CA43: 0 | CB43: 0 | CE43: Systemtrennung | CG43: 1 | CH43: 1 | CI43: 1 | CJ43: 1 | CK43: 1 | CL43: 1 | CM43: 1 | CN43: 1 | CO43: 1 | CP43: 1 | CQ43: 1 | CR43: 1 | CS43: 1 | CT43: 0 | CU43: 0 | CV43: 0
B44: Rückkühler | E44: 20 | G44: 0.03 | I44: [% Inv.] | K44: 20 | L44: 0.03 | M44: 0 | N44: 0 | P44: Rückkühler | Q44: 0 | R44: =IF(Betrachtungszeit_Heizung<R$26,0,IF(AND(Q$26<>0,Q$26/($K44)=INT(Q$26/($K44))),$D44,0)) -> 0 | S44: 0 | T44: 0 | U44: 0 | V44: 0 | W44: 0 | X44: 0 | Y44: 0 | Z44: 0 | AA44: 0 | AB44: 0 | AC44: 0 | AD44: 0 | AE44: 0 | AF44: 0 | AG44: 0 | AH44: 0 | AI44: 0 | AJ44: 0 | AK44: 0 | AL44: 0 | AM44: 0 | AN44: 0 | AO44: 0 | AP44: 0 | AQ44: 0 | AR44: 0 | AS44: 0 | AT44: 0 | AU44: 0 | AV44: 0 | AX44: 0 | AY44: 0 | AZ44: 0 | BA44: 0 | BB44: 0 | BC44: 0 | BD44: 0 | BE44: 0 | BF44: 0 | BG44: 0 | BH44: 0 | BI44: 0 | BJ44: 0 | BK44: 0 | BL44: 0 | BM44: 0 | BN44: 0 | BO44: 0 | BP44: 0 | BQ44: 0 | BR44: 0 | BS44: 0 | BT44: 0 | BU44: 0 | BV44: 0 | BW44: 0 | BX44: 0 | BY44: 0 | BZ44: 0 | CA44: 0 | CB44: 0 | CE44: Rückkühler | CI44: 1 | CT44: 0 | CU44: 0 | CV44: 0
B45: Anschlussleitungen | E45: 40 | G45: 0.015 | I45: [% Inv.] | K45: 40 | L45: 0.015 | M45: 0 | N45: 0 | P45: Anschlussleitungen | Q45: 0 | R45: =IF(Betrachtungszeit_Heizung<R$26,0,IF(AND(Q$26<>0,Q$26/($K45)=INT(Q$26/($K45))),$D45,0)) -> 0 | S45: 0 | T45: 0 | U45: 0 | V45: 0 | W45: 0 | X45: 0 | Y45: 0 | Z45: 0 | AA45: 0 | AB45: 0 | AC45: 0 | AD45: 0 | AE45: 0 | AF45: 0 | AG45: 0 | AH45: 0 | AI45: 0 | AJ45: 0 | AK45: 0 | AL45: 0 | AM45: 0 | AN45: 0 | AO45: 0 | AP45: 0 | AQ45: 0 | AR45: 0 | AS45: 0 | AT45: 0 | AU45: 0 | AV45: 0 | AX45: 0 | AY45: 0 | AZ45: 0 | BA45: 0 | BB45: 0 | BC45: 0 | BD45: 0 | BE45: 0 | BF45: 0 | BG45: 0 | BH45: 0 | BI45: 0 | BJ45: 0 | BK45: 0 | BL45: 0 | BM45: 0 | BN45: 0 | BO45: 0 | BP45: 0 | BQ45: 0 | BR45: 0 | BS45: 0 | BT45: 0 | BU45: 0 | BV45: 0 | BW45: 0 | BX45: 0 | BY45: 0 | BZ45: 0 | CA45: 0 | CB45: 0 | CE45: Anschlussleitungen | CG45: 1 | CH45: 1 | CI45: 1 | CJ45: 1 | CK45: 1 | CL45: 1 | CM45: 1 | CN45: 1 | CO45: 1 | CP45: 1 | CQ45: 1 | CR45: 1 | CT45: 0 | CU45: 0 | CV45: =IF(CT45+CU45>0,1,0) -> 0
B46: Energiemessung | E46: 20 | G46: 0.08 | I46: [% Inv.] | K46: 20 | L46: 0.08 | M46: 0 | N46: 0 | P46: Energiemessung | Q46: 0 | R46: =IF(Betrachtungszeit_Heizung<R$26,0,IF(AND(Q$26<>0,Q$26/($K46)=INT(Q$26/($K46))),$D46,0)) -> 0 | S46: 0 | T46: 0 | U46: 0 | V46: 0 | W46: 0 | X46: 0 | Y46: 0 | Z46: 0 | AA46: 0 | AB46: 0 | AC46: 0 | AD46: 0 | AE46: 0 | AF46: 0 | AG46: 0 | AH46: 0 | AI46: 0 | AJ46: 0 | AK46: 0 | AL46: 0 | AM46: 0 | AN46: 0 | AO46: 0 | AP46: 0 | AQ46: 0 | AR46: 0 | AS46: 0 | AT46: 0 | AU46: 0 | AV46: 0 | AX46: 0 | AY46: 0 | AZ46: 0 | BA46: 0 | BB46: 0 | BC46: 0 | BD46: 0 | BE46: 0 | BF46: 0 | BG46: 0 | BH46: 0 | BI46: 0 | BJ46: 0 | BK46: 0 | BL46: 0 | BM46: 0 | BN46: 0 | BO46: 0 | BP46: 0 | BQ46: 0 | BR46: 0 | BS46: 0 | BT46: 0 | BU46: 0 | BV46: 0 | BW46: 0 | BX46: 0 | BY46: 0 | BZ46: 0 | CA46: 0 | CB46: 0 | CE46: Energiemessung | CG46: 1 | CH46: 1 | CI46: 1 | CJ46: 1 | CK46: 1 | CL46: 1 | CM46: 1 | CN46: 1 | CO46: 1 | CP46: 1 | CQ46: 1 | CR46: 1 | CS46: 1 | CT46: 0 | CU46: 0 | CV46: =IF(CT46+CU46>0,1,0) -> 0
B47: Dämmungen | E47: 20 | G47: 0.001 | I47: [% Inv.] | K47: 20 | L47: 0.001 | M47: 0 | N47: 0 | P47: Dämmungen | Q47: 0 | R47: =IF(Betrachtungszeit_Heizung<R$26,0,IF(AND(Q$26<>0,Q$26/($K47)=INT(Q$26/($K47))),$D47,0)) -> 0 | S47: 0 | T47: 0 | U47: 0 | V47: 0 | W47: 0 | X47: 0 | Y47: 0 | Z47: 0 | AA47: 0 | AB47: 0 | AC47: 0 | AD47: 0 | AE47: 0 | AF47: 0 | AG47: 0 | AH47: 0 | AI47: 0 | AJ47: 0 | AK47: 0 | AL47: 0 | AM47: 0 | AN47: 0 | AO47: 0 | AP47: 0 | AQ47: 0 | AR47: 0 | AS47: 0 | AT47: 0 | AU47: 0 | AV47: 0 | AX47: 0 | AY47: 0 | AZ47: 0 | BA47: 0 | BB47: 0 | BC47: 0 | BD47: 0 | BE47: 0 | BF47: 0 | BG47: 0 | BH47: 0 | BI47: 0 | BJ47: 0 | BK47: 0 | BL47: 0 | BM47: 0 | BN47: 0 | BO47: 0 | BP47: 0 | BQ47: 0 | BR47: 0 | BS47: 0 | BT47: 0 | BU47: 0 | BV47: 0 | BW47: 0 | BX47: 0 | BY47: 0 | BZ47: 0 | CA47: 0 | CB47: 0 | CE47: Dämmungen | CG47: 1 | CH47: 1 | CI47: 1 | CJ47: 1 | CK47: 1 | CL47: 1 | CM47: 1 | CN47: 1 | CO47: 1 | CP47: 1 | CQ47: 1 | CR47: 1 | CS47: 1 | CT47: 0 | CU47: 0 | CV47: 0
B48: Weiteres | E48: 30 | G48: kein Default | I48: [% Inv.] | K48: =IF(ISNUMBER(F48),F48,IF(ISNUMBER(E48),E48,0)) -> 30 | L48: 0 | M48: 0 | N48: 0 | P48: Weiteres | Q48: 0 | R48: =IF(Betrachtungszeit_Heizung<R$26,0,IF(AND(Q$26<>0,Q$26/($K48)=INT(Q$26/($K48))),$D48,0)) -> 0 | S48: 0 | T48: 0 | U48: 0 | V48: 0 | W48: 0 | X48: 0 | Y48: 0 | Z48: 0 | AA48: 0 | AB48: 0 | AC48: 0 | AD48: 0 | AE48: 0 | AF48: 0 | AG48: 0 | AH48: 0 | AI48: 0 | AJ48: 0 | AK48: 0 | AL48: 0 | AM48: 0 | AN48: 0 | AO48: 0 | AP48: 0 | AQ48: 0 | AR48: 0 | AS48: 0 | AT48: 0 | AU48: 0 | AV48: 0 | AX48: 0 | AY48: 0 | AZ48: 0 | BA48: 0 | BB48: 0 | BC48: 0 | BD48: 0 | BE48: 0 | BF48: 0 | BG48: 0 | BH48: 0 | BI48: 0 | BJ48: 0 | BK48: 0 | BL48: 0 | BM48: 0 | BN48: 0 | BO48: 0 | BP48: 0 | BQ48: 0 | BR48: 0 | BS48: 0 | BT48: 0 | BU48: 0 | BV48: 0 | BW48: 0 | BX48: 0 | BY48: 0 | BZ48: 0 | CA48: 0 | CB48: 0 | CE48: Weiteres | CG48: 1 | CH48: 1 | CI48: 1 | CJ48: 1 | CK48: 1 | CL48: 1 | CM48: 1 | CN48: 1 | CO48: 1 | CP48: 1 | CQ48: 1 | CR48: 1 | CS48: 1 | CT48: 0 | CU48: 0 | CV48: 0
B49: 3. Energiezulieferung | P49: 3. Energiezulieferung | CE49: 3. Energiezulieferung | CF49: 1 | CG49: 1 | CH49: 1 | CI49: 1 | CJ49: 1 | CK49: 1 | CL49: 1 | CM49: 1 | CN49: 1 | CO49: 1 | CP49: 1 | CQ49: 1 | CR49: 1 | CS49: 1 | CT49: 1 | CU49: 1 | CV49: 1
B50: Hauptgaszuleitung | E50: 40 | G50: 0.015 | I50: [% Inv.] | K50: 40 | L50: =IF(ISNUMBER(H50),IF(I50=$D$332,IFERROR(H50/D50,"-"),H50/100),IF(ISNUMBER(G50),G50,0)) -> 0.015 | M50: =IF(AND(ISNUMBER(H50),I50=$D$332),H50,L50*D50) -> 0 | N50: =1/K50*D50 -> 0 | P50: Hauptgaszuleitung | Q50: 0 | R50: =IF(Betrachtungszeit_Heizung<R$26,0,IF(AND(Q$26<>0,Q$26/($K50)=INT(Q$26/($K50))),$D50,0)) -> 0 | S50: 0 | T50: 0 | U50: 0 | V50: 0 | W50: 0 | X50: 0 | Y50: 0 | Z50: 0 | AA50: 0 | AB50: 0 | AC50: 0 | AD50: 0 | AE50: 0 | AF50: 0 | AG50: 0 | AH50: 0 | AI50: 0 | AJ50: 0 | AK50: 0 | AL50: 0 | AM50: 0 | AN50: 0 | AO50: 0 | AP50: 0 | AQ50: 0 | AR50: 0 | AS50: 0 | AT50: 0 | AU50: 0 | AV50: =SUMIF($AX$26:$CB$26,Betrachtungszeit_Heizung,AX50:CB50) -> 0 | AX50: =$D50 -> 0 | AY50: 0 | AZ50: 0 | BA50: 0 | BB50: 0 | BC50: 0 | BD50: 0 | BE50: 0 | BF50: 0 | BG50: 0 | BH50: 0 | BI50: 0 | BJ50: 0 | BK50: 0 | BL50: 0 | BM50: 0 | BN50: 0 | BO50: 0 | BP50: 0 | BQ50: 0 | BR50: 0 | BS50: 0 | BT50: 0 | BU50: 0 | BV50: 0 | BW50: 0 | BX50: 0 | BY50: 0 | BZ50: 0 | CA50: 0 | CB50: 0 | CE50: Hauptgaszuleitung | CR50: 1 | CT50: 0 | CU50: 0 | CV50: 0
B51: Gasleitung ab Gasraum | E51: 40 | G51: 0.005 | I51: [% Inv.] | K51: 40 | L51: 0.005 | M51: 0 | N51: 0 | P51: Gasleitung ab Gasraum | Q51: 0 | R51: =IF(Betrachtungszeit_Heizung<R$26,0,IF(AND(Q$26<>0,Q$26/($K51)=INT(Q$26/($K51))),$D51,0)) -> 0 | S51: 0 | T51: 0 | U51: 0 | V51: 0 | W51: 0 | X51: 0 | Y51: 0 | Z51: 0 | AA51: 0 | AB51: 0 | AC51: 0 | AD51: 0 | AE51: 0 | AF51: 0 | AG51: 0 | AH51: 0 | AI51: 0 | AJ51: 0 | AK51: 0 | AL51: 0 | AM51: 0 | AN51: 0 | AO51: 0 | AP51: 0 | AQ51: 0 | AR51: 0 | AS51: 0 | AT51: 0 | AU51: 0 | AV51: 0 | AX51: 0 | AY51: 0 | AZ51: 0 | BA51: 0 | BB51: 0 | BC51: 0 | BD51: 0 | BE51: 0 | BF51: 0 | BG51: 0 | BH51: 0 | BI51: 0 | BJ51: 0 | BK51: 0 | BL51: 0 | BM51: 0 | BN51: 0 | BO51: 0 | BP51: 0 | BQ51: 0 | BR51: 0 | BS51: 0 | BT51: 0 | BU51: 0 | BV51: 0 | BW51: 0 | BX51: 0 | BY51: 0 | BZ51: 0 | CA51: 0 | CB51: 0 | CE51: Gasleitung ab Gasraum | CR51: 1 | CT51: 0 | CU51: 0 | CV51: 0
B52: Gasstrasse Kessel | E52: 20 | G52: 0.01 | I52: [% Inv.] | K52: 20 | L52: 0.01 | M52: 0 | N52: 0 | P52: Gasstrasse Kessel | Q52: 0 | R52: =IF(Betrachtungszeit_Heizung<R$26,0,IF(AND(Q$26<>0,Q$26/($K52)=INT(Q$26/($K52))),$D52,0)) -> 0 | S52: 0 | T52: 0 | U52: 0 | V52: 0 | W52: 0 | X52: 0 | Y52: 0 | Z52: 0 | AA52: 0 | AB52: 0 | AC52: 0 | AD52: 0 | AE52: 0 | AF52: 0 | AG52: 0 | AH52: 0 | AI52: 0 | AJ52: 0 | AK52: 0 | AL52: 0 | AM52: 0 | AN52: 0 | AO52: 0 | AP52: 0 | AQ52: 0 | AR52: 0 | AS52: 0 | AT52: 0 | AU52: 0 | AV52: 0 | AX52: 0 | AY52: 0 | AZ52: 0 | BA52: 0 | BB52: 0 | BC52: 0 | BD52: 0 | BE52: 0 | BF52: 0 | BG52: 0 | BH52: 0 | BI52: 0 | BJ52: 0 | BK52: 0 | BL52: 0 | BM52: 0 | BN52: 0 | BO52: 0 | BP52: 0 | BQ52: 0 | BR52: 0 | BS52: 0 | BT52: 0 | BU52: 0 | BV52: 0 | BW52: 0 | BX52: 0 | BY52: 0 | BZ52: 0 | CA52: 0 | CB52: 0 | CE52: Gasstrasse Kessel | CR52: 1 | CT52: 0 | CU52: 0 | CV52: 0
B53: Einmalige Anschlussgebühr | E53: 40 | G53: 0 | I53: [% Inv.] | K53: 40 | L53: 0 | M53: 0 | N53: 0 | P53: Einmalige Anschlussgebühr | Q53: 0 | R53: =IF(Betrachtungszeit_Heizung<R$26,0,IF(AND(Q$26<>0,Q$26/($K53)=INT(Q$26/($K53))),$D53,0)) -> 0 | S53: 0 | T53: 0 | U53: 0 | V53: 0 | W53: 0 | X53: 0 | Y53: 0 | Z53: 0 | AA53: 0 | AB53: 0 | AC53: 0 | AD53: 0 | AE53: 0 | AF53: 0 | AG53: 0 | AH53: 0 | AI53: 0 | AJ53: 0 | AK53: 0 | AL53: 0 | AM53: 0 | AN53: 0 | AO53: 0 | AP53: 0 | AQ53: 0 | AR53: 0 | AS53: 0 | AT53: 0 | AU53: 0 | AV53: 0 | AX53: 0 | AY53: 0 | AZ53: 0 | BA53: 0 | BB53: 0 | BC53: 0 | BD53: 0 | BE53: 0 | BF53: 0 | BG53: 0 | BH53: 0 | BI53: 0 | BJ53: 0 | BK53: 0 | BL53: 0 | BM53: 0 | BN53: 0 | BO53: 0 | BP53: 0 | BQ53: 0 | BR53: 0 | BS53: 0 | BT53: 0 | BU53: 0 | BV53: 0 | BW53: 0 | BX53: 0 | BY53: 0 | BZ53: 0 | CA53: 0 | CB53: 0 | CE53: Einmalige Anschlussgebühr | CL53: 1 | CR53: 1 | CT53: 0 | CU53: 0 | CV53: =IF(CT53+CU53>0,1,0) -> 0
B54: Öltank | E54: 30 | G54: 0.02 | I54: [% Inv.] | K54: 30 | L54: 0.02 | M54: 0 | N54: 0 | P54: Öltank | Q54: 0 | R54: =IF(Betrachtungszeit_Heizung<R$26,0,IF(AND(Q$26<>0,Q$26/($K54)=INT(Q$26/($K54))),$D54,0)) -> 0 | S54: 0 | T54: 0 | U54: 0 | V54: 0 | W54: 0 | X54: 0 | Y54: 0 | Z54: 0 | AA54: 0 | AB54: 0 | AC54: 0 | AD54: 0 | AE54: 0 | AF54: 0 | AG54: 0 | AH54: 0 | AI54: 0 | AJ54: 0 | AK54: 0 | AL54: 0 | AM54: 0 | AN54: 0 | AO54: 0 | AP54: 0 | AQ54: 0 | AR54: 0 | AS54: 0 | AT54: 0 | AU54: 0 | AV54: 0 | AX54: 0 | AY54: 0 | AZ54: 0 | BA54: 0 | BB54: 0 | BC54: 0 | BD54: 0 | BE54: 0 | BF54: 0 | BG54: 0 | BH54: 0 | BI54: 0 | BJ54: 0 | BK54: 0 | BL54: 0 | BM54: 0 | BN54: 0 | BO54: 0 | BP54: 0 | BQ54: 0 | BR54: 0 | BS54: 0 | BT54: 0 | BU54: 0 | BV54: 0 | BW54: 0 | BX54: 0 | BY54: 0 | BZ54: 0 | CA54: 0 | CB54: 0 | CE54: Öltank | CS54: 1 | CT54: 0 | CU54: 0 | CV54: 0
B55: Ölförderungsleitung | E55: 30 | G55: 0.015 | I55: [% Inv.] | K55: 30 | L55: 0.015 | M55: 0 | N55: 0 | P55: Ölförderungsleitung | Q55: 0 | R55: =IF(Betrachtungszeit_Heizung<R$26,0,IF(AND(Q$26<>0,Q$26/($K55)=INT(Q$26/($K55))),$D55,0)) -> 0 | S55: 0 | T55: 0 | U55: 0 | V55: 0 | W55: 0 | X55: 0 | Y55: 0 | Z55: 0 | AA55: 0 | AB55: 0 | AC55: 0 | AD55: 0 | AE55: 0 | AF55: 0 | AG55: 0 | AH55: 0 | AI55: 0 | AJ55: 0 | AK55: 0 | AL55: 0 | AM55: 0 | AN55: 0 | AO55: 0 | AP55: 0 | AQ55: 0 | AR55: 0 | AS55: 0 | AT55: 0 | AU55: 0 | AV55: 0 | AX55: 0 | AY55: 0 | AZ55: 0 | BA55: 0 | BB55: 0 | BC55: 0 | BD55: 0 | BE55: 0 | BF55: 0 | BG55: 0 | BH55: 0 | BI55: 0 | BJ55: 0 | BK55: 0 | BL55: 0 | BM55: 0 | BN55: 0 | BO55: 0 | BP55: 0 | BQ55: 0 | BR55: 0 | BS55: 0 | BT55: 0 | BU55: 0 | BV55: 0 | BW55: 0 | BX55: 0 | BY55: 0 | BZ55: 0 | CA55: 0 | CB55: 0 | CE55: Ölförderungsleitung | CS55: 1 | CT55: 0 | CU55: 0 | CV55: 0
B56: Ölstrasse Kessel | E56: 20 | G56: 0.01 | I56: [% Inv.] | K56: 20 | L56: 0.01 | M56: 0 | N56: 0 | P56: Ölstrasse Kessel | Q56: 0 | R56: =IF(Betrachtungszeit_Heizung<R$26,0,IF(AND(Q$26<>0,Q$26/($K56)=INT(Q$26/($K56))),$D56,0)) -> 0 | S56: 0 | T56: 0 | U56: 0 | V56: 0 | W56: 0 | X56: 0 | Y56: 0 | Z56: 0 | AA56: 0 | AB56: 0 | AC56: 0 | AD56: 0 | AE56: 0 | AF56: 0 | AG56: 0 | AH56: 0 | AI56: 0 | AJ56: 0 | AK56: 0 | AL56: 0 | AM56: 0 | AN56: 0 | AO56: 0 | AP56: 0 | AQ56: 0 | AR56: 0 | AS56: 0 | AT56: 0 | AU56: 0 | AV56: 0 | AX56: 0 | AY56: 0 | AZ56: 0 | BA56: 0 | BB56: 0 | BC56: 0 | BD56: 0 | BE56: 0 | BF56: 0 | BG56: 0 | BH56: 0 | BI56: 0 | BJ56: 0 | BK56: 0 | BL56: 0 | BM56: 0 | BN56: 0 | BO56: 0 | BP56: 0 | BQ56: 0 | BR56: 0 | BS56: 0 | BT56: 0 | BU56: 0 | BV56: 0 | BW56: 0 | BX56: 0 | BY56: 0 | BZ56: 0 | CA56: 0 | CB56: 0 | CE56: Ölstrasse Kessel | CS56: 1 | CT56: 0 | CU56: 0 | CV56: 0
B57: Schnitzel-/Pelletförderung | E57: 15 | G57: 0.04 | I57: [% Inv.] | K57: 15 | L57: 0.04 | M57: 0 | N57: 0 | P57: Schnitzel-/Pelletförderung | Q57: 0 | R57: =IF(Betrachtungszeit_Heizung<R$26,0,IF(AND(Q$26<>0,Q$26/($K57)=INT(Q$26/($K57))),$D57,0)) -> 0 | S57: 0 | T57: 0 | U57: 0 | V57: 0 | W57: 0 | X57: 0 | Y57: 0 | Z57: 0 | AA57: 0 | AB57: 0 | AC57: 0 | AD57: 0 | AE57: 0 | AF57: 0 | AG57: 0 | AH57: 0 | AI57: 0 | AJ57: 0 | AK57: 0 | AL57: 0 | AM57: 0 | AN57: 0 | AO57: 0 | AP57: 0 | AQ57: 0 | AR57: 0 | AS57: 0 | AT57: 0 | AU57: 0 | AV57: 0 | AX57: 0 | AY57: 0 | AZ57: 0 | BA57: 0 | BB57: 0 | BC57: 0 | BD57: 0 | BE57: 0 | BF57: 0 | BG57: 0 | BH57: 0 | BI57: 0 | BJ57: 0 | BK57: 0 | BL57: 0 | BM57: 0 | BN57: 0 | BO57: 0 | BP57: 0 | BQ57: 0 | BR57: 0 | BS57: 0 | BT57: 0 | BU57: 0 | BV57: 0 | BW57: 0 | BX57: 0 | BY57: 0 | BZ57: 0 | CA57: 0 | CB57: 0 | CE57: Schnitzel-/Pelletförderung | CM57: 1 | CN57: 1 | CT57: 0 | CU57: 0 | CV57: 0
B58: Weiteres | E58: 30 | G58: kein Default | I58: [% Inv.] | K58: 30 | L58: 0 | M58: 0 | N58: 0 | P58: Weiteres | Q58: 0 | R58: =IF(Betrachtungszeit_Heizung<R$26,0,IF(AND(Q$26<>0,Q$26/($K58)=INT(Q$26/($K58))),$D58,0)) -> 0 | S58: 0 | T58: 0 | U58: 0 | V58: 0 | W58: 0 | X58: 0 | Y58: 0 | Z58: 0 | AA58: 0 | AB58: 0 | AC58: 0 | AD58: 0 | AE58: 0 | AF58: 0 | AG58: 0 | AH58: 0 | AI58: 0 | AJ58: 0 | AK58: 0 | AL58: 0 | AM58: 0 | AN58: 0 | AO58: 0 | AP58: 0 | AQ58: 0 | AR58: 0 | AS58: 0 | AT58: 0 | AU58: 0 | AV58: 0 | AX58: 0 | AY58: 0 | AZ58: 0 | BA58: 0 | BB58: 0 | BC58: 0 | BD58: 0 | BE58: 0 | BF58: 0 | BG58: 0 | BH58: 0 | BI58: 0 | BJ58: 0 | BK58: 0 | BL58: 0 | BM58: 0 | BN58: 0 | BO58: 0 | BP58: 0 | BQ58: 0 | BR58: 0 | BS58: 0 | BT58: 0 | BU58: 0 | BV58: 0 | BW58: 0 | BX58: 0 | BY58: 0 | BZ58: 0 | CA58: 0 | CB58: 0 | CE58: =B58 -> Weiteres | CG58: 1 | CH58: 1 | CI58: 1 | CJ58: 1 | CK58: 1 | CL58: 1 | CM58: 1 | CN58: 1 | CO58: 1 | CP58: 1 | CQ58: 1 | CR58: 1 | CS58: 1 | CT58: =SUMIF($CF$25:$CS$25,$C$12,CF58:CS58) -> 0 | CU58: =SUMIF($CF$25:$CS$25,$C$20,CF58:CS58) -> 0 | CV58: 0
B59: 4. Wärmeerzeugung | P59: 4. Wärmeerzeugung | CE59: 4. Wärmeerzeugung | CF59: 1 | CG59: 1 | CH59: 1 | CI59: 1 | CJ59: 1 | CK59: 1 | CL59: 1 | CM59: 1 | CN59: 1 | CO59: 1 | CP59: 1 | CQ59: 1 | CR59: 1 | CS59: 1 | CT59: 1 | CU59: 1 | CV59: 1
B60: Heizkessel 1 | E60: 20 | G60: 0.025 | I60: [% Inv.] | K60: 20 | L60: =IF(ISNUMBER(H60),IF(I60=$D$332,IFERROR(H60/D60,"-"),H60/100),IF(ISNUMBER(G60),G60,0)) -> 0.025 | M60: =IF(AND(ISNUMBER(H60),I60=$D$332),H60,L60*D60) -> 0 | N60: =1/K60*D60 -> 0 | P60: Heizkessel 1 | Q60: 0 | R60: =IF(Betrachtungszeit_Heizung<R$26,0,IF(AND(Q$26<>0,Q$26/($K60)=INT(Q$26/($K60))),$D60,0)) -> 0 | S60: 0 | T60: 0 | U60: 0 | V60: 0 | W60: 0 | X60: 0 | Y60: 0 | Z60: 0 | AA60: 0 | AB60: 0 | AC60: 0 | AD60: 0 | AE60: 0 | AF60: 0 | AG60: 0 | AH60: 0 | AI60: 0 | AJ60: 0 | AK60: 0 | AL60: 0 | AM60: 0 | AN60: 0 | AO60: 0 | AP60: 0 | AQ60: 0 | AR60: 0 | AS60: 0 | AT60: 0 | AU60: 0 | AV60: =SUMIF($AX$26:$CB$26,Betrachtungszeit_Heizung,AX60:CB60) -> 0 | AX60: =$D60 -> 0 | AY60: 0 | AZ60: 0 | BA60: 0 | BB60: 0 | BC60: 0 | BD60: 0 | BE60: 0 | BF60: 0 | BG60: 0 | BH60: 0 | BI60: 0 | BJ60: 0 | BK60: 0 | BL60: 0 | BM60: 0 | BN60: 0 | BO60: 0 | BP60: 0 | BQ60: 0 | BR60: 0 | BS60: 0 | BT60: 0 | BU60: 0 | BV60: 0 | BW60: 0 | BX60: 0 | BY60: 0 | BZ60: 0 | CA60: 0 | CB60: 0 | CE60: Heizkessel 1 | CM60: 1 | CN60: 1 | CQ60: 1 | CR60: 1 | CS60: 1 | CT60: 0 | CU60: 0 | CV60: 0
B61: Heizkessel 2 | E61: 20 | G61: 0.025 | I61: [% Inv.] | K61: 20 | L61: 0.025 | M61: 0 | N61: 0 | P61: Heizkessel 2 | Q61: 0 | R61: =IF(Betrachtungszeit_Heizung<R$26,0,IF(AND(Q$26<>0,Q$26/($K61)=INT(Q$26/($K61))),$D61,0)) -> 0 | S61: 0 | T61: 0 | U61: 0 | V61: 0 | W61: 0 | X61: 0 | Y61: 0 | Z61: 0 | AA61: 0 | AB61: 0 | AC61: 0 | AD61: 0 | AE61: 0 | AF61: 0 | AG61: 0 | AH61: 0 | AI61: 0 | AJ61: 0 | AK61: 0 | AL61: 0 | AM61: 0 | AN61: 0 | AO61: 0 | AP61: 0 | AQ61: 0 | AR61: 0 | AS61: 0 | AT61: 0 | AU61: 0 | AV61: 0 | AX61: 0 | AY61: 0 | AZ61: 0 | BA61: 0 | BB61: 0 | BC61: 0 | BD61: 0 | BE61: 0 | BF61: 0 | BG61: 0 | BH61: 0 | BI61: 0 | BJ61: 0 | BK61: 0 | BL61: 0 | BM61: 0 | BN61: 0 | BO61: 0 | BP61: 0 | BQ61: 0 | BR61: 0 | BS61: 0 | BT61: 0 | BU61: 0 | BV61: 0 | BW61: 0 | BX61: 0 | BY61: 0 | BZ61: 0 | CA61: 0 | CB61: 0 | CE61: Heizkessel 2 | CM61: 1 | CN61: 1 | CQ61: 1 | CR61: 1 | CS61: 1 | CT61: 0 | CU61: 0 | CV61: 0
B62: Wärmepumpe 1 | E62: 20 | G62: 0.035 | I62: [% Inv.] | K62: 20 | L62: 0.035 | M62: 0 | N62: 0 | P62: Wärmepumpe 1 | Q62: 0 | R62: =IF(Betrachtungszeit_Heizung<R$26,0,IF(AND(Q$26<>0,Q$26/($K62)=INT(Q$26/($K62))),$D62,0)) -> 0 | S62: 0 | T62: 0 | U62: 0 | V62: 0 | W62: 0 | X62: 0 | Y62: 0 | Z62: 0 | AA62: 0 | AB62: 0 | AC62: 0 | AD62: 0 | AE62: 0 | AF62: 0 | AG62: 0 | AH62: 0 | AI62: 0 | AJ62: 0 | AK62: 0 | AL62: 0 | AM62: 0 | AN62: 0 | AO62: 0 | AP62: 0 | AQ62: 0 | AR62: 0 | AS62: 0 | AT62: 0 | AU62: 0 | AV62: 0 | AX62: 0 | AY62: 0 | AZ62: 0 | BA62: 0 | BB62: 0 | BC62: 0 | BD62: 0 | BE62: 0 | BF62: 0 | BG62: 0 | BH62: 0 | BI62: 0 | BJ62: 0 | BK62: 0 | BL62: 0 | BM62: 0 | BN62: 0 | BO62: 0 | BP62: 0 | BQ62: 0 | BR62: 0 | BS62: 0 | BT62: 0 | BU62: 0 | BV62: 0 | BW62: 0 | BX62: 0 | BY62: 0 | BZ62: 0 | CA62: 0 | CB62: 0 | CE62: Wärmepumpe 1 | CG62: 1 | CH62: 1 | CI62: 1 | CJ62: 1 | CK62: 1 | CT62: 0 | CU62: 0 | CV62: 0
B63: Wärmepumpe 2 | E63: 20 | G63: 0.035 | I63: [% Inv.] | K63: 20 | L63: 0.035 | M63: 0 | N63: 0 | P63: Wärmepumpe 2 | Q63: 0 | R63: =IF(Betrachtungszeit_Heizung<R$26,0,IF(AND(Q$26<>0,Q$26/($K63)=INT(Q$26/($K63))),$D63,0)) -> 0 | S63: 0 | T63: 0 | U63: 0 | V63: 0 | W63: 0 | X63: 0 | Y63: 0 | Z63: 0 | AA63: 0 | AB63: 0 | AC63: 0 | AD63: 0 | AE63: 0 | AF63: 0 | AG63: 0 | AH63: 0 | AI63: 0 | AJ63: 0 | AK63: 0 | AL63: 0 | AM63: 0 | AN63: 0 | AO63: 0 | AP63: 0 | AQ63: 0 | AR63: 0 | AS63: 0 | AT63: 0 | AU63: 0 | AV63: 0 | AX63: 0 | AY63: 0 | AZ63: 0 | BA63: 0 | BB63: 0 | BC63: 0 | BD63: 0 | BE63: 0 | BF63: 0 | BG63: 0 | BH63: 0 | BI63: 0 | BJ63: 0 | BK63: 0 | BL63: 0 | BM63: 0 | BN63: 0 | BO63: 0 | BP63: 0 | BQ63: 0 | BR63: 0 | BS63: 0 | BT63: 0 | BU63: 0 | BV63: 0 | BW63: 0 | BX63: 0 | BY63: 0 | BZ63: 0 | CA63: 0 | CB63: 0 | CE63: Wärmepumpe 2 | CG63: 1 | CH63: 1 | CI63: 1 | CJ63: 1 | CK63: 1 | CT63: 0 | CU63: 0 | CV63: 0
B64: Hydraulische Einbindung | E64: 20 | G64: 0.015 | I64: [% Inv.] | K64: 20 | L64: 0.015 | M64: 0 | N64: 0 | P64: Hydraulische Einbindung | Q64: 0 | R64: =IF(Betrachtungszeit_Heizung<R$26,0,IF(AND(Q$26<>0,Q$26/($K64)=INT(Q$26/($K64))),$D64,0)) -> 0 | S64: 0 | T64: 0 | U64: 0 | V64: 0 | W64: 0 | X64: 0 | Y64: 0 | Z64: 0 | AA64: 0 | AB64: 0 | AC64: 0 | AD64: 0 | AE64: 0 | AF64: 0 | AG64: 0 | AH64: 0 | AI64: 0 | AJ64: 0 | AK64: 0 | AL64: 0 | AM64: 0 | AN64: 0 | AO64: 0 | AP64: 0 | AQ64: 0 | AR64: 0 | AS64: 0 | AT64: 0 | AU64: 0 | AV64: 0 | AX64: 0 | AY64: 0 | AZ64: 0 | BA64: 0 | BB64: 0 | BC64: 0 | BD64: 0 | BE64: 0 | BF64: 0 | BG64: 0 | BH64: 0 | BI64: 0 | BJ64: 0 | BK64: 0 | BL64: 0 | BM64: 0 | BN64: 0 | BO64: 0 | BP64: 0 | BQ64: 0 | BR64: 0 | BS64: 0 | BT64: 0 | BU64: 0 | BV64: 0 | BW64: 0 | BX64: 0 | BY64: 0 | BZ64: 0 | CA64: 0 | CB64: 0 | CE64: Hydraulische Einbindung | CG64: 1 | CH64: 1 | CI64: 1 | CJ64: 1 | CK64: 1 | CL64: 1 | CM64: 1 | CN64: 1 | CO64: 1 | CP64: 1 | CQ64: 1 | CR64: 1 | CS64: 1 | CT64: 0 | CU64: 0 | CV64: 0
B65: Speicher | E65: 30 | G65: 0.005 | I65: [% Inv.] | K65: 30 | L65: 0.005 | M65: 0 | N65: 0 | P65: Speicher | Q65: 0 | R65: =IF(Betrachtungszeit_Heizung<R$26,0,IF(AND(Q$26<>0,Q$26/($K65)=INT(Q$26/($K65))),$D65,0)) -> 0 | S65: 0 | T65: 0 | U65: 0 | V65: 0 | W65: 0 | X65: 0 | Y65: 0 | Z65: 0 | AA65: 0 | AB65: 0 | AC65: 0 | AD65: 0 | AE65: 0 | AF65: 0 | AG65: 0 | AH65: 0 | AI65: 0 | AJ65: 0 | AK65: 0 | AL65: 0 | AM65: 0 | AN65: 0 | AO65: 0 | AP65: 0 | AQ65: 0 | AR65: 0 | AS65: 0 | AT65: 0 | AU65: 0 | AV65: 0 | AX65: 0 | AY65: 0 | AZ65: 0 | BA65: 0 | BB65: 0 | BC65: 0 | BD65: 0 | BE65: 0 | BF65: 0 | BG65: 0 | BH65: 0 | BI65: 0 | BJ65: 0 | BK65: 0 | BL65: 0 | BM65: 0 | BN65: 0 | BO65: 0 | BP65: 0 | BQ65: 0 | BR65: 0 | BS65: 0 | BT65: 0 | BU65: 0 | BV65: 0 | BW65: 0 | BX65: 0 | BY65: 0 | BZ65: 0 | CA65: 0 | CB65: 0 | CE65: Speicher | CG65: 1 | CH65: 1 | CI65: 1 | CJ65: 1 | CK65: 1 | CL65: 1 | CM65: 1 | CN65: 1 | CO65: 1 | CP65: 1 | CQ65: 1 | CR65: 1 | CS65: 1 | CT65: 0 | CU65: 0 | CV65: 0
B66: Dämmungen | E66: 30 | G66: 0.001 | I66: [% Inv.] | K66: 30 | L66: 0.001 | M66: 0 | N66: 0 | P66: Dämmungen | Q66: 0 | R66: =IF(Betrachtungszeit_Heizung<R$26,0,IF(AND(Q$26<>0,Q$26/($K66)=INT(Q$26/($K66))),$D66,0)) -> 0 | S66: 0 | T66: 0 | U66: 0 | V66: 0 | W66: 0 | X66: 0 | Y66: 0 | Z66: 0 | AA66: 0 | AB66: 0 | AC66: 0 | AD66: 0 | AE66: 0 | AF66: 0 | AG66: 0 | AH66: 0 | AI66: 0 | AJ66: 0 | AK66: 0 | AL66: 0 | AM66: 0 | AN66: 0 | AO66: 0 | AP66: 0 | AQ66: 0 | AR66: 0 | AS66: 0 | AT66: 0 | AU66: 0 | AV66: 0 | AX66: 0 | AY66: 0 | AZ66: 0 | BA66: 0 | BB66: 0 | BC66: 0 | BD66: 0 | BE66: 0 | BF66: 0 | BG66: 0 | BH66: 0 | BI66: 0 | BJ66: 0 | BK66: 0 | BL66: 0 | BM66: 0 | BN66: 0 | BO66: 0 | BP66: 0 | BQ66: 0 | BR66: 0 | BS66: 0 | BT66: 0 | BU66: 0 | BV66: 0 | BW66: 0 | BX66: 0 | BY66: 0 | BZ66: 0 | CA66: 0 | CB66: 0 | CE66: Dämmungen | CG66: 1 | CH66: 1 | CI66: 1 | CJ66: 1 | CK66: 1 | CL66: 1 | CM66: 1 | CN66: 1 | CO66: 1 | CP66: 1 | CQ66: 1 | CR66: 1 | CS66: 1 | CT66: 0 | CU66: 0 | CV66: 0
B67: Weiteres | E67: 30 | G67: kein Default | I67: [% Inv.] | K67: 30 | L67: 0 | M67: 0 | N67: 0 | P67: Weiteres | Q67: 0 | R67: =IF(Betrachtungszeit_Heizung<R$26,0,IF(AND(Q$26<>0,Q$26/($K67)=INT(Q$26/($K67))),$D67,0)) -> 0 | S67: 0 | T67: 0 | U67: 0 | V67: 0 | W67: 0 | X67: 0 | Y67: 0 | Z67: 0 | AA67: 0 | AB67: 0 | AC67: 0 | AD67: 0 | AE67: 0 | AF67: 0 | AG67: 0 | AH67: 0 | AI67: 0 | AJ67: 0 | AK67: 0 | AL67: 0 | AM67: 0 | AN67: 0 | AO67: 0 | AP67: 0 | AQ67: 0 | AR67: 0 | AS67: 0 | AT67: 0 | AU67: 0 | AV67: 0 | AX67: 0 | AY67: 0 | AZ67: 0 | BA67: 0 | BB67: 0 | BC67: 0 | BD67: 0 | BE67: 0 | BF67: 0 | BG67: 0 | BH67: 0 | BI67: 0 | BJ67: 0 | BK67: 0 | BL67: 0 | BM67: 0 | BN67: 0 | BO67: 0 | BP67: 0 | BQ67: 0 | BR67: 0 | BS67: 0 | BT67: 0 | BU67: 0 | BV67: 0 | BW67: 0 | BX67: 0 | BY67: 0 | BZ67: 0 | CA67: 0 | CB67: 0 | CE67: Weiteres | CG67: 1 | CH67: 1 | CI67: 1 | CJ67: 1 | CK67: 1 | CL67: 1 | CM67: 1 | CN67: 1 | CO67: 1 | CP67: 1 | CQ67: 1 | CR67: 1 | CS67: 1 | CT67: 0 | CU67: 0 | CV67: 0
B68: 5. Kaminanlage | P68: 5. Kaminanlage | CE68: 5. Kaminanlage | CF68: 1 | CM68: 1 | CN68: 1 | CQ68: 1 | CR68: 1 | CS68: 1 | CT68: 1 | CU68: 1 | CV68: 1
B69: Kaminanlage/Abgasleitung 1 | E69: 20 | G69: 0.025 | I69: [% Inv.] | K69: 20 | L69: =IF(ISNUMBER(H69),IF(I69=$D$332,IFERROR(H69/D69,"-"),H69/100),IF(ISNUMBER(G69),G69,0)) -> 0.025 | M69: =IF(AND(ISNUMBER(H69),I69=$D$332),H69,L69*D69) -> 0 | N69: =1/K69*D69 -> 0 | P69: Kaminanlage/Abgasleitung 1 | Q69: 0 | R69: =IF(Betrachtungszeit_Heizung<R$26,0,IF(AND(Q$26<>0,Q$26/($K69)=INT(Q$26/($K69))),$D69,0)) -> 0 | S69: 0 | T69: 0 | U69: 0 | V69: 0 | W69: 0 | X69: 0 | Y69: 0 | Z69: 0 | AA69: 0 | AB69: 0 | AC69: 0 | AD69: 0 | AE69: 0 | AF69: 0 | AG69: 0 | AH69: 0 | AI69: 0 | AJ69: 0 | AK69: 0 | AL69: 0 | AM69: 0 | AN69: 0 | AO69: 0 | AP69: 0 | AQ69: 0 | AR69: 0 | AS69: 0 | AT69: 0 | AU69: 0 | AV69: 0 | AX69: 0 | AY69: 0 | AZ69: 0 | BA69: 0 | BB69: 0 | BC69: 0 | BD69: 0 | BE69: 0 | BF69: 0 | BG69: 0 | BH69: 0 | BI69: 0 | BJ69: 0 | BK69: 0 | BL69: 0 | BM69: 0 | BN69: 0 | BO69: 0 | BP69: 0 | BQ69: 0 | BR69: 0 | BS69: 0 | BT69: 0 | BU69: 0 | BV69: 0 | BW69: 0 | BX69: 0 | BY69: 0 | BZ69: 0 | CA69: 0 | CB69: 0 | CE69: Kaminanlage/Abgasleitung 1 | CM69: 1 | CN69: 1 | CQ69: 1 | CR69: 1 | CS69: 1 | CT69: 0 | CU69: 0 | CV69: 0
B70: Kaminanlage/Abgasleitung 2 | E70: 20 | G70: 0.025 | I70: [% Inv.] | K70: 20 | L70: 0.025 | M70: 0 | N70: 0 | P70: Kaminanlage/Abgasleitung 2 | Q70: 0 | R70: =IF(Betrachtungszeit_Heizung<R$26,0,IF(AND(Q$26<>0,Q$26/($K70)=INT(Q$26/($K70))),$D70,0)) -> 0 | S70: 0 | T70: 0 | U70: 0 | V70: 0 | W70: 0 | X70: 0 | Y70: 0 | Z70: 0 | AA70: 0 | AB70: 0 | AC70: 0 | AD70: 0 | AE70: 0 | AF70: 0 | AG70: 0 | AH70: 0 | AI70: 0 | AJ70: 0 | AK70: 0 | AL70: 0 | AM70: 0 | AN70: 0 | AO70: 0 | AP70: 0 | AQ70: 0 | AR70: 0 | AS70: 0 | AT70: 0 | AU70: 0 | AV70: 0 | AX70: 0 | AY70: 0 | AZ70: 0 | BA70: 0 | BB70: 0 | BC70: 0 | BD70: 0 | BE70: 0 | BF70: 0 | BG70: 0 | BH70: 0 | BI70: 0 | BJ70: 0 | BK70: 0 | BL70: 0 | BM70: 0 | BN70: 0 | BO70: 0 | BP70: 0 | BQ70: 0 | BR70: 0 | BS70: 0 | BT70: 0 | BU70: 0 | BV70: 0 | BW70: 0 | BX70: 0 | BY70: 0 | BZ70: 0 | CA70: 0 | CB70: 0 | CE70: Kaminanlage/Abgasleitung 2 | CM70: 1 | CN70: 1 | CQ70: 1 | CR70: 1 | CS70: 1 | CT70: 0 | CU70: 0 | CV70: 0
B71: Aschenaustragung | E71: 15 | G71: 0.035 | I71: [% Inv.] | K71: 15 | L71: 0.035 | M71: 0 | N71: 0 | P71: Aschenaustragung | Q71: 0 | R71: =IF(Betrachtungszeit_Heizung<R$26,0,IF(AND(Q$26<>0,Q$26/($K71)=INT(Q$26/($K71))),$D71,0)) -> 0 | S71: 0 | T71: 0 | U71: 0 | V71: 0 | W71: 0 | X71: 0 | Y71: 0 | Z71: 0 | AA71: 0 | AB71: 0 | AC71: 0 | AD71: 0 | AE71: 0 | AF71: 0 | AG71: 0 | AH71: 0 | AI71: 0 | AJ71: 0 | AK71: 0 | AL71: 0 | AM71: 0 | AN71: 0 | AO71: 0 | AP71: 0 | AQ71: 0 | AR71: 0 | AS71: 0 | AT71: 0 | AU71: 0 | AV71: 0 | AX71: 0 | AY71: 0 | AZ71: 0 | BA71: 0 | BB71: 0 | BC71: 0 | BD71: 0 | BE71: 0 | BF71: 0 | BG71: 0 | BH71: 0 | BI71: 0 | BJ71: 0 | BK71: 0 | BL71: 0 | BM71: 0 | BN71: 0 | BO71: 0 | BP71: 0 | BQ71: 0 | BR71: 0 | BS71: 0 | BT71: 0 | BU71: 0 | BV71: 0 | BW71: 0 | BX71: 0 | BY71: 0 | BZ71: 0 | CA71: 0 | CB71: 0 | CE71: Aschenaustragung | CM71: 1 | CN71: 1 | CT71: 0 | CU71: 0 | CV71: 0
B72: Rauchgasreinigung | E72: 15 | G72: 0.035 | I72: [% Inv.] | K72: 15 | L72: 0.035 | M72: 0 | N72: 0 | P72: Rauchgasreinigung | Q72: 0 | R72: =IF(Betrachtungszeit_Heizung<R$26,0,IF(AND(Q$26<>0,Q$26/($K72)=INT(Q$26/($K72))),$D72,0)) -> 0 | S72: 0 | T72: 0 | U72: 0 | V72: 0 | W72: 0 | X72: 0 | Y72: 0 | Z72: 0 | AA72: 0 | AB72: 0 | AC72: 0 | AD72: 0 | AE72: 0 | AF72: 0 | AG72: 0 | AH72: 0 | AI72: 0 | AJ72: 0 | AK72: 0 | AL72: 0 | AM72: 0 | AN72: 0 | AO72: 0 | AP72: 0 | AQ72: 0 | AR72: 0 | AS72: 0 | AT72: 0 | AU72: 0 | AV72: 0 | AX72: 0 | AY72: 0 | AZ72: 0 | BA72: 0 | BB72: 0 | BC72: 0 | BD72: 0 | BE72: 0 | BF72: 0 | BG72: 0 | BH72: 0 | BI72: 0 | BJ72: 0 | BK72: 0 | BL72: 0 | BM72: 0 | BN72: 0 | BO72: 0 | BP72: 0 | BQ72: 0 | BR72: 0 | BS72: 0 | BT72: 0 | BU72: 0 | BV72: 0 | BW72: 0 | BX72: 0 | BY72: 0 | BZ72: 0 | CA72: 0 | CB72: 0 | CE72: Rauchgasreinigung | CM72: 1 | CN72: 1 | CT72: 0 | CU72: 0 | CV72: 0
B73: Weiteres | E73: 30 | G73: kein Default | I73: [% Inv.] | K73: 30 | L73: 0 | M73: 0 | N73: 0 | P73: Weiteres | Q73: 0 | R73: =IF(Betrachtungszeit_Heizung<R$26,0,IF(AND(Q$26<>0,Q$26/($K73)=INT(Q$26/($K73))),$D73,0)) -> 0 | S73: 0 | T73: 0 | U73: 0 | V73: 0 | W73: 0 | X73: 0 | Y73: 0 | Z73: 0 | AA73: 0 | AB73: 0 | AC73: 0 | AD73: 0 | AE73: 0 | AF73: 0 | AG73: 0 | AH73: 0 | AI73: 0 | AJ73: 0 | AK73: 0 | AL73: 0 | AM73: 0 | AN73: 0 | AO73: 0 | AP73: 0 | AQ73: 0 | AR73: 0 | AS73: 0 | AT73: 0 | AU73: 0 | AV73: 0 | AX73: 0 | AY73: 0 | AZ73: 0 | BA73: 0 | BB73: 0 | BC73: 0 | BD73: 0 | BE73: 0 | BF73: 0 | BG73: 0 | BH73: 0 | BI73: 0 | BJ73: 0 | BK73: 0 | BL73: 0 | BM73: 0 | BN73: 0 | BO73: 0 | BP73: 0 | BQ73: 0 | BR73: 0 | BS73: 0 | BT73: 0 | BU73: 0 | BV73: 0 | BW73: 0 | BX73: 0 | BY73: 0 | BZ73: 0 | CA73: 0 | CB73: 0 | CE73: Weiteres | CM73: 1 | CN73: 1 | CQ73: 1 | CR73: 1 | CS73: 1 | CT73: 0 | CU73: 0 | CV73: 0
B74: 6. Wärmeverteilung | P74: 6. Wärmeverteilung | CE74: 6. Wärmeverteilung | CF74: 1 | CG74: 1 | CH74: 1 | CI74: 1 | CJ74: 1 | CK74: 1 | CL74: 1 | CM74: 1 | CN74: 1 | CO74: 1 | CP74: 1 | CQ74: 1 | CR74: 1 | CS74: 1 | CT74: 1 | CU74: 1 | CV74: 1
B75: Heizungsverteiler | E75: 30 | G75: 0.01 | I75: [% Inv.] | K75: 30 | L75: =IF(ISNUMBER(H75),IF(I75=$D$332,IFERROR(H75/D75,"-"),H75/100),IF(ISNUMBER(G75),G75,0)) -> 0.01 | M75: =IF(AND(ISNUMBER(H75),I75=$D$332),H75,L75*D75) -> 0 | N75: =1/K75*D75 -> 0 | P75: Heizungsverteiler | Q75: 0 | R75: =IF(Betrachtungszeit_Heizung<R$26,0,IF(AND(Q$26<>0,Q$26/($K75)=INT(Q$26/($K75))),$D75,0)) -> 0 | S75: 0 | T75: 0 | U75: 0 | V75: 0 | W75: 0 | X75: 0 | Y75: 0 | Z75: 0 | AA75: 0 | AB75: 0 | AC75: 0 | AD75: 0 | AE75: 0 | AF75: 0 | AG75: 0 | AH75: 0 | AI75: 0 | AJ75: 0 | AK75: 0 | AL75: 0 | AM75: 0 | AN75: 0 | AO75: 0 | AP75: 0 | AQ75: 0 | AR75: 0 | AS75: 0 | AT75: 0 | AU75: 0 | AV75: =SUMIF($AX$26:$CB$26,Betrachtungszeit_Heizung,AX75:CB75) -> 0 | AX75: =$D75 -> 0 | AY75: 0 | AZ75: 0 | BA75: 0 | BB75: 0 | BC75: 0 | BD75: 0 | BE75: 0 | BF75: 0 | BG75: 0 | BH75: 0 | BI75: 0 | BJ75: 0 | BK75: 0 | BL75: 0 | BM75: 0 | BN75: 0 | BO75: 0 | BP75: 0 | BQ75: 0 | BR75: 0 | BS75: 0 | BT75: 0 | BU75: 0 | BV75: 0 | BW75: 0 | BX75: 0 | BY75: 0 | BZ75: 0 | CA75: 0 | CB75: 0 | CE75: Heizungsverteiler | CG75: 1 | CH75: 1 | CI75: 1 | CJ75: 1 | CK75: 1 | CL75: 1 | CM75: 1 | CN75: 1 | CO75: 1 | CP75: 1 | CQ75: 1 | CR75: 1 | CS75: 1 | CT75: 0 | CU75: 0 | CV75: 0
B76: Expansion | E76: 20 | G76: 0.01 | I76: [% Inv.] | K76: 20 | L76: 0.01 | M76: 0 | N76: 0 | P76: Expansion | Q76: 0 | R76: =IF(Betrachtungszeit_Heizung<R$26,0,IF(AND(Q$26<>0,Q$26/($K76)=INT(Q$26/($K76))),$D76,0)) -> 0 | S76: 0 | T76: 0 | U76: 0 | V76: 0 | W76: 0 | X76: 0 | Y76: 0 | Z76: 0 | AA76: 0 | AB76: 0 | AC76: 0 | AD76: 0 | AE76: 0 | AF76: 0 | AG76: 0 | AH76: 0 | AI76: 0 | AJ76: 0 | AK76: 0 | AL76: 0 | AM76: 0 | AN76: 0 | AO76: 0 | AP76: 0 | AQ76: 0 | AR76: 0 | AS76: 0 | AT76: 0 | AU76: 0 | AV76: 0 | AX76: 0 | AY76: 0 | AZ76: 0 | BA76: 0 | BB76: 0 | BC76: 0 | BD76: 0 | BE76: 0 | BF76: 0 | BG76: 0 | BH76: 0 | BI76: 0 | BJ76: 0 | BK76: 0 | BL76: 0 | BM76: 0 | BN76: 0 | BO76: 0 | BP76: 0 | BQ76: 0 | BR76: 0 | BS76: 0 | BT76: 0 | BU76: 0 | BV76: 0 | BW76: 0 | BX76: 0 | BY76: 0 | BZ76: 0 | CA76: 0 | CB76: 0 | CE76: Expansion | CG76: 1 | CH76: 1 | CI76: 1 | CJ76: 1 | CK76: 1 | CL76: 1 | CM76: 1 | CN76: 1 | CO76: 1 | CP76: 1 | CQ76: 1 | CR76: 1 | CS76: 1 | CT76: 0 | CU76: 0 | CV76: 0
B77: Heizgruppen | E77: 20 | G77: 0.01 | I77: [% Inv.] | K77: 20 | L77: 0.01 | M77: 0 | N77: 0 | P77: Heizgruppen | Q77: 0 | R77: =IF(Betrachtungszeit_Heizung<R$26,0,IF(AND(Q$26<>0,Q$26/($K77)=INT(Q$26/($K77))),$D77,0)) -> 0 | S77: 0 | T77: 0 | U77: 0 | V77: 0 | W77: 0 | X77: 0 | Y77: 0 | Z77: 0 | AA77: 0 | AB77: 0 | AC77: 0 | AD77: 0 | AE77: 0 | AF77: 0 | AG77: 0 | AH77: 0 | AI77: 0 | AJ77: 0 | AK77: 0 | AL77: 0 | AM77: 0 | AN77: 0 | AO77: 0 | AP77: 0 | AQ77: 0 | AR77: 0 | AS77: 0 | AT77: 0 | AU77: 0 | AV77: 0 | AX77: 0 | AY77: 0 | AZ77: 0 | BA77: 0 | BB77: 0 | BC77: 0 | BD77: 0 | BE77: 0 | BF77: 0 | BG77: 0 | BH77: 0 | BI77: 0 | BJ77: 0 | BK77: 0 | BL77: 0 | BM77: 0 | BN77: 0 | BO77: 0 | BP77: 0 | BQ77: 0 | BR77: 0 | BS77: 0 | BT77: 0 | BU77: 0 | BV77: 0 | BW77: 0 | BX77: 0 | BY77: 0 | BZ77: 0 | CA77: 0 | CB77: 0 | CE77: Heizgruppen | CG77: 1 | CH77: 1 | CI77: 1 | CJ77: 1 | CK77: 1 | CL77: 1 | CM77: 1 | CN77: 1 | CO77: 1 | CP77: 1 | CQ77: 1 | CR77: 1 | CS77: 1 | CT77: 0 | CU77: 0 | CV77: 0
B78: Übergabestationen Heizung | E78: 20 | G78: 0.015 | I78: [% Inv.] | K78: 20 | L78: 0.015 | M78: 0 | N78: 0 | P78: Übergabestationen Heizung | Q78: 0 | R78: =IF(Betrachtungszeit_Heizung<R$26,0,IF(AND(Q$26<>0,Q$26/($K78)=INT(Q$26/($K78))),$D78,0)) -> 0 | S78: 0 | T78: 0 | U78: 0 | V78: 0 | W78: 0 | X78: 0 | Y78: 0 | Z78: 0 | AA78: 0 | AB78: 0 | AC78: 0 | AD78: 0 | AE78: 0 | AF78: 0 | AG78: 0 | AH78: 0 | AI78: 0 | AJ78: 0 | AK78: 0 | AL78: 0 | AM78: 0 | AN78: 0 | AO78: 0 | AP78: 0 | AQ78: 0 | AR78: 0 | AS78: 0 | AT78: 0 | AU78: 0 | AV78: 0 | AX78: 0 | AY78: 0 | AZ78: 0 | BA78: 0 | BB78: 0 | BC78: 0 | BD78: 0 | BE78: 0 | BF78: 0 | BG78: 0 | BH78: 0 | BI78: 0 | BJ78: 0 | BK78: 0 | BL78: 0 | BM78: 0 | BN78: 0 | BO78: 0 | BP78: 0 | BQ78: 0 | BR78: 0 | BS78: 0 | BT78: 0 | BU78: 0 | BV78: 0 | BW78: 0 | BX78: 0 | BY78: 0 | BZ78: 0 | CA78: 0 | CB78: 0 | CE78: Übergabestationen Heizung | CG78: 1 | CH78: 1 | CI78: 1 | CJ78: 1 | CK78: 1 | CL78: 1 | CM78: 1 | CN78: 1 | CO78: 1 | CP78: 1 | CQ78: 1 | CR78: 1 | CS78: 1 | CT78: 0 | CU78: 0 | CV78: 0
B79: Energiemessung | E79: 20 | G79: 0.08 | I79: [% Inv.] | K79: 20 | L79: 0.08 | M79: 0 | N79: 0 | P79: Energiemessung | Q79: 0 | R79: =IF(Betrachtungszeit_Heizung<R$26,0,IF(AND(Q$26<>0,Q$26/($K79)=INT(Q$26/($K79))),$D79,0)) -> 0 | S79: 0 | T79: 0 | U79: 0 | V79: 0 | W79: 0 | X79: 0 | Y79: 0 | Z79: 0 | AA79: 0 | AB79: 0 | AC79: 0 | AD79: 0 | AE79: 0 | AF79: 0 | AG79: 0 | AH79: 0 | AI79: 0 | AJ79: 0 | AK79: 0 | AL79: 0 | AM79: 0 | AN79: 0 | AO79: 0 | AP79: 0 | AQ79: 0 | AR79: 0 | AS79: 0 | AT79: 0 | AU79: 0 | AV79: 0 | AX79: 0 | AY79: 0 | AZ79: 0 | BA79: 0 | BB79: 0 | BC79: 0 | BD79: 0 | BE79: 0 | BF79: 0 | BG79: 0 | BH79: 0 | BI79: 0 | BJ79: 0 | BK79: 0 | BL79: 0 | BM79: 0 | BN79: 0 | BO79: 0 | BP79: 0 | BQ79: 0 | BR79: 0 | BS79: 0 | BT79: 0 | BU79: 0 | BV79: 0 | BW79: 0 | BX79: 0 | BY79: 0 | BZ79: 0 | CA79: 0 | CB79: 0 | CE79: Energiemessung | CG79: 1 | CH79: 1 | CI79: 1 | CJ79: 1 | CK79: 1 | CL79: 1 | CM79: 1 | CN79: 1 | CO79: 1 | CP79: 1 | CQ79: 1 | CR79: 1 | CS79: 1 | CT79: 0 | CU79: 0 | CV79: 0
B80: Dämmungen | E80: 30 | G80: 0.001 | I80: [% Inv.] | K80: 30 | L80: 0.001 | M80: 0 | N80: 0 | P80: Dämmungen | Q80: 0 | R80: =IF(Betrachtungszeit_Heizung<R$26,0,IF(AND(Q$26<>0,Q$26/($K80)=INT(Q$26/($K80))),$D80,0)) -> 0 | S80: 0 | T80: 0 | U80: 0 | V80: 0 | W80: 0 | X80: 0 | Y80: 0 | Z80: 0 | AA80: 0 | AB80: 0 | AC80: 0 | AD80: 0 | AE80: 0 | AF80: 0 | AG80: 0 | AH80: 0 | AI80: 0 | AJ80: 0 | AK80: 0 | AL80: 0 | AM80: 0 | AN80: 0 | AO80: 0 | AP80: 0 | AQ80: 0 | AR80: 0 | AS80: 0 | AT80: 0 | AU80: 0 | AV80: 0 | AX80: 0 | AY80: 0 | AZ80: 0 | BA80: 0 | BB80: 0 | BC80: 0 | BD80: 0 | BE80: 0 | BF80: 0 | BG80: 0 | BH80: 0 | BI80: 0 | BJ80: 0 | BK80: 0 | BL80: 0 | BM80: 0 | BN80: 0 | BO80: 0 | BP80: 0 | BQ80: 0 | BR80: 0 | BS80: 0 | BT80: 0 | BU80: 0 | BV80: 0 | BW80: 0 | BX80: 0 | BY80: 0 | BZ80: 0 | CA80: 0 | CB80: 0 | CE80: Dämmungen | CG80: 1 | CH80: 1 | CI80: 1 | CJ80: 1 | CK80: 1 | CL80: 1 | CM80: 1 | CN80: 1 | CO80: 1 | CP80: 1 | CQ80: 1 | CR80: 1 | CS80: 1 | CT80: 0 | CU80: 0 | CV80: 0
B81: Weiteres | E81: 30 | G81: kein Default | I81: [% Inv.] | K81: 30 | L81: 0 | M81: 0 | N81: 0 | P81: Weiteres | Q81: 0 | R81: =IF(Betrachtungszeit_Heizung<R$26,0,IF(AND(Q$26<>0,Q$26/($K81)=INT(Q$26/($K81))),$D81,0)) -> 0 | S81: 0 | T81: 0 | U81: 0 | V81: 0 | W81: 0 | X81: 0 | Y81: 0 | Z81: 0 | AA81: 0 | AB81: 0 | AC81: 0 | AD81: 0 | AE81: 0 | AF81: 0 | AG81: 0 | AH81: 0 | AI81: 0 | AJ81: 0 | AK81: 0 | AL81: 0 | AM81: 0 | AN81: 0 | AO81: 0 | AP81: 0 | AQ81: 0 | AR81: 0 | AS81: 0 | AT81: 0 | AU81: 0 | AV81: 0 | AX81: 0 | AY81: 0 | AZ81: 0 | BA81: 0 | BB81: 0 | BC81: 0 | BD81: 0 | BE81: 0 | BF81: 0 | BG81: 0 | BH81: 0 | BI81: 0 | BJ81: 0 | BK81: 0 | BL81: 0 | BM81: 0 | BN81: 0 | BO81: 0 | BP81: 0 | BQ81: 0 | BR81: 0 | BS81: 0 | BT81: 0 | BU81: 0 | BV81: 0 | BW81: 0 | BX81: 0 | BY81: 0 | BZ81: 0 | CA81: 0 | CB81: 0 | CE81: Weiteres | CG81: 1 | CH81: 1 | CI81: 1 | CJ81: 1 | CK81: 1 | CL81: 1 | CM81: 1 | CN81: 1 | CO81: 1 | CP81: 1 | CQ81: 1 | CR81: 1 | CS81: 1 | CT81: 0 | CU81: 0 | CV81: 0
B82: 7. Wärmeabgabe | P82: 7. Wärmeabgabe | CE82: 7. Wärmeabgabe | CF82: 1 | CG82: 1 | CH82: 1 | CI82: 1 | CJ82: 1 | CK82: 1 | CL82: 1 | CM82: 1 | CN82: 1 | CO82: 1 | CP82: 1 | CQ82: 1 | CR82: 1 | CS82: 1 | CT82: 1 | CU82: 1 | CV82: 1
B83: Heizkörper | E83: 40 | G83: 0.01 | I83: [% Inv.] | K83: 40 | L83: =IF(ISNUMBER(H83),IF(I83=$D$332,IFERROR(H83/D83,"-"),H83/100),IF(ISNUMBER(G83),G83,0)) -> 0.01 | M83: =IF(AND(ISNUMBER(H83),I83=$D$332),H83,L83*D83) -> 0 | N83: =1/K83*D83 -> 0 | P83: Heizkörper | Q83: 0 | R83: =IF(Betrachtungszeit_Heizung<R$26,0,IF(AND(Q$26<>0,Q$26/($K83)=INT(Q$26/($K83))),$D83,0)) -> 0 | S83: 0 | T83: 0 | U83: 0 | V83: 0 | W83: 0 | X83: 0 | Y83: 0 | Z83: 0 | AA83: 0 | AB83: 0 | AC83: 0 | AD83: 0 | AE83: 0 | AF83: 0 | AG83: 0 | AH83: 0 | AI83: 0 | AJ83: 0 | AK83: 0 | AL83: 0 | AM83: 0 | AN83: 0 | AO83: 0 | AP83: 0 | AQ83: 0 | AR83: 0 | AS83: 0 | AT83: 0 | AU83: 0 | AV83: =SUMIF($AX$26:$CB$26,Betrachtungszeit_Heizung,AX83:CB83) -> 0 | AX83: =$D83 -> 0 | AY83: 0 | AZ83: 0 | BA83: 0 | BB83: 0 | BC83: 0 | BD83: 0 | BE83: 0 | BF83: 0 | BG83: 0 | BH83: 0 | BI83: 0 | BJ83: 0 | BK83: 0 | BL83: 0 | BM83: 0 | BN83: 0 | BO83: 0 | BP83: 0 | BQ83: 0 | BR83: 0 | BS83: 0 | BT83: 0 | BU83: 0 | BV83: 0 | BW83: 0 | BX83: 0 | BY83: 0 | BZ83: 0 | CA83: 0 | CB83: 0 | CE83: Heizkörper | CG83: 1 | CH83: 1 | CI83: 1 | CJ83: 1 | CK83: 1 | CL83: 1 | CM83: 1 | CN83: 1 | CO83: 1 | CP83: 1 | CQ83: 1 | CR83: 1 | CS83: 1 | CT83: 0 | CU83: 0 | CV83: 0
B84: Bodenheizung | E84: 30 | G84: 0.01 | I84: [% Inv.] | K84: 30 | L84: 0.01 | M84: 0 | N84: 0 | P84: Bodenheizung | Q84: 0 | R84: =IF(Betrachtungszeit_Heizung<R$26,0,IF(AND(Q$26<>0,Q$26/($K84)=INT(Q$26/($K84))),$D84,0)) -> 0 | S84: 0 | T84: 0 | U84: 0 | V84: 0 | W84: 0 | X84: 0 | Y84: 0 | Z84: 0 | AA84: 0 | AB84: 0 | AC84: 0 | AD84: 0 | AE84: 0 | AF84: 0 | AG84: 0 | AH84: 0 | AI84: 0 | AJ84: 0 | AK84: 0 | AL84: 0 | AM84: 0 | AN84: 0 | AO84: 0 | AP84: 0 | AQ84: 0 | AR84: 0 | AS84: 0 | AT84: 0 | AU84: 0 | AV84: 0 | AX84: 0 | AY84: 0 | AZ84: 0 | BA84: 0 | BB84: 0 | BC84: 0 | BD84: 0 | BE84: 0 | BF84: 0 | BG84: 0 | BH84: 0 | BI84: 0 | BJ84: 0 | BK84: 0 | BL84: 0 | BM84: 0 | BN84: 0 | BO84: 0 | BP84: 0 | BQ84: 0 | BR84: 0 | BS84: 0 | BT84: 0 | BU84: 0 | BV84: 0 | BW84: 0 | BX84: 0 | BY84: 0 | BZ84: 0 | CA84: 0 | CB84: 0 | CE84: Bodenheizung | CG84: 1 | CH84: 1 | CI84: 1 | CJ84: 1 | CK84: 1 | CL84: 1 | CM84: 1 | CN84: 1 | CO84: 1 | CP84: 1 | CQ84: 1 | CR84: 1 | CS84: 1 | CT84: 0 | CU84: 0 | CV84: 0
B85: TABs | E85: 40 | G85: 0.01 | I85: [% Inv.] | K85: 40 | L85: 0.01 | M85: 0 | N85: 0 | P85: TABs | Q85: 0 | R85: =IF(Betrachtungszeit_Heizung<R$26,0,IF(AND(Q$26<>0,Q$26/($K85)=INT(Q$26/($K85))),$D85,0)) -> 0 | S85: 0 | T85: 0 | U85: 0 | V85: 0 | W85: 0 | X85: 0 | Y85: 0 | Z85: 0 | AA85: 0 | AB85: 0 | AC85: 0 | AD85: 0 | AE85: 0 | AF85: 0 | AG85: 0 | AH85: 0 | AI85: 0 | AJ85: 0 | AK85: 0 | AL85: 0 | AM85: 0 | AN85: 0 | AO85: 0 | AP85: 0 | AQ85: 0 | AR85: 0 | AS85: 0 | AT85: 0 | AU85: 0 | AV85: 0 | AX85: 0 | AY85: 0 | AZ85: 0 | BA85: 0 | BB85: 0 | BC85: 0 | BD85: 0 | BE85: 0 | BF85: 0 | BG85: 0 | BH85: 0 | BI85: 0 | BJ85: 0 | BK85: 0 | BL85: 0 | BM85: 0 | BN85: 0 | BO85: 0 | BP85: 0 | BQ85: 0 | BR85: 0 | BS85: 0 | BT85: 0 | BU85: 0 | BV85: 0 | BW85: 0 | BX85: 0 | BY85: 0 | BZ85: 0 | CA85: 0 | CB85: 0 | CE85: TABs | CG85: 1 | CH85: 1 | CI85: 1 | CJ85: 1 | CK85: 1 | CL85: 1 | CM85: 1 | CN85: 1 | CO85: 1 | CP85: 1 | CQ85: 1 | CR85: 1 | CS85: 1 | CT85: 0 | CU85: 0 | CV85: 0
B86: Luftheizapparate | E86: 20 | G86: 0.02 | I86: [% Inv.] | K86: 20 | L86: 0.02 | M86: 0 | N86: 0 | P86: Luftheizapparate | Q86: 0 | R86: =IF(Betrachtungszeit_Heizung<R$26,0,IF(AND(Q$26<>0,Q$26/($K86)=INT(Q$26/($K86))),$D86,0)) -> 0 | S86: 0 | T86: 0 | U86: 0 | V86: 0 | W86: 0 | X86: 0 | Y86: 0 | Z86: 0 | AA86: 0 | AB86: 0 | AC86: 0 | AD86: 0 | AE86: 0 | AF86: 0 | AG86: 0 | AH86: 0 | AI86: 0 | AJ86: 0 | AK86: 0 | AL86: 0 | AM86: 0 | AN86: 0 | AO86: 0 | AP86: 0 | AQ86: 0 | AR86: 0 | AS86: 0 | AT86: 0 | AU86: 0 | AV86: 0 | AX86: 0 | AY86: 0 | AZ86: 0 | BA86: 0 | BB86: 0 | BC86: 0 | BD86: 0 | BE86: 0 | BF86: 0 | BG86: 0 | BH86: 0 | BI86: 0 | BJ86: 0 | BK86: 0 | BL86: 0 | BM86: 0 | BN86: 0 | BO86: 0 | BP86: 0 | BQ86: 0 | BR86: 0 | BS86: 0 | BT86: 0 | BU86: 0 | BV86: 0 | BW86: 0 | BX86: 0 | BY86: 0 | BZ86: 0 | CA86: 0 | CB86: 0 | CE86: Luftheizapparate | CG86: 1 | CH86: 1 | CI86: 1 | CJ86: 1 | CK86: 1 | CL86: 1 | CM86: 1 | CN86: 1 | CO86: 1 | CP86: 1 | CQ86: 1 | CR86: 1 | CS86: 1 | CT86: 0 | CU86: 0 | CV86: 0
B87: Lufterhitzer-Anschluss | E87: 20 | G87: 0.015 | I87: [% Inv.] | K87: 20 | L87: 0.015 | M87: 0 | N87: 0 | P87: Lufterhitzer-Anschluss | Q87: 0 | R87: =IF(Betrachtungszeit_Heizung<R$26,0,IF(AND(Q$26<>0,Q$26/($K87)=INT(Q$26/($K87))),$D87,0)) -> 0 | S87: 0 | T87: 0 | U87: 0 | V87: 0 | W87: 0 | X87: 0 | Y87: 0 | Z87: 0 | AA87: 0 | AB87: 0 | AC87: 0 | AD87: 0 | AE87: 0 | AF87: 0 | AG87: 0 | AH87: 0 | AI87: 0 | AJ87: 0 | AK87: 0 | AL87: 0 | AM87: 0 | AN87: 0 | AO87: 0 | AP87: 0 | AQ87: 0 | AR87: 0 | AS87: 0 | AT87: 0 | AU87: 0 | AV87: 0 | AX87: 0 | AY87: 0 | AZ87: 0 | BA87: 0 | BB87: 0 | BC87: 0 | BD87: 0 | BE87: 0 | BF87: 0 | BG87: 0 | BH87: 0 | BI87: 0 | BJ87: 0 | BK87: 0 | BL87: 0 | BM87: 0 | BN87: 0 | BO87: 0 | BP87: 0 | BQ87: 0 | BR87: 0 | BS87: 0 | BT87: 0 | BU87: 0 | BV87: 0 | BW87: 0 | BX87: 0 | BY87: 0 | BZ87: 0 | CA87: 0 | CB87: 0 | CE87: Lufterhitzer-Anschluss | CG87: 1 | CH87: 1 | CI87: 1 | CJ87: 1 | CK87: 1 | CL87: 1 | CM87: 1 | CN87: 1 | CO87: 1 | CP87: 1 | CQ87: 1 | CR87: 1 | CS87: 1 | CT87: 0 | CU87: 0 | CV87: 0
B88: KVS-WRG Lüftung | E88: 20 | G88: 0.025 | I88: [% Inv.] | K88: 20 | L88: 0.025 | M88: 0 | N88: 0 | P88: KVS-WRG Lüftung | Q88: 0 | R88: =IF(Betrachtungszeit_Heizung<R$26,0,IF(AND(Q$26<>0,Q$26/($K88)=INT(Q$26/($K88))),$D88,0)) -> 0 | S88: 0 | T88: 0 | U88: 0 | V88: 0 | W88: 0 | X88: 0 | Y88: 0 | Z88: 0 | AA88: 0 | AB88: 0 | AC88: 0 | AD88: 0 | AE88: 0 | AF88: 0 | AG88: 0 | AH88: 0 | AI88: 0 | AJ88: 0 | AK88: 0 | AL88: 0 | AM88: 0 | AN88: 0 | AO88: 0 | AP88: 0 | AQ88: 0 | AR88: 0 | AS88: 0 | AT88: 0 | AU88: 0 | AV88: 0 | AX88: 0 | AY88: 0 | AZ88: 0 | BA88: 0 | BB88: 0 | BC88: 0 | BD88: 0 | BE88: 0 | BF88: 0 | BG88: 0 | BH88: 0 | BI88: 0 | BJ88: 0 | BK88: 0 | BL88: 0 | BM88: 0 | BN88: 0 | BO88: 0 | BP88: 0 | BQ88: 0 | BR88: 0 | BS88: 0 | BT88: 0 | BU88: 0 | BV88: 0 | BW88: 0 | BX88: 0 | BY88: 0 | BZ88: 0 | CA88: 0 | CB88: 0 | CE88: KVS-WRG Lüftung | CG88: 1 | CH88: 1 | CI88: 1 | CJ88: 1 | CK88: 1 | CL88: 1 | CM88: 1 | CN88: 1 | CO88: 1 | CP88: 1 | CQ88: 1 | CR88: 1 | CS88: 1 | CT88: 0 | CU88: 0 | CV88: 0
B89: Energiemessung | E89: 20 | G89: 0.08 | I89: [% Inv.] | K89: 20 | L89: 0.08 | M89: 0 | N89: 0 | P89: Energiemessung | Q89: 0 | R89: =IF(Betrachtungszeit_Heizung<R$26,0,IF(AND(Q$26<>0,Q$26/($K89)=INT(Q$26/($K89))),$D89,0)) -> 0 | S89: 0 | T89: 0 | U89: 0 | V89: 0 | W89: 0 | X89: 0 | Y89: 0 | Z89: 0 | AA89: 0 | AB89: 0 | AC89: 0 | AD89: 0 | AE89: 0 | AF89: 0 | AG89: 0 | AH89: 0 | AI89: 0 | AJ89: 0 | AK89: 0 | AL89: 0 | AM89: 0 | AN89: 0 | AO89: 0 | AP89: 0 | AQ89: 0 | AR89: 0 | AS89: 0 | AT89: 0 | AU89: 0 | AV89: 0 | AX89: 0 | AY89: 0 | AZ89: 0 | BA89: 0 | BB89: 0 | BC89: 0 | BD89: 0 | BE89: 0 | BF89: 0 | BG89: 0 | BH89: 0 | BI89: 0 | BJ89: 0 | BK89: 0 | BL89: 0 | BM89: 0 | BN89: 0 | BO89: 0 | BP89: 0 | BQ89: 0 | BR89: 0 | BS89: 0 | BT89: 0 | BU89: 0 | BV89: 0 | BW89: 0 | BX89: 0 | BY89: 0 | BZ89: 0 | CA89: 0 | CB89: 0 | CE89: Energiemessung | CG89: 1 | CH89: 1 | CI89: 1 | CJ89: 1 | CK89: 1 | CL89: 1 | CM89: 1 | CN89: 1 | CO89: 1 | CP89: 1 | CQ89: 1 | CR89: 1 | CS89: 1 | CT89: 0 | CU89: 0 | CV89: 0
B90: Dämmungen | E90: 30 | G90: 0.001 | I90: [% Inv.] | K90: 30 | L90: 0.001 | M90: 0 | N90: 0 | P90: Dämmungen | Q90: 0 | R90: =IF(Betrachtungszeit_Heizung<R$26,0,IF(AND(Q$26<>0,Q$26/($K90)=INT(Q$26/($K90))),$D90,0)) -> 0 | S90: 0 | T90: 0 | U90: 0 | V90: 0 | W90: 0 | X90: 0 | Y90: 0 | Z90: 0 | AA90: 0 | AB90: 0 | AC90: 0 | AD90: 0 | AE90: 0 | AF90: 0 | AG90: 0 | AH90: 0 | AI90: 0 | AJ90: 0 | AK90: 0 | AL90: 0 | AM90: 0 | AN90: 0 | AO90: 0 | AP90: 0 | AQ90: 0 | AR90: 0 | AS90: 0 | AT90: 0 | AU90: 0 | AV90: 0 | AX90: 0 | AY90: 0 | AZ90: 0 | BA90: 0 | BB90: 0 | BC90: 0 | BD90: 0 | BE90: 0 | BF90: 0 | BG90: 0 | BH90: 0 | BI90: 0 | BJ90: 0 | BK90: 0 | BL90: 0 | BM90: 0 | BN90: 0 | BO90: 0 | BP90: 0 | BQ90: 0 | BR90: 0 | BS90: 0 | BT90: 0 | BU90: 0 | BV90: 0 | BW90: 0 | BX90: 0 | BY90: 0 | BZ90: 0 | CA90: 0 | CB90: 0 | CE90: =B90 -> Dämmungen | CG90: 1 | CH90: 1 | CI90: 1 | CJ90: 1 | CK90: 1 | CL90: 1 | CM90: 1 | CN90: 1 | CO90: 1 | CP90: 1 | CQ90: 1 | CR90: 1 | CS90: 1 | CT90: =SUMIF($CF$25:$CS$25,$C$12,CF90:CS90) -> 0 | CU90: =SUMIF($CF$25:$CS$25,$C$20,CF90:CS90) -> 0 | CV90: 0
B91: Weiteres | E91: 30 | G91: kein Default | I91: [% Inv.] | K91: 30 | L91: 0 | M91: 0 | N91: 0 | P91: Weiteres | Q91: 0 | R91: =IF(Betrachtungszeit_Heizung<R$26,0,IF(AND(Q$26<>0,Q$26/($K91)=INT(Q$26/($K91))),$D91,0)) -> 0 | S91: 0 | T91: 0 | U91: 0 | V91: 0 | W91: 0 | X91: 0 | Y91: 0 | Z91: 0 | AA91: 0 | AB91: 0 | AC91: 0 | AD91: 0 | AE91: 0 | AF91: 0 | AG91: 0 | AH91: 0 | AI91: 0 | AJ91: 0 | AK91: 0 | AL91: 0 | AM91: 0 | AN91: 0 | AO91: 0 | AP91: 0 | AQ91: 0 | AR91: 0 | AS91: 0 | AT91: 0 | AU91: 0 | AV91: 0 | AX91: 0 | AY91: 0 | AZ91: 0 | BA91: 0 | BB91: 0 | BC91: 0 | BD91: 0 | BE91: 0 | BF91: 0 | BG91: 0 | BH91: 0 | BI91: 0 | BJ91: 0 | BK91: 0 | BL91: 0 | BM91: 0 | BN91: 0 | BO91: 0 | BP91: 0 | BQ91: 0 | BR91: 0 | BS91: 0 | BT91: 0 | BU91: 0 | BV91: 0 | BW91: 0 | BX91: 0 | BY91: 0 | BZ91: 0 | CA91: 0 | CB91: 0 | CE91: Weiteres | CG91: 1 | CH91: 1 | CI91: 1 | CJ91: 1 | CK91: 1 | CL91: 1 | CM91: 1 | CN91: 1 | CO91: 1 | CP91: 1 | CQ91: 1 | CR91: 1 | CS91: 1 | CT91: 0 | CU91: 0 | CV91: 0
B92: 8. Sicherheit | P92: =B92 -> 8. Sicherheit | CE92: 8. Sicherheit | CF92: 1 | CG92: 1 | CH92: 1 | CI92: 1 | CJ92: 1 | CK92: 1 | CL92: 1 | CM92: 1 | CN92: 1 | CO92: 1 | CP92: 1 | CQ92: 1 | CR92: 1 | CS92: 1 | CT92: 1 | CU92: 1 | CV92: 1
B93: Gaswarnanlage | E93: 15 | G93: 0.03 | I93: [% Inv.] | K93: =IF(ISNUMBER(F93),F93,IF(ISNUMBER(E93),E93,0)) -> 15 | L93: =IF(ISNUMBER(H93),IF(I93=$D$332,IFERROR(H93/D93,"-"),H93/100),IF(ISNUMBER(G93),G93,0)) -> 0.03 | M93: =IF(AND(ISNUMBER(H93),I93=$D$332),H93,L93*D93) -> 0 | N93: =1/K93*D93 -> 0 | P93: Gaswarnanlage | Q93: =D93 -> 0 | R93: =IF(Betrachtungszeit_Heizung<R$26,0,IF(AND(Q$26<>0,Q$26/($K93)=INT(Q$26/($K93))),$D93,0)) -> 0 | S93: 0 | T93: 0 | U93: 0 | V93: 0 | W93: 0 | X93: 0 | Y93: 0 | Z93: 0 | AA93: 0 | AB93: 0 | AC93: 0 | AD93: 0 | AE93: 0 | AF93: 0 | AG93: 0 | AH93: 0 | AI93: 0 | AJ93: 0 | AK93: 0 | AL93: 0 | AM93: 0 | AN93: 0 | AO93: 0 | AP93: 0 | AQ93: 0 | AR93: 0 | AS93: 0 | AT93: 0 | AU93: 0 | AV93: =SUMIF($AX$26:$CB$26,Betrachtungszeit_Heizung,AX93:CB93) -> 0 | AX93: 0 | AY93: =AX93-$N93+R93 -> 0 | AZ93: =AY93-$N93+S93 -> 0 | BA93: =AZ93-$N93+T93 -> 0 | BB93: =BA93-$N93+U93 -> 0 | BC93: =BB93-$N93+V93 -> 0 | BD93: =BC93-$N93+W93 -> 0 | BE93: =BD93-$N93+X93 -> 0 | BF93: =BE93-$N93+Y93 -> 0 | BG93: =BF93-$N93+Z93 -> 0 | BH93: =BG93-$N93+AA93 -> 0 | BI93: =BH93-$N93+AB93 -> 0 | BJ93: =BI93-$N93+AC93 -> 0 | BK93: =BJ93-$N93+AD93 -> 0 | BL93: =BK93-$N93+AE93 -> 0 | BM93: =BL93-$N93+AF93 -> 0 | BN93: =BM93-$N93+AG93 -> 0 | BO93: =BN93-$N93+AH93 -> 0 | BP93: =BO93-$N93+AI93 -> 0 | BQ93: =BP93-$N93+AJ93 -> 0 | BR93: =BQ93-$N93+AK93 -> 0 | BS93: =BR93-$N93+AL93 -> 0 | BT93: =BS93-$N93+AM93 -> 0 | BU93: =BT93-$N93+AN93 -> 0 | BV93: =BU93-$N93+AO93 -> 0 | BW93: =BV93-$N93+AP93 -> 0 | BX93: =BW93-$N93+AQ93 -> 0 | BY93: =BX93-$N93+AR93 -> 0 | BZ93: =BY93-$N93+AS93 -> 0 | CA93: =BZ93-$N93+AT93 -> 0 | CB93: =CA93-$N93+AU93 -> 0 | CE93: Gaswarnanlage | CR93: 1 | CT93: 0 | CU93: 0 | CV93: 0
B94: Öltank Überwachung Erdreich | E94: 15 | G94: 0.03 | I94: [% Inv.] | K94: 15 | L94: 0.03 | M94: 0 | N94: 0 | P94: Öltank Überwachung Erdreich | Q94: 0 | R94: =IF(Betrachtungszeit_Heizung<R$26,0,IF(AND(Q$26<>0,Q$26/($K94)=INT(Q$26/($K94))),$D94,0)) -> 0 | S94: 0 | T94: 0 | U94: 0 | V94: 0 | W94: 0 | X94: 0 | Y94: 0 | Z94: 0 | AA94: 0 | AB94: 0 | AC94: 0 | AD94: 0 | AE94: 0 | AF94: 0 | AG94: 0 | AH94: 0 | AI94: 0 | AJ94: 0 | AK94: 0 | AL94: 0 | AM94: 0 | AN94: 0 | AO94: 0 | AP94: 0 | AQ94: 0 | AR94: 0 | AS94: 0 | AT94: 0 | AU94: 0 | AV94: =SUMIF($AX$26:$CB$26,Betrachtungszeit_Heizung,AX94:CB94) -> 0 | AX94: 0 | AY94: 0 | AZ94: 0 | BA94: 0 | BB94: 0 | BC94: 0 | BD94: 0 | BE94: 0 | BF94: 0 | BG94: 0 | BH94: 0 | BI94: 0 | BJ94: 0 | BK94: 0 | BL94: 0 | BM94: 0 | BN94: 0 | BO94: 0 | BP94: 0 | BQ94: 0 | BR94: 0 | BS94: 0 | BT94: 0 | BU94: 0 | BV94: 0 | BW94: 0 | BX94: 0 | BY94: 0 | BZ94: 0 | CA94: 0 | CB94: 0 | CE94: Öltank Überwachung Erdreich | CS94: 1 | CT94: 0 | CU94: 0 | CV94: 0
B95: Warnanlage Kältemittel | E95: 15 | G95: 0.03 | I95: [% Inv.] | K95: 15 | L95: 0.03 | M95: 0 | N95: 0 | P95: Warnanlage Kältemittel | Q95: 0 | R95: =IF(Betrachtungszeit_Heizung<R$26,0,IF(AND(Q$26<>0,Q$26/($K95)=INT(Q$26/($K95))),$D95,0)) -> 0 | S95: 0 | T95: 0 | U95: 0 | V95: 0 | W95: 0 | X95: 0 | Y95: 0 | Z95: 0 | AA95: 0 | AB95: 0 | AC95: 0 | AD95: 0 | AE95: 0 | AF95: 0 | AG95: 0 | AH95: 0 | AI95: 0 | AJ95: 0 | AK95: 0 | AL95: 0 | AM95: 0 | AN95: 0 | AO95: 0 | AP95: 0 | AQ95: 0 | AR95: 0 | AS95: 0 | AT95: 0 | AU95: 0 | AV95: =SUMIF($AX$26:$CB$26,Betrachtungszeit_Heizung,AX95:CB95) -> 0 | AX95: 0 | AY95: 0 | AZ95: 0 | BA95: 0 | BB95: 0 | BC95: 0 | BD95: 0 | BE95: 0 | BF95: 0 | BG95: 0 | BH95: 0 | BI95: 0 | BJ95: 0 | BK95: 0 | BL95: 0 | BM95: 0 | BN95: 0 | BO95: 0 | BP95: 0 | BQ95: 0 | BR95: 0 | BS95: 0 | BT95: 0 | BU95: 0 | BV95: 0 | BW95: 0 | BX95: 0 | BY95: 0 | BZ95: 0 | CA95: 0 | CB95: 0 | CE95: Warnanlage Kältemittel | CG95: 1 | CH95: 1 | CI95: 1 | CJ95: 1 | CK95: 1 | CT95: 0 | CU95: 0 | CV95: 0
B96: Brandmeldeanlage | E96: 15 | G96: 0.03 | I96: [% Inv.] | K96: 15 | L96: 0.03 | M96: 0 | N96: 0 | P96: Brandmeldeanlage | Q96: 0 | R96: =IF(Betrachtungszeit_Heizung<R$26,0,IF(AND(Q$26<>0,Q$26/($K96)=INT(Q$26/($K96))),$D96,0)) -> 0 | S96: 0 | T96: 0 | U96: 0 | V96: 0 | W96: 0 | X96: 0 | Y96: 0 | Z96: 0 | AA96: 0 | AB96: 0 | AC96: 0 | AD96: 0 | AE96: 0 | AF96: 0 | AG96: 0 | AH96: 0 | AI96: 0 | AJ96: 0 | AK96: 0 | AL96: 0 | AM96: 0 | AN96: 0 | AO96: 0 | AP96: 0 | AQ96: 0 | AR96: 0 | AS96: 0 | AT96: 0 | AU96: 0 | AV96: =SUMIF($AX$26:$CB$26,Betrachtungszeit_Heizung,AX96:CB96) -> 0 | AX96: 0 | AY96: 0 | AZ96: 0 | BA96: 0 | BB96: 0 | BC96: 0 | BD96: 0 | BE96: 0 | BF96: 0 | BG96: 0 | BH96: 0 | BI96: 0 | BJ96: 0 | BK96: 0 | BL96: 0 | BM96: 0 | BN96: 0 | BO96: 0 | BP96: 0 | BQ96: 0 | BR96: 0 | BS96: 0 | BT96: 0 | BU96: 0 | BV96: 0 | BW96: 0 | BX96: 0 | BY96: 0 | BZ96: 0 | CA96: 0 | CB96: 0 | CE96: Brandmeldeanlage | CG96: 1 | CH96: 1 | CI96: 1 | CJ96: 1 | CK96: 1 | CL96: 1 | CM96: 1 | CN96: 1 | CO96: 1 | CP96: 1 | CQ96: 1 | CR96: 1 | CS96: 1 | CT96: 0 | CU96: 0 | CV96: 0
B97: Weiteres | E97: 30 | G97: kein Default | I97: [% Inv.] | K97: 30 | L97: 0 | M97: 0 | N97: 0 | P97: Weiteres | Q97: 0 | R97: =IF(Betrachtungszeit_Heizung<R$26,0,IF(AND(Q$26<>0,Q$26/($K97)=INT(Q$26/($K97))),$D97,0)) -> 0 | S97: 0 | T97: 0 | U97: 0 | V97: 0 | W97: 0 | X97: 0 | Y97: 0 | Z97: 0 | AA97: 0 | AB97: 0 | AC97: 0 | AD97: 0 | AE97: 0 | AF97: 0 | AG97: 0 | AH97: 0 | AI97: 0 | AJ97: 0 | AK97: 0 | AL97: 0 | AM97: 0 | AN97: 0 | AO97: 0 | AP97: 0 | AQ97: 0 | AR97: 0 | AS97: 0 | AT97: 0 | AU97: 0 | AV97: =SUMIF($AX$26:$CB$26,Betrachtungszeit_Heizung,AX97:CB97) -> 0 | AX97: 0 | AY97: 0 | AZ97: 0 | BA97: 0 | BB97: 0 | BC97: 0 | BD97: 0 | BE97: 0 | BF97: 0 | BG97: 0 | BH97: 0 | BI97: 0 | BJ97: 0 | BK97: 0 | BL97: 0 | BM97: 0 | BN97: 0 | BO97: 0 | BP97: 0 | BQ97: 0 | BR97: 0 | BS97: 0 | BT97: 0 | BU97: 0 | BV97: 0 | BW97: 0 | BX97: 0 | BY97: 0 | BZ97: 0 | CA97: 0 | CB97: 0 | CE97: Weiteres | CG97: 1 | CH97: 1 | CI97: 1 | CJ97: 1 | CK97: 1 | CL97: 1 | CM97: 1 | CN97: 1 | CO97: 1 | CP97: 1 | CQ97: 1 | CR97: 1 | CS97: 1 | CT97: 0 | CU97: 0 | CV97: 0
B98: 9. Sanitär | P98: 9. Sanitär | CE98: 9. Sanitär | CF98: 1 | CG98: 1 | CH98: 1 | CI98: 1 | CJ98: 1 | CK98: 1 | CL98: 1 | CM98: 1 | CN98: 1 | CO98: 1 | CP98: 1 | CQ98: 1 | CR98: 1 | CS98: 1 | CT98: 1 | CU98: 1 | CV98: 1
B99: Warmwasserspeicher | E99: 30 | G99: 0.01 | I99: [% Inv.] | K99: 30 | L99: =IF(ISNUMBER(H99),IF(I99=$D$332,IFERROR(H99/D99,"-"),H99/100),IF(ISNUMBER(G99),G99,0)) -> 0.01 | M99: =IF(AND(ISNUMBER(H99),I99=$D$332),H99,L99*D99) -> 0 | N99: =1/K99*D99 -> 0 | P99: Warmwasserspeicher | Q99: 0 | R99: =IF(Betrachtungszeit_Heizung<R$26,0,IF(AND(Q$26<>0,Q$26/($K99)=INT(Q$26/($K99))),$D99,0)) -> 0 | S99: 0 | T99: 0 | U99: 0 | V99: 0 | W99: 0 | X99: 0 | Y99: 0 | Z99: 0 | AA99: 0 | AB99: 0 | AC99: 0 | AD99: 0 | AE99: 0 | AF99: 0 | AG99: 0 | AH99: 0 | AI99: 0 | AJ99: 0 | AK99: 0 | AL99: 0 | AM99: 0 | AN99: 0 | AO99: 0 | AP99: 0 | AQ99: 0 | AR99: 0 | AS99: 0 | AT99: 0 | AU99: 0 | AV99: =SUMIF($AX$26:$CB$26,Betrachtungszeit_Heizung,AX99:CB99) -> 0 | AX99: 0 | AY99: 0 | AZ99: 0 | BA99: 0 | BB99: 0 | BC99: 0 | BD99: 0 | BE99: 0 | BF99: 0 | BG99: 0 | BH99: 0 | BI99: 0 | BJ99: 0 | BK99: 0 | BL99: 0 | BM99: 0 | BN99: 0 | BO99: 0 | BP99: 0 | BQ99: 0 | BR99: 0 | BS99: 0 | BT99: 0 | BU99: 0 | BV99: 0 | BW99: 0 | BX99: 0 | BY99: 0 | BZ99: 0 | CA99: 0 | CB99: 0 | CE99: Warmwasserspeicher | CG99: 1 | CH99: 1 | CI99: 1 | CJ99: 1 | CK99: 1 | CL99: 1 | CM99: 1 | CN99: 1 | CO99: 1 | CP99: 1 | CQ99: 1 | CR99: 1 | CS99: 1 | CT99: 0 | CU99: 0 | CV99: 0
B100: Verteiler Warmwasser | E100: 40 | G100: 0.015 | I100: [% Inv.] | K100: 40 | L100: 0.015 | M100: 0 | N100: 0 | P100: Verteiler Warmwasser | Q100: 0 | R100: =IF(Betrachtungszeit_Heizung<R$26,0,IF(AND(Q$26<>0,Q$26/($K100)=INT(Q$26/($K100))),$D100,0)) -> 0 | S100: 0 | T100: 0 | U100: 0 | V100: 0 | W100: 0 | X100: 0 | Y100: 0 | Z100: 0 | AA100: 0 | AB100: 0 | AC100: 0 | AD100: 0 | AE100: 0 | AF100: 0 | AG100: 0 | AH100: 0 | AI100: 0 | AJ100: 0 | AK100: 0 | AL100: 0 | AM100: 0 | AN100: 0 | AO100: 0 | AP100: 0 | AQ100: 0 | AR100: 0 | AS100: 0 | AT100: 0 | AU100: 0 | AV100: 0 | AX100: 0 | AY100: 0 | AZ100: 0 | BA100: 0 | BB100: 0 | BC100: 0 | BD100: 0 | BE100: 0 | BF100: 0 | BG100: 0 | BH100: 0 | BI100: 0 | BJ100: 0 | BK100: 0 | BL100: 0 | BM100: 0 | BN100: 0 | BO100: 0 | BP100: 0 | BQ100: 0 | BR100: 0 | BS100: 0 | BT100: 0 | BU100: 0 | BV100: 0 | BW100: 0 | BX100: 0 | BY100: 0 | BZ100: 0 | CA100: 0 | CB100: 0 | CE100: Verteiler Warmwasser | CG100: 1 | CH100: 1 | CI100: 1 | CJ100: 1 | CK100: 1 | CL100: 1 | CM100: 1 | CN100: 1 | CO100: 1 | CP100: 1 | CQ100: 1 | CR100: 1 | CS100: 1 | CT100: 0 | CU100: 0 | CV100: 0
B101: Schmutzwasserleitungen | E101: 40 | G101: 0.01 | I101: [% Inv.] | K101: 40 | L101: 0.01 | M101: 0 | N101: 0 | P101: Schmutzwasserleitungen | Q101: 0 | R101: =IF(Betrachtungszeit_Heizung<R$26,0,IF(AND(Q$26<>0,Q$26/($K101)=INT(Q$26/($K101))),$D101,0)) -> 0 | S101: 0 | T101: 0 | U101: 0 | V101: 0 | W101: 0 | X101: 0 | Y101: 0 | Z101: 0 | AA101: 0 | AB101: 0 | AC101: 0 | AD101: 0 | AE101: 0 | AF101: 0 | AG101: 0 | AH101: 0 | AI101: 0 | AJ101: 0 | AK101: 0 | AL101: 0 | AM101: 0 | AN101: 0 | AO101: 0 | AP101: 0 | AQ101: 0 | AR101: 0 | AS101: 0 | AT101: 0 | AU101: 0 | AV101: 0 | AX101: 0 | AY101: 0 | AZ101: 0 | BA101: 0 | BB101: 0 | BC101: 0 | BD101: 0 | BE101: 0 | BF101: 0 | BG101: 0 | BH101: 0 | BI101: 0 | BJ101: 0 | BK101: 0 | BL101: 0 | BM101: 0 | BN101: 0 | BO101: 0 | BP101: 0 | BQ101: 0 | BR101: 0 | BS101: 0 | BT101: 0 | BU101: 0 | BV101: 0 | BW101: 0 | BX101: 0 | BY101: 0 | BZ101: 0 | CA101: 0 | CB101: 0 | CE101: Schmutzwasserleitungen | CG101: 1 | CH101: 1 | CI101: 1 | CJ101: 1 | CK101: 1 | CL101: 1 | CM101: 1 | CN101: 1 | CO101: 1 | CP101: 1 | CQ101: 1 | CR101: 1 | CS101: 1 | CT101: 0 | CU101: 0 | CV101: 0
B102: Apparate | E102: 40 | G102: 0.015 | I102: [% Inv.] | K102: 40 | L102: 0.015 | M102: 0 | N102: 0 | P102: Apparate | Q102: 0 | R102: =IF(Betrachtungszeit_Heizung<R$26,0,IF(AND(Q$26<>0,Q$26/($K102)=INT(Q$26/($K102))),$D102,0)) -> 0 | S102: 0 | T102: 0 | U102: 0 | V102: 0 | W102: 0 | X102: 0 | Y102: 0 | Z102: 0 | AA102: 0 | AB102: 0 | AC102: 0 | AD102: 0 | AE102: 0 | AF102: 0 | AG102: 0 | AH102: 0 | AI102: 0 | AJ102: 0 | AK102: 0 | AL102: 0 | AM102: 0 | AN102: 0 | AO102: 0 | AP102: 0 | AQ102: 0 | AR102: 0 | AS102: 0 | AT102: 0 | AU102: 0 | AV102: 0 | AX102: 0 | AY102: 0 | AZ102: 0 | BA102: 0 | BB102: 0 | BC102: 0 | BD102: 0 | BE102: 0 | BF102: 0 | BG102: 0 | BH102: 0 | BI102: 0 | BJ102: 0 | BK102: 0 | BL102: 0 | BM102: 0 | BN102: 0 | BO102: 0 | BP102: 0 | BQ102: 0 | BR102: 0 | BS102: 0 | BT102: 0 | BU102: 0 | BV102: 0 | BW102: 0 | BX102: 0 | BY102: 0 | BZ102: 0 | CA102: 0 | CB102: 0 | CE102: Apparate | CG102: 1 | CH102: 1 | CI102: 1 | CJ102: 1 | CK102: 1 | CL102: 1 | CM102: 1 | CN102: 1 | CO102: 1 | CP102: 1 | CQ102: 1 | CR102: 1 | CS102: 1 | CT102: 0 | CU102: 0 | CV102: 0
B103: Zirkulationsleitungen | E103: 40 | G103: 0.01 | I103: [% Inv.] | K103: 40 | L103: 0.01 | M103: 0 | N103: 0 | P103: Zirkulationsleitungen | Q103: 0 | R103: =IF(Betrachtungszeit_Heizung<R$26,0,IF(AND(Q$26<>0,Q$26/($K103)=INT(Q$26/($K103))),$D103,0)) -> 0 | S103: 0 | T103: 0 | U103: 0 | V103: 0 | W103: 0 | X103: 0 | Y103: 0 | Z103: 0 | AA103: 0 | AB103: 0 | AC103: 0 | AD103: 0 | AE103: 0 | AF103: 0 | AG103: 0 | AH103: 0 | AI103: 0 | AJ103: 0 | AK103: 0 | AL103: 0 | AM103: 0 | AN103: 0 | AO103: 0 | AP103: 0 | AQ103: 0 | AR103: 0 | AS103: 0 | AT103: 0 | AU103: 0 | AV103: 0 | AX103: 0 | AY103: 0 | AZ103: 0 | BA103: 0 | BB103: 0 | BC103: 0 | BD103: 0 | BE103: 0 | BF103: 0 | BG103: 0 | BH103: 0 | BI103: 0 | BJ103: 0 | BK103: 0 | BL103: 0 | BM103: 0 | BN103: 0 | BO103: 0 | BP103: 0 | BQ103: 0 | BR103: 0 | BS103: 0 | BT103: 0 | BU103: 0 | BV103: 0 | BW103: 0 | BX103: 0 | BY103: 0 | BZ103: 0 | CA103: 0 | CB103: 0 | CE103: Zirkulationsleitungen | CG103: 1 | CH103: 1 | CI103: 1 | CJ103: 1 | CK103: 1 | CL103: 1 | CM103: 1 | CN103: 1 | CO103: 1 | CP103: 1 | CQ103: 1 | CR103: 1 | CS103: 1 | CT103: 0 | CU103: 0 | CV103: 0
B104: Energiemessung | E104: 20 | G104: 0.08 | I104: [% Inv.] | K104: 20 | L104: 0.08 | M104: 0 | N104: 0 | P104: Energiemessung | Q104: 0 | R104: =IF(Betrachtungszeit_Heizung<R$26,0,IF(AND(Q$26<>0,Q$26/($K104)=INT(Q$26/($K104))),$D104,0)) -> 0 | S104: 0 | T104: 0 | U104: 0 | V104: 0 | W104: 0 | X104: 0 | Y104: 0 | Z104: 0 | AA104: 0 | AB104: 0 | AC104: 0 | AD104: 0 | AE104: 0 | AF104: 0 | AG104: 0 | AH104: 0 | AI104: 0 | AJ104: 0 | AK104: 0 | AL104: 0 | AM104: 0 | AN104: 0 | AO104: 0 | AP104: 0 | AQ104: 0 | AR104: 0 | AS104: 0 | AT104: 0 | AU104: 0 | AV104: 0 | AX104: 0 | AY104: 0 | AZ104: 0 | BA104: 0 | BB104: 0 | BC104: 0 | BD104: 0 | BE104: 0 | BF104: 0 | BG104: 0 | BH104: 0 | BI104: 0 | BJ104: 0 | BK104: 0 | BL104: 0 | BM104: 0 | BN104: 0 | BO104: 0 | BP104: 0 | BQ104: 0 | BR104: 0 | BS104: 0 | BT104: 0 | BU104: 0 | BV104: 0 | BW104: 0 | BX104: 0 | BY104: 0 | BZ104: 0 | CA104: 0 | CB104: 0 | CE104: Energiemessung | CG104: 1 | CH104: 1 | CI104: 1 | CJ104: 1 | CK104: 1 | CL104: 1 | CM104: 1 | CN104: 1 | CO104: 1 | CP104: 1 | CQ104: 1 | CR104: 1 | CS104: 1 | CT104: 0 | CU104: 0 | CV104: 0
B105: Dämmungen | E105: 30 | G105: 0.001 | I105: [% Inv.] | K105: 30 | L105: 0.001 | M105: 0 | N105: 0 | P105: Dämmungen | Q105: 0 | R105: =IF(Betrachtungszeit_Heizung<R$26,0,IF(AND(Q$26<>0,Q$26/($K105)=INT(Q$26/($K105))),$D105,0)) -> 0 | S105: 0 | T105: 0 | U105: 0 | V105: 0 | W105: 0 | X105: 0 | Y105: 0 | Z105: 0 | AA105: 0 | AB105: 0 | AC105: 0 | AD105: 0 | AE105: 0 | AF105: 0 | AG105: 0 | AH105: 0 | AI105: 0 | AJ105: 0 | AK105: 0 | AL105: 0 | AM105: 0 | AN105: 0 | AO105: 0 | AP105: 0 | AQ105: 0 | AR105: 0 | AS105: 0 | AT105: 0 | AU105: 0 | AV105: 0 | AX105: 0 | AY105: 0 | AZ105: 0 | BA105: 0 | BB105: 0 | BC105: 0 | BD105: 0 | BE105: 0 | BF105: 0 | BG105: 0 | BH105: 0 | BI105: 0 | BJ105: 0 | BK105: 0 | BL105: 0 | BM105: 0 | BN105: 0 | BO105: 0 | BP105: 0 | BQ105: 0 | BR105: 0 | BS105: 0 | BT105: 0 | BU105: 0 | BV105: 0 | BW105: 0 | BX105: 0 | BY105: 0 | BZ105: 0 | CA105: 0 | CB105: 0 | CE105: Dämmungen | CG105: 1 | CH105: 1 | CI105: 1 | CJ105: 1 | CK105: 1 | CL105: 1 | CM105: 1 | CN105: 1 | CO105: 1 | CP105: 1 | CQ105: 1 | CR105: 1 | CS105: 1 | CT105: 0 | CU105: 0 | CV105: 0
B106: Weiteres | E106: 30 | G106: kein Default | I106: [% Inv.] | K106: 30 | L106: 0 | M106: 0 | N106: 0 | P106: Weiteres | Q106: 0 | R106: =IF(Betrachtungszeit_Heizung<R$26,0,IF(AND(Q$26<>0,Q$26/($K106)=INT(Q$26/($K106))),$D106,0)) -> 0 | S106: 0 | T106: 0 | U106: 0 | V106: 0 | W106: 0 | X106: 0 | Y106: 0 | Z106: 0 | AA106: 0 | AB106: 0 | AC106: 0 | AD106: 0 | AE106: 0 | AF106: 0 | AG106: 0 | AH106: 0 | AI106: 0 | AJ106: 0 | AK106: 0 | AL106: 0 | AM106: 0 | AN106: 0 | AO106: 0 | AP106: 0 | AQ106: 0 | AR106: 0 | AS106: 0 | AT106: 0 | AU106: 0 | AV106: 0 | AX106: 0 | AY106: 0 | AZ106: 0 | BA106: 0 | BB106: 0 | BC106: 0 | BD106: 0 | BE106: 0 | BF106: 0 | BG106: 0 | BH106: 0 | BI106: 0 | BJ106: 0 | BK106: 0 | BL106: 0 | BM106: 0 | BN106: 0 | BO106: 0 | BP106: 0 | BQ106: 0 | BR106: 0 | BS106: 0 | BT106: 0 | BU106: 0 | BV106: 0 | BW106: 0 | BX106: 0 | BY106: 0 | BZ106: 0 | CA106: 0 | CB106: 0 | CE106: Weiteres | CG106: 1 | CH106: 1 | CI106: 1 | CJ106: 1 | CK106: 1 | CL106: 1 | CM106: 1 | CN106: 1 | CO106: 1 | CP106: 1 | CQ106: 1 | CR106: 1 | CS106: 1 | CT106: 0 | CU106: 0 | CV106: 0
B107: 10. Lüftung | P107: 10. Lüftung | CE107: 10. Lüftung | CF107: 1 | CG107: 1 | CH107: 1 | CI107: 1 | CJ107: 1 | CK107: 1 | CL107: 1 | CM107: 1 | CN107: 1 | CO107: 1 | CP107: 1 | CQ107: 1 | CR107: 1 | CS107: 1 | CT107: 1 | CU107: 1 | CV107: 1
B108: Lüftungsgeräte/Monoblock | E108: 25 | G108: 0.04 | I108: [% Inv.] | K108: 25 | L108: =IF(ISNUMBER(H108),IF(I108=$D$332,IFERROR(H108/D108,"-"),H108/100),IF(ISNUMBER(G108),G108,0)) -> 0.04 | M108: =IF(AND(ISNUMBER(H108),I108=$D$332),H108,L108*D108) -> 0 | N108: =1/K108*D108 -> 0 | P108: Lüftungsgeräte/Monoblock | Q108: 0 | R108: =IF(Betrachtungszeit_Heizung<R$26,0,IF(AND(Q$26<>0,Q$26/($K108)=INT(Q$26/($K108))),$D108,0)) -> 0 | S108: 0 | T108: 0 | U108: 0 | V108: 0 | W108: 0 | X108: 0 | Y108: 0 | Z108: 0 | AA108: 0 | AB108: 0 | AC108: 0 | AD108: 0 | AE108: 0 | AF108: 0 | AG108: 0 | AH108: 0 | AI108: 0 | AJ108: 0 | AK108: 0 | AL108: 0 | AM108: 0 | AN108: 0 | AO108: 0 | AP108: 0 | AQ108: 0 | AR108: 0 | AS108: 0 | AT108: 0 | AU108: 0 | AV108: =SUMIF($AX$26:$CB$26,Betrachtungszeit_Heizung,AX108:CB108) -> 0 | AX108: 0 | AY108: 0 | AZ108: 0 | BA108: 0 | BB108: 0 | BC108: 0 | BD108: 0 | BE108: 0 | BF108: 0 | BG108: 0 | BH108: 0 | BI108: 0 | BJ108: 0 | BK108: 0 | BL108: 0 | BM108: 0 | BN108: 0 | BO108: 0 | BP108: 0 | BQ108: 0 | BR108: 0 | BS108: 0 | BT108: 0 | BU108: 0 | BV108: 0 | BW108: 0 | BX108: 0 | BY108: 0 | BZ108: 0 | CA108: 0 | CB108: 0 | CE108: Lüftungsgeräte/Monoblock | CG108: 1 | CH108: 1 | CI108: 1 | CJ108: 1 | CK108: 1 | CL108: 1 | CM108: 1 | CN108: 1 | CO108: 1 | CP108: 1 | CQ108: 1 | CR108: 1 | CS108: 1 | CT108: 0 | CU108: 0 | CV108: 0
B109: Armaturen, Instrumente | E109: 15 | G109: 0.01 | I109: [% Inv.] | K109: 15 | L109: 0.01 | M109: 0 | N109: 0 | P109: Armaturen, Instrumente | Q109: 0 | R109: =IF(Betrachtungszeit_Heizung<R$26,0,IF(AND(Q$26<>0,Q$26/($K109)=INT(Q$26/($K109))),$D109,0)) -> 0 | S109: 0 | T109: 0 | U109: 0 | V109: 0 | W109: 0 | X109: 0 | Y109: 0 | Z109: 0 | AA109: 0 | AB109: 0 | AC109: 0 | AD109: 0 | AE109: 0 | AF109: 0 | AG109: 0 | AH109: 0 | AI109: 0 | AJ109: 0 | AK109: 0 | AL109: 0 | AM109: 0 | AN109: 0 | AO109: 0 | AP109: 0 | AQ109: 0 | AR109: 0 | AS109: 0 | AT109: 0 | AU109: 0 | AV109: =SUMIF($AX$26:$CB$26,Betrachtungszeit_Heizung,AX109:CB109) -> 0 | AX109: 0 | AY109: 0 | AZ109: 0 | BA109: 0 | BB109: 0 | BC109: 0 | BD109: 0 | BE109: 0 | BF109: 0 | BG109: 0 | BH109: 0 | BI109: 0 | BJ109: 0 | BK109: 0 | BL109: 0 | BM109: 0 | BN109: 0 | BO109: 0 | BP109: 0 | BQ109: 0 | BR109: 0 | BS109: 0 | BT109: 0 | BU109: 0 | BV109: 0 | BW109: 0 | BX109: 0 | BY109: 0 | BZ109: 0 | CA109: 0 | CB109: 0 | CE109: Armaturen, Instrumente | CG109: 1 | CH109: 1 | CI109: 1 | CJ109: 1 | CK109: 1 | CL109: 1 | CM109: 1 | CN109: 1 | CO109: 1 | CP109: 1 | CQ109: 1 | CR109: 1 | CS109: 1 | CT109: 0 | CU109: 0 | CV109: 0
B110: Kanäle | E110: 40 | G110: 0.01 | I110: [% Inv.] | K110: 40 | L110: 0.01 | M110: 0 | N110: 0 | P110: Kanäle | Q110: 0 | R110: =IF(Betrachtungszeit_Heizung<R$26,0,IF(AND(Q$26<>0,Q$26/($K110)=INT(Q$26/($K110))),$D110,0)) -> 0 | S110: 0 | T110: 0 | U110: 0 | V110: 0 | W110: 0 | X110: 0 | Y110: 0 | Z110: 0 | AA110: 0 | AB110: 0 | AC110: 0 | AD110: 0 | AE110: 0 | AF110: 0 | AG110: 0 | AH110: 0 | AI110: 0 | AJ110: 0 | AK110: 0 | AL110: 0 | AM110: 0 | AN110: 0 | AO110: 0 | AP110: 0 | AQ110: 0 | AR110: 0 | AS110: 0 | AT110: 0 | AU110: 0 | AV110: =SUMIF($AX$26:$CB$26,Betrachtungszeit_Heizung,AX110:CB110) -> 0 | AX110: 0 | AY110: 0 | AZ110: 0 | BA110: 0 | BB110: 0 | BC110: 0 | BD110: 0 | BE110: 0 | BF110: 0 | BG110: 0 | BH110: 0 | BI110: 0 | BJ110: 0 | BK110: 0 | BL110: 0 | BM110: 0 | BN110: 0 | BO110: 0 | BP110: 0 | BQ110: 0 | BR110: 0 | BS110: 0 | BT110: 0 | BU110: 0 | BV110: 0 | BW110: 0 | BX110: 0 | BY110: 0 | BZ110: 0 | CA110: 0 | CB110: 0 | CE110: Kanäle | CG110: 1 | CH110: 1 | CI110: 1 | CJ110: 1 | CK110: 1 | CL110: 1 | CM110: 1 | CN110: 1 | CO110: 1 | CP110: 1 | CQ110: 1 | CR110: 1 | CS110: 1 | CT110: 0 | CU110: 0 | CV110: =IF(CT110+CU110>0,1,0) -> 0
B111: Dämmungen | E111: 30 | G111: 0.001 | I111: [% Inv.] | K111: 30 | L111: 0.001 | M111: 0 | N111: 0 | P111: Dämmungen | Q111: 0 | R111: =IF(Betrachtungszeit_Heizung<R$26,0,IF(AND(Q$26<>0,Q$26/($K111)=INT(Q$26/($K111))),$D111,0)) -> 0 | S111: 0 | T111: 0 | U111: 0 | V111: 0 | W111: 0 | X111: 0 | Y111: 0 | Z111: 0 | AA111: 0 | AB111: 0 | AC111: 0 | AD111: 0 | AE111: 0 | AF111: 0 | AG111: 0 | AH111: 0 | AI111: 0 | AJ111: 0 | AK111: 0 | AL111: 0 | AM111: 0 | AN111: 0 | AO111: 0 | AP111: 0 | AQ111: 0 | AR111: 0 | AS111: 0 | AT111: 0 | AU111: 0 | AV111: =SUMIF($AX$26:$CB$26,Betrachtungszeit_Heizung,AX111:CB111) -> 0 | AX111: 0 | AY111: 0 | AZ111: 0 | BA111: 0 | BB111: 0 | BC111: 0 | BD111: 0 | BE111: 0 | BF111: 0 | BG111: 0 | BH111: 0 | BI111: 0 | BJ111: 0 | BK111: 0 | BL111: 0 | BM111: 0 | BN111: 0 | BO111: 0 | BP111: 0 | BQ111: 0 | BR111: 0 | BS111: 0 | BT111: 0 | BU111: 0 | BV111: 0 | BW111: 0 | BX111: 0 | BY111: 0 | BZ111: 0 | CA111: 0 | CB111: 0 | CE111: Dämmungen | CG111: 1 | CH111: 1 | CI111: 1 | CJ111: 1 | CK111: 1 | CL111: 1 | CM111: 1 | CN111: 1 | CO111: 1 | CP111: 1 | CQ111: 1 | CR111: 1 | CS111: 1 | CT111: 0 | CU111: 0 | CV111: 0
B112: Weiteres | E112: 30 | G112: kein Default | I112: [% Inv.] | K112: 30 | L112: 0 | M112: 0 | N112: 0 | P112: Weiteres | Q112: 0 | R112: =IF(Betrachtungszeit_Heizung<R$26,0,IF(AND(Q$26<>0,Q$26/($K112)=INT(Q$26/($K112))),$D112,0)) -> 0 | S112: 0 | T112: 0 | U112: 0 | V112: 0 | W112: 0 | X112: 0 | Y112: 0 | Z112: 0 | AA112: 0 | AB112: 0 | AC112: 0 | AD112: 0 | AE112: 0 | AF112: 0 | AG112: 0 | AH112: 0 | AI112: 0 | AJ112: 0 | AK112: 0 | AL112: 0 | AM112: 0 | AN112: 0 | AO112: 0 | AP112: 0 | AQ112: 0 | AR112: 0 | AS112: 0 | AT112: 0 | AU112: 0 | AV112: =SUMIF($AX$26:$CB$26,Betrachtungszeit_Heizung,AX112:CB112) -> 0 | AX112: 0 | AY112: 0 | AZ112: 0 | BA112: 0 | BB112: 0 | BC112: 0 | BD112: 0 | BE112: 0 | BF112: 0 | BG112: 0 | BH112: 0 | BI112: 0 | BJ112: 0 | BK112: 0 | BL112: 0 | BM112: 0 | BN112: 0 | BO112: 0 | BP112: 0 | BQ112: 0 | BR112: 0 | BS112: 0 | BT112: 0 | BU112: 0 | BV112: 0 | BW112: 0 | BX112: 0 | BY112: 0 | BZ112: 0 | CA112: 0 | CB112: 0 | CE112: Weiteres | CG112: 1 | CH112: 1 | CI112: 1 | CJ112: 1 | CK112: 1 | CL112: 1 | CM112: 1 | CN112: 1 | CO112: 1 | CP112: 1 | CQ112: 1 | CR112: 1 | CS112: 1 | CT112: 0 | CU112: 0 | CV112: 0
B113: 11. Metallbauarbeiten | P113: 11. Metallbauarbeiten | AY113: 0 | AZ113: 0 | BA113: 0 | BB113: 0 | BC113: 0 | BD113: 0 | BE113: 0 | BF113: 0 | BG113: 0 | BH113: 0 | BI113: 0 | BJ113: 0 | BK113: 0 | BL113: 0 | BM113: 0 | BN113: 0 | BO113: 0 | BP113: 0 | BQ113: 0 | BR113: 0 | BS113: 0 | BT113: 0 | BU113: 0 | BV113: 0 | BW113: 0 | BX113: 0 | BY113: 0 | BZ113: 0 | CA113: 0 | CB113: 0 | CE113: 11. Metallbauarbeiten | CF113: 1 | CG113: 1 | CH113: 1 | CI113: 1 | CJ113: 1 | CK113: 1 | CL113: 1 | CM113: 1 | CN113: 1 | CO113: 1 | CP113: 1 | CQ113: 1 | CR113: 1 | CS113: 1 | CT113: 1 | CU113: 1 | CV113: 1
B114: Tore, Türen | E114: 30 | G114: 0.0125 | I114: [% Inv.] | K114: 30 | L114: =IF(ISNUMBER(H114),IF(I114=$D$332,IFERROR(H114/D114,"-"),H114/100),IF(ISNUMBER(G114),G114,0)) -> 0.0125 | M114: =IF(AND(ISNUMBER(H114),I114=$D$332),H114,L114*D114) -> 0 | N114: =1/K114*D114 -> 0 | P114: Tore, Türen | Q114: 0 | R114: =IF(Betrachtungszeit_Heizung<R$26,0,IF(AND(Q$26<>0,Q$26/($K114)=INT(Q$26/($K114))),$D114,0)) -> 0 | S114: 0 | T114: 0 | U114: 0 | V114: 0 | W114: 0 | X114: 0 | Y114: 0 | Z114: 0 | AA114: 0 | AB114: 0 | AC114: 0 | AD114: 0 | AE114: 0 | AF114: 0 | AG114: 0 | AH114: 0 | AI114: 0 | AJ114: 0 | AK114: 0 | AL114: 0 | AM114: 0 | AN114: 0 | AO114: 0 | AP114: 0 | AQ114: 0 | AR114: 0 | AS114: 0 | AT114: 0 | AU114: 0 | AV114: =SUMIF($AX$26:$CB$26,Betrachtungszeit_Heizung,AX114:CB114) -> 0 | AX114: 0 | AY114: 0 | AZ114: 0 | BA114: 0 | BB114: 0 | BC114: 0 | BD114: 0 | BE114: 0 | BF114: 0 | BG114: 0 | BH114: 0 | BI114: 0 | BJ114: 0 | BK114: 0 | BL114: 0 | BM114: 0 | BN114: 0 | BO114: 0 | BP114: 0 | BQ114: 0 | BR114: 0 | BS114: 0 | BT114: 0 | BU114: 0 | BV114: 0 | BW114: 0 | BX114: 0 | BY114: 0 | BZ114: 0 | CA114: 0 | CB114: 0 | CE114: Tore, Türen | CG114: 1 | CH114: 1 | CI114: 1 | CJ114: 1 | CK114: 1 | CL114: 1 | CM114: 1 | CN114: 1 | CO114: 1 | CP114: 1 | CQ114: 1 | CR114: 1 | CS114: 1 | CT114: 0 | CU114: 0 | CV114: 0
B115: Podeste/Geländer | E115: 30 | G115: 0.005 | I115: [% Inv.] | K115: 30 | L115: 0.005 | M115: 0 | N115: 0 | P115: Podeste/Geländer | Q115: 0 | R115: =IF(Betrachtungszeit_Heizung<R$26,0,IF(AND(Q$26<>0,Q$26/($K115)=INT(Q$26/($K115))),$D115,0)) -> 0 | S115: 0 | T115: 0 | U115: 0 | V115: 0 | W115: 0 | X115: 0 | Y115: 0 | Z115: 0 | AA115: 0 | AB115: 0 | AC115: 0 | AD115: 0 | AE115: 0 | AF115: 0 | AG115: 0 | AH115: 0 | AI115: 0 | AJ115: 0 | AK115: 0 | AL115: 0 | AM115: 0 | AN115: 0 | AO115: 0 | AP115: 0 | AQ115: 0 | AR115: 0 | AS115: 0 | AT115: 0 | AU115: 0 | AV115: =SUMIF($AX$26:$CB$26,Betrachtungszeit_Heizung,AX115:CB115) -> 0 | AX115: 0 | AY115: 0 | AZ115: 0 | BA115: 0 | BB115: 0 | BC115: 0 | BD115: 0 | BE115: 0 | BF115: 0 | BG115: 0 | BH115: 0 | BI115: 0 | BJ115: 0 | BK115: 0 | BL115: 0 | BM115: 0 | BN115: 0 | BO115: 0 | BP115: 0 | BQ115: 0 | BR115: 0 | BS115: 0 | BT115: 0 | BU115: 0 | BV115: 0 | BW115: 0 | BX115: 0 | BY115: 0 | BZ115: 0 | CA115: 0 | CB115: 0 | CE115: Podeste/Geländer | CG115: 1 | CH115: 1 | CI115: 1 | CJ115: 1 | CK115: 1 | CL115: 1 | CM115: 1 | CN115: 1 | CO115: 1 | CP115: 1 | CQ115: 1 | CR115: 1 | CS115: 1 | CT115: 0 | CU115: 0 | CV115: 0
B116: Silodeckel | E116: 15 | G116: 0.02 | I116: [% Inv.] | K116: 15 | L116: 0.02 | M116: 0 | N116: 0 | P116: Silodeckel | Q116: 0 | R116: =IF(Betrachtungszeit_Heizung<R$26,0,IF(AND(Q$26<>0,Q$26/($K116)=INT(Q$26/($K116))),$D116,0)) -> 0 | S116: 0 | T116: 0 | U116: 0 | V116: 0 | W116: 0 | X116: 0 | Y116: 0 | Z116: 0 | AA116: 0 | AB116: 0 | AC116: 0 | AD116: 0 | AE116: 0 | AF116: 0 | AG116: 0 | AH116: 0 | AI116: 0 | AJ116: 0 | AK116: 0 | AL116: 0 | AM116: 0 | AN116: 0 | AO116: 0 | AP116: 0 | AQ116: 0 | AR116: 0 | AS116: 0 | AT116: 0 | AU116: 0 | AV116: =SUMIF($AX$26:$CB$26,Betrachtungszeit_Heizung,AX116:CB116) -> 0 | AX116: 0 | AY116: 0 | AZ116: 0 | BA116: 0 | BB116: 0 | BC116: 0 | BD116: 0 | BE116: 0 | BF116: 0 | BG116: 0 | BH116: 0 | BI116: 0 | BJ116: 0 | BK116: 0 | BL116: 0 | BM116: 0 | BN116: 0 | BO116: 0 | BP116: 0 | BQ116: 0 | BR116: 0 | BS116: 0 | BT116: 0 | BU116: 0 | BV116: 0 | BW116: 0 | BX116: 0 | BY116: 0 | BZ116: 0 | CA116: 0 | CB116: 0 | CE116: Silodeckel | CM116: 1 | CN116: 1 | CT116: 0 | CU116: 0 | CV116: 0
B117: Stationäre Hebevorrichtungen | E117: 15 | G117: 0.015 | I117: [% Inv.] | K117: 15 | L117: 0.015 | M117: 0 | N117: 0 | P117: Stationäre Hebevorrichtungen | Q117: 0 | R117: =IF(Betrachtungszeit_Heizung<R$26,0,IF(AND(Q$26<>0,Q$26/($K117)=INT(Q$26/($K117))),$D117,0)) -> 0 | S117: 0 | T117: 0 | U117: 0 | V117: 0 | W117: 0 | X117: 0 | Y117: 0 | Z117: 0 | AA117: 0 | AB117: 0 | AC117: 0 | AD117: 0 | AE117: 0 | AF117: 0 | AG117: 0 | AH117: 0 | AI117: 0 | AJ117: 0 | AK117: 0 | AL117: 0 | AM117: 0 | AN117: 0 | AO117: 0 | AP117: 0 | AQ117: 0 | AR117: 0 | AS117: 0 | AT117: 0 | AU117: 0 | AV117: =SUMIF($AX$26:$CB$26,Betrachtungszeit_Heizung,AX117:CB117) -> 0 | AX117: 0 | AY117: 0 | AZ117: 0 | BA117: 0 | BB117: 0 | BC117: 0 | BD117: 0 | BE117: 0 | BF117: 0 | BG117: 0 | BH117: 0 | BI117: 0 | BJ117: 0 | BK117: 0 | BL117: 0 | BM117: 0 | BN117: 0 | BO117: 0 | BP117: 0 | BQ117: 0 | BR117: 0 | BS117: 0 | BT117: 0 | BU117: 0 | BV117: 0 | BW117: 0 | BX117: 0 | BY117: 0 | BZ117: 0 | CA117: 0 | CB117: 0 | CE117: Stationäre Hebevorrichtungen | CG117: 1 | CH117: 1 | CI117: 1 | CJ117: 1 | CK117: 1 | CL117: 1 | CM117: 1 | CN117: 1 | CO117: 1 | CP117: 1 | CQ117: 1 | CR117: 1 | CS117: 1 | CT117: 0 | CU117: 0 | CV117: 0
B118: Weiteres | E118: 30 | G118: kein Default | I118: [% Inv.] | K118: 30 | L118: 0 | M118: 0 | N118: 0 | P118: Weiteres | Q118: 0 | R118: =IF(Betrachtungszeit_Heizung<R$26,0,IF(AND(Q$26<>0,Q$26/($K118)=INT(Q$26/($K118))),$D118,0)) -> 0 | S118: 0 | T118: 0 | U118: 0 | V118: 0 | W118: 0 | X118: 0 | Y118: 0 | Z118: 0 | AA118: 0 | AB118: 0 | AC118: 0 | AD118: 0 | AE118: 0 | AF118: 0 | AG118: 0 | AH118: 0 | AI118: 0 | AJ118: 0 | AK118: 0 | AL118: 0 | AM118: 0 | AN118: 0 | AO118: 0 | AP118: 0 | AQ118: 0 | AR118: 0 | AS118: 0 | AT118: 0 | AU118: 0 | AV118: =SUMIF($AX$26:$CB$26,Betrachtungszeit_Heizung,AX118:CB118) -> 0 | AX118: 0 | AY118: 0 | AZ118: 0 | BA118: 0 | BB118: 0 | BC118: 0 | BD118: 0 | BE118: 0 | BF118: 0 | BG118: 0 | BH118: 0 | BI118: 0 | BJ118: 0 | BK118: 0 | BL118: 0 | BM118: 0 | BN118: 0 | BO118: 0 | BP118: 0 | BQ118: 0 | BR118: 0 | BS118: 0 | BT118: 0 | BU118: 0 | BV118: 0 | BW118: 0 | BX118: 0 | BY118: 0 | BZ118: 0 | CA118: 0 | CB118: 0 | CE118: Weiteres | CG118: 1 | CH118: 1 | CI118: 1 | CJ118: 1 | CK118: 1 | CL118: 1 | CM118: 1 | CN118: 1 | CO118: 1 | CP118: 1 | CQ118: 1 | CR118: 1 | CS118: 1 | CT118: 0 | CU118: 0 | CV118: 0
B119: 12. Bauliches Zentrale | P119: 12. Bauliches Zentrale | CE119: 12. Bauliches Zentrale | CF119: 1 | CG119: 1 | CH119: 1 | CI119: 1 | CJ119: 1 | CK119: 1 | CL119: 1 | CM119: 1 | CN119: 1 | CO119: 1 | CP119: 1 | CQ119: 1 | CR119: 1 | CS119: 1 | CT119: 1 | CU119: 1 | CV119: 1
B120: Aushub | E120: 30 | G120: 0 | I120: [% Inv.] | K120: 30 | L120: =IF(ISNUMBER(H120),IF(I120=$D$332,IFERROR(H120/D120,"-"),H120/100),IF(ISNUMBER(G120),G120,0)) -> 0 | M120: =IF(AND(ISNUMBER(H120),I120=$D$332),H120,L120*D120) -> 0 | N120: =1/K120*D120 -> 0 | P120: Aushub | Q120: 0 | R120: =IF(Betrachtungszeit_Heizung<R$26,0,IF(AND(Q$26<>0,Q$26/($K120)=INT(Q$26/($K120))),$D120,0)) -> 0 | S120: 0 | T120: 0 | U120: 0 | V120: 0 | W120: 0 | X120: 0 | Y120: 0 | Z120: 0 | AA120: 0 | AB120: 0 | AC120: 0 | AD120: 0 | AE120: 0 | AF120: 0 | AG120: 0 | AH120: 0 | AI120: 0 | AJ120: 0 | AK120: 0 | AL120: 0 | AM120: 0 | AN120: 0 | AO120: 0 | AP120: 0 | AQ120: 0 | AR120: 0 | AS120: 0 | AT120: 0 | AU120: 0 | AV120: =SUMIF($AX$26:$CB$26,Betrachtungszeit_Heizung,AX120:CB120) -> 0 | AX120: 0 | AY120: 0 | AZ120: 0 | BA120: 0 | BB120: 0 | BC120: 0 | BD120: 0 | BE120: 0 | BF120: 0 | BG120: 0 | BH120: 0 | BI120: 0 | BJ120: 0 | BK120: 0 | BL120: 0 | BM120: 0 | BN120: 0 | BO120: 0 | BP120: 0 | BQ120: 0 | BR120: 0 | BS120: 0 | BT120: 0 | BU120: 0 | BV120: 0 | BW120: 0 | BX120: 0 | BY120: 0 | BZ120: 0 | CA120: 0 | CB120: 0 | CE120: Aushub | CG120: 1 | CH120: 1 | CI120: 1 | CJ120: 1 | CK120: 1 | CL120: 1 | CM120: 1 | CN120: 1 | CO120: 1 | CP120: 1 | CQ120: 1 | CR120: 1 | CS120: 1 | CT120: 0 | CU120: 0 | CV120: 0
B121: Gebäudekostenanteil Zentrale | E121: 30 | G121: 0.015 | I121: [% Inv.] | K121: 30 | L121: 0.015 | M121: 0 | N121: 0 | P121: Gebäudekostenanteil Zentrale | Q121: 0 | R121: =IF(Betrachtungszeit_Heizung<R$26,0,IF(AND(Q$26<>0,Q$26/($K121)=INT(Q$26/($K121))),$D121,0)) -> 0 | S121: 0 | T121: 0 | U121: 0 | V121: 0 | W121: 0 | X121: 0 | Y121: 0 | Z121: 0 | AA121: 0 | AB121: 0 | AC121: 0 | AD121: 0 | AE121: 0 | AF121: 0 | AG121: 0 | AH121: 0 | AI121: 0 | AJ121: 0 | AK121: 0 | AL121: 0 | AM121: 0 | AN121: 0 | AO121: 0 | AP121: 0 | AQ121: 0 | AR121: 0 | AS121: 0 | AT121: 0 | AU121: 0 | AV121: 0 | AX121: 0 | AY121: 0 | AZ121: 0 | BA121: 0 | BB121: 0 | BC121: 0 | BD121: 0 | BE121: 0 | BF121: 0 | BG121: 0 | BH121: 0 | BI121: 0 | BJ121: 0 | BK121: 0 | BL121: 0 | BM121: 0 | BN121: 0 | BO121: 0 | BP121: 0 | BQ121: 0 | BR121: 0 | BS121: 0 | BT121: 0 | BU121: 0 | BV121: 0 | BW121: 0 | BX121: 0 | BY121: 0 | BZ121: 0 | CA121: 0 | CB121: 0 | CE121: Gebäudekostenanteil Zentrale | CG121: 1 | CH121: 1 | CI121: 1 | CJ121: 1 | CK121: 1 | CL121: 1 | CM121: 1 | CN121: 1 | CO121: 1 | CP121: 1 | CQ121: 1 | CR121: 1 | CS121: 1 | CT121: 0 | CU121: 0 | CV121: 0
B122: Baumeisterarbeiten | E122: 30 | G122: 0.015 | I122: [% Inv.] | K122: 30 | L122: 0.015 | M122: 0 | N122: 0 | P122: Baumeisterarbeiten | Q122: 0 | R122: =IF(Betrachtungszeit_Heizung<R$26,0,IF(AND(Q$26<>0,Q$26/($K122)=INT(Q$26/($K122))),$D122,0)) -> 0 | S122: 0 | T122: 0 | U122: 0 | V122: 0 | W122: 0 | X122: 0 | Y122: 0 | Z122: 0 | AA122: 0 | AB122: 0 | AC122: 0 | AD122: 0 | AE122: 0 | AF122: 0 | AG122: 0 | AH122: 0 | AI122: 0 | AJ122: 0 | AK122: 0 | AL122: 0 | AM122: 0 | AN122: 0 | AO122: 0 | AP122: 0 | AQ122: 0 | AR122: 0 | AS122: 0 | AT122: 0 | AU122: 0 | AV122: 0 | AX122: 0 | AY122: 0 | AZ122: 0 | BA122: 0 | BB122: 0 | BC122: 0 | BD122: 0 | BE122: 0 | BF122: 0 | BG122: 0 | BH122: 0 | BI122: 0 | BJ122: 0 | BK122: 0 | BL122: 0 | BM122: 0 | BN122: 0 | BO122: 0 | BP122: 0 | BQ122: 0 | BR122: 0 | BS122: 0 | BT122: 0 | BU122: 0 | BV122: 0 | BW122: 0 | BX122: 0 | BY122: 0 | BZ122: 0 | CA122: 0 | CB122: 0 | CE122: =B122 -> Baumeisterarbeiten | CG122: 1 | CH122: 1 | CI122: 1 | CJ122: 1 | CK122: 1 | CL122: 1 | CM122: 1 | CN122: 1 | CO122: 1 | CP122: 1 | CQ122: 1 | CR122: 1 | CS122: 1 | CT122: =SUMIF($CF$25:$CS$25,$C$12,CF122:CS122) -> 0 | CU122: =SUMIF($CF$25:$CS$25,$C$20,CF122:CS122) -> 0 | CV122: 0
B123: Fluchteinrichtungen | E123: 30 | G123: 0.015 | I123: [% Inv.] | K123: 30 | L123: 0.015 | M123: 0 | N123: 0 | P123: Fluchteinrichtungen | Q123: 0 | R123: =IF(Betrachtungszeit_Heizung<R$26,0,IF(AND(Q$26<>0,Q$26/($K123)=INT(Q$26/($K123))),$D123,0)) -> 0 | S123: 0 | T123: 0 | U123: 0 | V123: 0 | W123: 0 | X123: 0 | Y123: 0 | Z123: 0 | AA123: 0 | AB123: 0 | AC123: 0 | AD123: 0 | AE123: 0 | AF123: 0 | AG123: 0 | AH123: 0 | AI123: 0 | AJ123: 0 | AK123: 0 | AL123: 0 | AM123: 0 | AN123: 0 | AO123: 0 | AP123: 0 | AQ123: 0 | AR123: 0 | AS123: 0 | AT123: 0 | AU123: 0 | AV123: 0 | AX123: 0 | AY123: 0 | AZ123: 0 | BA123: 0 | BB123: 0 | BC123: 0 | BD123: 0 | BE123: 0 | BF123: 0 | BG123: 0 | BH123: 0 | BI123: 0 | BJ123: 0 | BK123: 0 | BL123: 0 | BM123: 0 | BN123: 0 | BO123: 0 | BP123: 0 | BQ123: 0 | BR123: 0 | BS123: 0 | BT123: 0 | BU123: 0 | BV123: 0 | BW123: 0 | BX123: 0 | BY123: 0 | BZ123: 0 | CA123: 0 | CB123: 0 | CE123: Fluchteinrichtungen | CG123: 1 | CH123: 1 | CI123: 1 | CJ123: 1 | CK123: 1 | CL123: 1 | CM123: 1 | CN123: 1 | CO123: 1 | CP123: 1 | CQ123: 1 | CR123: 1 | CS123: 1 | CT123: 0 | CU123: 0 | CV123: 0
B124: Zufahrt Schnitzel-/Pelletsilo | E124: 30 | G124: 0.015 | I124: [% Inv.] | K124: 30 | L124: 0.015 | M124: 0 | N124: 0 | P124: Zufahrt Schnitzel-/Pelletsilo | Q124: 0 | R124: =IF(Betrachtungszeit_Heizung<R$26,0,IF(AND(Q$26<>0,Q$26/($K124)=INT(Q$26/($K124))),$D124,0)) -> 0 | S124: 0 | T124: 0 | U124: 0 | V124: 0 | W124: 0 | X124: 0 | Y124: 0 | Z124: 0 | AA124: 0 | AB124: 0 | AC124: 0 | AD124: 0 | AE124: 0 | AF124: 0 | AG124: 0 | AH124: 0 | AI124: 0 | AJ124: 0 | AK124: 0 | AL124: 0 | AM124: 0 | AN124: 0 | AO124: 0 | AP124: 0 | AQ124: 0 | AR124: 0 | AS124: 0 | AT124: 0 | AU124: 0 | AV124: 0 | AX124: 0 | AY124: 0 | AZ124: 0 | BA124: 0 | BB124: 0 | BC124: 0 | BD124: 0 | BE124: 0 | BF124: 0 | BG124: 0 | BH124: 0 | BI124: 0 | BJ124: 0 | BK124: 0 | BL124: 0 | BM124: 0 | BN124: 0 | BO124: 0 | BP124: 0 | BQ124: 0 | BR124: 0 | BS124: 0 | BT124: 0 | BU124: 0 | BV124: 0 | BW124: 0 | BX124: 0 | BY124: 0 | BZ124: 0 | CA124: 0 | CB124: 0 | CE124: Zufahrt Schnitzel-/Pelletsilo | CM124: 1 | CN124: 1 | CT124: 0 | CU124: 0 | CV124: 0
B125: Weiteres | E125: 30 | G125: kein Default | I125: [% Inv.] | K125: 30 | L125: 0 | M125: 0 | N125: 0 | P125: Weiteres | Q125: 0 | R125: =IF(Betrachtungszeit_Heizung<R$26,0,IF(AND(Q$26<>0,Q$26/($K125)=INT(Q$26/($K125))),$D125,0)) -> 0 | S125: 0 | T125: 0 | U125: 0 | V125: 0 | W125: 0 | X125: 0 | Y125: 0 | Z125: 0 | AA125: 0 | AB125: 0 | AC125: 0 | AD125: 0 | AE125: 0 | AF125: 0 | AG125: 0 | AH125: 0 | AI125: 0 | AJ125: 0 | AK125: 0 | AL125: 0 | AM125: 0 | AN125: 0 | AO125: 0 | AP125: 0 | AQ125: 0 | AR125: 0 | AS125: 0 | AT125: 0 | AU125: 0 | AV125: 0 | AX125: 0 | AY125: 0 | AZ125: 0 | BA125: 0 | BB125: 0 | BC125: 0 | BD125: 0 | BE125: 0 | BF125: 0 | BG125: 0 | BH125: 0 | BI125: 0 | BJ125: 0 | BK125: 0 | BL125: 0 | BM125: 0 | BN125: 0 | BO125: 0 | BP125: 0 | BQ125: 0 | BR125: 0 | BS125: 0 | BT125: 0 | BU125: 0 | BV125: 0 | BW125: 0 | BX125: 0 | BY125: 0 | BZ125: 0 | CA125: 0 | CB125: 0 | CE125: Weiteres | CG125: 1 | CH125: 1 | CI125: 1 | CJ125: 1 | CK125: 1 | CL125: 1 | CM125: 1 | CN125: 1 | CO125: 1 | CP125: 1 | CQ125: 1 | CR125: 1 | CS125: 1 | CT125: 0 | CU125: 0 | CV125: 0
B126: 13. Wärmeverbund Baumeister | P126: 13. Wärmeverbund Baumeister | CE126: 13. Wärmeverbund Baumeister | CF126: 1 | CG126: 1 | CH126: 1 | CI126: 1 | CJ126: 1 | CK126: 1 | CL126: 1 | CM126: 1 | CN126: 1 | CO126: 1 | CP126: 1 | CQ126: 1 | CR126: 1 | CS126: 1 | CT126: 1 | CU126: 1 | CV126: 1
B127: Graben Fernleitung | E127: 30 | G127: 0.005 | I127: [% Inv.] | K127: 30 | L127: =IF(ISNUMBER(H127),IF(I127=$D$332,IFERROR(H127/D127,"-"),H127/100),IF(ISNUMBER(G127),G127,0)) -> 0.005 | M127: =IF(AND(ISNUMBER(H127),I127=$D$332),H127,L127*D127) -> 0 | N127: =1/K127*D127 -> 0 | P127: Graben Fernleitung | Q127: 0 | R127: =IF(Betrachtungszeit_Heizung<R$26,0,IF(AND(Q$26<>0,Q$26/($K127)=INT(Q$26/($K127))),$D127,0)) -> 0 | S127: 0 | T127: 0 | U127: 0 | V127: 0 | W127: 0 | X127: 0 | Y127: 0 | Z127: 0 | AA127: 0 | AB127: 0 | AC127: 0 | AD127: 0 | AE127: 0 | AF127: 0 | AG127: 0 | AH127: 0 | AI127: 0 | AJ127: 0 | AK127: 0 | AL127: 0 | AM127: 0 | AN127: 0 | AO127: 0 | AP127: 0 | AQ127: 0 | AR127: 0 | AS127: 0 | AT127: 0 | AU127: 0 | AV127: =SUMIF($AX$26:$CB$26,Betrachtungszeit_Heizung,AX127:CB127) -> 0 | AX127: 0 | AY127: 0 | AZ127: 0 | BA127: 0 | BB127: 0 | BC127: 0 | BD127: 0 | BE127: 0 | BF127: 0 | BG127: 0 | BH127: 0 | BI127: 0 | BJ127: 0 | BK127: 0 | BL127: 0 | BM127: 0 | BN127: 0 | BO127: 0 | BP127: 0 | BQ127: 0 | BR127: 0 | BS127: 0 | BT127: 0 | BU127: 0 | BV127: 0 | BW127: 0 | BX127: 0 | BY127: 0 | BZ127: 0 | CA127: 0 | CB127: 0 | CE127: Graben Fernleitung | CG127: 1 | CH127: 1 | CI127: 1 | CJ127: 1 | CK127: 1 | CL127: 1 | CM127: 1 | CN127: 1 | CO127: 1 | CP127: 1 | CQ127: 1 | CR127: 1 | CS127: 1 | CT127: 0 | CU127: 0 | CV127: 0
B128: Graben Hausanschlüsse | E128: 30 | G128: 0.005 | I128: [% Inv.] | K128: 30 | L128: 0.005 | M128: 0 | N128: 0 | P128: Graben Hausanschlüsse | Q128: 0 | R128: =IF(Betrachtungszeit_Heizung<R$26,0,IF(AND(Q$26<>0,Q$26/($K128)=INT(Q$26/($K128))),$D128,0)) -> 0 | S128: 0 | T128: 0 | U128: 0 | V128: 0 | W128: 0 | X128: 0 | Y128: 0 | Z128: 0 | AA128: 0 | AB128: 0 | AC128: 0 | AD128: 0 | AE128: 0 | AF128: 0 | AG128: 0 | AH128: 0 | AI128: 0 | AJ128: 0 | AK128: 0 | AL128: 0 | AM128: 0 | AN128: 0 | AO128: 0 | AP128: 0 | AQ128: 0 | AR128: 0 | AS128: 0 | AT128: 0 | AU128: 0 | AV128: =SUMIF($AX$26:$CB$26,Betrachtungszeit_Heizung,AX128:CB128) -> 0 | AX128: 0 | AY128: 0 | AZ128: 0 | BA128: 0 | BB128: 0 | BC128: 0 | BD128: 0 | BE128: 0 | BF128: 0 | BG128: 0 | BH128: 0 | BI128: 0 | BJ128: 0 | BK128: 0 | BL128: 0 | BM128: 0 | BN128: 0 | BO128: 0 | BP128: 0 | BQ128: 0 | BR128: 0 | BS128: 0 | BT128: 0 | BU128: 0 | BV128: 0 | BW128: 0 | BX128: 0 | BY128: 0 | BZ128: 0 | CA128: 0 | CB128: 0 | CE128: Graben Hausanschlüsse | CG128: 1 | CH128: 1 | CI128: 1 | CJ128: 1 | CK128: 1 | CL128: 1 | CM128: 1 | CN128: 1 | CO128: 1 | CP128: 1 | CQ128: 1 | CR128: 1 | CS128: 1 | CT128: 0 | CU128: 0 | CV128: 0
B129: Weiteres | E129: 30 | G129: kein Default | I129: [% Inv.] | K129: 30 | L129: 0 | M129: 0 | N129: 0 | P129: Weiteres | Q129: 0 | R129: =IF(Betrachtungszeit_Heizung<R$26,0,IF(AND(Q$26<>0,Q$26/($K129)=INT(Q$26/($K129))),$D129,0)) -> 0 | S129: 0 | T129: 0 | U129: 0 | V129: 0 | W129: 0 | X129: 0 | Y129: 0 | Z129: 0 | AA129: 0 | AB129: 0 | AC129: 0 | AD129: 0 | AE129: 0 | AF129: 0 | AG129: 0 | AH129: 0 | AI129: 0 | AJ129: 0 | AK129: 0 | AL129: 0 | AM129: 0 | AN129: 0 | AO129: 0 | AP129: 0 | AQ129: 0 | AR129: 0 | AS129: 0 | AT129: 0 | AU129: 0 | AV129: =SUMIF($AX$26:$CB$26,Betrachtungszeit_Heizung,AX129:CB129) -> 0 | AX129: 0 | AY129: 0 | AZ129: 0 | BA129: 0 | BB129: 0 | BC129: 0 | BD129: 0 | BE129: 0 | BF129: 0 | BG129: 0 | BH129: 0 | BI129: 0 | BJ129: 0 | BK129: 0 | BL129: 0 | BM129: 0 | BN129: 0 | BO129: 0 | BP129: 0 | BQ129: 0 | BR129: 0 | BS129: 0 | BT129: 0 | BU129: 0 | BV129: 0 | BW129: 0 | BX129: 0 | BY129: 0 | BZ129: 0 | CA129: 0 | CB129: 0 | CE129: Weiteres | CG129: 1 | CH129: 1 | CI129: 1 | CJ129: 1 | CK129: 1 | CL129: 1 | CM129: 1 | CN129: 1 | CO129: 1 | CP129: 1 | CQ129: 1 | CR129: 1 | CS129: 1 | CT129: 0 | CU129: 0 | CV129: 0
B130: 14. Wärmeverbund Leitungen | P130: 14. Wärmeverbund Leitungen | CE130: 14. Wärmeverbund Leitungen | CF130: 1 | CG130: 1 | CH130: 1 | CI130: 1 | CJ130: 1 | CK130: 1 | CL130: 1 | CM130: 1 | CN130: 1 | CO130: 1 | CP130: 1 | CQ130: 1 | CR130: 1 | CS130: 1 | CT130: 1 | CU130: 1 | CV130: 1
B131: Kalte Fernleitung | E131: 30 | G131: 0.01 | I131: [% Inv.] | K131: 30 | L131: =IF(ISNUMBER(H131),IF(I131=$D$332,IFERROR(H131/D131,"-"),H131/100),IF(ISNUMBER(G131),G131,0)) -> 0.01 | M131: =IF(AND(ISNUMBER(H131),I131=$D$332),H131,L131*D131) -> 0 | N131: =1/K131*D131 -> 0 | P131: Kalte Fernleitung | Q131: 0 | R131: =IF(Betrachtungszeit_Heizung<R$26,0,IF(AND(Q$26<>0,Q$26/($K131)=INT(Q$26/($K131))),$D131,0)) -> 0 | S131: 0 | T131: 0 | U131: 0 | V131: 0 | W131: 0 | X131: 0 | Y131: 0 | Z131: 0 | AA131: 0 | AB131: 0 | AC131: 0 | AD131: 0 | AE131: 0 | AF131: 0 | AG131: 0 | AH131: 0 | AI131: 0 | AJ131: 0 | AK131: 0 | AL131: 0 | AM131: 0 | AN131: 0 | AO131: 0 | AP131: 0 | AQ131: 0 | AR131: 0 | AS131: 0 | AT131: 0 | AU131: 0 | AV131: =SUMIF($AX$26:$CB$26,Betrachtungszeit_Heizung,AX131:CB131) -> 0 | AX131: 0 | AY131: 0 | AZ131: 0 | BA131: 0 | BB131: 0 | BC131: 0 | BD131: 0 | BE131: 0 | BF131: 0 | BG131: 0 | BH131: 0 | BI131: 0 | BJ131: 0 | BK131: 0 | BL131: 0 | BM131: 0 | BN131: 0 | BO131: 0 | BP131: 0 | BQ131: 0 | BR131: 0 | BS131: 0 | BT131: 0 | BU131: 0 | BV131: 0 | BW131: 0 | BX131: 0 | BY131: 0 | BZ131: 0 | CA131: 0 | CB131: 0 | CE131: Kalte Fernleitung | CG131: 1 | CH131: 1 | CI131: 1 | CJ131: 1 | CK131: 1 | CL131: 1 | CM131: 1 | CN131: 1 | CO131: 1 | CP131: 1 | CQ131: 1 | CR131: 1 | CS131: 1 | CT131: 0 | CU131: 0 | CV131: 0
B132: Fernleitung Heizung | E132: 30 | G132: 0.01 | I132: [% Inv.] | K132: 30 | L132: 0.01 | M132: 0 | N132: 0 | P132: Fernleitung Heizung | Q132: 0 | R132: =IF(Betrachtungszeit_Heizung<R$26,0,IF(AND(Q$26<>0,Q$26/($K132)=INT(Q$26/($K132))),$D132,0)) -> 0 | S132: 0 | T132: 0 | U132: 0 | V132: 0 | W132: 0 | X132: 0 | Y132: 0 | Z132: 0 | AA132: 0 | AB132: 0 | AC132: 0 | AD132: 0 | AE132: 0 | AF132: 0 | AG132: 0 | AH132: 0 | AI132: 0 | AJ132: 0 | AK132: 0 | AL132: 0 | AM132: 0 | AN132: 0 | AO132: 0 | AP132: 0 | AQ132: 0 | AR132: 0 | AS132: 0 | AT132: 0 | AU132: 0 | AV132: 0 | AX132: 0 | AY132: 0 | AZ132: 0 | BA132: 0 | BB132: 0 | BC132: 0 | BD132: 0 | BE132: 0 | BF132: 0 | BG132: 0 | BH132: 0 | BI132: 0 | BJ132: 0 | BK132: 0 | BL132: 0 | BM132: 0 | BN132: 0 | BO132: 0 | BP132: 0 | BQ132: 0 | BR132: 0 | BS132: 0 | BT132: 0 | BU132: 0 | BV132: 0 | BW132: 0 | BX132: 0 | BY132: 0 | BZ132: 0 | CA132: 0 | CB132: 0 | CE132: Fernleitung Heizung | CG132: 1 | CH132: 1 | CI132: 1 | CJ132: 1 | CK132: 1 | CL132: 1 | CM132: 1 | CN132: 1 | CO132: 1 | CP132: 1 | CQ132: 1 | CR132: 1 | CS132: 1 | CT132: 0 | CU132: 0 | CV132: 0
B133: Fernleitung Sanitär | E133: 30 | G133: 0.01 | I133: [% Inv.] | K133: 30 | L133: 0.01 | M133: 0 | N133: 0 | P133: Fernleitung Sanitär | Q133: 0 | R133: =IF(Betrachtungszeit_Heizung<R$26,0,IF(AND(Q$26<>0,Q$26/($K133)=INT(Q$26/($K133))),$D133,0)) -> 0 | S133: 0 | T133: 0 | U133: 0 | V133: 0 | W133: 0 | X133: 0 | Y133: 0 | Z133: 0 | AA133: 0 | AB133: 0 | AC133: 0 | AD133: 0 | AE133: 0 | AF133: 0 | AG133: 0 | AH133: 0 | AI133: 0 | AJ133: 0 | AK133: 0 | AL133: 0 | AM133: 0 | AN133: 0 | AO133: 0 | AP133: 0 | AQ133: 0 | AR133: 0 | AS133: 0 | AT133: 0 | AU133: 0 | AV133: 0 | AX133: 0 | AY133: 0 | AZ133: 0 | BA133: 0 | BB133: 0 | BC133: 0 | BD133: 0 | BE133: 0 | BF133: 0 | BG133: 0 | BH133: 0 | BI133: 0 | BJ133: 0 | BK133: 0 | BL133: 0 | BM133: 0 | BN133: 0 | BO133: 0 | BP133: 0 | BQ133: 0 | BR133: 0 | BS133: 0 | BT133: 0 | BU133: 0 | BV133: 0 | BW133: 0 | BX133: 0 | BY133: 0 | BZ133: 0 | CA133: 0 | CB133: 0 | CE133: Fernleitung Sanitär | CG133: 1 | CH133: 1 | CI133: 1 | CJ133: 1 | CK133: 1 | CL133: 1 | CM133: 1 | CN133: 1 | CO133: 1 | CP133: 1 | CQ133: 1 | CR133: 1 | CS133: 1 | CT133: 0 | CU133: 0 | CV133: 0
B134: Anschlussleitungen Haus | E134: 30 | G134: 0.015 | I134: [% Inv.] | K134: 30 | L134: 0.015 | M134: 0 | N134: 0 | P134: Anschlussleitungen Haus | Q134: 0 | R134: =IF(Betrachtungszeit_Heizung<R$26,0,IF(AND(Q$26<>0,Q$26/($K134)=INT(Q$26/($K134))),$D134,0)) -> 0 | S134: 0 | T134: 0 | U134: 0 | V134: 0 | W134: 0 | X134: 0 | Y134: 0 | Z134: 0 | AA134: 0 | AB134: 0 | AC134: 0 | AD134: 0 | AE134: 0 | AF134: 0 | AG134: 0 | AH134: 0 | AI134: 0 | AJ134: 0 | AK134: 0 | AL134: 0 | AM134: 0 | AN134: 0 | AO134: 0 | AP134: 0 | AQ134: 0 | AR134: 0 | AS134: 0 | AT134: 0 | AU134: 0 | AV134: 0 | AX134: 0 | AY134: 0 | AZ134: 0 | BA134: 0 | BB134: 0 | BC134: 0 | BD134: 0 | BE134: 0 | BF134: 0 | BG134: 0 | BH134: 0 | BI134: 0 | BJ134: 0 | BK134: 0 | BL134: 0 | BM134: 0 | BN134: 0 | BO134: 0 | BP134: 0 | BQ134: 0 | BR134: 0 | BS134: 0 | BT134: 0 | BU134: 0 | BV134: 0 | BW134: 0 | BX134: 0 | BY134: 0 | BZ134: 0 | CA134: 0 | CB134: 0 | CE134: Anschlussleitungen Haus | CG134: 1 | CH134: 1 | CI134: 1 | CJ134: 1 | CK134: 1 | CL134: 1 | CM134: 1 | CN134: 1 | CO134: 1 | CP134: 1 | CQ134: 1 | CR134: 1 | CS134: 1 | CT134: 0 | CU134: 0 | CV134: 0
B135: Übergabestationen Heizung | E135: 20 | G135: 0.02 | I135: [% Inv.] | K135: 20 | L135: 0.02 | M135: 0 | N135: 0 | P135: Übergabestationen Heizung | Q135: 0 | R135: =IF(Betrachtungszeit_Heizung<R$26,0,IF(AND(Q$26<>0,Q$26/($K135)=INT(Q$26/($K135))),$D135,0)) -> 0 | S135: 0 | T135: 0 | U135: 0 | V135: 0 | W135: 0 | X135: 0 | Y135: 0 | Z135: 0 | AA135: 0 | AB135: 0 | AC135: 0 | AD135: 0 | AE135: 0 | AF135: 0 | AG135: 0 | AH135: 0 | AI135: 0 | AJ135: 0 | AK135: 0 | AL135: 0 | AM135: 0 | AN135: 0 | AO135: 0 | AP135: 0 | AQ135: 0 | AR135: 0 | AS135: 0 | AT135: 0 | AU135: 0 | AV135: 0 | AX135: 0 | AY135: 0 | AZ135: 0 | BA135: 0 | BB135: 0 | BC135: 0 | BD135: 0 | BE135: 0 | BF135: 0 | BG135: 0 | BH135: 0 | BI135: 0 | BJ135: 0 | BK135: 0 | BL135: 0 | BM135: 0 | BN135: 0 | BO135: 0 | BP135: 0 | BQ135: 0 | BR135: 0 | BS135: 0 | BT135: 0 | BU135: 0 | BV135: 0 | BW135: 0 | BX135: 0 | BY135: 0 | BZ135: 0 | CA135: 0 | CB135: 0 | CE135: Übergabestationen Heizung | CG135: 1 | CH135: 1 | CI135: 1 | CJ135: 1 | CK135: 1 | CL135: 1 | CM135: 1 | CN135: 1 | CO135: 1 | CP135: 1 | CQ135: 1 | CR135: 1 | CS135: 1 | CT135: 0 | CU135: 0 | CV135: 0
B136: Energiemessung | E136: 20 | G136: 0.08 | I136: [% Inv.] | K136: 20 | L136: 0.08 | M136: 0 | N136: 0 | P136: Energiemessung | Q136: 0 | R136: =IF(Betrachtungszeit_Heizung<R$26,0,IF(AND(Q$26<>0,Q$26/($K136)=INT(Q$26/($K136))),$D136,0)) -> 0 | S136: 0 | T136: 0 | U136: 0 | V136: 0 | W136: 0 | X136: 0 | Y136: 0 | Z136: 0 | AA136: 0 | AB136: 0 | AC136: 0 | AD136: 0 | AE136: 0 | AF136: 0 | AG136: 0 | AH136: 0 | AI136: 0 | AJ136: 0 | AK136: 0 | AL136: 0 | AM136: 0 | AN136: 0 | AO136: 0 | AP136: 0 | AQ136: 0 | AR136: 0 | AS136: 0 | AT136: 0 | AU136: 0 | AV136: 0 | AX136: 0 | AY136: 0 | AZ136: 0 | BA136: 0 | BB136: 0 | BC136: 0 | BD136: 0 | BE136: 0 | BF136: 0 | BG136: 0 | BH136: 0 | BI136: 0 | BJ136: 0 | BK136: 0 | BL136: 0 | BM136: 0 | BN136: 0 | BO136: 0 | BP136: 0 | BQ136: 0 | BR136: 0 | BS136: 0 | BT136: 0 | BU136: 0 | BV136: 0 | BW136: 0 | BX136: 0 | BY136: 0 | BZ136: 0 | CA136: 0 | CB136: 0 | CE136: Energiemessung | CG136: 1 | CH136: 1 | CI136: 1 | CJ136: 1 | CK136: 1 | CL136: 1 | CM136: 1 | CN136: 1 | CO136: 1 | CP136: 1 | CQ136: 1 | CR136: 1 | CS136: 1 | CT136: 0 | CU136: 0 | CV136: 0
B137: Dämmungen | E137: 30 | G137: 0.001 | I137: [% Inv.] | K137: 30 | L137: 0.001 | M137: 0 | N137: 0 | P137: Dämmungen | Q137: 0 | R137: =IF(Betrachtungszeit_Heizung<R$26,0,IF(AND(Q$26<>0,Q$26/($K137)=INT(Q$26/($K137))),$D137,0)) -> 0 | S137: 0 | T137: 0 | U137: 0 | V137: 0 | W137: 0 | X137: 0 | Y137: 0 | Z137: 0 | AA137: 0 | AB137: 0 | AC137: 0 | AD137: 0 | AE137: 0 | AF137: 0 | AG137: 0 | AH137: 0 | AI137: 0 | AJ137: 0 | AK137: 0 | AL137: 0 | AM137: 0 | AN137: 0 | AO137: 0 | AP137: 0 | AQ137: 0 | AR137: 0 | AS137: 0 | AT137: 0 | AU137: 0 | AV137: 0 | AX137: 0 | AY137: 0 | AZ137: 0 | BA137: 0 | BB137: 0 | BC137: 0 | BD137: 0 | BE137: 0 | BF137: 0 | BG137: 0 | BH137: 0 | BI137: 0 | BJ137: 0 | BK137: 0 | BL137: 0 | BM137: 0 | BN137: 0 | BO137: 0 | BP137: 0 | BQ137: 0 | BR137: 0 | BS137: 0 | BT137: 0 | BU137: 0 | BV137: 0 | BW137: 0 | BX137: 0 | BY137: 0 | BZ137: 0 | CA137: 0 | CB137: 0 | CE137: Dämmungen | CG137: 1 | CH137: 1 | CI137: 1 | CJ137: 1 | CK137: 1 | CL137: 1 | CM137: 1 | CN137: 1 | CO137: 1 | CP137: 1 | CQ137: 1 | CR137: 1 | CS137: 1 | CT137: 0 | CU137: 0 | CV137: 0
B138: Weiteres | E138: 30 | G138: kein Default | I138: [% Inv.] | K138: 30 | L138: 0 | M138: 0 | N138: 0 | P138: Weiteres | Q138: 0 | R138: =IF(Betrachtungszeit_Heizung<R$26,0,IF(AND(Q$26<>0,Q$26/($K138)=INT(Q$26/($K138))),$D138,0)) -> 0 | S138: 0 | T138: 0 | U138: 0 | V138: 0 | W138: 0 | X138: 0 | Y138: 0 | Z138: 0 | AA138: 0 | AB138: 0 | AC138: 0 | AD138: 0 | AE138: 0 | AF138: 0 | AG138: 0 | AH138: 0 | AI138: 0 | AJ138: 0 | AK138: 0 | AL138: 0 | AM138: 0 | AN138: 0 | AO138: 0 | AP138: 0 | AQ138: 0 | AR138: 0 | AS138: 0 | AT138: 0 | AU138: 0 | AV138: 0 | AX138: 0 | AY138: 0 | AZ138: 0 | BA138: 0 | BB138: 0 | BC138: 0 | BD138: 0 | BE138: 0 | BF138: 0 | BG138: 0 | BH138: 0 | BI138: 0 | BJ138: 0 | BK138: 0 | BL138: 0 | BM138: 0 | BN138: 0 | BO138: 0 | BP138: 0 | BQ138: 0 | BR138: 0 | BS138: 0 | BT138: 0 | BU138: 0 | BV138: 0 | BW138: 0 | BX138: 0 | BY138: 0 | BZ138: 0 | CA138: 0 | CB138: 0 | CE138: Weiteres | CG138: 1 | CH138: 1 | CI138: 1 | CJ138: 1 | CK138: 1 | CL138: 1 | CM138: 1 | CN138: 1 | CO138: 1 | CP138: 1 | CQ138: 1 | CR138: 1 | CS138: 1 | CT138: 0 | CU138: 0 | CV138: 0
B139: 15. MSRL | P139: 15. MSRL | CE139: 15. MSRL | CF139: 1 | CG139: 1 | CH139: 1 | CI139: 1 | CJ139: 1 | CK139: 1 | CL139: 1 | CM139: 1 | CN139: 1 | CO139: 1 | CP139: 1 | CQ139: 1 | CR139: 1 | CS139: 1 | CT139: 1 | CU139: 1 | CV139: 1
B140: Feldgeräte | E140: 15 | G140: 0.015 | I140: [% Inv.] | K140: 15 | L140: =IF(ISNUMBER(H140),IF(I140=$D$332,IFERROR(H140/D140,"-"),H140/100),IF(ISNUMBER(G140),G140,0)) -> 0.015 | M140: =IF(AND(ISNUMBER(H140),I140=$D$332),H140,L140*D140) -> 0 | N140: 0 | P140: Feldgeräte | Q140: 0 | R140: =IF(Betrachtungszeit_Heizung<R$26,0,IF(AND(Q$26<>0,Q$26/($K140)=INT(Q$26/($K140))),$D140,0)) -> 0 | S140: 0 | T140: 0 | U140: 0 | V140: 0 | W140: 0 | X140: 0 | Y140: 0 | Z140: 0 | AA140: 0 | AB140: 0 | AC140: 0 | AD140: 0 | AE140: 0 | AF140: 0 | AG140: 0 | AH140: 0 | AI140: 0 | AJ140: 0 | AK140: 0 | AL140: 0 | AM140: 0 | AN140: 0 | AO140: 0 | AP140: 0 | AQ140: 0 | AR140: 0 | AS140: 0 | AT140: 0 | AU140: 0 | AV140: =SUMIF($AX$26:$CB$26,Betrachtungszeit_Heizung,AX140:CB140) -> 0 | AX140: 0 | AY140: 0 | AZ140: 0 | BA140: 0 | BB140: 0 | BC140: 0 | BD140: 0 | BE140: 0 | BF140: 0 | BG140: 0 | BH140: 0 | BI140: 0 | BJ140: 0 | BK140: 0 | BL140: 0 | BM140: 0 | BN140: 0 | BO140: 0 | BP140: 0 | BQ140: 0 | BR140: 0 | BS140: 0 | BT140: 0 | BU140: 0 | BV140: 0 | BW140: 0 | BX140: 0 | BY140: 0 | BZ140: 0 | CA140: 0 | CB140: 0 | CE140: Feldgeräte | CG140: 1 | CH140: 1 | CI140: 1 | CJ140: 1 | CK140: 1 | CL140: 1 | CM140: 1 | CN140: 1 | CO140: 1 | CP140: 1 | CQ140: 1 | CR140: 1 | CS140: 1 | CT140: 0 | CU140: 0 | CV140: 0
B141: Schaltschränke | E141: 15 | G141: 0.01 | I141: [% Inv.] | K141: 15 | L141: 0.01 | M141: 0 | N141: 0 | P141: Schaltschränke | Q141: 0 | R141: =IF(Betrachtungszeit_Heizung<R$26,0,IF(AND(Q$26<>0,Q$26/($K141)=INT(Q$26/($K141))),$D141,0)) -> 0 | S141: 0 | T141: 0 | U141: 0 | V141: 0 | W141: 0 | X141: 0 | Y141: 0 | Z141: 0 | AA141: 0 | AB141: 0 | AC141: 0 | AD141: 0 | AE141: 0 | AF141: 0 | AG141: 0 | AH141: 0 | AI141: 0 | AJ141: 0 | AK141: 0 | AL141: 0 | AM141: 0 | AN141: 0 | AO141: 0 | AP141: 0 | AQ141: 0 | AR141: 0 | AS141: 0 | AT141: 0 | AU141: 0 | AV141: =SUMIF($AX$26:$CB$26,Betrachtungszeit_Heizung,AX141:CB141) -> 0 | AX141: 0 | AY141: 0 | AZ141: 0 | BA141: 0 | BB141: 0 | BC141: 0 | BD141: 0 | BE141: 0 | BF141: 0 | BG141: 0 | BH141: 0 | BI141: 0 | BJ141: 0 | BK141: 0 | BL141: 0 | BM141: 0 | BN141: 0 | BO141: 0 | BP141: 0 | BQ141: 0 | BR141: 0 | BS141: 0 | BT141: 0 | BU141: 0 | BV141: 0 | BW141: 0 | BX141: 0 | BY141: 0 | BZ141: 0 | CA141: 0 | CB141: 0 | CE141: Schaltschränke | CG141: 1 | CH141: 1 | CI141: 1 | CJ141: 1 | CK141: 1 | CL141: 1 | CM141: 1 | CN141: 1 | CO141: 1 | CP141: 1 | CQ141: 1 | CR141: 1 | CS141: 1 | CT141: 0 | CU141: 0 | CV141: 0
B142: Leitsystem | E142: 15 | G142: 0.015 | I142: [% Inv.] | K142: 15 | L142: 0.015 | M142: 0 | N142: 0 | P142: Leitsystem | Q142: 0 | R142: =IF(Betrachtungszeit_Heizung<R$26,0,IF(AND(Q$26<>0,Q$26/($K142)=INT(Q$26/($K142))),$D142,0)) -> 0 | S142: 0 | T142: 0 | U142: 0 | V142: 0 | W142: 0 | X142: 0 | Y142: 0 | Z142: 0 | AA142: 0 | AB142: 0 | AC142: 0 | AD142: 0 | AE142: 0 | AF142: 0 | AG142: 0 | AH142: 0 | AI142: 0 | AJ142: 0 | AK142: 0 | AL142: 0 | AM142: 0 | AN142: 0 | AO142: 0 | AP142: 0 | AQ142: 0 | AR142: 0 | AS142: 0 | AT142: 0 | AU142: 0 | AV142: =SUMIF($AX$26:$CB$26,Betrachtungszeit_Heizung,AX142:CB142) -> 0 | AX142: 0 | AY142: 0 | AZ142: 0 | BA142: 0 | BB142: 0 | BC142: 0 | BD142: 0 | BE142: 0 | BF142: 0 | BG142: 0 | BH142: 0 | BI142: 0 | BJ142: 0 | BK142: 0 | BL142: 0 | BM142: 0 | BN142: 0 | BO142: 0 | BP142: 0 | BQ142: 0 | BR142: 0 | BS142: 0 | BT142: 0 | BU142: 0 | BV142: 0 | BW142: 0 | BX142: 0 | BY142: 0 | BZ142: 0 | CA142: 0 | CB142: 0 | CE142: Leitsystem | CG142: 1 | CH142: 1 | CI142: 1 | CJ142: 1 | CK142: 1 | CL142: 1 | CM142: 1 | CN142: 1 | CO142: 1 | CP142: 1 | CQ142: 1 | CR142: 1 | CS142: 1 | CT142: 0 | CU142: 0 | CV142: 0
B143: Weiteres | E143: 30 | G143: kein Default | I143: [% Inv.] | K143: 30 | L143: 0 | M143: 0 | N143: 0 | P143: Weiteres | Q143: 0 | R143: =IF(Betrachtungszeit_Heizung<R$26,0,IF(AND(Q$26<>0,Q$26/($K143)=INT(Q$26/($K143))),$D143,0)) -> 0 | S143: 0 | T143: 0 | U143: 0 | V143: 0 | W143: 0 | X143: 0 | Y143: 0 | Z143: 0 | AA143: 0 | AB143: 0 | AC143: 0 | AD143: 0 | AE143: 0 | AF143: 0 | AG143: 0 | AH143: 0 | AI143: 0 | AJ143: 0 | AK143: 0 | AL143: 0 | AM143: 0 | AN143: 0 | AO143: 0 | AP143: 0 | AQ143: 0 | AR143: 0 | AS143: 0 | AT143: 0 | AU143: 0 | AV143: =SUMIF($AX$26:$CB$26,Betrachtungszeit_Heizung,AX143:CB143) -> 0 | AX143: 0 | AY143: 0 | AZ143: 0 | BA143: 0 | BB143: 0 | BC143: 0 | BD143: 0 | BE143: 0 | BF143: 0 | BG143: 0 | BH143: 0 | BI143: 0 | BJ143: 0 | BK143: 0 | BL143: 0 | BM143: 0 | BN143: 0 | BO143: 0 | BP143: 0 | BQ143: 0 | BR143: 0 | BS143: 0 | BT143: 0 | BU143: 0 | BV143: 0 | BW143: 0 | BX143: 0 | BY143: 0 | BZ143: 0 | CA143: 0 | CB143: 0 | CE143: Weiteres | CG143: 1 | CH143: 1 | CI143: 1 | CJ143: 1 | CK143: 1 | CL143: 1 | CM143: 1 | CN143: 1 | CO143: 1 | CP143: 1 | CQ143: 1 | CR143: 1 | CS143: 1 | CT143: 0 | CU143: 0 | CV143: 0
B144: 16. Elektro | P144: 16. Elektro | CE144: 16. Elektro | CF144: 1 | CG144: 1 | CH144: 1 | CI144: 1 | CJ144: 1 | CK144: 1 | CL144: 1 | CM144: 1 | CN144: 1 | CO144: 1 | CP144: 1 | CQ144: 1 | CR144: 1 | CS144: 1 | CT144: 1 | CU144: 1 | CV144: 1
B145: Baustromverteilung | E145: 25 | G145: 0 | I145: [% Inv.] | K145: 25 | L145: =IF(ISNUMBER(H145),IF(I145=$D$332,IFERROR(H145/D145,"-"),H145/100),IF(ISNUMBER(G145),G145,0)) -> 0 | M145: =IF(AND(ISNUMBER(H145),I145=$D$332),H145,L145*D145) -> 0 | N145: 0 | P145: Baustromverteilung | Q145: 0 | R145: =IF(Betrachtungszeit_Heizung<R$26,0,IF(AND(Q$26<>0,Q$26/($K145)=INT(Q$26/($K145))),$D145,0)) -> 0 | S145: 0 | T145: 0 | U145: 0 | V145: 0 | W145: 0 | X145: 0 | Y145: 0 | Z145: 0 | AA145: 0 | AB145: 0 | AC145: 0 | AD145: 0 | AE145: 0 | AF145: 0 | AG145: 0 | AH145: 0 | AI145: 0 | AJ145: 0 | AK145: 0 | AL145: 0 | AM145: 0 | AN145: 0 | AO145: 0 | AP145: 0 | AQ145: 0 | AR145: 0 | AS145: 0 | AT145: 0 | AU145: 0 | AV145: =SUMIF($AX$26:$CB$26,Betrachtungszeit_Heizung,AX145:CB145) -> 0 | AX145: 0 | AY145: 0 | AZ145: 0 | BA145: 0 | BB145: 0 | BC145: 0 | BD145: 0 | BE145: 0 | BF145: 0 | BG145: 0 | BH145: 0 | BI145: 0 | BJ145: 0 | BK145: 0 | BL145: 0 | BM145: 0 | BN145: 0 | BO145: 0 | BP145: 0 | BQ145: 0 | BR145: 0 | BS145: 0 | BT145: 0 | BU145: 0 | BV145: 0 | BW145: 0 | BX145: 0 | BY145: 0 | BZ145: 0 | CA145: 0 | CB145: 0 | CE145: Baustromverteilung | CG145: 1 | CH145: 1 | CI145: 1 | CJ145: 1 | CK145: 1 | CL145: 1 | CM145: 1 | CN145: 1 | CO145: 1 | CP145: 1 | CQ145: 1 | CR145: 1 | CS145: 1 | CT145: 0 | CU145: 0 | CV145: 0
B146: Demontagen | E146: 25 | G146: 0 | I146: [% Inv.] | K146: 25 | L146: 0 | M146: 0 | N146: 0 | P146: Demontagen | Q146: 0 | R146: =IF(Betrachtungszeit_Heizung<R$26,0,IF(AND(Q$26<>0,Q$26/($K146)=INT(Q$26/($K146))),$D146,0)) -> 0 | S146: 0 | T146: 0 | U146: 0 | V146: 0 | W146: 0 | X146: 0 | Y146: 0 | Z146: 0 | AA146: 0 | AB146: 0 | AC146: 0 | AD146: 0 | AE146: 0 | AF146: 0 | AG146: 0 | AH146: 0 | AI146: 0 | AJ146: 0 | AK146: 0 | AL146: 0 | AM146: 0 | AN146: 0 | AO146: 0 | AP146: 0 | AQ146: 0 | AR146: 0 | AS146: 0 | AT146: 0 | AU146: 0 | AV146: 0 | AX146: 0 | AY146: 0 | AZ146: 0 | BA146: 0 | BB146: 0 | BC146: 0 | BD146: 0 | BE146: 0 | BF146: 0 | BG146: 0 | BH146: 0 | BI146: 0 | BJ146: 0 | BK146: 0 | BL146: 0 | BM146: 0 | BN146: 0 | BO146: 0 | BP146: 0 | BQ146: 0 | BR146: 0 | BS146: 0 | BT146: 0 | BU146: 0 | BV146: 0 | BW146: 0 | BX146: 0 | BY146: 0 | BZ146: 0 | CA146: 0 | CB146: 0 | CE146: Demontagen | CG146: 1 | CH146: 1 | CI146: 1 | CJ146: 1 | CK146: 1 | CL146: 1 | CM146: 1 | CN146: 1 | CO146: 1 | CP146: 1 | CQ146: 1 | CR146: 1 | CS146: 1 | CT146: 0 | CU146: 0 | CV146: 0
B147: Schaltschränke HV/UV | E147: 20 | G147: 0.01 | I147: [% Inv.] | K147: 20 | L147: 0.01 | M147: 0 | N147: 0 | P147: Schaltschränke HV/UV | Q147: 0 | R147: =IF(Betrachtungszeit_Heizung<R$26,0,IF(AND(Q$26<>0,Q$26/($K147)=INT(Q$26/($K147))),$D147,0)) -> 0 | S147: 0 | T147: 0 | U147: 0 | V147: 0 | W147: 0 | X147: 0 | Y147: 0 | Z147: 0 | AA147: 0 | AB147: 0 | AC147: 0 | AD147: 0 | AE147: 0 | AF147: 0 | AG147: 0 | AH147: 0 | AI147: 0 | AJ147: 0 | AK147: 0 | AL147: 0 | AM147: 0 | AN147: 0 | AO147: 0 | AP147: 0 | AQ147: 0 | AR147: 0 | AS147: 0 | AT147: 0 | AU147: 0 | AV147: 0 | AX147: =$D147 -> 0 | AY147: 0 | AZ147: 0 | BA147: 0 | BB147: 0 | BC147: 0 | BD147: 0 | BE147: 0 | BF147: 0 | BG147: 0 | BH147: 0 | BI147: 0 | BJ147: 0 | BK147: 0 | BL147: 0 | BM147: 0 | BN147: 0 | BO147: 0 | BP147: 0 | BQ147: 0 | BR147: 0 | BS147: 0 | BT147: 0 | BU147: 0 | BV147: 0 | BW147: 0 | BX147: 0 | BY147: 0 | BZ147: 0 | CA147: 0 | CB147: 0 | CE147: Schaltschränke HV/UV | CG147: 1 | CH147: 1 | CI147: 1 | CJ147: 1 | CK147: 1 | CL147: 1 | CM147: 1 | CN147: 1 | CO147: 1 | CP147: 1 | CQ147: 1 | CR147: 1 | CS147: 1 | CT147: 0 | CU147: 0 | CV147: 0
B148: Elektrotrasse | E148: 30 | G148: 0.005 | I148: [% Inv.] | K148: 30 | L148: 0.005 | M148: 0 | N148: 0 | P148: Elektrotrasse | Q148: 0 | R148: =IF(Betrachtungszeit_Heizung<R$26,0,IF(AND(Q$26<>0,Q$26/($K148)=INT(Q$26/($K148))),$D148,0)) -> 0 | S148: 0 | T148: 0 | U148: 0 | V148: 0 | W148: 0 | X148: 0 | Y148: 0 | Z148: 0 | AA148: 0 | AB148: 0 | AC148: 0 | AD148: 0 | AE148: 0 | AF148: 0 | AG148: 0 | AH148: 0 | AI148: 0 | AJ148: 0 | AK148: 0 | AL148: 0 | AM148: 0 | AN148: 0 | AO148: 0 | AP148: 0 | AQ148: 0 | AR148: 0 | AS148: 0 | AT148: 0 | AU148: 0 | AV148: 0 | AX148: 0 | AY148: 0 | AZ148: 0 | BA148: 0 | BB148: 0 | BC148: 0 | BD148: 0 | BE148: 0 | BF148: 0 | BG148: 0 | BH148: 0 | BI148: 0 | BJ148: 0 | BK148: 0 | BL148: 0 | BM148: 0 | BN148: 0 | BO148: 0 | BP148: 0 | BQ148: 0 | BR148: 0 | BS148: 0 | BT148: 0 | BU148: 0 | BV148: 0 | BW148: 0 | BX148: 0 | BY148: 0 | BZ148: 0 | CA148: 0 | CB148: 0 | CE148: Elektrotrasse | CG148: 1 | CH148: 1 | CI148: 1 | CJ148: 1 | CK148: 1 | CL148: 1 | CM148: 1 | CN148: 1 | CO148: 1 | CP148: 1 | CQ148: 1 | CR148: 1 | CS148: 1 | CT148: 0 | CU148: 0 | CV148: 0
B149: Beleuchtung | E149: 15 | G149: 0.02 | I149: [% Inv.] | K149: 15 | L149: 0.02 | M149: 0 | N149: 0 | P149: Beleuchtung | Q149: 0 | R149: =IF(Betrachtungszeit_Heizung<R$26,0,IF(AND(Q$26<>0,Q$26/($K149)=INT(Q$26/($K149))),$D149,0)) -> 0 | S149: 0 | T149: 0 | U149: 0 | V149: 0 | W149: 0 | X149: 0 | Y149: 0 | Z149: 0 | AA149: 0 | AB149: 0 | AC149: 0 | AD149: 0 | AE149: 0 | AF149: 0 | AG149: 0 | AH149: 0 | AI149: 0 | AJ149: 0 | AK149: 0 | AL149: 0 | AM149: 0 | AN149: 0 | AO149: 0 | AP149: 0 | AQ149: 0 | AR149: 0 | AS149: 0 | AT149: 0 | AU149: 0 | AV149: 0 | AX149: 0 | AY149: 0 | AZ149: 0 | BA149: 0 | BB149: 0 | BC149: 0 | BD149: 0 | BE149: 0 | BF149: 0 | BG149: 0 | BH149: 0 | BI149: 0 | BJ149: 0 | BK149: 0 | BL149: 0 | BM149: 0 | BN149: 0 | BO149: 0 | BP149: 0 | BQ149: 0 | BR149: 0 | BS149: 0 | BT149: 0 | BU149: 0 | BV149: 0 | BW149: 0 | BX149: 0 | BY149: 0 | BZ149: 0 | CA149: 0 | CB149: 0 | CE149: Beleuchtung | CG149: 1 | CH149: 1 | CI149: 1 | CJ149: 1 | CK149: 1 | CL149: 1 | CM149: 1 | CN149: 1 | CO149: 1 | CP149: 1 | CQ149: 1 | CR149: 1 | CS149: 1 | CT149: 0 | CU149: 0 | CV149: 0
B150: Verkabelung | E150: 20 | G150: 0.01 | I150: [% Inv.] | K150: 20 | L150: 0.01 | M150: 0 | N150: 0 | P150: Verkabelung | Q150: 0 | R150: =IF(Betrachtungszeit_Heizung<R$26,0,IF(AND(Q$26<>0,Q$26/($K150)=INT(Q$26/($K150))),$D150,0)) -> 0 | S150: 0 | T150: 0 | U150: 0 | V150: 0 | W150: 0 | X150: 0 | Y150: 0 | Z150: 0 | AA150: 0 | AB150: 0 | AC150: 0 | AD150: 0 | AE150: 0 | AF150: 0 | AG150: 0 | AH150: 0 | AI150: 0 | AJ150: 0 | AK150: 0 | AL150: 0 | AM150: 0 | AN150: 0 | AO150: 0 | AP150: 0 | AQ150: 0 | AR150: 0 | AS150: 0 | AT150: 0 | AU150: 0 | AV150: 0 | AX150: 0 | AY150: 0 | AZ150: 0 | BA150: 0 | BB150: 0 | BC150: 0 | BD150: 0 | BE150: 0 | BF150: 0 | BG150: 0 | BH150: 0 | BI150: 0 | BJ150: 0 | BK150: 0 | BL150: 0 | BM150: 0 | BN150: 0 | BO150: 0 | BP150: 0 | BQ150: 0 | BR150: 0 | BS150: 0 | BT150: 0 | BU150: 0 | BV150: 0 | BW150: 0 | BX150: 0 | BY150: 0 | BZ150: 0 | CA150: 0 | CB150: 0 | CE150: Verkabelung | CG150: 1 | CH150: 1 | CI150: 1 | CJ150: 1 | CK150: 1 | CL150: 1 | CM150: 1 | CN150: 1 | CO150: 1 | CP150: 1 | CQ150: 1 | CR150: 1 | CS150: 1 | CT150: 0 | CU150: 0 | CV150: 0
B151: Einspeisung | E151: 20 | G151: 0.01 | I151: [% Inv.] | K151: 20 | L151: 0.01 | M151: 0 | N151: 0 | P151: Einspeisung | Q151: 0 | R151: =IF(Betrachtungszeit_Heizung<R$26,0,IF(AND(Q$26<>0,Q$26/($K151)=INT(Q$26/($K151))),$D151,0)) -> 0 | S151: 0 | T151: 0 | U151: 0 | V151: 0 | W151: 0 | X151: 0 | Y151: 0 | Z151: 0 | AA151: 0 | AB151: 0 | AC151: 0 | AD151: 0 | AE151: 0 | AF151: 0 | AG151: 0 | AH151: 0 | AI151: 0 | AJ151: 0 | AK151: 0 | AL151: 0 | AM151: 0 | AN151: 0 | AO151: 0 | AP151: 0 | AQ151: 0 | AR151: 0 | AS151: 0 | AT151: 0 | AU151: 0 | AV151: 0 | AX151: 0 | AY151: 0 | AZ151: 0 | BA151: 0 | BB151: 0 | BC151: 0 | BD151: 0 | BE151: 0 | BF151: 0 | BG151: 0 | BH151: 0 | BI151: 0 | BJ151: 0 | BK151: 0 | BL151: 0 | BM151: 0 | BN151: 0 | BO151: 0 | BP151: 0 | BQ151: 0 | BR151: 0 | BS151: 0 | BT151: 0 | BU151: 0 | BV151: 0 | BW151: 0 | BX151: 0 | BY151: 0 | BZ151: 0 | CA151: 0 | CB151: 0 | CE151: Einspeisung | CG151: 1 | CH151: 1 | CI151: 1 | CJ151: 1 | CK151: 1 | CL151: 1 | CM151: 1 | CN151: 1 | CO151: 1 | CP151: 1 | CQ151: 1 | CR151: 1 | CS151: 1 | CT151: 0 | CU151: 0 | CV151: 0
B152: Telefon, Netzwerkanschluss | E152: 15 | G152: 0.025 | I152: [% Inv.] | K152: 15 | L152: 0.025 | M152: 0 | N152: 0 | P152: Telefon, Netzwerkanschluss | Q152: 0 | R152: =IF(Betrachtungszeit_Heizung<R$26,0,IF(AND(Q$26<>0,Q$26/($K152)=INT(Q$26/($K152))),$D152,0)) -> 0 | S152: 0 | T152: 0 | U152: 0 | V152: 0 | W152: 0 | X152: 0 | Y152: 0 | Z152: 0 | AA152: 0 | AB152: 0 | AC152: 0 | AD152: 0 | AE152: 0 | AF152: 0 | AG152: 0 | AH152: 0 | AI152: 0 | AJ152: 0 | AK152: 0 | AL152: 0 | AM152: 0 | AN152: 0 | AO152: 0 | AP152: 0 | AQ152: 0 | AR152: 0 | AS152: 0 | AT152: 0 | AU152: 0 | AV152: 0 | AX152: 0 | AY152: 0 | AZ152: 0 | BA152: 0 | BB152: 0 | BC152: 0 | BD152: 0 | BE152: 0 | BF152: 0 | BG152: 0 | BH152: 0 | BI152: 0 | BJ152: 0 | BK152: 0 | BL152: 0 | BM152: 0 | BN152: 0 | BO152: 0 | BP152: 0 | BQ152: 0 | BR152: 0 | BS152: 0 | BT152: 0 | BU152: 0 | BV152: 0 | BW152: 0 | BX152: 0 | BY152: 0 | BZ152: 0 | CA152: 0 | CB152: 0 | CE152: Telefon, Netzwerkanschluss | CG152: 1 | CH152: 1 | CI152: 1 | CJ152: 1 | CK152: 1 | CL152: 1 | CM152: 1 | CN152: 1 | CO152: 1 | CP152: 1 | CQ152: 1 | CR152: 1 | CS152: 1 | CT152: 0 | CU152: 0 | CV152: 0
B153: Busleitungen | E153: 15 | G153: 0.025 | I153: [% Inv.] | K153: 15 | L153: 0.025 | M153: 0 | N153: 0 | P153: Busleitungen | Q153: 0 | R153: =IF(Betrachtungszeit_Heizung<R$26,0,IF(AND(Q$26<>0,Q$26/($K153)=INT(Q$26/($K153))),$D153,0)) -> 0 | S153: 0 | T153: 0 | U153: 0 | V153: 0 | W153: 0 | X153: 0 | Y153: 0 | Z153: 0 | AA153: 0 | AB153: 0 | AC153: 0 | AD153: 0 | AE153: 0 | AF153: 0 | AG153: 0 | AH153: 0 | AI153: 0 | AJ153: 0 | AK153: 0 | AL153: 0 | AM153: 0 | AN153: 0 | AO153: 0 | AP153: 0 | AQ153: 0 | AR153: 0 | AS153: 0 | AT153: 0 | AU153: 0 | AV153: 0 | AX153: 0 | AY153: 0 | AZ153: 0 | BA153: 0 | BB153: 0 | BC153: 0 | BD153: 0 | BE153: 0 | BF153: 0 | BG153: 0 | BH153: 0 | BI153: 0 | BJ153: 0 | BK153: 0 | BL153: 0 | BM153: 0 | BN153: 0 | BO153: 0 | BP153: 0 | BQ153: 0 | BR153: 0 | BS153: 0 | BT153: 0 | BU153: 0 | BV153: 0 | BW153: 0 | BX153: 0 | BY153: 0 | BZ153: 0 | CA153: 0 | CB153: 0 | CE153: Busleitungen | CG153: 1 | CH153: 1 | CI153: 1 | CJ153: 1 | CK153: 1 | CL153: 1 | CM153: 1 | CN153: 1 | CO153: 1 | CP153: 1 | CQ153: 1 | CR153: 1 | CS153: 1 | CT153: 0 | CU153: 0 | CV153: 0
B154: Weiteres | E154: 30 | G154: kein Default | I154: [% Inv.] | K154: 30 | L154: 0 | M154: 0 | N154: 0 | P154: Weiteres | Q154: 0 | R154: =IF(Betrachtungszeit_Heizung<R$26,0,IF(AND(Q$26<>0,Q$26/($K154)=INT(Q$26/($K154))),$D154,0)) -> 0 | S154: 0 | T154: 0 | U154: 0 | V154: 0 | W154: 0 | X154: 0 | Y154: 0 | Z154: 0 | AA154: 0 | AB154: 0 | AC154: 0 | AD154: 0 | AE154: 0 | AF154: 0 | AG154: 0 | AH154: 0 | AI154: 0 | AJ154: 0 | AK154: 0 | AL154: 0 | AM154: 0 | AN154: 0 | AO154: 0 | AP154: 0 | AQ154: 0 | AR154: 0 | AS154: 0 | AT154: 0 | AU154: 0 | AV154: 0 | AX154: 0 | AY154: 0 | AZ154: 0 | BA154: 0 | BB154: 0 | BC154: 0 | BD154: 0 | BE154: 0 | BF154: 0 | BG154: 0 | BH154: 0 | BI154: 0 | BJ154: 0 | BK154: 0 | BL154: 0 | BM154: 0 | BN154: 0 | BO154: 0 | BP154: 0 | BQ154: 0 | BR154: 0 | BS154: 0 | BT154: 0 | BU154: 0 | BV154: 0 | BW154: 0 | BX154: 0 | BY154: 0 | BZ154: 0 | CA154: 0 | CB154: 0 | CE154: =B154 -> Weiteres | CG154: 1 | CH154: 1 | CI154: 1 | CJ154: 1 | CK154: 1 | CL154: 1 | CM154: 1 | CN154: 1 | CO154: 1 | CP154: 1 | CQ154: 1 | CR154: 1 | CS154: 1 | CT154: =SUMIF($CF$25:$CS$25,$C$12,CF154:CS154) -> 0 | CU154: =SUMIF($CF$25:$CS$25,$C$20,CF154:CS154) -> 0 | CV154: 0
B155: 17. Baumeister | P155: 17. Baumeister | CE155: 17. Baumeister | CF155: 1 | CG155: 1 | CH155: 1 | CI155: 1 | CJ155: 1 | CK155: 1 | CL155: 1 | CM155: 1 | CN155: 1 | CO155: 1 | CP155: 1 | CQ155: 1 | CR155: 1 | CS155: 1 | CT155: 1 | CU155: 1 | CV155: 1
B156: Provisorien | E156: 20 | G156: 0 | I156: [% Inv.] | K156: =IF(ISNUMBER(F156),F156,IF(ISNUMBER(E156),E156,0)) -> 20 | L156: =IF(ISNUMBER(H156),IF(I156=$D$332,IFERROR(H156/D156,"-"),H156/100),IF(ISNUMBER(G156),G156,0)) -> 0 | M156: =IF(AND(ISNUMBER(H156),I156=$D$332),H156,L156*D156) -> 0 | N156: 0 | P156: =B156 -> Provisorien | Q156: =D156 -> 0 | R156: =IF(Betrachtungszeit_Heizung<R$26,0,IF(AND(Q$26<>0,Q$26/($K156)=INT(Q$26/($K156))),$D156,0)) -> 0 | S156: 0 | T156: 0 | U156: 0 | V156: 0 | W156: 0 | X156: 0 | Y156: 0 | Z156: 0 | AA156: 0 | AB156: 0 | AC156: 0 | AD156: 0 | AE156: 0 | AF156: 0 | AG156: 0 | AH156: 0 | AI156: 0 | AJ156: 0 | AK156: 0 | AL156: 0 | AM156: 0 | AN156: 0 | AO156: 0 | AP156: 0 | AQ156: 0 | AR156: 0 | AS156: 0 | AT156: 0 | AU156: 0 | AV156: =SUMIF($AX$26:$CB$26,Betrachtungszeit_Heizung,AX156:CB156) -> 0 | AX156: =$D156 -> 0 | AY156: =AX156-$N156+R156 -> 0 | AZ156: =AY156-$N156+S156 -> 0 | BA156: =AZ156-$N156+T156 -> 0 | BB156: =BA156-$N156+U156 -> 0 | BC156: =BB156-$N156+V156 -> 0 | BD156: =BC156-$N156+W156 -> 0 | BE156: =BD156-$N156+X156 -> 0 | BF156: =BE156-$N156+Y156 -> 0 | BG156: =BF156-$N156+Z156 -> 0 | BH156: =BG156-$N156+AA156 -> 0 | BI156: =BH156-$N156+AB156 -> 0 | BJ156: =BI156-$N156+AC156 -> 0 | BK156: =BJ156-$N156+AD156 -> 0 | BL156: =BK156-$N156+AE156 -> 0 | BM156: =BL156-$N156+AF156 -> 0 | BN156: =BM156-$N156+AG156 -> 0 | BO156: =BN156-$N156+AH156 -> 0 | BP156: =BO156-$N156+AI156 -> 0 | BQ156: =BP156-$N156+AJ156 -> 0 | BR156: =BQ156-$N156+AK156 -> 0 | BS156: =BR156-$N156+AL156 -> 0 | BT156: =BS156-$N156+AM156 -> 0 | BU156: =BT156-$N156+AN156 -> 0 | BV156: =BU156-$N156+AO156 -> 0 | BW156: =BV156-$N156+AP156 -> 0 | BX156: =BW156-$N156+AQ156 -> 0 | BY156: =BX156-$N156+AR156 -> 0 | BZ156: =BY156-$N156+AS156 -> 0 | CA156: =BZ156-$N156+AT156 -> 0 | CB156: =CA156-$N156+AU156 -> 0 | CE156: Provisorien | CG156: 1 | CH156: 1 | CI156: 1 | CJ156: 1 | CK156: 1 | CL156: 1 | CM156: 1 | CN156: 1 | CO156: 1 | CP156: 1 | CQ156: 1 | CR156: 1 | CS156: 1 | CT156: 0 | CU156: 0 | CV156: 0
B157: Abbrucharbeiten | E157: 20 | G157: 0 | I157: [% Inv.] | K157: 20 | L157: 0 | M157: 0 | N157: 0 | P157: Abbrucharbeiten | Q157: 0 | R157: =IF(Betrachtungszeit_Heizung<R$26,0,IF(AND(Q$26<>0,Q$26/($K157)=INT(Q$26/($K157))),$D157,0)) -> 0 | S157: 0 | T157: 0 | U157: 0 | V157: 0 | W157: 0 | X157: 0 | Y157: 0 | Z157: 0 | AA157: 0 | AB157: 0 | AC157: 0 | AD157: 0 | AE157: 0 | AF157: 0 | AG157: 0 | AH157: 0 | AI157: 0 | AJ157: 0 | AK157: 0 | AL157: 0 | AM157: 0 | AN157: 0 | AO157: 0 | AP157: 0 | AQ157: 0 | AR157: 0 | AS157: 0 | AT157: 0 | AU157: 0 | AV157: 0 | AX157: 0 | AY157: 0 | AZ157: 0 | BA157: 0 | BB157: 0 | BC157: 0 | BD157: 0 | BE157: 0 | BF157: 0 | BG157: 0 | BH157: 0 | BI157: 0 | BJ157: 0 | BK157: 0 | BL157: 0 | BM157: 0 | BN157: 0 | BO157: 0 | BP157: 0 | BQ157: 0 | BR157: 0 | BS157: 0 | BT157: 0 | BU157: 0 | BV157: 0 | BW157: 0 | BX157: 0 | BY157: 0 | BZ157: 0 | CA157: 0 | CB157: 0 | CE157: Abbrucharbeiten | CG157: 1 | CH157: 1 | CI157: 1 | CJ157: 1 | CK157: 1 | CL157: 1 | CM157: 1 | CN157: 1 | CO157: 1 | CP157: 1 | CQ157: 1 | CR157: 1 | CS157: 1 | CT157: 0 | CU157: 0 | CV157: 0
B158: Kabelgräben | E158: 20 | G158: 0.005 | I158: [% Inv.] | K158: 20 | L158: 0.005 | M158: 0 | N158: 0 | P158: Kabelgräben | Q158: 0 | R158: =IF(Betrachtungszeit_Heizung<R$26,0,IF(AND(Q$26<>0,Q$26/($K158)=INT(Q$26/($K158))),$D158,0)) -> 0 | S158: 0 | T158: 0 | U158: 0 | V158: 0 | W158: 0 | X158: 0 | Y158: 0 | Z158: 0 | AA158: 0 | AB158: 0 | AC158: 0 | AD158: 0 | AE158: 0 | AF158: 0 | AG158: 0 | AH158: 0 | AI158: 0 | AJ158: 0 | AK158: 0 | AL158: 0 | AM158: 0 | AN158: 0 | AO158: 0 | AP158: 0 | AQ158: 0 | AR158: 0 | AS158: 0 | AT158: 0 | AU158: 0 | AV158: 0 | AX158: 0 | AY158: 0 | AZ158: 0 | BA158: 0 | BB158: 0 | BC158: 0 | BD158: 0 | BE158: 0 | BF158: 0 | BG158: 0 | BH158: 0 | BI158: 0 | BJ158: 0 | BK158: 0 | BL158: 0 | BM158: 0 | BN158: 0 | BO158: 0 | BP158: 0 | BQ158: 0 | BR158: 0 | BS158: 0 | BT158: 0 | BU158: 0 | BV158: 0 | BW158: 0 | BX158: 0 | BY158: 0 | BZ158: 0 | CA158: 0 | CB158: 0 | CE158: Kabelgräben | CG158: 1 | CH158: 1 | CI158: 1 | CJ158: 1 | CK158: 1 | CL158: 1 | CM158: 1 | CN158: 1 | CO158: 1 | CP158: 1 | CQ158: 1 | CR158: 1 | CS158: 1 | CT158: 0 | CU158: 0 | CV158: 0
B159: Durchbrüche, Kernbohrungen | E159: 20 | G159: 0 | I159: [% Inv.] | K159: 20 | L159: 0 | M159: 0 | N159: 0 | P159: Durchbrüche, Kernbohrungen | Q159: 0 | R159: =IF(Betrachtungszeit_Heizung<R$26,0,IF(AND(Q$26<>0,Q$26/($K159)=INT(Q$26/($K159))),$D159,0)) -> 0 | S159: 0 | T159: 0 | U159: 0 | V159: 0 | W159: 0 | X159: 0 | Y159: 0 | Z159: 0 | AA159: 0 | AB159: 0 | AC159: 0 | AD159: 0 | AE159: 0 | AF159: 0 | AG159: 0 | AH159: 0 | AI159: 0 | AJ159: 0 | AK159: 0 | AL159: 0 | AM159: 0 | AN159: 0 | AO159: 0 | AP159: 0 | AQ159: 0 | AR159: 0 | AS159: 0 | AT159: 0 | AU159: 0 | AV159: 0 | AX159: 0 | AY159: 0 | AZ159: 0 | BA159: 0 | BB159: 0 | BC159: 0 | BD159: 0 | BE159: 0 | BF159: 0 | BG159: 0 | BH159: 0 | BI159: 0 | BJ159: 0 | BK159: 0 | BL159: 0 | BM159: 0 | BN159: 0 | BO159: 0 | BP159: 0 | BQ159: 0 | BR159: 0 | BS159: 0 | BT159: 0 | BU159: 0 | BV159: 0 | BW159: 0 | BX159: 0 | BY159: 0 | BZ159: 0 | CA159: 0 | CB159: 0 | CE159: Durchbrüche, Kernbohrungen | CG159: 1 | CH159: 1 | CI159: 1 | CJ159: 1 | CK159: 1 | CL159: 1 | CM159: 1 | CN159: 1 | CO159: 1 | CP159: 1 | CQ159: 1 | CR159: 1 | CS159: 1 | CT159: 0 | CU159: 0 | CV159: 0
B160: Fundamente, Sockel | E160: 20 | G160: 0.001 | I160: [% Inv.] | K160: 20 | L160: 0.001 | M160: 0 | N160: 0 | P160: Fundamente, Sockel | Q160: 0 | R160: =IF(Betrachtungszeit_Heizung<R$26,0,IF(AND(Q$26<>0,Q$26/($K160)=INT(Q$26/($K160))),$D160,0)) -> 0 | S160: 0 | T160: 0 | U160: 0 | V160: 0 | W160: 0 | X160: 0 | Y160: 0 | Z160: 0 | AA160: 0 | AB160: 0 | AC160: 0 | AD160: 0 | AE160: 0 | AF160: 0 | AG160: 0 | AH160: 0 | AI160: 0 | AJ160: 0 | AK160: 0 | AL160: 0 | AM160: 0 | AN160: 0 | AO160: 0 | AP160: 0 | AQ160: 0 | AR160: 0 | AS160: 0 | AT160: 0 | AU160: 0 | AV160: 0 | AX160: 0 | AY160: 0 | AZ160: 0 | BA160: 0 | BB160: 0 | BC160: 0 | BD160: 0 | BE160: 0 | BF160: 0 | BG160: 0 | BH160: 0 | BI160: 0 | BJ160: 0 | BK160: 0 | BL160: 0 | BM160: 0 | BN160: 0 | BO160: 0 | BP160: 0 | BQ160: 0 | BR160: 0 | BS160: 0 | BT160: 0 | BU160: 0 | BV160: 0 | BW160: 0 | BX160: 0 | BY160: 0 | BZ160: 0 | CA160: 0 | CB160: 0 | CE160: Fundamente, Sockel | CG160: 1 | CH160: 1 | CI160: 1 | CJ160: 1 | CK160: 1 | CL160: 1 | CM160: 1 | CN160: 1 | CO160: 1 | CP160: 1 | CQ160: 1 | CR160: 1 | CS160: 1 | CT160: 0 | CU160: 0 | CV160: 0
B161: Maurerarbeiten | E161: 30 | G161: 0.001 | I161: [% Inv.] | K161: 30 | L161: 0.001 | M161: 0 | N161: 0 | P161: Maurerarbeiten | Q161: 0 | R161: =IF(Betrachtungszeit_Heizung<R$26,0,IF(AND(Q$26<>0,Q$26/($K161)=INT(Q$26/($K161))),$D161,0)) -> 0 | S161: 0 | T161: 0 | U161: 0 | V161: 0 | W161: 0 | X161: 0 | Y161: 0 | Z161: 0 | AA161: 0 | AB161: 0 | AC161: 0 | AD161: 0 | AE161: 0 | AF161: 0 | AG161: 0 | AH161: 0 | AI161: 0 | AJ161: 0 | AK161: 0 | AL161: 0 | AM161: 0 | AN161: 0 | AO161: 0 | AP161: 0 | AQ161: 0 | AR161: 0 | AS161: 0 | AT161: 0 | AU161: 0 | AV161: 0 | AX161: 0 | AY161: 0 | AZ161: 0 | BA161: 0 | BB161: 0 | BC161: 0 | BD161: 0 | BE161: 0 | BF161: 0 | BG161: 0 | BH161: 0 | BI161: 0 | BJ161: 0 | BK161: 0 | BL161: 0 | BM161: 0 | BN161: 0 | BO161: 0 | BP161: 0 | BQ161: 0 | BR161: 0 | BS161: 0 | BT161: 0 | BU161: 0 | BV161: 0 | BW161: 0 | BX161: 0 | BY161: 0 | BZ161: 0 | CA161: 0 | CB161: 0 | CE161: Maurerarbeiten | CG161: 1 | CH161: 1 | CI161: 1 | CJ161: 1 | CK161: 1 | CL161: 1 | CM161: 1 | CN161: 1 | CO161: 1 | CP161: 1 | CQ161: 1 | CR161: 1 | CS161: 1 | CT161: 0 | CU161: 0 | CV161: =IF(CT161+CU161>0,1,0) -> 0
B162: Brandabschottungen | E162: 20 | G162: 0.02 | I162: [% Inv.] | K162: 20 | L162: 0.02 | M162: 0 | N162: 0 | P162: Brandabschottungen | Q162: 0 | R162: =IF(Betrachtungszeit_Heizung<R$26,0,IF(AND(Q$26<>0,Q$26/($K162)=INT(Q$26/($K162))),$D162,0)) -> 0 | S162: 0 | T162: 0 | U162: 0 | V162: 0 | W162: 0 | X162: 0 | Y162: 0 | Z162: 0 | AA162: 0 | AB162: 0 | AC162: 0 | AD162: 0 | AE162: 0 | AF162: 0 | AG162: 0 | AH162: 0 | AI162: 0 | AJ162: 0 | AK162: 0 | AL162: 0 | AM162: 0 | AN162: 0 | AO162: 0 | AP162: 0 | AQ162: 0 | AR162: 0 | AS162: 0 | AT162: 0 | AU162: 0 | AV162: 0 | AX162: 0 | AY162: 0 | AZ162: 0 | BA162: 0 | BB162: 0 | BC162: 0 | BD162: 0 | BE162: 0 | BF162: 0 | BG162: 0 | BH162: 0 | BI162: 0 | BJ162: 0 | BK162: 0 | BL162: 0 | BM162: 0 | BN162: 0 | BO162: 0 | BP162: 0 | BQ162: 0 | BR162: 0 | BS162: 0 | BT162: 0 | BU162: 0 | BV162: 0 | BW162: 0 | BX162: 0 | BY162: 0 | BZ162: 0 | CA162: 0 | CB162: 0 | CE162: Brandabschottungen | CG162: 1 | CH162: 1 | CI162: 1 | CJ162: 1 | CK162: 1 | CL162: 1 | CM162: 1 | CN162: 1 | CO162: 1 | CP162: 1 | CQ162: 1 | CR162: 1 | CS162: 1 | CT162: 0 | CU162: 0 | CV162: 0
B163: Gerüste | E163: 20 | G163: 0 | I163: [% Inv.] | K163: 20 | L163: 0 | M163: 0 | N163: 0 | P163: Gerüste | Q163: 0 | R163: =IF(Betrachtungszeit_Heizung<R$26,0,IF(AND(Q$26<>0,Q$26/($K163)=INT(Q$26/($K163))),$D163,0)) -> 0 | S163: 0 | T163: 0 | U163: 0 | V163: 0 | W163: 0 | X163: 0 | Y163: 0 | Z163: 0 | AA163: 0 | AB163: 0 | AC163: 0 | AD163: 0 | AE163: 0 | AF163: 0 | AG163: 0 | AH163: 0 | AI163: 0 | AJ163: 0 | AK163: 0 | AL163: 0 | AM163: 0 | AN163: 0 | AO163: 0 | AP163: 0 | AQ163: 0 | AR163: 0 | AS163: 0 | AT163: 0 | AU163: 0 | AV163: 0 | AX163: 0 | AY163: 0 | AZ163: 0 | BA163: 0 | BB163: 0 | BC163: 0 | BD163: 0 | BE163: 0 | BF163: 0 | BG163: 0 | BH163: 0 | BI163: 0 | BJ163: 0 | BK163: 0 | BL163: 0 | BM163: 0 | BN163: 0 | BO163: 0 | BP163: 0 | BQ163: 0 | BR163: 0 | BS163: 0 | BT163: 0 | BU163: 0 | BV163: 0 | BW163: 0 | BX163: 0 | BY163: 0 | BZ163: 0 | CA163: 0 | CB163: 0 | CE163: Gerüste | CG163: 1 | CH163: 1 | CI163: 1 | CJ163: 1 | CK163: 1 | CL163: 1 | CM163: 1 | CN163: 1 | CO163: 1 | CP163: 1 | CQ163: 1 | CR163: 1 | CS163: 1 | CT163: 0 | CU163: 0 | CV163: 0
B164: Kran, Pneukran | E164: 20 | G164: 0 | I164: [% Inv.] | K164: 20 | L164: 0 | M164: 0 | N164: 0 | P164: Kran, Pneukran | Q164: 0 | R164: =IF(Betrachtungszeit_Heizung<R$26,0,IF(AND(Q$26<>0,Q$26/($K164)=INT(Q$26/($K164))),$D164,0)) -> 0 | S164: 0 | T164: 0 | U164: 0 | V164: 0 | W164: 0 | X164: 0 | Y164: 0 | Z164: 0 | AA164: 0 | AB164: 0 | AC164: 0 | AD164: 0 | AE164: 0 | AF164: 0 | AG164: 0 | AH164: 0 | AI164: 0 | AJ164: 0 | AK164: 0 | AL164: 0 | AM164: 0 | AN164: 0 | AO164: 0 | AP164: 0 | AQ164: 0 | AR164: 0 | AS164: 0 | AT164: 0 | AU164: 0 | AV164: 0 | AX164: 0 | AY164: 0 | AZ164: 0 | BA164: 0 | BB164: 0 | BC164: 0 | BD164: 0 | BE164: 0 | BF164: 0 | BG164: 0 | BH164: 0 | BI164: 0 | BJ164: 0 | BK164: 0 | BL164: 0 | BM164: 0 | BN164: 0 | BO164: 0 | BP164: 0 | BQ164: 0 | BR164: 0 | BS164: 0 | BT164: 0 | BU164: 0 | BV164: 0 | BW164: 0 | BX164: 0 | BY164: 0 | BZ164: 0 | CA164: 0 | CB164: 0 | CE164: Kran, Pneukran | CG164: 1 | CH164: 1 | CI164: 1 | CJ164: 1 | CK164: 1 | CL164: 1 | CM164: 1 | CN164: 1 | CO164: 1 | CP164: 1 | CQ164: 1 | CR164: 1 | CS164: 1 | CT164: 0 | CU164: 0 | CV164: 0
B165: Weiteres | E165: 30 | G165: kein Default | I165: [% Inv.] | K165: 30 | L165: 0 | M165: 0 | N165: 0 | P165: Weiteres | Q165: 0 | R165: =IF(Betrachtungszeit_Heizung<R$26,0,IF(AND(Q$26<>0,Q$26/($K165)=INT(Q$26/($K165))),$D165,0)) -> 0 | S165: 0 | T165: 0 | U165: 0 | V165: 0 | W165: 0 | X165: 0 | Y165: 0 | Z165: 0 | AA165: 0 | AB165: 0 | AC165: 0 | AD165: 0 | AE165: 0 | AF165: 0 | AG165: 0 | AH165: 0 | AI165: 0 | AJ165: 0 | AK165: 0 | AL165: 0 | AM165: 0 | AN165: 0 | AO165: 0 | AP165: 0 | AQ165: 0 | AR165: 0 | AS165: 0 | AT165: 0 | AU165: 0 | AV165: 0 | AX165: 0 | AY165: 0 | AZ165: 0 | BA165: 0 | BB165: 0 | BC165: 0 | BD165: 0 | BE165: 0 | BF165: 0 | BG165: 0 | BH165: 0 | BI165: 0 | BJ165: 0 | BK165: 0 | BL165: 0 | BM165: 0 | BN165: 0 | BO165: 0 | BP165: 0 | BQ165: 0 | BR165: 0 | BS165: 0 | BT165: 0 | BU165: 0 | BV165: 0 | BW165: 0 | BX165: 0 | BY165: 0 | BZ165: 0 | CA165: 0 | CB165: 0 | CE165: Weiteres | CG165: 1 | CH165: 1 | CI165: 1 | CJ165: 1 | CK165: 1 | CL165: 1 | CM165: 1 | CN165: 1 | CO165: 1 | CP165: 1 | CQ165: 1 | CR165: 1 | CS165: 1 | CT165: 0 | CU165: 0 | CV165: 0
B166: 18. Baunebenkosten | P166: 18. Baunebenkosten | CE166: 18. Baunebenkosten | CF166: 1 | CG166: 1 | CH166: 1 | CI166: 1 | CJ166: 1 | CK166: 1 | CL166: 1 | CM166: 1 | CN166: 1 | CO166: 1 | CP166: 1 | CQ166: 1 | CR166: 1 | CS166: 1 | CT166: 1 | CU166: 1 | CV166: 1
B167: Demontagen | E167: 25 | G167: 0 | I167: [% Inv.] | K167: 25 | L167: =IF(ISNUMBER(H167),IF(I167=$D$332,IFERROR(H167/D167,"-"),H167/100),IF(ISNUMBER(G167),G167,0)) -> 0 | M167: =IF(AND(ISNUMBER(H167),I167=$D$332),H167,L167*D167) -> 0 | N167: 0 | P167: Demontagen | Q167: 0 | R167: =IF(Betrachtungszeit_Heizung<R$26,0,IF(AND(Q$26<>0,Q$26/($K167)=INT(Q$26/($K167))),$D167,0)) -> 0 | S167: 0 | T167: 0 | U167: 0 | V167: 0 | W167: 0 | X167: 0 | Y167: 0 | Z167: 0 | AA167: 0 | AB167: 0 | AC167: 0 | AD167: 0 | AE167: 0 | AF167: 0 | AG167: 0 | AH167: 0 | AI167: 0 | AJ167: 0 | AK167: 0 | AL167: 0 | AM167: 0 | AN167: 0 | AO167: 0 | AP167: 0 | AQ167: 0 | AR167: 0 | AS167: 0 | AT167: 0 | AU167: 0 | AV167: =SUMIF($AX$26:$CB$26,Betrachtungszeit_Heizung,AX167:CB167) -> 0 | AX167: =$D167 -> 0 | AY167: 0 | AZ167: 0 | BA167: 0 | BB167: 0 | BC167: 0 | BD167: 0 | BE167: 0 | BF167: 0 | BG167: 0 | BH167: 0 | BI167: 0 | BJ167: 0 | BK167: 0 | BL167: 0 | BM167: 0 | BN167: 0 | BO167: 0 | BP167: 0 | BQ167: 0 | BR167: 0 | BS167: 0 | BT167: 0 | BU167: 0 | BV167: 0 | BW167: 0 | BX167: 0 | BY167: 0 | BZ167: 0 | CA167: 0 | CB167: 0 | CE167: Demontagen | CG167: 1 | CH167: 1 | CI167: 1 | CJ167: 1 | CK167: 1 | CL167: 1 | CM167: 1 | CN167: 1 | CO167: 1 | CP167: 1 | CQ167: 1 | CR167: 1 | CS167: 1 | CT167: 0 | CU167: 0 | CV167: 0
B168: Malerarbeiten | E168: 15 | G168: 0.005 | I168: [% Inv.] | K168: 15 | L168: 0.005 | M168: 0 | N168: 0 | P168: Malerarbeiten | Q168: 0 | R168: =IF(Betrachtungszeit_Heizung<R$26,0,IF(AND(Q$26<>0,Q$26/($K168)=INT(Q$26/($K168))),$D168,0)) -> 0 | S168: 0 | T168: 0 | U168: 0 | V168: 0 | W168: 0 | X168: 0 | Y168: 0 | Z168: 0 | AA168: 0 | AB168: 0 | AC168: 0 | AD168: 0 | AE168: 0 | AF168: 0 | AG168: 0 | AH168: 0 | AI168: 0 | AJ168: 0 | AK168: 0 | AL168: 0 | AM168: 0 | AN168: 0 | AO168: 0 | AP168: 0 | AQ168: 0 | AR168: 0 | AS168: 0 | AT168: 0 | AU168: 0 | AV168: =SUMIF($AX$26:$CB$26,Betrachtungszeit_Heizung,AX168:CB168) -> 0 | AX168: 0 | AY168: 0 | AZ168: 0 | BA168: 0 | BB168: 0 | BC168: 0 | BD168: 0 | BE168: 0 | BF168: 0 | BG168: 0 | BH168: 0 | BI168: 0 | BJ168: 0 | BK168: 0 | BL168: 0 | BM168: 0 | BN168: 0 | BO168: 0 | BP168: 0 | BQ168: 0 | BR168: 0 | BS168: 0 | BT168: 0 | BU168: 0 | BV168: 0 | BW168: 0 | BX168: 0 | BY168: 0 | BZ168: 0 | CA168: 0 | CB168: 0 | CE168: Malerarbeiten | CG168: 1 | CH168: 1 | CI168: 1 | CJ168: 1 | CK168: 1 | CL168: 1 | CM168: 1 | CN168: 1 | CO168: 1 | CP168: 1 | CQ168: 1 | CR168: 1 | CS168: 1 | CT168: 0 | CU168: 0 | CV168: 0
B169: Baureinigung | E169: 15 | G169: 0 | I169: [% Inv.] | K169: 15 | L169: 0 | M169: 0 | N169: 0 | P169: Baureinigung | Q169: 0 | R169: =IF(Betrachtungszeit_Heizung<R$26,0,IF(AND(Q$26<>0,Q$26/($K169)=INT(Q$26/($K169))),$D169,0)) -> 0 | S169: 0 | T169: 0 | U169: 0 | V169: 0 | W169: 0 | X169: 0 | Y169: 0 | Z169: 0 | AA169: 0 | AB169: 0 | AC169: 0 | AD169: 0 | AE169: 0 | AF169: 0 | AG169: 0 | AH169: 0 | AI169: 0 | AJ169: 0 | AK169: 0 | AL169: 0 | AM169: 0 | AN169: 0 | AO169: 0 | AP169: 0 | AQ169: 0 | AR169: 0 | AS169: 0 | AT169: 0 | AU169: 0 | AV169: =SUMIF($AX$26:$CB$26,Betrachtungszeit_Heizung,AX169:CB169) -> 0 | AX169: 0 | AY169: 0 | AZ169: 0 | BA169: 0 | BB169: 0 | BC169: 0 | BD169: 0 | BE169: 0 | BF169: 0 | BG169: 0 | BH169: 0 | BI169: 0 | BJ169: 0 | BK169: 0 | BL169: 0 | BM169: 0 | BN169: 0 | BO169: 0 | BP169: 0 | BQ169: 0 | BR169: 0 | BS169: 0 | BT169: 0 | BU169: 0 | BV169: 0 | BW169: 0 | BX169: 0 | BY169: 0 | BZ169: 0 | CA169: 0 | CB169: 0 | CE169: Baureinigung | CG169: 1 | CH169: 1 | CI169: 1 | CJ169: 1 | CK169: 1 | CL169: 1 | CM169: 1 | CN169: 1 | CO169: 1 | CP169: 1 | CQ169: 1 | CR169: 1 | CS169: 1 | CT169: 0 | CU169: 0 | CV169: 0
B170: Umgebungsarbeiten | E170: 30 | G170: 0.005 | I170: [% Inv.] | K170: 30 | L170: 0.005 | M170: 0 | N170: 0 | P170: Umgebungsarbeiten | Q170: 0 | R170: =IF(Betrachtungszeit_Heizung<R$26,0,IF(AND(Q$26<>0,Q$26/($K170)=INT(Q$26/($K170))),$D170,0)) -> 0 | S170: 0 | T170: 0 | U170: 0 | V170: 0 | W170: 0 | X170: 0 | Y170: 0 | Z170: 0 | AA170: 0 | AB170: 0 | AC170: 0 | AD170: 0 | AE170: 0 | AF170: 0 | AG170: 0 | AH170: 0 | AI170: 0 | AJ170: 0 | AK170: 0 | AL170: 0 | AM170: 0 | AN170: 0 | AO170: 0 | AP170: 0 | AQ170: 0 | AR170: 0 | AS170: 0 | AT170: 0 | AU170: 0 | AV170: =SUMIF($AX$26:$CB$26,Betrachtungszeit_Heizung,AX170:CB170) -> 0 | AX170: 0 | AY170: 0 | AZ170: 0 | BA170: 0 | BB170: 0 | BC170: 0 | BD170: 0 | BE170: 0 | BF170: 0 | BG170: 0 | BH170: 0 | BI170: 0 | BJ170: 0 | BK170: 0 | BL170: 0 | BM170: 0 | BN170: 0 | BO170: 0 | BP170: 0 | BQ170: 0 | BR170: 0 | BS170: 0 | BT170: 0 | BU170: 0 | BV170: 0 | BW170: 0 | BX170: 0 | BY170: 0 | BZ170: 0 | CA170: 0 | CB170: 0 | CE170: Umgebungsarbeiten | CG170: 1 | CH170: 1 | CI170: 1 | CJ170: 1 | CK170: 1 | CL170: 1 | CM170: 1 | CN170: 1 | CO170: 1 | CP170: 1 | CQ170: 1 | CR170: 1 | CS170: 1 | CT170: 0 | CU170: 0 | CV170: 0
B171: Weiteres | E171: 30 | G171: kein Default | I171: [% Inv.] | K171: 30 | L171: 0 | M171: 0 | N171: 0 | P171: Weiteres | Q171: 0 | R171: =IF(Betrachtungszeit_Heizung<R$26,0,IF(AND(Q$26<>0,Q$26/($K171)=INT(Q$26/($K171))),$D171,0)) -> 0 | S171: 0 | T171: 0 | U171: 0 | V171: 0 | W171: 0 | X171: 0 | Y171: 0 | Z171: 0 | AA171: 0 | AB171: 0 | AC171: 0 | AD171: 0 | AE171: 0 | AF171: 0 | AG171: 0 | AH171: 0 | AI171: 0 | AJ171: 0 | AK171: 0 | AL171: 0 | AM171: 0 | AN171: 0 | AO171: 0 | AP171: 0 | AQ171: 0 | AR171: 0 | AS171: 0 | AT171: 0 | AU171: 0 | AV171: =SUMIF($AX$26:$CB$26,Betrachtungszeit_Heizung,AX171:CB171) -> 0 | AX171: 0 | AY171: 0 | AZ171: 0 | BA171: 0 | BB171: 0 | BC171: 0 | BD171: 0 | BE171: 0 | BF171: 0 | BG171: 0 | BH171: 0 | BI171: 0 | BJ171: 0 | BK171: 0 | BL171: 0 | BM171: 0 | BN171: 0 | BO171: 0 | BP171: 0 | BQ171: 0 | BR171: 0 | BS171: 0 | BT171: 0 | BU171: 0 | BV171: 0 | BW171: 0 | BX171: 0 | BY171: 0 | BZ171: 0 | CA171: 0 | CB171: 0 | CE171: Weiteres | CG171: 1 | CH171: 1 | CI171: 1 | CJ171: 1 | CK171: 1 | CL171: 1 | CM171: 1 | CN171: 1 | CO171: 1 | CP171: 1 | CQ171: 1 | CR171: 1 | CS171: 1 | CT171: 0 | CU171: 0 | CV171: 0
B172: 19. Unvorhergesehenes | P172: 19. Unvorhergesehenes | CE172: 19. Unvorhergesehenes | CF172: 1 | CG172: 1 | CH172: 1 | CI172: 1 | CJ172: 1 | CK172: 1 | CL172: 1 | CM172: 1 | CN172: 1 | CO172: 1 | CP172: 1 | CQ172: 1 | CR172: 1 | CS172: 1 | CT172: 1 | CU172: 1 | CV172: 1
B173: Unvorhergesehenes Technik | E173: 20 | G173: 0.02 | I173: [% Inv.] | K173: 20 | L173: =IF(ISNUMBER(H173),IF(I173=$D$332,IFERROR(H173/D173,"-"),H173/100),IF(ISNUMBER(G173),G173,0)) -> 0.02 | M173: =IF(AND(ISNUMBER(H173),I173=$D$332),H173,L173*D173) -> 0 | N173: 0 | P173: Unvorhergesehenes Technik | Q173: 0 | R173: =IF(Betrachtungszeit_Heizung<R$26,0,IF(AND(Q$26<>0,Q$26/($K173)=INT(Q$26/($K173))),$D173,0)) -> 0 | S173: 0 | T173: 0 | U173: 0 | V173: 0 | W173: 0 | X173: 0 | Y173: 0 | Z173: 0 | AA173: 0 | AB173: 0 | AC173: 0 | AD173: 0 | AE173: 0 | AF173: 0 | AG173: 0 | AH173: 0 | AI173: 0 | AJ173: 0 | AK173: 0 | AL173: 0 | AM173: 0 | AN173: 0 | AO173: 0 | AP173: 0 | AQ173: 0 | AR173: 0 | AS173: 0 | AT173: 0 | AU173: 0 | AV173: =SUMIF($AX$26:$CB$26,Betrachtungszeit_Heizung,AX173:CB173) -> 0 | AX173: =$D173 -> 0 | AY173: 0 | AZ173: 0 | BA173: 0 | BB173: 0 | BC173: 0 | BD173: 0 | BE173: 0 | BF173: 0 | BG173: 0 | BH173: 0 | BI173: 0 | BJ173: 0 | BK173: 0 | BL173: 0 | BM173: 0 | BN173: 0 | BO173: 0 | BP173: 0 | BQ173: 0 | BR173: 0 | BS173: 0 | BT173: 0 | BU173: 0 | BV173: 0 | BW173: 0 | BX173: 0 | BY173: 0 | BZ173: 0 | CA173: 0 | CB173: 0 | CE173: Unvorhergesehenes Technik | CG173: 1 | CH173: 1 | CI173: 1 | CJ173: 1 | CK173: 1 | CL173: 1 | CM173: 1 | CN173: 1 | CO173: 1 | CP173: 1 | CQ173: 1 | CR173: 1 | CS173: 1 | CT173: 0 | CU173: 0 | CV173: 0
B174: Unvorhergesehenes Bauliches | E174: 20 | G174: 0.01 | I174: [% Inv.] | K174: 20 | L174: 0.01 | M174: 0 | N174: 0 | P174: Unvorhergesehenes Bauliches | Q174: 0 | R174: =IF(Betrachtungszeit_Heizung<R$26,0,IF(AND(Q$26<>0,Q$26/($K174)=INT(Q$26/($K174))),$D174,0)) -> 0 | S174: 0 | T174: 0 | U174: 0 | V174: 0 | W174: 0 | X174: 0 | Y174: 0 | Z174: 0 | AA174: 0 | AB174: 0 | AC174: 0 | AD174: 0 | AE174: 0 | AF174: 0 | AG174: 0 | AH174: 0 | AI174: 0 | AJ174: 0 | AK174: 0 | AL174: 0 | AM174: 0 | AN174: 0 | AO174: 0 | AP174: 0 | AQ174: 0 | AR174: 0 | AS174: 0 | AT174: 0 | AU174: 0 | AV174: =SUMIF($AX$26:$CB$26,Betrachtungszeit_Heizung,AX174:CB174) -> 0 | AX174: 0 | AY174: 0 | AZ174: 0 | BA174: 0 | BB174: 0 | BC174: 0 | BD174: 0 | BE174: 0 | BF174: 0 | BG174: 0 | BH174: 0 | BI174: 0 | BJ174: 0 | BK174: 0 | BL174: 0 | BM174: 0 | BN174: 0 | BO174: 0 | BP174: 0 | BQ174: 0 | BR174: 0 | BS174: 0 | BT174: 0 | BU174: 0 | BV174: 0 | BW174: 0 | BX174: 0 | BY174: 0 | BZ174: 0 | CA174: 0 | CB174: 0 | CE174: Unvorhergesehenes Bauliches | CG174: 1 | CH174: 1 | CI174: 1 | CJ174: 1 | CK174: 1 | CL174: 1 | CM174: 1 | CN174: 1 | CO174: 1 | CP174: 1 | CQ174: 1 | CR174: 1 | CS174: 1 | CT174: 0 | CU174: 0 | CV174: 0
B175: 20. Honorare/Nebenkosten | P175: 20. Honorare/Nebenkosten | CE175: 20. Honorare/Nebenkosten | CF175: 1 | CG175: 1 | CH175: 1 | CI175: 1 | CJ175: 1 | CK175: 1 | CL175: 1 | CM175: 1 | CN175: 1 | CO175: 1 | CP175: 1 | CQ175: 1 | CR175: 1 | CS175: 1 | CT175: 1 | CU175: 1 | CV175: =IF(CT175+CU175>0,1,0) -> 1
B176: HLKKSE-Ingenieur | E176: 25 | K176: 25 | L176: =IF(ISNUMBER(H176),IF(I176=$D$332,IFERROR(H176/D176,"-"),H176/100),IF(ISNUMBER(G176),G176,0)) -> 0 | M176: =IF(AND(ISNUMBER(H176),I176=$D$332),H176,L176*D176) -> 0 | N176: 0 | P176: HLKKSE-Ingenieur | Q176: 0 | R176: =IF(Betrachtungszeit_Heizung<R$26,0,IF(AND(Q$26<>0,Q$26/($K176)=INT(Q$26/($K176))),$D176,0)) -> 0 | S176: 0 | T176: 0 | U176: 0 | V176: 0 | W176: 0 | X176: 0 | Y176: 0 | Z176: 0 | AA176: 0 | AB176: 0 | AC176: 0 | AD176: 0 | AE176: 0 | AF176: 0 | AG176: 0 | AH176: 0 | AI176: 0 | AJ176: 0 | AK176: 0 | AL176: 0 | AM176: 0 | AN176: 0 | AO176: 0 | AP176: 0 | AQ176: 0 | AR176: 0 | AS176: 0 | AT176: 0 | AU176: 0 | AV176: =SUMIF($AX$26:$CB$26,Betrachtungszeit_Heizung,AX176:CB176) -> 0 | AX176: =$D176 -> 0 | AY176: 0 | AZ176: 0 | BA176: 0 | BB176: 0 | BC176: 0 | BD176: 0 | BE176: 0 | BF176: 0 | BG176: 0 | BH176: 0 | BI176: 0 | BJ176: 0 | BK176: 0 | BL176: 0 | BM176: 0 | BN176: 0 | BO176: 0 | BP176: 0 | BQ176: 0 | BR176: 0 | BS176: 0 | BT176: 0 | BU176: 0 | BV176: 0 | BW176: 0 | BX176: 0 | BY176: 0 | BZ176: 0 | CA176: 0 | CB176: 0 | CE176: HLKKSE-Ingenieur | CG176: 1 | CH176: 1 | CI176: 1 | CJ176: 1 | CK176: 1 | CL176: 1 | CM176: 1 | CN176: 1 | CO176: 1 | CP176: 1 | CQ176: 1 | CR176: 1 | CS176: 1 | CT176: 0 | CU176: 0 | CV176: 0
B177: Bauingenieur | E177: 25 | K177: 25 | L177: 0 | M177: 0 | N177: 0 | P177: Bauingenieur | Q177: 0 | R177: =IF(Betrachtungszeit_Heizung<R$26,0,IF(AND(Q$26<>0,Q$26/($K177)=INT(Q$26/($K177))),$D177,0)) -> 0 | S177: 0 | T177: 0 | U177: 0 | V177: 0 | W177: 0 | X177: 0 | Y177: 0 | Z177: 0 | AA177: 0 | AB177: 0 | AC177: 0 | AD177: 0 | AE177: 0 | AF177: 0 | AG177: 0 | AH177: 0 | AI177: 0 | AJ177: 0 | AK177: 0 | AL177: 0 | AM177: 0 | AN177: 0 | AO177: 0 | AP177: 0 | AQ177: 0 | AR177: 0 | AS177: 0 | AT177: 0 | AU177: 0 | AV177: 0 | AX177: 0 | AY177: 0 | AZ177: 0 | BA177: 0 | BB177: 0 | BC177: 0 | BD177: 0 | BE177: 0 | BF177: 0 | BG177: 0 | BH177: 0 | BI177: 0 | BJ177: 0 | BK177: 0 | BL177: 0 | BM177: 0 | BN177: 0 | BO177: 0 | BP177: 0 | BQ177: 0 | BR177: 0 | BS177: 0 | BT177: 0 | BU177: 0 | BV177: 0 | BW177: 0 | BX177: 0 | BY177: 0 | BZ177: 0 | CA177: 0 | CB177: 0 | CE177: Bauingenieur | CG177: 1 | CH177: 1 | CI177: 1 | CJ177: 1 | CK177: 1 | CL177: 1 | CM177: 1 | CN177: 1 | CO177: 1 | CP177: 1 | CQ177: 1 | CR177: 1 | CS177: 1 | CT177: 0 | CU177: 0 | CV177: 0
B178: Eigenleistungen | E178: 25 | K178: 25 | L178: 0 | M178: 0 | N178: 0 | P178: Eigenleistungen | Q178: 0 | R178: =IF(Betrachtungszeit_Heizung<R$26,0,IF(AND(Q$26<>0,Q$26/($K178)=INT(Q$26/($K178))),$D178,0)) -> 0 | S178: 0 | T178: 0 | U178: 0 | V178: 0 | W178: 0 | X178: 0 | Y178: 0 | Z178: 0 | AA178: 0 | AB178: 0 | AC178: 0 | AD178: 0 | AE178: 0 | AF178: 0 | AG178: 0 | AH178: 0 | AI178: 0 | AJ178: 0 | AK178: 0 | AL178: 0 | AM178: 0 | AN178: 0 | AO178: 0 | AP178: 0 | AQ178: 0 | AR178: 0 | AS178: 0 | AT178: 0 | AU178: 0 | AV178: 0 | AX178: 0 | AY178: 0 | AZ178: 0 | BA178: 0 | BB178: 0 | BC178: 0 | BD178: 0 | BE178: 0 | BF178: 0 | BG178: 0 | BH178: 0 | BI178: 0 | BJ178: 0 | BK178: 0 | BL178: 0 | BM178: 0 | BN178: 0 | BO178: 0 | BP178: 0 | BQ178: 0 | BR178: 0 | BS178: 0 | BT178: 0 | BU178: 0 | BV178: 0 | BW178: 0 | BX178: 0 | BY178: 0 | BZ178: 0 | CA178: 0 | CB178: 0 | CE178: Eigenleistungen | CG178: 1 | CH178: 1 | CI178: 1 | CJ178: 1 | CK178: 1 | CL178: 1 | CM178: 1 | CN178: 1 | CO178: 1 | CP178: 1 | CQ178: 1 | CR178: 1 | CS178: 1 | CT178: 0 | CU178: 0 | CV178: 0
B179: Geologe, Akustiker, Bauphysiker | E179: 25 | K179: 25 | L179: 0 | M179: 0 | N179: 0 | P179: Geologe, Akustiker, Bauphysiker | Q179: 0 | R179: =IF(Betrachtungszeit_Heizung<R$26,0,IF(AND(Q$26<>0,Q$26/($K179)=INT(Q$26/($K179))),$D179,0)) -> 0 | S179: 0 | T179: 0 | U179: 0 | V179: 0 | W179: 0 | X179: 0 | Y179: 0 | Z179: 0 | AA179: 0 | AB179: 0 | AC179: 0 | AD179: 0 | AE179: 0 | AF179: 0 | AG179: 0 | AH179: 0 | AI179: 0 | AJ179: 0 | AK179: 0 | AL179: 0 | AM179: 0 | AN179: 0 | AO179: 0 | AP179: 0 | AQ179: 0 | AR179: 0 | AS179: 0 | AT179: 0 | AU179: 0 | AV179: 0 | AX179: 0 | AY179: 0 | AZ179: 0 | BA179: 0 | BB179: 0 | BC179: 0 | BD179: 0 | BE179: 0 | BF179: 0 | BG179: 0 | BH179: 0 | BI179: 0 | BJ179: 0 | BK179: 0 | BL179: 0 | BM179: 0 | BN179: 0 | BO179: 0 | BP179: 0 | BQ179: 0 | BR179: 0 | BS179: 0 | BT179: 0 | BU179: 0 | BV179: 0 | BW179: 0 | BX179: 0 | BY179: 0 | BZ179: 0 | CA179: 0 | CB179: 0 | CE179: Geologe, Akustiker, Bauphysiker | CG179: 1 | CH179: 1 | CI179: 1 | CJ179: 1 | CK179: 1 | CL179: 1 | CM179: 1 | CN179: 1 | CO179: 1 | CP179: 1 | CQ179: 1 | CR179: 1 | CS179: 1 | CT179: 0 | CU179: 0 | CV179: 0
B180: Bewilligungen | E180: 25 | K180: 25 | L180: 0 | M180: 0 | N180: 0 | P180: Bewilligungen | Q180: 0 | R180: =IF(Betrachtungszeit_Heizung<R$26,0,IF(AND(Q$26<>0,Q$26/($K180)=INT(Q$26/($K180))),$D180,0)) -> 0 | S180: 0 | T180: 0 | U180: 0 | V180: 0 | W180: 0 | X180: 0 | Y180: 0 | Z180: 0 | AA180: 0 | AB180: 0 | AC180: 0 | AD180: 0 | AE180: 0 | AF180: 0 | AG180: 0 | AH180: 0 | AI180: 0 | AJ180: 0 | AK180: 0 | AL180: 0 | AM180: 0 | AN180: 0 | AO180: 0 | AP180: 0 | AQ180: 0 | AR180: 0 | AS180: 0 | AT180: 0 | AU180: 0 | AV180: 0 | AX180: 0 | AY180: 0 | AZ180: 0 | BA180: 0 | BB180: 0 | BC180: 0 | BD180: 0 | BE180: 0 | BF180: 0 | BG180: 0 | BH180: 0 | BI180: 0 | BJ180: 0 | BK180: 0 | BL180: 0 | BM180: 0 | BN180: 0 | BO180: 0 | BP180: 0 | BQ180: 0 | BR180: 0 | BS180: 0 | BT180: 0 | BU180: 0 | BV180: 0 | BW180: 0 | BX180: 0 | BY180: 0 | BZ180: 0 | CA180: 0 | CB180: 0 | CE180: Bewilligungen | CG180: 1 | CH180: 1 | CI180: 1 | CJ180: 1 | CK180: 1 | CL180: 1 | CM180: 1 | CN180: 1 | CO180: 1 | CP180: 1 | CQ180: 1 | CR180: 1 | CS180: 1 | CT180: 0 | CU180: 0 | CV180: 0
B181: Repro, Plot, Kopien, Spesen | E181: 25 | K181: 25 | L181: 0 | M181: 0 | N181: 0 | P181: Repro, Plot, Kopien, Spesen | Q181: 0 | R181: =IF(Betrachtungszeit_Heizung<R$26,0,IF(AND(Q$26<>0,Q$26/($K181)=INT(Q$26/($K181))),$D181,0)) -> 0 | S181: 0 | T181: 0 | U181: 0 | V181: 0 | W181: 0 | X181: 0 | Y181: 0 | Z181: 0 | AA181: 0 | AB181: 0 | AC181: 0 | AD181: 0 | AE181: 0 | AF181: 0 | AG181: 0 | AH181: 0 | AI181: 0 | AJ181: 0 | AK181: 0 | AL181: 0 | AM181: 0 | AN181: 0 | AO181: 0 | AP181: 0 | AQ181: 0 | AR181: 0 | AS181: 0 | AT181: 0 | AU181: 0 | AV181: 0 | AX181: 0 | AY181: 0 | AZ181: 0 | BA181: 0 | BB181: 0 | BC181: 0 | BD181: 0 | BE181: 0 | BF181: 0 | BG181: 0 | BH181: 0 | BI181: 0 | BJ181: 0 | BK181: 0 | BL181: 0 | BM181: 0 | BN181: 0 | BO181: 0 | BP181: 0 | BQ181: 0 | BR181: 0 | BS181: 0 | BT181: 0 | BU181: 0 | BV181: 0 | BW181: 0 | BX181: 0 | BY181: 0 | BZ181: 0 | CA181: 0 | CB181: 0 | CE181: Repro, Plot, Kopien, Spesen | CG181: 1 | CH181: 1 | CI181: 1 | CJ181: 1 | CK181: 1 | CL181: 1 | CM181: 1 | CN181: 1 | CO181: 1 | CP181: 1 | CQ181: 1 | CR181: 1 | CS181: 1 | CT181: 0 | CU181: 0 | CV181: 0
B182: QS (Planung, Ausführung) | E182: 25 | K182: 25 | L182: 0 | M182: 0 | N182: 0 | P182: QS (Planung, Ausführung) | Q182: 0 | R182: =IF(Betrachtungszeit_Heizung<R$26,0,IF(AND(Q$26<>0,Q$26/($K182)=INT(Q$26/($K182))),$D182,0)) -> 0 | S182: 0 | T182: 0 | U182: 0 | V182: 0 | W182: 0 | X182: 0 | Y182: 0 | Z182: 0 | AA182: 0 | AB182: 0 | AC182: 0 | AD182: 0 | AE182: 0 | AF182: 0 | AG182: 0 | AH182: 0 | AI182: 0 | AJ182: 0 | AK182: 0 | AL182: 0 | AM182: 0 | AN182: 0 | AO182: 0 | AP182: 0 | AQ182: 0 | AR182: 0 | AS182: 0 | AT182: 0 | AU182: 0 | AV182: 0 | AX182: 0 | AY182: 0 | AZ182: 0 | BA182: 0 | BB182: 0 | BC182: 0 | BD182: 0 | BE182: 0 | BF182: 0 | BG182: 0 | BH182: 0 | BI182: 0 | BJ182: 0 | BK182: 0 | BL182: 0 | BM182: 0 | BN182: 0 | BO182: 0 | BP182: 0 | BQ182: 0 | BR182: 0 | BS182: 0 | BT182: 0 | BU182: 0 | BV182: 0 | BW182: 0 | BX182: 0 | BY182: 0 | BZ182: 0 | CA182: 0 | CB182: 0 | CE182: QS (Planung, Ausführung) | CG182: 1 | CH182: 1 | CI182: 1 | CJ182: 1 | CK182: 1 | CL182: 1 | CM182: 1 | CN182: 1 | CO182: 1 | CP182: 1 | CQ182: 1 | CR182: 1 | CS182: 1 | CT182: 0 | CU182: 0 | CV182: 0
B183: BO nach Inbetriebnahme | E183: 25 | K183: 25 | L183: 0 | M183: 0 | N183: 0 | P183: BO nach Inbetriebnahme | Q183: 0 | R183: =IF(Betrachtungszeit_Heizung<R$26,0,IF(AND(Q$26<>0,Q$26/($K183)=INT(Q$26/($K183))),$D183,0)) -> 0 | S183: 0 | T183: 0 | U183: 0 | V183: 0 | W183: 0 | X183: 0 | Y183: 0 | Z183: 0 | AA183: 0 | AB183: 0 | AC183: 0 | AD183: 0 | AE183: 0 | AF183: 0 | AG183: 0 | AH183: 0 | AI183: 0 | AJ183: 0 | AK183: 0 | AL183: 0 | AM183: 0 | AN183: 0 | AO183: 0 | AP183: 0 | AQ183: 0 | AR183: 0 | AS183: 0 | AT183: 0 | AU183: 0 | AV183: 0 | AX183: 0 | AY183: 0 | AZ183: 0 | BA183: 0 | BB183: 0 | BC183: 0 | BD183: 0 | BE183: 0 | BF183: 0 | BG183: 0 | BH183: 0 | BI183: 0 | BJ183: 0 | BK183: 0 | BL183: 0 | BM183: 0 | BN183: 0 | BO183: 0 | BP183: 0 | BQ183: 0 | BR183: 0 | BS183: 0 | BT183: 0 | BU183: 0 | BV183: 0 | BW183: 0 | BX183: 0 | BY183: 0 | BZ183: 0 | CA183: 0 | CB183: 0 | CE183: BO nach Inbetriebnahme | CG183: 1 | CH183: 1 | CI183: 1 | CJ183: 1 | CK183: 1 | CL183: 1 | CM183: 1 | CN183: 1 | CO183: 1 | CP183: 1 | CQ183: 1 | CR183: 1 | CS183: 1 | CT183: 0 | CU183: 0 | CV183: 0
B184: BO periodisch alle 5 Jahre | E184: 5 | K184: 5 | L184: 0 | M184: 0 | N184: 0 | P184: BO periodisch alle 5 Jahre | Q184: 0 | R184: =IF(Betrachtungszeit_Heizung<R$26,0,IF(AND(Q$26<>0,Q$26/($K184)=INT(Q$26/($K184))),$D184,0)) -> 0 | S184: 0 | T184: 0 | U184: 0 | V184: 0 | W184: 0 | X184: 0 | Y184: 0 | Z184: 0 | AA184: 0 | AB184: 0 | AC184: 0 | AD184: 0 | AE184: 0 | AF184: 0 | AG184: 0 | AH184: 0 | AI184: 0 | AJ184: 0 | AK184: 0 | AL184: 0 | AM184: 0 | AN184: 0 | AO184: 0 | AP184: 0 | AQ184: 0 | AR184: 0 | AS184: 0 | AT184: 0 | AU184: 0 | AV184: 0 | AX184: 0 | AY184: 0 | AZ184: 0 | BA184: 0 | BB184: 0 | BC184: 0 | BD184: 0 | BE184: 0 | BF184: 0 | BG184: 0 | BH184: 0 | BI184: 0 | BJ184: 0 | BK184: 0 | BL184: 0 | BM184: 0 | BN184: 0 | BO184: 0 | BP184: 0 | BQ184: 0 | BR184: 0 | BS184: 0 | BT184: 0 | BU184: 0 | BV184: 0 | BW184: 0 | BX184: 0 | BY184: 0 | BZ184: 0 | CA184: 0 | CB184: 0 | CE184: BO periodisch alle 5 Jahre | CG184: 1 | CH184: 1 | CI184: 1 | CJ184: 1 | CK184: 1 | CL184: 1 | CM184: 1 | CN184: 1 | CO184: 1 | CP184: 1 | CQ184: 1 | CR184: 1 | CS184: 1 | CT184: 0 | CU184: 0 | CV184: 0
B185: Weiteres | E185: 30 | K185: =IF(ISNUMBER(F185),F185,IF(ISNUMBER(E185),E185,0)) -> 30 | L185: 0 | M185: 0 | N185: 0 | P185: Weiteres | Q185: 0 | R185: =IF(Betrachtungszeit_Heizung<R$26,0,IF(AND(Q$26<>0,Q$26/($K185)=INT(Q$26/($K185))),$D185,0)) -> 0 | S185: 0 | T185: 0 | U185: 0 | V185: 0 | W185: 0 | X185: 0 | Y185: 0 | Z185: 0 | AA185: 0 | AB185: 0 | AC185: 0 | AD185: 0 | AE185: 0 | AF185: 0 | AG185: 0 | AH185: 0 | AI185: 0 | AJ185: 0 | AK185: 0 | AL185: 0 | AM185: 0 | AN185: 0 | AO185: 0 | AP185: 0 | AQ185: 0 | AR185: 0 | AS185: 0 | AT185: 0 | AU185: 0 | AV185: 0 | AX185: 0 | AY185: 0 | AZ185: 0 | BA185: 0 | BB185: 0 | BC185: 0 | BD185: 0 | BE185: 0 | BF185: 0 | BG185: 0 | BH185: 0 | BI185: 0 | BJ185: 0 | BK185: 0 | BL185: 0 | BM185: 0 | BN185: 0 | BO185: 0 | BP185: 0 | BQ185: 0 | BR185: 0 | BS185: 0 | BT185: 0 | BU185: 0 | BV185: 0 | BW185: 0 | BX185: 0 | BY185: 0 | BZ185: 0 | CA185: 0 | CB185: 0 | CE185: Weiteres | CG185: 1 | CH185: 1 | CI185: 1 | CJ185: 1 | CK185: 1 | CL185: 1 | CM185: 1 | CN185: 1 | CO185: 1 | CP185: 1 | CQ185: 1 | CR185: 1 | CS185: 1 | CT185: 0 | CU185: 0 | CV185: 0
B186: Übersicht
B187: =B26 -> 1. Wärmequelle Baumeister | D187: =SUM(D27:D35) -> 0
B188: =B36 -> 2. Wärmequelle Technisch | D188: =SUM(D37:D48) -> 0
B189: =B49 -> 3. Energiezulieferung | D189: =SUM(D50:D58) -> 0
B190: =B59 -> 4. Wärmeerzeugung | D190: =SUM(D60:D67) -> 0
B191: =B68 -> 5. Kaminanlage | D191: =SUM(D69:D73) -> 0
B192: =B74 -> 6. Wärmeverteilung | D192: =SUM(D75:D81) -> 0
B193: =B82 -> 7. Wärmeabgabe | D193: =SUM(D83:D91) -> 0
B194: =B92 -> 8. Sicherheit | D194: =SUM(D93:D97) -> 0
B195: =B98 -> 9. Sanitär | D195: =SUM(D99:D106) -> 0
B196: =B107 -> 10. Lüftung | D196: =SUM(D108:D112) -> 0
B197: =B113 -> 11. Metallbauarbeiten | D197: =SUM(D114:D118) -> 0
B198: =B119 -> 12. Bauliches Zentrale | D198: =SUM(D120:D125) -> 0
B199: =B126 -> 13. Wärmeverbund Baumeister | D199: =SUM(D127:D129) -> 0
B200: =B130 -> 14. Wärmeverbund Leitungen | D200: =SUM(D131:D138) -> 0
B201: =B139 -> 15. MSRL | D201: =SUM(D140:D143) -> 0
B202: =B144 -> 16. Elektro | D202: =SUM(D145:D154) -> 0
B203: =B155 -> 17. Baumeister | D203: =SUM(D156:D165) -> 0
B204: =B166 -> 18. Baunebenkosten | D204: =SUM(D167:D171) -> 0
... 112 more rows

Sheet Heizung_V2
B1: DATENEINGABE HEIZUNG/WÄRMEERZEUGUNG
B3: Angaben des Anbieters (mit Angebot abzugeben)
B5: Variante | C5: V2
B6: Variantenbeschreibung
A7: K | B7: Wärmeerzeuger 1 | C7: BITTE WÄHLEN | D7: =IF(OR(C13=3,C13=1),"VBE erlaubt keine fossilen Wärmeerzeugungssysteme (siehe auch Kommentar)","") -> 
B8: =IF(C12=9,"Kollektorfläche","Heizleistung") -> Heizleistung | D8: =IF(C12=9,"m2","kW") -> kW
A9: K | B9: Wärmeabgabe (Nutzenergie) | D9: MWh/a
A10: K | B10: =VLOOKUP(C12,$C$279:$F$293,4,0) -> Wirkungsgrad/Jahresarbeitszahl JAZ | D10: =IF(C13=0,"% / -",IF(C13=14,"","%")) -> % / - | E10: =IF(AND(C13=14,C10>7),"JAZ > 7, bitte prüfen",IF(AND(B10="Wirkungsgrad",C10<>"",OR(C10>100,C10<80)),"Wirkungsgrad < 80% oder > 100%, bitte prüfen","")) -> 
B11: ="Endenergieverbrauch ("&VLOOKUP(C12,$C$279:$E$293,3,0)&")" -> Endenergieverbrauch (Energieträger) | C11: =IFERROR(IF(C13=14,C9/C10,C9/C10%),0) -> 0 | D11: MWh/a
B12: Wärmeversorgung Nummer | C12: =IF(ISBLANK(C7),0,VLOOKUP(C7,$B$279:$G$293,2,0)) -> 0
B13: Energieträger Nummer | C13: =IF(ISBLANK(C7),0,VLOOKUP(C7,$B$279:$F$293,3,0)) -> 0
A15: K | B15: Wärmeerzeuger 2 | C15: BITTE WÄHLEN | D15: =IF(OR(C21=3,C21=1),"VBE erlaubt keine fossilen Wärmeerzeugungssysteme (s. auch Komm. unter Wärmeerz. 1)","") -> 
B16: =IF(C20=9,"Kollektorfläche","Heizleistung") -> Heizleistung | D16: =IF(C20=9,"m2","kW") -> kW
A17: K | B17: Wärmeabgabe (Nutzenergie) | D17: MWh/a
A18: K | B18: =VLOOKUP(C20,$C$279:$F$293,4,0) -> Wirkungsgrad/Jahresarbeitszahl JAZ | D18: =IF(C21=0,"% / -",IF(C21=14,"","%")) -> % / - | E18: =IF(AND(C21=14,C18>7),"JAZ > 7, bitte prüfen",IF(AND(B18="Wirkungsgrad",C18<>"",OR(C18>100,C18<80)),"Wirkungsgrad < 80% oder > 100%, bitte prüfen","")) -> 
B19: ="Endenergieverbrauch ("&VLOOKUP(C20,$C$279:$E$293,3,0)&")" -> Endenergieverbrauch (Energieträger) | C19: =IFERROR(IF(C21=14,C17/C18,C17/C18%),0) -> 0 | D19: MWh/a
B20: Wärmeversorgung Nummer | C20: =IF(ISBLANK(C15),0,VLOOKUP(C15,$B$279:$F$293,2,0)) -> 0 | CE20: Darstellung der Katergorie der Investitionskosten abhängig vom Wärmeerzeuger
B21: Energieträger Nummer | C21: =IF(ISBLANK(C15),0,VLOOKUP(C15,$B$279:$F$293,3,0)) -> 0 | CF21: BITTE WÄHLEN | CG21: Seewasser-Wärmepumpe | CH21: Grundwasser-Wärmepumpe | CI21: Erdsonden-Wärmepumpe | CJ21: Luft-Wärmepumpe | CK21: Andere Wärmepumpe (z.B. Abwärme) | CL21: Fernwärme | CM21: Pellets | CN21: Holzschnitzel | CO21: Solarthermie | CP21: Direkte Abwärmenutzung | CQ21: Biogas | CR21: Erdgas | CS21: Heizöl
B23: Förderbeiträge total | D23: CHF
B24: Investitionskosten detailliert eingeben? | C24: nein | K24: Rechenwerte | P24: Berechnungen | AX24: Berechnungen | CE24: Anzeige
A25: K | B25: Investitionskosten (Wärmeerzeuger 1 und 2) | C25: Beschreibung | D25: Investition [CHF] | E25: Lebensdauer [a] | F25: Default überschreiben | G25: Wartung [% Inv.] | H25: Default überschreiben [% Inv. oder CHF/a] | K25: Lebens- dauer [a] | L25: Wartung [% Inv.] | M25: Wartung [CHF/a] | N25: Jährliche Ab-schreibung [CHF/a] | Q25: (Re)Investition in CHF im Jahr… | AV25: Restwert am Ende der Betrachtungszeit | AX25: Restwert nach Abschreibung am Ende des Jahres… (Berücksichtigt Reinvestition nach Ablauf der Lebensdauer) | CF25: 0 | CG25: 1 | CH25: 2 | CI25: 3 | CJ25: 4 | CK25: 5 | CL25: 6 | CM25: 7 | CN25: 8 | CO25: 9 | CP25: 10 | CQ25: 11 | CR25: 12 | CS25: 13 | CT25: Zeile für Wärmerzeuger 1 | CU25: Zeile für Wärmerzeuger 2 | CV25: Zeile einblenden (1=ja)
A26: K | B26: 1. Wärmequelle Baumeister | P26: =B26 -> 1. Wärmequelle Baumeister | Q26: 0 | R26: 1 | S26: 2 | T26: 3 | U26: 4 | V26: 5 | W26: 6 | X26: 7 | Y26: 8 | Z26: 9 | AA26: 10 | AB26: 11 | AC26: 12 | AD26: 13 | AE26: 14 | AF26: 15 | AG26: 16 | AH26: 17 | AI26: 18 | AJ26: 19 | AK26: 20 | AL26: 21 | AM26: 22 | AN26: 23 | AO26: 24 | AP26: 25 | AQ26: 26 | AR26: 27 | AS26: 28 | AT26: 29 | AU26: 30 | AX26: 0 | AY26: 1 | AZ26: 2 | BA26: 3 | BB26: 4 | BC26: 5 | BD26: 6 | BE26: 7 | BF26: 8 | BG26: 9 | BH26: 10 | BI26: 11 | BJ26: 12 | BK26: 13 | BL26: 14 | BM26: 15 | BN26: 16 | BO26: 17 | BP26: 18 | BQ26: 19 | BR26: 20 | BS26: 21 | BT26: 22 | BU26: 23 | BV26: 24 | BW26: 25 | BX26: 26 | BY26: 27 | BZ26: 28 | CA26: 29 | CB26: 30 | CE26: =B26 -> 1. Wärmequelle Baumeister | CF26: 1 | CG26: 1 | CH26: 1 | CI26: 1 | CJ26: 1 | CK26: 1 | CL26: 1 | CM26: 1 | CN26: 1 | CO26: 1 | CP26: 1 | CQ26: 1 | CR26: 1 | CS26: 1 | CT26: =SUMIF($CF$25:$CS$25,$C$12,CF26:CS26) -> 1 | CU26: =SUMIF($CF$25:$CS$25,$C$20,CF26:CS26) -> 1 | CV26: =IF(CT26+CU26>0,1,0) -> 1
B27: Grundwasserbohrung | E27: 30 | G27: 0.015 | I27: [% Inv.] | K27: =IF(ISNUMBER(F27),F27,IF(ISNUMBER(E27),E27,0)) -> 30 | L27: =IF(ISNUMBER(H27),IF(I27=$D$332,IFERROR(H27/D27,"-"),H27/100),IF(ISNUMBER(G27),G27,0)) -> 0.015 | M27: =IF(AND(ISNUMBER(H27),I27=$D$332),H27,L27*D27) -> 0 | N27: =1/K27*D27 -> 0 | P27: Grundwasserbohrung | Q27: =D27 -> 0 | R27: =IF(Betrachtungszeit_Heizung<R$26,0,IF(AND(Q$26<>0,Q$26/($K27)=INT(Q$26/($K27))),$D27,0)) -> 0 | S27: 0 | T27: 0 | U27: 0 | V27: 0 | W27: 0 | X27: 0 | Y27: 0 | Z27: 0 | AA27: 0 | AB27: 0 | AC27: 0 | AD27: 0 | AE27: 0 | AF27: 0 | AG27: 0 | AH27: 0 | AI27: 0 | AJ27: 0 | AK27: 0 | AL27: 0 | AM27: 0 | AN27: 0 | AO27: 0 | AP27: 0 | AQ27: 0 | AR27: 0 | AS27: 0 | AT27: 0 | AU27: 0 | AV27: =SUMIF($AX$26:$CB$26,Betrachtungszeit_Heizung,AX27:CB27) -> 0 | AX27: =$D27 -> 0 | AY27: =AX27-$N27+R27 -> 0 | AZ27: =AY27-$N27+S27 -> 0 | BA27: 0 | BB27: 0 | BC27: 0 | BD27: 0 | BE27: 0 | BF27: 0 | BG27: 0 | BH27: 0 | BI27: 0 | BJ27: 0 | BK27: 0 | BL27: 0 | BM27: 0 | BN27: 0 | BO27: 0 | BP27: 0 | BQ27: 0 | BR27: 0 | BS27: 0 | BT27: 0 | BU27: 0 | BV27: 0 | BW27: 0 | BX27: 0 | BY27: 0 | BZ27: 0 | CA27: 0 | CB27: 0 | CE27: Grundwasserbohrung | CH27: 1 | CT27: 0 | CU27: 0 | CV27: =IF(CT27+CU27>0,1,0) -> 0
B28: Wasserfassungsbau Gewässer (inkl. Rückgabe) | E28: 30 | G28: 0.02 | I28: [% Inv.] | K28: =IF(ISNUMBER(F28),F28,IF(ISNUMBER(E28),E28,0)) -> 30 | L28: =IF(ISNUMBER(H28),IF(I28=$D$332,IFERROR(H28/D28,"-"),H28/100),IF(ISNUMBER(G28),G28,0)) -> 0.02 | M28: =IF(AND(ISNUMBER(H28),I28=$D$332),H28,L28*D28) -> 0 | N28: =1/K28*D28 -> 0 | P28: Wasserfassungsbau Gewässer (inkl. Rückgabe) | Q28: =D28 -> 0 | R28: 0 | S28: 0 | T28: 0 | U28: 0 | V28: 0 | W28: 0 | X28: 0 | Y28: 0 | Z28: 0 | AA28: 0 | AB28: 0 | AC28: 0 | AD28: 0 | AE28: 0 | AF28: 0 | AG28: 0 | AH28: 0 | AI28: 0 | AJ28: 0 | AK28: 0 | AL28: 0 | AM28: 0 | AN28: 0 | AO28: 0 | AP28: 0 | AQ28: 0 | AR28: 0 | AS28: 0 | AT28: 0 | AU28: 0 | AV28: 0 | AX28: =$D28 -> 0 | AY28: =AX28-$N28+R28 -> 0 | AZ28: 0 | BA28: 0 | BB28: 0 | BC28: 0 | BD28: 0 | BE28: 0 | BF28: 0 | BG28: 0 | BH28: 0 | BI28: 0 | BJ28: 0 | BK28: 0 | BL28: 0 | BM28: 0 | BN28: 0 | BO28: 0 | BP28: 0 | BQ28: 0 | BR28: 0 | BS28: 0 | BT28: 0 | BU28: 0 | BV28: 0 | BW28: 0 | BX28: 0 | BY28: 0 | BZ28: 0 | CA28: 0 | CB28: 0 | CE28: Wasserfassungsbau Gewässer (inkl. Rückgabe) | CG28: 1 | CT28: 0 | CU28: 0 | CV28: 0
B29: Versickerungsgalerie/-brunnen | E29: 30 | G29: 0.005 | I29: [% Inv.] | K29: 30 | L29: 0.005 | M29: 0 | N29: 0 | P29: Versickerungsgalerie/-brunnen | Q29: 0 | R29: 0 | S29: 0 | T29: 0 | U29: 0 | V29: 0 | W29: 0 | X29: 0 | Y29: 0 | Z29: 0 | AA29: 0 | AB29: 0 | AC29: 0 | AD29: 0 | AE29: 0 | AF29: 0 | AG29: 0 | AH29: 0 | AI29: 0 | AJ29: 0 | AK29: 0 | AL29: 0 | AM29: 0 | AN29: 0 | AO29: 0 | AP29: 0 | AQ29: 0 | AR29: 0 | AS29: 0 | AT29: 0 | AU29: 0 | AV29: 0 | AX29: 0 | AY29: 0 | AZ29: 0 | BA29: 0 | BB29: 0 | BC29: 0 | BD29: 0 | BE29: 0 | BF29: 0 | BG29: 0 | BH29: 0 | BI29: 0 | BJ29: 0 | BK29: 0 | BL29: 0 | BM29: 0 | BN29: 0 | BO29: 0 | BP29: 0 | BQ29: 0 | BR29: 0 | BS29: 0 | BT29: 0 | BU29: 0 | BV29: 0 | BW29: 0 | BX29: 0 | BY29: 0 | BZ29: 0 | CA29: 0 | CB29: 0 | CE29: Versickerungsgalerie/-brunnen | CH29: 1 | CT29: 0 | CU29: 0 | CV29: 0
B30: Graben Wasserfassung | E30: 30 | G30: 0.005 | I30: [% Inv.] | K30: 30 | L30: 0.005 | M30: 0 | N30: 0 | P30: Graben Wasserfassung | Q30: 0 | R30: 0 | S30: 0 | T30: 0 | U30: 0 | V30: 0 | W30: 0 | X30: 0 | Y30: 0 | Z30: 0 | AA30: 0 | AB30: 0 | AC30: 0 | AD30: 0 | AE30: 0 | AF30: 0 | AG30: 0 | AH30: 0 | AI30: 0 | AJ30: 0 | AK30: 0 | AL30: 0 | AM30: 0 | AN30: 0 | AO30: 0 | AP30: 0 | AQ30: 0 | AR30: 0 | AS30: 0 | AT30: 0 | AU30: 0 | AV30: 0 | AX30: 0 | AY30: 0 | AZ30: 0 | BA30: 0 | BB30: 0 | BC30: 0 | BD30: 0 | BE30: 0 | BF30: 0 | BG30: 0 | BH30: 0 | BI30: 0 | BJ30: 0 | BK30: 0 | BL30: 0 | BM30: 0 | BN30: 0 | BO30: 0 | BP30: 0 | BQ30: 0 | BR30: 0 | BS30: 0 | BT30: 0 | BU30: 0 | BV30: 0 | BW30: 0 | BX30: 0 | BY30: 0 | BZ30: 0 | CA30: 0 | CB30: 0 | CE30: Graben Wasserfassung | CG30: 1 | CH30: 1 | CT30: 0 | CU30: 0 | CV30: 0
B31: Graben Erdsondenanschluss | E31: 30 | G31: 0.005 | I31: [% Inv.] | K31: 30 | L31: 0.005 | M31: 0 | N31: 0 | P31: Graben Erdsondenanschluss | Q31: 0 | R31: 0 | S31: 0 | T31: 0 | U31: 0 | V31: 0 | W31: 0 | X31: 0 | Y31: 0 | Z31: 0 | AA31: 0 | AB31: 0 | AC31: 0 | AD31: 0 | AE31: 0 | AF31: 0 | AG31: 0 | AH31: 0 | AI31: 0 | AJ31: 0 | AK31: 0 | AL31: 0 | AM31: 0 | AN31: 0 | AO31: 0 | AP31: 0 | AQ31: 0 | AR31: 0 | AS31: 0 | AT31: 0 | AU31: 0 | AV31: 0 | AX31: 0 | AY31: 0 | AZ31: 0 | BA31: 0 | BB31: 0 | BC31: 0 | BD31: 0 | BE31: 0 | BF31: 0 | BG31: 0 | BH31: 0 | BI31: 0 | BJ31: 0 | BK31: 0 | BL31: 0 | BM31: 0 | BN31: 0 | BO31: 0 | BP31: 0 | BQ31: 0 | BR31: 0 | BS31: 0 | BT31: 0 | BU31: 0 | BV31: 0 | BW31: 0 | BX31: 0 | BY31: 0 | BZ31: 0 | CA31: 0 | CB31: 0 | CE31: Graben Erdsondenanschluss | CI31: 1 | CT31: 0 | CU31: 0 | CV31: 0
B32: Fundamente Rückkühler | E32: 30 | G32: 0.001 | I32: [% Inv.] | K32: 30 | L32: 0.001 | M32: 0 | N32: 0 | P32: Fundamente Rückkühler | Q32: 0 | R32: 0 | S32: 0 | T32: 0 | U32: 0 | V32: 0 | W32: 0 | X32: 0 | Y32: 0 | Z32: 0 | AA32: 0 | AB32: 0 | AC32: 0 | AD32: 0 | AE32: 0 | AF32: 0 | AG32: 0 | AH32: 0 | AI32: 0 | AJ32: 0 | AK32: 0 | AL32: 0 | AM32: 0 | AN32: 0 | AO32: 0 | AP32: 0 | AQ32: 0 | AR32: 0 | AS32: 0 | AT32: 0 | AU32: 0 | AV32: 0 | AX32: 0 | AY32: 0 | AZ32: 0 | BA32: 0 | BB32: 0 | BC32: 0 | BD32: 0 | BE32: 0 | BF32: 0 | BG32: 0 | BH32: 0 | BI32: 0 | BJ32: 0 | BK32: 0 | BL32: 0 | BM32: 0 | BN32: 0 | BO32: 0 | BP32: 0 | BQ32: 0 | BR32: 0 | BS32: 0 | BT32: 0 | BU32: 0 | BV32: 0 | BW32: 0 | BX32: 0 | BY32: 0 | BZ32: 0 | CA32: 0 | CB32: 0 | CE32: Fundamente Rückkühler | CI32: 1 | CT32: 0 | CU32: 0 | CV32: 0
B33: Tankraum | E33: 30 | G33: 0.015 | I33: [% Inv.] | K33: 30 | L33: 0.015 | M33: 0 | N33: 0 | P33: Tankraum | Q33: 0 | R33: 0 | S33: 0 | T33: 0 | U33: 0 | V33: 0 | W33: 0 | X33: 0 | Y33: 0 | Z33: 0 | AA33: 0 | AB33: 0 | AC33: 0 | AD33: 0 | AE33: 0 | AF33: 0 | AG33: 0 | AH33: 0 | AI33: 0 | AJ33: 0 | AK33: 0 | AL33: 0 | AM33: 0 | AN33: 0 | AO33: 0 | AP33: 0 | AQ33: 0 | AR33: 0 | AS33: 0 | AT33: 0 | AU33: 0 | AV33: 0 | AX33: 0 | AY33: 0 | AZ33: 0 | BA33: 0 | BB33: 0 | BC33: 0 | BD33: 0 | BE33: 0 | BF33: 0 | BG33: 0 | BH33: 0 | BI33: 0 | BJ33: 0 | BK33: 0 | BL33: 0 | BM33: 0 | BN33: 0 | BO33: 0 | BP33: 0 | BQ33: 0 | BR33: 0 | BS33: 0 | BT33: 0 | BU33: 0 | BV33: 0 | BW33: 0 | BX33: 0 | BY33: 0 | BZ33: 0 | CA33: 0 | CB33: 0 | CE33: Tankraum | CS33: 1 | CT33: 0 | CU33: 0 | CV33: 0
B34: Schnitzel-/Pelletsilo | E34: 30 | G34: 0.025 | I34: [% Inv.] | K34: 30 | L34: 0.025 | M34: 0 | N34: 0 | P34: Schnitzel-/Pelletsilo | Q34: 0 | R34: 0 | S34: 0 | T34: 0 | U34: 0 | V34: 0 | W34: 0 | X34: 0 | Y34: 0 | Z34: 0 | AA34: 0 | AB34: 0 | AC34: 0 | AD34: 0 | AE34: 0 | AF34: 0 | AG34: 0 | AH34: 0 | AI34: 0 | AJ34: 0 | AK34: 0 | AL34: 0 | AM34: 0 | AN34: 0 | AO34: 0 | AP34: 0 | AQ34: 0 | AR34: 0 | AS34: 0 | AT34: 0 | AU34: 0 | AV34: 0 | AX34: 0 | AY34: 0 | AZ34: 0 | BA34: 0 | BB34: 0 | BC34: 0 | BD34: 0 | BE34: 0 | BF34: 0 | BG34: 0 | BH34: 0 | BI34: 0 | BJ34: 0 | BK34: 0 | BL34: 0 | BM34: 0 | BN34: 0 | BO34: 0 | BP34: 0 | BQ34: 0 | BR34: 0 | BS34: 0 | BT34: 0 | BU34: 0 | BV34: 0 | BW34: 0 | BX34: 0 | BY34: 0 | BZ34: 0 | CA34: 0 | CB34: 0 | CE34: Schnitzel-/Pelletsilo | CM34: 1 | CN34: 1 | CT34: 0 | CU34: 0 | CV34: 0
B35: Weiteres | E35: 30 | G35: kein Default | I35: [% Inv.] | K35: 30 | L35: 0 | M35: 0 | N35: 0 | P35: Weiteres | Q35: 0 | R35: 0 | S35: 0 | T35: 0 | U35: 0 | V35: 0 | W35: 0 | X35: 0 | Y35: 0 | Z35: 0 | AA35: 0 | AB35: 0 | AC35: 0 | AD35: 0 | AE35: 0 | AF35: 0 | AG35: =IF(Betrachtungszeit_Heizung<AG$26,0,IF(AND(AF$26<>0,AF$26/($K35)=INT(AF$26/($K35))),$D35,0)) -> 0 | AH35: 0 | AI35: 0 | AJ35: 0 | AK35: 0 | AL35: 0 | AM35: 0 | AN35: 0 | AO35: 0 | AP35: 0 | AQ35: 0 | AR35: 0 | AS35: 0 | AT35: 0 | AU35: 0 | AV35: 0 | AX35: 0 | AY35: 0 | AZ35: 0 | BA35: 0 | BB35: 0 | BC35: 0 | BD35: 0 | BE35: 0 | BF35: 0 | BG35: 0 | BH35: 0 | BI35: 0 | BJ35: 0 | BK35: 0 | BL35: 0 | BM35: 0 | BN35: 0 | BO35: 0 | BP35: 0 | BQ35: 0 | BR35: 0 | BS35: 0 | BT35: 0 | BU35: 0 | BV35: 0 | BW35: =BV35-$N35+AP35 -> 0 | BX35: 0 | BY35: 0 | BZ35: 0 | CA35: 0 | CB35: 0 | CE35: Weiteres | CG35: 1 | CH35: 1 | CI35: 1 | CJ35: 1 | CK35: 1 | CL35: 1 | CM35: 1 | CN35: 1 | CO35: 1 | CP35: 1 | CQ35: 1 | CR35: 1 | CS35: 1 | CT35: 0 | CU35: 0 | CV35: 0
B36: 2. Wärmequelle Technisch | P36: 2. Wärmequelle Technisch | CE36: 2. Wärmequelle Technisch | CF36: 1 | CG36: 1 | CH36: 1 | CI36: 1 | CJ36: 1 | CK36: 1 | CL36: 1 | CM36: 1 | CN36: 1 | CO36: 1 | CP36: 1 | CQ36: 1 | CR36: 1 | CS36: 1 | CT36: 1 | CU36: 1 | CV36: 1
B37: Erdsonden inkl. Bohrung | E37: 50 | G37: 0.01 | I37: [% Inv.] | K37: 50 | L37: =IF(ISNUMBER(H37),IF(I37=$D$332,IFERROR(H37/D37,"-"),H37/100),IF(ISNUMBER(G37),G37,0)) -> 0.01 | M37: =IF(AND(ISNUMBER(H37),I37=$D$332),H37,L37*D37) -> 0 | N37: =1/K37*D37 -> 0 | P37: Erdsonden inkl. Bohrung | Q37: 0 | R37: =IF(Betrachtungszeit_Heizung<R$26,0,IF(AND(Q$26<>0,Q$26/($K37)=INT(Q$26/($K37))),$D37,0)) -> 0 | S37: 0 | T37: 0 | U37: 0 | V37: 0 | W37: 0 | X37: 0 | Y37: 0 | Z37: 0 | AA37: 0 | AB37: 0 | AC37: 0 | AD37: 0 | AE37: 0 | AF37: 0 | AG37: 0 | AH37: 0 | AI37: 0 | AJ37: 0 | AK37: 0 | AL37: 0 | AM37: 0 | AN37: 0 | AO37: 0 | AP37: 0 | AQ37: 0 | AR37: 0 | AS37: 0 | AT37: 0 | AU37: 0 | AV37: =SUMIF($AX$26:$CB$26,Betrachtungszeit_Heizung,AX37:CB37) -> 0 | AX37: =$D37 -> 0 | AY37: 0 | AZ37: 0 | BA37: 0 | BB37: 0 | BC37: 0 | BD37: 0 | BE37: 0 | BF37: 0 | BG37: 0 | BH37: 0 | BI37: 0 | BJ37: 0 | BK37: 0 | BL37: 0 | BM37: 0 | BN37: 0 | BO37: =BN37-$N37+AH37 -> 0 | BP37: 0 | BQ37: 0 | BR37: 0 | BS37: 0 | BT37: 0 | BU37: 0 | BV37: 0 | BW37: 0 | BX37: 0 | BY37: 0 | BZ37: 0 | CA37: 0 | CB37: 0 | CE37: Erdsonden inkl. Bohrung | CI37: 1 | CT37: 0 | CU37: 0 | CV37: 0
B38: Erdregister | E38: 30 | G38: 0.01 | I38: [% Inv.] | K38: 30 | L38: 0.01 | M38: 0 | N38: 0 | P38: Erdregister | Q38: 0 | R38: 0 | S38: 0 | T38: 0 | U38: 0 | V38: 0 | W38: 0 | X38: 0 | Y38: 0 | Z38: 0 | AA38: 0 | AB38: 0 | AC38: 0 | AD38: 0 | AE38: 0 | AF38: 0 | AG38: 0 | AH38: 0 | AI38: 0 | AJ38: 0 | AK38: 0 | AL38: 0 | AM38: 0 | AN38: 0 | AO38: 0 | AP38: 0 | AQ38: 0 | AR38: 0 | AS38: 0 | AT38: 0 | AU38: 0 | AV38: 0 | AX38: =$D38 -> 0 | AY38: 0 | AZ38: 0 | BA38: 0 | BB38: 0 | BC38: 0 | BD38: 0 | BE38: 0 | BF38: 0 | BG38: 0 | BH38: 0 | BI38: 0 | BJ38: 0 | BK38: 0 | BL38: 0 | BM38: 0 | BN38: 0 | BO38: 0 | BP38: 0 | BQ38: 0 | BR38: 0 | BS38: 0 | BT38: 0 | BU38: 0 | BV38: 0 | BW38: 0 | BX38: 0 | BY38: 0 | BZ38: 0 | CA38: 0 | CB38: 0 | CE38: Erdregister | CI38: 1 | CT38: 0 | CU38: 0 | CV38: 0
B39: Sonnenkollektoren | E39: 20 | G39: 0.035 | I39: [% Inv.] | K39: 20 | L39: 0.035 | M39: 0 | N39: 0 | P39: Sonnenkollektoren | Q39: 0 | R39: 0 | S39: 0 | T39: 0 | U39: 0 | V39: 0 | W39: 0 | X39: 0 | Y39: 0 | Z39: 0 | AA39: 0 | AB39: 0 | AC39: 0 | AD39: 0 | AE39: 0 | AF39: 0 | AG39: 0 | AH39: 0 | AI39: 0 | AJ39: 0 | AK39: 0 | AL39: 0 | AM39: 0 | AN39: 0 | AO39: 0 | AP39: 0 | AQ39: 0 | AR39: 0 | AS39: 0 | AT39: 0 | AU39: 0 | AV39: 0 | AX39: 0 | AY39: 0 | AZ39: 0 | BA39: 0 | BB39: 0 | BC39: 0 | BD39: 0 | BE39: 0 | BF39: 0 | BG39: 0 | BH39: 0 | BI39: 0 | BJ39: 0 | BK39: 0 | BL39: 0 | BM39: 0 | BN39: 0 | BO39: 0 | BP39: 0 | BQ39: 0 | BR39: 0 | BS39: 0 | BT39: 0 | BU39: 0 | BV39: 0 | BW39: 0 | BX39: 0 | BY39: 0 | BZ39: 0 | CA39: 0 | CB39: 0 | CE39: Sonnenkollektoren | CO39: 1 | CT39: 0 | CU39: 0 | CV39: 0
B40: Expansion | E40: 20 | G40: 0.035 | I40: [% Inv.] | K40: 20 | L40: 0.035 | M40: 0 | N40: 0 | P40: Expansion | Q40: 0 | R40: 0 | S40: 0 | T40: 0 | U40: 0 | V40: 0 | W40: 0 | X40: 0 | Y40: 0 | Z40: 0 | AA40: 0 | AB40: 0 | AC40: 0 | AD40: 0 | AE40: 0 | AF40: 0 | AG40: 0 | AH40: 0 | AI40: 0 | AJ40: 0 | AK40: 0 | AL40: 0 | AM40: 0 | AN40: 0 | AO40: 0 | AP40: 0 | AQ40: 0 | AR40: 0 | AS40: 0 | AT40: 0 | AU40: 0 | AV40: 0 | AX40: 0 | AY40: 0 | AZ40: 0 | BA40: 0 | BB40: 0 | BC40: 0 | BD40: 0 | BE40: 0 | BF40: 0 | BG40: 0 | BH40: 0 | BI40: 0 | BJ40: 0 | BK40: 0 | BL40: 0 | BM40: 0 | BN40: 0 | BO40: 0 | BP40: 0 | BQ40: 0 | BR40: 0 | BS40: 0 | BT40: 0 | BU40: 0 | BV40: 0 | BW40: 0 | BX40: 0 | BY40: 0 | BZ40: 0 | CA40: 0 | CB40: 0 | CE40: Expansion | CG40: 1 | CH40: 1 | CI40: 1 | CJ40: 1 | CK40: 1 | CL40: 1 | CM40: 1 | CN40: 1 | CO40: 1 | CP40: 1 | CQ40: 1 | CR40: 1 | CS40: 1 | CT40: 0 | CU40: 0 | CV40: 0
B41: Filteranlage | E41: 20 | G41: 0.03 | I41: [% Inv.] | K41: 20 | L41: 0.03 | M41: 0 | N41: 0 | P41: Filteranlage | Q41: 0 | R41: 0 | S41: 0 | T41: 0 | U41: 0 | V41: 0 | W41: 0 | X41: 0 | Y41: 0 | Z41: 0 | AA41: 0 | AB41: 0 | AC41: 0 | AD41: 0 | AE41: 0 | AF41: 0 | AG41: 0 | AH41: 0 | AI41: 0 | AJ41: 0 | AK41: 0 | AL41: 0 | AM41: 0 | AN41: 0 | AO41: 0 | AP41: 0 | AQ41: 0 | AR41: 0 | AS41: 0 | AT41: 0 | AU41: 0 | AV41: 0 | AX41: 0 | AY41: 0 | AZ41: 0 | BA41: 0 | BB41: 0 | BC41: 0 | BD41: 0 | BE41: 0 | BF41: 0 | BG41: 0 | BH41: 0 | BI41: 0 | BJ41: 0 | BK41: 0 | BL41: 0 | BM41: 0 | BN41: 0 | BO41: 0 | BP41: 0 | BQ41: 0 | BR41: 0 | BS41: 0 | BT41: 0 | BU41: 0 | BV41: 0 | BW41: 0 | BX41: 0 | BY41: 0 | BZ41: 0 | CA41: 0 | CB41: 0 | CE41: Filteranlage | CG41: 1 | CT41: 0 | CU41: 0 | CV41: 0
B42: Pumpenstation | E42: 20 | G42: 0.02 | I42: [% Inv.] | K42: 20 | L42: 0.02 | M42: 0 | N42: 0 | P42: Pumpenstation | Q42: 0 | R42: 0 | S42: 0 | T42: 0 | U42: 0 | V42: 0 | W42: 0 | X42: 0 | Y42: 0 | Z42: 0 | AA42: 0 | AB42: 0 | AC42: 0 | AD42: 0 | AE42: 0 | AF42: 0 | AG42: 0 | AH42: 0 | AI42: 0 | AJ42: 0 | AK42: 0 | AL42: 0 | AM42: 0 | AN42: 0 | AO42: 0 | AP42: 0 | AQ42: 0 | AR42: 0 | AS42: 0 | AT42: 0 | AU42: 0 | AV42: 0 | AX42: 0 | AY42: 0 | AZ42: 0 | BA42: 0 | BB42: 0 | BC42: 0 | BD42: 0 | BE42: 0 | BF42: 0 | BG42: 0 | BH42: 0 | BI42: 0 | BJ42: 0 | BK42: 0 | BL42: 0 | BM42: 0 | BN42: 0 | BO42: 0 | BP42: 0 | BQ42: 0 | BR42: 0 | BS42: 0 | BT42: 0 | BU42: 0 | BV42: 0 | BW42: 0 | BX42: 0 | BY42: 0 | BZ42: 0 | CA42: 0 | CB42: 0 | CE42: Pumpenstation | CG42: 1 | CH42: 1 | CI42: 1 | CJ42: 1 | CK42: 1 | CL42: 1 | CM42: 1 | CN42: 1 | CO42: 1 | CP42: 1 | CQ42: 1 | CR42: 1 | CS42: 1 | CT42: 0 | CU42: 0 | CV42: 0
B43: Systemtrennung | E43: 20 | G43: 0.03 | I43: [% Inv.] | K43: 20 | L43: 0.03 | M43: 0 | N43: 0 | P43: Systemtrennung | Q43: 0 | R43: 0 | S43: 0 | T43: 0 | U43: 0 | V43: 0 | W43: 0 | X43: 0 | Y43: 0 | Z43: 0 | AA43: 0 | AB43: 0 | AC43: 0 | AD43: 0 | AE43: 0 | AF43: 0 | AG43: 0 | AH43: 0 | AI43: 0 | AJ43: 0 | AK43: 0 | AL43: 0 | AM43: 0 | AN43: 0 | AO43: 0 | AP43: 0 | AQ43: 0 | AR43: 0 | AS43: 0 | AT43: 0 | AU43: 0 | AV43: 0 | AX43: 0 | AY43: 0 | AZ43: 0 | BA43: 0 | BB43: 0 | BC43: 0 | BD43: 0 | BE43: 0 | BF43: 0 | BG43: 0 | BH43: 0 | BI43: 0 | BJ43: 0 | BK43: 0 | BL43: 0 | BM43: 0 | BN43: 0 | BO43: 0 | BP43: 0 | BQ43: 0 | BR43: 0 | BS43: 0 | BT43: 0 | BU43: 0 | BV43: 0 | BW43: 0 | BX43: 0 | BY43: 0 | BZ43: 0 | CA43: 0 | CB43: 0 | CE43: Systemtrennung | CG43: 1 | CH43: 1 | CI43: 1 | CJ43: 1 | CK43: 1 | CL43: 1 | CM43: 1 | CN43: 1 | CO43: 1 | CP43: 1 | CQ43: 1 | CR43: 1 | CS43: 1 | CT43: 0 | CU43: 0 | CV43: 0
B44: Rückkühler | E44: 20 | G44: 0.03 | I44: [% Inv.] | K44: 20 | L44: 0.03 | M44: 0 | N44: 0 | P44: Rückkühler | Q44: 0 | R44: 0 | S44: 0 | T44: 0 | U44: 0 | V44: 0 | W44: 0 | X44: 0 | Y44: 0 | Z44: 0 | AA44: 0 | AB44: 0 | AC44: 0 | AD44: 0 | AE44: 0 | AF44: 0 | AG44: 0 | AH44: 0 | AI44: 0 | AJ44: 0 | AK44: 0 | AL44: 0 | AM44: 0 | AN44: 0 | AO44: 0 | AP44: 0 | AQ44: 0 | AR44: 0 | AS44: 0 | AT44: 0 | AU44: 0 | AV44: 0 | AX44: 0 | AY44: 0 | AZ44: 0 | BA44: 0 | BB44: 0 | BC44: 0 | BD44: 0 | BE44: 0 | BF44: 0 | BG44: 0 | BH44: 0 | BI44: 0 | BJ44: 0 | BK44: 0 | BL44: 0 | BM44: 0 | BN44: 0 | BO44: 0 | BP44: 0 | BQ44: 0 | BR44: 0 | BS44: 0 | BT44: 0 | BU44: 0 | BV44: 0 | BW44: 0 | BX44: 0 | BY44: 0 | BZ44: 0 | CA44: 0 | CB44: 0 | CE44: Rückkühler | CI44: 1 | CT44: 0 | CU44: 0 | CV44: 0
B45: Anschlussleitungen | E45: 40 | G45: 0.015 | I45: [% Inv.] | K45: 40 | L45: 0.015 | M45: 0 | N45: 0 | P45: Anschlussleitungen | Q45: 0 | R45: 0 | S45: 0 | T45: 0 | U45: 0 | V45: 0 | W45: 0 | X45: 0 | Y45: 0 | Z45: 0 | AA45: 0 | AB45: 0 | AC45: 0 | AD45: 0 | AE45: 0 | AF45: 0 | AG45: =IF(Betrachtungszeit_Heizung<AG$26,0,IF(AND(AF$26<>0,AF$26/($K45)=INT(AF$26/($K45))),$D45,0)) -> 0 | AH45: 0 | AI45: 0 | AJ45: 0 | AK45: 0 | AL45: 0 | AM45: 0 | AN45: 0 | AO45: 0 | AP45: 0 | AQ45: 0 | AR45: 0 | AS45: 0 | AT45: 0 | AU45: 0 | AV45: 0 | AX45: 0 | AY45: 0 | AZ45: 0 | BA45: 0 | BB45: 0 | BC45: 0 | BD45: 0 | BE45: 0 | BF45: 0 | BG45: 0 | BH45: 0 | BI45: 0 | BJ45: 0 | BK45: 0 | BL45: 0 | BM45: 0 | BN45: 0 | BO45: 0 | BP45: 0 | BQ45: 0 | BR45: 0 | BS45: 0 | BT45: 0 | BU45: 0 | BV45: 0 | BW45: 0 | BX45: 0 | BY45: 0 | BZ45: 0 | CA45: 0 | CB45: 0 | CE45: Anschlussleitungen | CG45: 1 | CH45: 1 | CI45: 1 | CJ45: 1 | CK45: 1 | CL45: 1 | CM45: 1 | CN45: 1 | CO45: 1 | CP45: 1 | CQ45: 1 | CR45: 1 | CT45: 0 | CU45: 0 | CV45: 0
B46: Energiemessung | E46: 20 | G46: 0.08 | I46: [% Inv.] | K46: 20 | L46: 0.08 | M46: 0 | N46: 0 | P46: Energiemessung | Q46: 0 | R46: =IF(Betrachtungszeit_Heizung<R$26,0,IF(AND(Q$26<>0,Q$26/($K46)=INT(Q$26/($K46))),$D46,0)) -> 0 | S46: 0 | T46: 0 | U46: 0 | V46: 0 | W46: 0 | X46: 0 | Y46: 0 | Z46: 0 | AA46: 0 | AB46: 0 | AC46: 0 | AD46: 0 | AE46: 0 | AF46: 0 | AG46: 0 | AH46: 0 | AI46: 0 | AJ46: 0 | AK46: 0 | AL46: 0 | AM46: 0 | AN46: 0 | AO46: 0 | AP46: 0 | AQ46: 0 | AR46: 0 | AS46: 0 | AT46: 0 | AU46: 0 | AV46: 0 | AX46: 0 | AY46: 0 | AZ46: 0 | BA46: 0 | BB46: 0 | BC46: 0 | BD46: 0 | BE46: 0 | BF46: 0 | BG46: 0 | BH46: 0 | BI46: 0 | BJ46: 0 | BK46: 0 | BL46: 0 | BM46: 0 | BN46: 0 | BO46: 0 | BP46: 0 | BQ46: 0 | BR46: 0 | BS46: 0 | BT46: 0 | BU46: 0 | BV46: 0 | BW46: 0 | BX46: 0 | BY46: 0 | BZ46: 0 | CA46: 0 | CB46: 0 | CE46: Energiemessung | CG46: 1 | CH46: 1 | CI46: 1 | CJ46: 1 | CK46: 1 | CL46: 1 | CM46: 1 | CN46: 1 | CO46: 1 | CP46: 1 | CQ46: 1 | CR46: 1 | CS46: 1 | CT46: 0 | CU46: 0 | CV46: 0
B47: Dämmungen | E47: 20 | G47: 0.001 | I47: [% Inv.] | K47: 20 | L47: 0.001 | M47: 0 | N47: 0 | P47: Dämmungen | Q47: 0 | R47: 0 | S47: 0 | T47: 0 | U47: 0 | V47: 0 | W47: 0 | X47: 0 | Y47: 0 | Z47: 0 | AA47: 0 | AB47: 0 | AC47: 0 | AD47: 0 | AE47: 0 | AF47: 0 | AG47: 0 | AH47: 0 | AI47: 0 | AJ47: 0 | AK47: 0 | AL47: 0 | AM47: 0 | AN47: 0 | AO47: 0 | AP47: 0 | AQ47: 0 | AR47: 0 | AS47: 0 | AT47: 0 | AU47: 0 | AV47: 0 | AX47: 0 | AY47: 0 | AZ47: 0 | BA47: 0 | BB47: 0 | BC47: 0 | BD47: 0 | BE47: 0 | BF47: 0 | BG47: 0 | BH47: 0 | BI47: 0 | BJ47: 0 | BK47: 0 | BL47: 0 | BM47: 0 | BN47: 0 | BO47: 0 | BP47: 0 | BQ47: 0 | BR47: 0 | BS47: 0 | BT47: 0 | BU47: 0 | BV47: 0 | BW47: 0 | BX47: 0 | BY47: 0 | BZ47: 0 | CA47: 0 | CB47: 0 | CE47: Dämmungen | CG47: 1 | CH47: 1 | CI47: 1 | CJ47: 1 | CK47: 1 | CL47: 1 | CM47: 1 | CN47: 1 | CO47: 1 | CP47: 1 | CQ47: 1 | CR47: 1 | CS47: 1 | CT47: 0 | CU47: 0 | CV47: 0
B48: Weiteres | E48: 30 | G48: kein Default | I48: [% Inv.] | K48: 30 | L48: 0 | M48: 0 | N48: 0 | P48: Weiteres | Q48: 0 | R48: 0 | S48: 0 | T48: 0 | U48: 0 | V48: 0 | W48: 0 | X48: 0 | Y48: 0 | Z48: 0 | AA48: 0 | AB48: 0 | AC48: 0 | AD48: 0 | AE48: 0 | AF48: 0 | AG48: 0 | AH48: 0 | AI48: 0 | AJ48: 0 | AK48: 0 | AL48: 0 | AM48: 0 | AN48: 0 | AO48: 0 | AP48: 0 | AQ48: 0 | AR48: 0 | AS48: 0 | AT48: 0 | AU48: 0 | AV48: 0 | AX48: 0 | AY48: 0 | AZ48: 0 | BA48: 0 | BB48: 0 | BC48: 0 | BD48: 0 | BE48: 0 | BF48: 0 | BG48: 0 | BH48: 0 | BI48: 0 | BJ48: 0 | BK48: 0 | BL48: 0 | BM48: 0 | BN48: 0 | BO48: 0 | BP48: 0 | BQ48: 0 | BR48: 0 | BS48: 0 | BT48: 0 | BU48: 0 | BV48: 0 | BW48: 0 | BX48: 0 | BY48: 0 | BZ48: 0 | CA48: 0 | CB48: 0 | CE48: Weiteres | CG48: 1 | CH48: 1 | CI48: 1 | CJ48: 1 | CK48: 1 | CL48: 1 | CM48: 1 | CN48: 1 | CO48: 1 | CP48: 1 | CQ48: 1 | CR48: 1 | CS48: 1 | CT48: 0 | CU48: 0 | CV48: 0
B49: 3. Energiezulieferung | P49: 3. Energiezulieferung | CE49: 3. Energiezulieferung | CF49: 1 | CG49: 1 | CH49: 1 | CI49: 1 | CJ49: 1 | CK49: 1 | CL49: 1 | CM49: 1 | CN49: 1 | CO49: 1 | CP49: 1 | CQ49: 1 | CR49: 1 | CS49: 1 | CT49: 1 | CU49: 1 | CV49: 1
B50: Hauptgaszuleitung | E50: 40 | G50: 0.015 | I50: [% Inv.] | K50: 40 | L50: =IF(ISNUMBER(H50),IF(I50=$D$332,IFERROR(H50/D50,"-"),H50/100),IF(ISNUMBER(G50),G50,0)) -> 0.015 | M50: =IF(AND(ISNUMBER(H50),I50=$D$332),H50,L50*D50) -> 0 | N50: =1/K50*D50 -> 0 | P50: Hauptgaszuleitung | Q50: 0 | R50: =IF(Betrachtungszeit_Heizung<R$26,0,IF(AND(Q$26<>0,Q$26/($K50)=INT(Q$26/($K50))),$D50,0)) -> 0 | S50: 0 | T50: 0 | U50: 0 | V50: 0 | W50: 0 | X50: 0 | Y50: 0 | Z50: 0 | AA50: 0 | AB50: 0 | AC50: 0 | AD50: 0 | AE50: 0 | AF50: 0 | AG50: 0 | AH50: 0 | AI50: 0 | AJ50: 0 | AK50: 0 | AL50: 0 | AM50: 0 | AN50: 0 | AO50: 0 | AP50: 0 | AQ50: 0 | AR50: 0 | AS50: 0 | AT50: 0 | AU50: 0 | AV50: =SUMIF($AX$26:$CB$26,Betrachtungszeit_Heizung,AX50:CB50) -> 0 | AX50: =$D50 -> 0 | AY50: 0 | AZ50: 0 | BA50: 0 | BB50: 0 | BC50: 0 | BD50: 0 | BE50: 0 | BF50: 0 | BG50: 0 | BH50: 0 | BI50: 0 | BJ50: 0 | BK50: 0 | BL50: 0 | BM50: 0 | BN50: 0 | BO50: 0 | BP50: 0 | BQ50: 0 | BR50: 0 | BS50: 0 | BT50: 0 | BU50: 0 | BV50: 0 | BW50: 0 | BX50: 0 | BY50: 0 | BZ50: 0 | CA50: 0 | CB50: 0 | CE50: Hauptgaszuleitung | CR50: 1 | CT50: 0 | CU50: 0 | CV50: 0
B51: Gasleitung ab Gasraum | E51: 40 | G51: 0.005 | I51: [% Inv.] | K51: 40 | L51: 0.005 | M51: 0 | N51: 0 | P51: Gasleitung ab Gasraum | Q51: 0 | R51: 0 | S51: 0 | T51: 0 | U51: 0 | V51: 0 | W51: 0 | X51: 0 | Y51: 0 | Z51: 0 | AA51: 0 | AB51: 0 | AC51: 0 | AD51: 0 | AE51: 0 | AF51: 0 | AG51: 0 | AH51: 0 | AI51: 0 | AJ51: 0 | AK51: 0 | AL51: 0 | AM51: 0 | AN51: 0 | AO51: 0 | AP51: 0 | AQ51: 0 | AR51: 0 | AS51: 0 | AT51: 0 | AU51: 0 | AV51: 0 | AX51: 0 | AY51: 0 | AZ51: 0 | BA51: 0 | BB51: 0 | BC51: 0 | BD51: 0 | BE51: 0 | BF51: 0 | BG51: 0 | BH51: 0 | BI51: 0 | BJ51: 0 | BK51: 0 | BL51: 0 | BM51: 0 | BN51: 0 | BO51: 0 | BP51: 0 | BQ51: 0 | BR51: 0 | BS51: 0 | BT51: 0 | BU51: 0 | BV51: 0 | BW51: 0 | BX51: 0 | BY51: 0 | BZ51: 0 | CA51: 0 | CB51: 0 | CE51: Gasleitung ab Gasraum | CR51: 1 | CT51: 0 | CU51: 0 | CV51: 0
B52: Gasstrasse Kessel | E52: 20 | G52: 0.01 | I52: [% Inv.] | K52: 20 | L52: 0.01 | M52: 0 | N52: 0 | P52: Gasstrasse Kessel | Q52: 0 | R52: 0 | S52: 0 | T52: 0 | U52: 0 | V52: 0 | W52: 0 | X52: 0 | Y52: 0 | Z52: 0 | AA52: 0 | AB52: 0 | AC52: 0 | AD52: 0 | AE52: 0 | AF52: 0 | AG52: 0 | AH52: 0 | AI52: 0 | AJ52: 0 | AK52: 0 | AL52: 0 | AM52: 0 | AN52: 0 | AO52: 0 | AP52: 0 | AQ52: 0 | AR52: 0 | AS52: 0 | AT52: 0 | AU52: 0 | AV52: 0 | AX52: 0 | AY52: 0 | AZ52: 0 | BA52: 0 | BB52: 0 | BC52: 0 | BD52: 0 | BE52: 0 | BF52: 0 | BG52: 0 | BH52: 0 | BI52: 0 | BJ52: 0 | BK52: 0 | BL52: 0 | BM52: 0 | BN52: 0 | BO52: 0 | BP52: 0 | BQ52: 0 | BR52: 0 | BS52: 0 | BT52: 0 | BU52: 0 | BV52: 0 | BW52: 0 | BX52: 0 | BY52: 0 | BZ52: 0 | CA52: 0 | CB52: 0 | CE52: Gasstrasse Kessel | CR52: 1 | CT52: 0 | CU52: 0 | CV52: 0
B53: Einmalige Anschlussgebühr | E53: 40 | G53: 0 | I53: [% Inv.] | K53: 40 | L53: 0 | M53: 0 | N53: 0 | P53: Einmalige Anschlussgebühr | Q53: 0 | R53: 0 | S53: 0 | T53: 0 | U53: 0 | V53: 0 | W53: 0 | X53: 0 | Y53: 0 | Z53: 0 | AA53: 0 | AB53: 0 | AC53: 0 | AD53: 0 | AE53: 0 | AF53: 0 | AG53: 0 | AH53: 0 | AI53: 0 | AJ53: 0 | AK53: 0 | AL53: 0 | AM53: 0 | AN53: 0 | AO53: 0 | AP53: 0 | AQ53: 0 | AR53: 0 | AS53: 0 | AT53: 0 | AU53: 0 | AV53: 0 | AX53: 0 | AY53: 0 | AZ53: 0 | BA53: 0 | BB53: 0 | BC53: 0 | BD53: 0 | BE53: 0 | BF53: =BE53-$N53+Y53 -> 0 | BG53: 0 | BH53: 0 | BI53: 0 | BJ53: 0 | BK53: 0 | BL53: 0 | BM53: 0 | BN53: 0 | BO53: 0 | BP53: 0 | BQ53: 0 | BR53: 0 | BS53: 0 | BT53: 0 | BU53: 0 | BV53: 0 | BW53: 0 | BX53: 0 | BY53: 0 | BZ53: 0 | CA53: 0 | CB53: 0 | CE53: Einmalige Anschlussgebühr | CL53: 1 | CR53: 1 | CT53: 0 | CU53: 0 | CV53: 0
B54: Öltank | E54: 30 | G54: 0.02 | I54: [% Inv.] | K54: 30 | L54: 0.02 | M54: 0 | N54: 0 | P54: Öltank | Q54: 0 | R54: 0 | S54: 0 | T54: 0 | U54: 0 | V54: 0 | W54: 0 | X54: 0 | Y54: 0 | Z54: 0 | AA54: 0 | AB54: 0 | AC54: 0 | AD54: 0 | AE54: 0 | AF54: 0 | AG54: 0 | AH54: 0 | AI54: 0 | AJ54: 0 | AK54: 0 | AL54: 0 | AM54: 0 | AN54: 0 | AO54: 0 | AP54: 0 | AQ54: 0 | AR54: 0 | AS54: 0 | AT54: 0 | AU54: 0 | AV54: 0 | AX54: 0 | AY54: =AX54-$N54+R54 -> 0 | AZ54: 0 | BA54: 0 | BB54: 0 | BC54: 0 | BD54: 0 | BE54: 0 | BF54: 0 | BG54: 0 | BH54: 0 | BI54: 0 | BJ54: 0 | BK54: 0 | BL54: 0 | BM54: 0 | BN54: 0 | BO54: 0 | BP54: 0 | BQ54: 0 | BR54: 0 | BS54: 0 | BT54: 0 | BU54: 0 | BV54: 0 | BW54: 0 | BX54: 0 | BY54: 0 | BZ54: 0 | CA54: 0 | CB54: 0 | CE54: Öltank | CS54: 1 | CT54: 0 | CU54: 0 | CV54: 0
B55: Ölförderungsleitung | E55: 30 | G55: 0.015 | I55: [% Inv.] | K55: 30 | L55: 0.015 | M55: 0 | N55: 0 | P55: Ölförderungsleitung | Q55: 0 | R55: 0 | S55: 0 | T55: 0 | U55: 0 | V55: 0 | W55: 0 | X55: 0 | Y55: 0 | Z55: 0 | AA55: 0 | AB55: 0 | AC55: 0 | AD55: 0 | AE55: 0 | AF55: 0 | AG55: 0 | AH55: 0 | AI55: 0 | AJ55: 0 | AK55: 0 | AL55: 0 | AM55: 0 | AN55: 0 | AO55: 0 | AP55: 0 | AQ55: 0 | AR55: 0 | AS55: 0 | AT55: 0 | AU55: 0 | AV55: 0 | AX55: 0 | AY55: 0 | AZ55: 0 | BA55: 0 | BB55: 0 | BC55: 0 | BD55: 0 | BE55: 0 | BF55: 0 | BG55: 0 | BH55: 0 | BI55: 0 | BJ55: 0 | BK55: 0 | BL55: 0 | BM55: 0 | BN55: 0 | BO55: 0 | BP55: 0 | BQ55: 0 | BR55: 0 | BS55: 0 | BT55: 0 | BU55: 0 | BV55: 0 | BW55: 0 | BX55: 0 | BY55: 0 | BZ55: 0 | CA55: 0 | CB55: 0 | CE55: Ölförderungsleitung | CS55: 1 | CT55: 0 | CU55: 0 | CV55: 0
B56: Ölstrasse Kessel | E56: 20 | G56: 0.01 | I56: [% Inv.] | K56: 20 | L56: 0.01 | M56: 0 | N56: 0 | P56: Ölstrasse Kessel | Q56: 0 | R56: 0 | S56: 0 | T56: 0 | U56: 0 | V56: 0 | W56: 0 | X56: 0 | Y56: 0 | Z56: 0 | AA56: 0 | AB56: 0 | AC56: 0 | AD56: 0 | AE56: 0 | AF56: 0 | AG56: 0 | AH56: 0 | AI56: 0 | AJ56: 0 | AK56: 0 | AL56: 0 | AM56: 0 | AN56: 0 | AO56: 0 | AP56: 0 | AQ56: 0 | AR56: 0 | AS56: 0 | AT56: 0 | AU56: 0 | AV56: 0 | AX56: 0 | AY56: 0 | AZ56: 0 | BA56: 0 | BB56: 0 | BC56: 0 | BD56: 0 | BE56: 0 | BF56: 0 | BG56: 0 | BH56: 0 | BI56: 0 | BJ56: 0 | BK56: 0 | BL56: 0 | BM56: 0 | BN56: 0 | BO56: 0 | BP56: 0 | BQ56: 0 | BR56: 0 | BS56: 0 | BT56: 0 | BU56: 0 | BV56: 0 | BW56: 0 | BX56: 0 | BY56: 0 | BZ56: 0 | CA56: 0 | CB56: 0 | CE56: Ölstrasse Kessel | CS56: 1 | CT56: 0 | CU56: 0 | CV56: 0
B57: Schnitzel-/Pelletförderung | E57: 15 | G57: 0.04 | I57: [% Inv.] | K57: 15 | L57: 0.04 | M57: 0 | N57: 0 | P57: Schnitzel-/Pelletförderung | Q57: 0 | R57: 0 | S57: 0 | T57: 0 | U57: 0 | V57: 0 | W57: 0 | X57: 0 | Y57: 0 | Z57: 0 | AA57: 0 | AB57: 0 | AC57: 0 | AD57: 0 | AE57: 0 | AF57: 0 | AG57: 0 | AH57: 0 | AI57: 0 | AJ57: 0 | AK57: 0 | AL57: 0 | AM57: 0 | AN57: 0 | AO57: 0 | AP57: 0 | AQ57: 0 | AR57: 0 | AS57: 0 | AT57: 0 | AU57: 0 | AV57: 0 | AX57: 0 | AY57: 0 | AZ57: 0 | BA57: 0 | BB57: 0 | BC57: 0 | BD57: 0 | BE57: 0 | BF57: 0 | BG57: 0 | BH57: 0 | BI57: 0 | BJ57: 0 | BK57: 0 | BL57: 0 | BM57: 0 | BN57: 0 | BO57: 0 | BP57: 0 | BQ57: 0 | BR57: 0 | BS57: 0 | BT57: 0 | BU57: 0 | BV57: 0 | BW57: 0 | BX57: 0 | BY57: 0 | BZ57: 0 | CA57: 0 | CB57: 0 | CE57: Schnitzel-/Pelletförderung | CM57: 1 | CN57: 1 | CT57: 0 | CU57: 0 | CV57: 0
B58: Weiteres | E58: 30 | G58: kein Default | I58: [% Inv.] | K58: 30 | L58: 0 | M58: 0 | N58: 0 | P58: Weiteres | Q58: 0 | R58: 0 | S58: 0 | T58: 0 | U58: 0 | V58: 0 | W58: 0 | X58: 0 | Y58: 0 | Z58: 0 | AA58: 0 | AB58: 0 | AC58: 0 | AD58: 0 | AE58: 0 | AF58: 0 | AG58: =IF(Betrachtungszeit_Heizung<AG$26,0,IF(AND(AF$26<>0,AF$26/($K58)=INT(AF$26/($K58))),$D58,0)) -> 0 | AH58: 0 | AI58: 0 | AJ58: 0 | AK58: 0 | AL58: 0 | AM58: 0 | AN58: 0 | AO58: 0 | AP58: 0 | AQ58: 0 | AR58: 0 | AS58: 0 | AT58: 0 | AU58: 0 | AV58: 0 | AX58: 0 | AY58: 0 | AZ58: 0 | BA58: 0 | BB58: 0 | BC58: 0 | BD58: 0 | BE58: 0 | BF58: 0 | BG58: 0 | BH58: 0 | BI58: 0 | BJ58: 0 | BK58: 0 | BL58: 0 | BM58: 0 | BN58: 0 | BO58: 0 | BP58: 0 | BQ58: 0 | BR58: 0 | BS58: 0 | BT58: 0 | BU58: 0 | BV58: 0 | BW58: 0 | BX58: 0 | BY58: 0 | BZ58: 0 | CA58: 0 | CB58: 0 | CE58: Weiteres | CG58: 1 | CH58: 1 | CI58: 1 | CJ58: 1 | CK58: 1 | CL58: 1 | CM58: 1 | CN58: 1 | CO58: 1 | CP58: 1 | CQ58: 1 | CR58: 1 | CS58: 1 | CT58: 0 | CU58: 0 | CV58: 0
B59: 4. Wärmeerzeugung | P59: 4. Wärmeerzeugung | CE59: 4. Wärmeerzeugung | CF59: 1 | CG59: 1 | CH59: 1 | CI59: 1 | CJ59: 1 | CK59: 1 | CL59: 1 | CM59: 1 | CN59: 1 | CO59: 1 | CP59: 1 | CQ59: 1 | CR59: 1 | CS59: 1 | CT59: 1 | CU59: 1 | CV59: 1
B60: Heizkessel 1 | E60: 20 | G60: 0.025 | I60: [% Inv.] | K60: 20 | L60: =IF(ISNUMBER(H60),IF(I60=$D$332,IFERROR(H60/D60,"-"),H60/100),IF(ISNUMBER(G60),G60,0)) -> 0.025 | M60: =IF(AND(ISNUMBER(H60),I60=$D$332),H60,L60*D60) -> 0 | N60: =1/K60*D60 -> 0 | P60: Heizkessel 1 | Q60: 0 | R60: =IF(Betrachtungszeit_Heizung<R$26,0,IF(AND(Q$26<>0,Q$26/($K60)=INT(Q$26/($K60))),$D60,0)) -> 0 | S60: 0 | T60: 0 | U60: 0 | V60: 0 | W60: 0 | X60: 0 | Y60: 0 | Z60: 0 | AA60: 0 | AB60: 0 | AC60: 0 | AD60: 0 | AE60: 0 | AF60: 0 | AG60: 0 | AH60: 0 | AI60: 0 | AJ60: 0 | AK60: 0 | AL60: 0 | AM60: 0 | AN60: 0 | AO60: 0 | AP60: 0 | AQ60: 0 | AR60: 0 | AS60: 0 | AT60: 0 | AU60: 0 | AV60: =SUMIF($AX$26:$CB$26,Betrachtungszeit_Heizung,AX60:CB60) -> 0 | AX60: =$D60 -> 0 | AY60: 0 | AZ60: 0 | BA60: 0 | BB60: 0 | BC60: 0 | BD60: 0 | BE60: 0 | BF60: 0 | BG60: 0 | BH60: 0 | BI60: 0 | BJ60: 0 | BK60: 0 | BL60: 0 | BM60: 0 | BN60: 0 | BO60: 0 | BP60: 0 | BQ60: 0 | BR60: 0 | BS60: 0 | BT60: 0 | BU60: 0 | BV60: 0 | BW60: 0 | BX60: 0 | BY60: 0 | BZ60: 0 | CA60: 0 | CB60: 0 | CE60: Heizkessel 1 | CM60: 1 | CN60: 1 | CQ60: 1 | CR60: 1 | CS60: 1 | CT60: 0 | CU60: 0 | CV60: 0
B61: Heizkessel 2 | E61: 20 | G61: 0.025 | I61: [% Inv.] | K61: 20 | L61: 0.025 | M61: 0 | N61: 0 | P61: Heizkessel 2 | Q61: 0 | R61: 0 | S61: 0 | T61: 0 | U61: 0 | V61: 0 | W61: 0 | X61: 0 | Y61: 0 | Z61: 0 | AA61: 0 | AB61: 0 | AC61: 0 | AD61: 0 | AE61: 0 | AF61: 0 | AG61: 0 | AH61: 0 | AI61: 0 | AJ61: 0 | AK61: 0 | AL61: 0 | AM61: 0 | AN61: 0 | AO61: 0 | AP61: 0 | AQ61: 0 | AR61: 0 | AS61: 0 | AT61: 0 | AU61: 0 | AV61: 0 | AX61: 0 | AY61: 0 | AZ61: 0 | BA61: 0 | BB61: 0 | BC61: 0 | BD61: 0 | BE61: 0 | BF61: 0 | BG61: 0 | BH61: 0 | BI61: 0 | BJ61: 0 | BK61: 0 | BL61: 0 | BM61: 0 | BN61: 0 | BO61: 0 | BP61: 0 | BQ61: 0 | BR61: 0 | BS61: 0 | BT61: 0 | BU61: 0 | BV61: 0 | BW61: 0 | BX61: 0 | BY61: 0 | BZ61: 0 | CA61: 0 | CB61: 0 | CE61: Heizkessel 2 | CM61: 1 | CN61: 1 | CQ61: 1 | CR61: 1 | CS61: 1 | CT61: 0 | CU61: 0 | CV61: 0
B62: Wärmepumpe 1 | E62: 20 | G62: 0.035 | I62: [% Inv.] | K62: 20 | L62: 0.035 | M62: 0 | N62: 0 | P62: Wärmepumpe 1 | Q62: 0 | R62: 0 | S62: 0 | T62: 0 | U62: 0 | V62: 0 | W62: 0 | X62: 0 | Y62: 0 | Z62: 0 | AA62: 0 | AB62: 0 | AC62: 0 | AD62: 0 | AE62: 0 | AF62: 0 | AG62: 0 | AH62: 0 | AI62: 0 | AJ62: 0 | AK62: 0 | AL62: 0 | AM62: 0 | AN62: 0 | AO62: 0 | AP62: 0 | AQ62: 0 | AR62: 0 | AS62: 0 | AT62: 0 | AU62: 0 | AV62: 0 | AX62: 0 | AY62: 0 | AZ62: 0 | BA62: 0 | BB62: 0 | BC62: 0 | BD62: 0 | BE62: 0 | BF62: 0 | BG62: 0 | BH62: 0 | BI62: 0 | BJ62: 0 | BK62: 0 | BL62: 0 | BM62: 0 | BN62: 0 | BO62: 0 | BP62: 0 | BQ62: 0 | BR62: 0 | BS62: 0 | BT62: 0 | BU62: 0 | BV62: 0 | BW62: 0 | BX62: 0 | BY62: 0 | BZ62: 0 | CA62: 0 | CB62: 0 | CE62: Wärmepumpe 1 | CG62: 1 | CH62: 1 | CI62: 1 | CJ62: 1 | CK62: 1 | CT62: 0 | CU62: 0 | CV62: 0
B63: Wärmepumpe 2 | E63: 20 | G63: 0.035 | I63: [% Inv.] | K63: 20 | L63: 0.035 | M63: 0 | N63: 0 | P63: Wärmepumpe 2 | Q63: 0 | R63: 0 | S63: 0 | T63: 0 | U63: 0 | V63: 0 | W63: 0 | X63: 0 | Y63: 0 | Z63: 0 | AA63: 0 | AB63: 0 | AC63: 0 | AD63: 0 | AE63: 0 | AF63: 0 | AG63: 0 | AH63: 0 | AI63: 0 | AJ63: 0 | AK63: 0 | AL63: 0 | AM63: 0 | AN63: 0 | AO63: 0 | AP63: 0 | AQ63: 0 | AR63: 0 | AS63: 0 | AT63: 0 | AU63: 0 | AV63: 0 | AX63: 0 | AY63: 0 | AZ63: 0 | BA63: 0 | BB63: 0 | BC63: 0 | BD63: 0 | BE63: 0 | BF63: 0 | BG63: 0 | BH63: 0 | BI63: 0 | BJ63: 0 | BK63: 0 | BL63: 0 | BM63: 0 | BN63: 0 | BO63: 0 | BP63: 0 | BQ63: 0 | BR63: 0 | BS63: 0 | BT63: 0 | BU63: 0 | BV63: 0 | BW63: 0 | BX63: 0 | BY63: 0 | BZ63: 0 | CA63: 0 | CB63: 0 | CE63: Wärmepumpe 2 | CG63: 1 | CH63: 1 | CI63: 1 | CJ63: 1 | CK63: 1 | CT63: 0 | CU63: 0 | CV63: 0
B64: Hydraulische Einbindung | E64: 20 | G64: 0.015 | I64: [% Inv.] | K64: 20 | L64: 0.015 | M64: 0 | N64: 0 | P64: Hydraulische Einbindung | Q64: 0 | R64: 0 | S64: 0 | T64: 0 | U64: 0 | V64: 0 | W64: 0 | X64: 0 | Y64: 0 | Z64: 0 | AA64: 0 | AB64: 0 | AC64: 0 | AD64: 0 | AE64: 0 | AF64: 0 | AG64: 0 | AH64: 0 | AI64: 0 | AJ64: 0 | AK64: 0 | AL64: 0 | AM64: 0 | AN64: 0 | AO64: 0 | AP64: 0 | AQ64: 0 | AR64: 0 | AS64: 0 | AT64: 0 | AU64: 0 | AV64: 0 | AX64: 0 | AY64: 0 | AZ64: 0 | BA64: 0 | BB64: 0 | BC64: 0 | BD64: 0 | BE64: 0 | BF64: 0 | BG64: 0 | BH64: 0 | BI64: 0 | BJ64: 0 | BK64: 0 | BL64: 0 | BM64: 0 | BN64: 0 | BO64: 0 | BP64: 0 | BQ64: 0 | BR64: 0 | BS64: 0 | BT64: 0 | BU64: 0 | BV64: 0 | BW64: 0 | BX64: 0 | BY64: 0 | BZ64: 0 | CA64: 0 | CB64: 0 | CE64: Hydraulische Einbindung | CG64: 1 | CH64: 1 | CI64: 1 | CJ64: 1 | CK64: 1 | CL64: 1 | CM64: 1 | CN64: 1 | CO64: 1 | CP64: 1 | CQ64: 1 | CR64: 1 | CS64: 1 | CT64: 0 | CU64: 0 | CV64: 0
B65: Speicher | E65: 30 | G65: 0.005 | I65: [% Inv.] | K65: 30 | L65: 0.005 | M65: 0 | N65: 0 | P65: Speicher | Q65: 0 | R65: 0 | S65: 0 | T65: 0 | U65: 0 | V65: 0 | W65: 0 | X65: 0 | Y65: 0 | Z65: 0 | AA65: 0 | AB65: 0 | AC65: 0 | AD65: 0 | AE65: 0 | AF65: 0 | AG65: 0 | AH65: 0 | AI65: 0 | AJ65: 0 | AK65: 0 | AL65: 0 | AM65: 0 | AN65: 0 | AO65: 0 | AP65: 0 | AQ65: 0 | AR65: 0 | AS65: 0 | AT65: 0 | AU65: 0 | AV65: 0 | AX65: 0 | AY65: 0 | AZ65: 0 | BA65: 0 | BB65: 0 | BC65: 0 | BD65: 0 | BE65: 0 | BF65: 0 | BG65: 0 | BH65: 0 | BI65: 0 | BJ65: 0 | BK65: 0 | BL65: 0 | BM65: 0 | BN65: 0 | BO65: 0 | BP65: 0 | BQ65: 0 | BR65: 0 | BS65: 0 | BT65: 0 | BU65: 0 | BV65: 0 | BW65: 0 | BX65: 0 | BY65: 0 | BZ65: 0 | CA65: 0 | CB65: 0 | CE65: Speicher | CG65: 1 | CH65: 1 | CI65: 1 | CJ65: 1 | CK65: 1 | CL65: 1 | CM65: 1 | CN65: 1 | CO65: 1 | CP65: 1 | CQ65: 1 | CR65: 1 | CS65: 1 | CT65: 0 | CU65: 0 | CV65: 0
B66: Dämmungen | E66: 30 | G66: 0.001 | I66: [% Inv.] | K66: 30 | L66: 0.001 | M66: 0 | N66: 0 | P66: Dämmungen | Q66: 0 | R66: 0 | S66: 0 | T66: 0 | U66: 0 | V66: 0 | W66: 0 | X66: 0 | Y66: 0 | Z66: 0 | AA66: 0 | AB66: 0 | AC66: 0 | AD66: 0 | AE66: 0 | AF66: 0 | AG66: 0 | AH66: 0 | AI66: 0 | AJ66: 0 | AK66: 0 | AL66: 0 | AM66: 0 | AN66: 0 | AO66: 0 | AP66: 0 | AQ66: 0 | AR66: 0 | AS66: 0 | AT66: 0 | AU66: 0 | AV66: 0 | AX66: 0 | AY66: 0 | AZ66: 0 | BA66: 0 | BB66: 0 | BC66: 0 | BD66: 0 | BE66: 0 | BF66: 0 | BG66: 0 | BH66: 0 | BI66: 0 | BJ66: 0 | BK66: 0 | BL66: 0 | BM66: 0 | BN66: 0 | BO66: 0 | BP66: 0 | BQ66: 0 | BR66: 0 | BS66: 0 | BT66: 0 | BU66: 0 | BV66: 0 | BW66: 0 | BX66: 0 | BY66: 0 | BZ66: 0 | CA66: 0 | CB66: 0 | CE66: Dämmungen | CG66: 1 | CH66: 1 | CI66: 1 | CJ66: 1 | CK66: 1 | CL66: 1 | CM66: 1 | CN66: 1 | CO66: 1 | CP66: 1 | CQ66: 1 | CR66: 1 | CS66: 1 | CT66: 0 | CU66: 0 | CV66: 0
B67: Weiteres | E67: 30 | G67: kein Default | I67: [% Inv.] | K67: 30 | L67: 0 | M67: 0 | N67: 0 | P67: Weiteres | Q67: 0 | R67: 0 | S67: 0 | T67: 0 | U67: 0 | V67: 0 | W67: 0 | X67: 0 | Y67: 0 | Z67: 0 | AA67: 0 | AB67: 0 | AC67: 0 | AD67: 0 | AE67: 0 | AF67: 0 | AG67: 0 | AH67: 0 | AI67: 0 | AJ67: 0 | AK67: 0 | AL67: 0 | AM67: 0 | AN67: 0 | AO67: 0 | AP67: 0 | AQ67: 0 | AR67: 0 | AS67: 0 | AT67: 0 | AU67: 0 | AV67: 0 | AX67: 0 | AY67: 0 | AZ67: 0 | BA67: 0 | BB67: 0 | BC67: 0 | BD67: 0 | BE67: 0 | BF67: 0 | BG67: 0 | BH67: 0 | BI67: 0 | BJ67: 0 | BK67: 0 | BL67: 0 | BM67: 0 | BN67: 0 | BO67: 0 | BP67: 0 | BQ67: 0 | BR67: 0 | BS67: 0 | BT67: 0 | BU67: 0 | BV67: 0 | BW67: 0 | BX67: 0 | BY67: 0 | BZ67: 0 | CA67: 0 | CB67: 0 | CE67: Weiteres | CG67: 1 | CH67: 1 | CI67: 1 | CJ67: 1 | CK67: 1 | CL67: 1 | CM67: 1 | CN67: 1 | CO67: 1 | CP67: 1 | CQ67: 1 | CR67: 1 | CS67: 1 | CT67: 0 | CU67: 0 | CV67: 0
B68: 5. Kaminanlage | P68: 5. Kaminanlage | CE68: 5. Kaminanlage | CF68: 1 | CM68: 1 | CN68: 1 | CQ68: 1 | CR68: 1 | CS68: 1 | CT68: 1 | CU68: 1 | CV68: 1
B69: Kaminanlage/Abgasleitung 1 | E69: 20 | G69: 0.025 | I69: [% Inv.] | K69: 20 | L69: =IF(ISNUMBER(H69),IF(I69=$D$332,IFERROR(H69/D69,"-"),H69/100),IF(ISNUMBER(G69),G69,0)) -> 0.025 | M69: =IF(AND(ISNUMBER(H69),I69=$D$332),H69,L69*D69) -> 0 | N69: =1/K69*D69 -> 0 | P69: Kaminanlage/Abgasleitung 1 | Q69: 0 | R69: =IF(Betrachtungszeit_Heizung<R$26,0,IF(AND(Q$26<>0,Q$26/($K69)=INT(Q$26/($K69))),$D69,0)) -> 0 | S69: 0 | T69: 0 | U69: 0 | V69: 0 | W69: 0 | X69: 0 | Y69: 0 | Z69: 0 | AA69: 0 | AB69: 0 | AC69: 0 | AD69: 0 | AE69: 0 | AF69: 0 | AG69: 0 | AH69: 0 | AI69: 0 | AJ69: 0 | AK69: 0 | AL69: 0 | AM69: 0 | AN69: 0 | AO69: 0 | AP69: 0 | AQ69: 0 | AR69: 0 | AS69: 0 | AT69: 0 | AU69: 0 | AV69: 0 | AX69: 0 | AY69: 0 | AZ69: 0 | BA69: 0 | BB69: 0 | BC69: 0 | BD69: 0 | BE69: 0 | BF69: 0 | BG69: 0 | BH69: 0 | BI69: 0 | BJ69: 0 | BK69: 0 | BL69: 0 | BM69: 0 | BN69: 0 | BO69: 0 | BP69: 0 | BQ69: 0 | BR69: 0 | BS69: 0 | BT69: 0 | BU69: 0 | BV69: 0 | BW69: 0 | BX69: 0 | BY69: 0 | BZ69: 0 | CA69: 0 | CB69: 0 | CE69: Kaminanlage/Abgasleitung 1 | CM69: 1 | CN69: 1 | CQ69: 1 | CR69: 1 | CS69: 1 | CT69: 0 | CU69: 0 | CV69: 0
B70: Kaminanlage/Abgasleitung 2 | E70: 20 | G70: 0.025 | I70: [% Inv.] | K70: 20 | L70: 0.025 | M70: 0 | N70: 0 | P70: Kaminanlage/Abgasleitung 2 | Q70: 0 | R70: 0 | S70: 0 | T70: 0 | U70: 0 | V70: 0 | W70: 0 | X70: 0 | Y70: 0 | Z70: 0 | AA70: 0 | AB70: 0 | AC70: 0 | AD70: 0 | AE70: 0 | AF70: 0 | AG70: 0 | AH70: 0 | AI70: 0 | AJ70: 0 | AK70: 0 | AL70: 0 | AM70: 0 | AN70: 0 | AO70: 0 | AP70: 0 | AQ70: 0 | AR70: 0 | AS70: 0 | AT70: 0 | AU70: 0 | AV70: 0 | AX70: 0 | AY70: 0 | AZ70: 0 | BA70: 0 | BB70: 0 | BC70: 0 | BD70: 0 | BE70: 0 | BF70: 0 | BG70: 0 | BH70: 0 | BI70: 0 | BJ70: 0 | BK70: 0 | BL70: 0 | BM70: 0 | BN70: 0 | BO70: 0 | BP70: 0 | BQ70: 0 | BR70: 0 | BS70: 0 | BT70: 0 | BU70: 0 | BV70: 0 | BW70: 0 | BX70: 0 | BY70: 0 | BZ70: 0 | CA70: 0 | CB70: 0 | CE70: Kaminanlage/Abgasleitung 2 | CM70: 1 | CN70: 1 | CQ70: 1 | CR70: 1 | CS70: 1 | CT70: 0 | CU70: 0 | CV70: 0
B71: Aschenaustragung | E71: 15 | G71: 0.035 | I71: [% Inv.] | K71: 15 | L71: 0.035 | M71: 0 | N71: 0 | P71: Aschenaustragung | Q71: 0 | R71: 0 | S71: 0 | T71: 0 | U71: 0 | V71: 0 | W71: 0 | X71: 0 | Y71: 0 | Z71: 0 | AA71: 0 | AB71: 0 | AC71: 0 | AD71: 0 | AE71: 0 | AF71: 0 | AG71: 0 | AH71: 0 | AI71: 0 | AJ71: 0 | AK71: 0 | AL71: 0 | AM71: 0 | AN71: 0 | AO71: 0 | AP71: 0 | AQ71: 0 | AR71: 0 | AS71: 0 | AT71: 0 | AU71: 0 | AV71: 0 | AX71: 0 | AY71: 0 | AZ71: 0 | BA71: 0 | BB71: 0 | BC71: 0 | BD71: 0 | BE71: 0 | BF71: 0 | BG71: 0 | BH71: 0 | BI71: 0 | BJ71: 0 | BK71: 0 | BL71: 0 | BM71: 0 | BN71: 0 | BO71: 0 | BP71: 0 | BQ71: 0 | BR71: 0 | BS71: 0 | BT71: 0 | BU71: 0 | BV71: =BU71-$N71+AO71 -> 0 | BW71: 0 | BX71: 0 | BY71: 0 | BZ71: 0 | CA71: 0 | CB71: 0 | CE71: Aschenaustragung | CM71: 1 | CN71: 1 | CT71: 0 | CU71: 0 | CV71: 0
B72: Rauchgasreinigung | E72: 15 | G72: 0.035 | I72: [% Inv.] | K72: 15 | L72: 0.035 | M72: 0 | N72: 0 | P72: Rauchgasreinigung | Q72: 0 | R72: 0 | S72: 0 | T72: 0 | U72: 0 | V72: 0 | W72: 0 | X72: 0 | Y72: 0 | Z72: 0 | AA72: 0 | AB72: 0 | AC72: 0 | AD72: 0 | AE72: 0 | AF72: 0 | AG72: 0 | AH72: 0 | AI72: 0 | AJ72: 0 | AK72: 0 | AL72: 0 | AM72: 0 | AN72: 0 | AO72: 0 | AP72: 0 | AQ72: 0 | AR72: 0 | AS72: 0 | AT72: 0 | AU72: 0 | AV72: 0 | AX72: 0 | AY72: 0 | AZ72: 0 | BA72: 0 | BB72: 0 | BC72: 0 | BD72: 0 | BE72: 0 | BF72: 0 | BG72: 0 | BH72: 0 | BI72: 0 | BJ72: 0 | BK72: 0 | BL72: 0 | BM72: 0 | BN72: 0 | BO72: 0 | BP72: 0 | BQ72: 0 | BR72: 0 | BS72: 0 | BT72: 0 | BU72: 0 | BV72: 0 | BW72: 0 | BX72: 0 | BY72: 0 | BZ72: 0 | CA72: 0 | CB72: 0 | CE72: Rauchgasreinigung | CM72: 1 | CN72: 1 | CT72: 0 | CU72: 0 | CV72: 0
B73: Weiteres | E73: 30 | G73: kein Default | I73: [% Inv.] | K73: 30 | L73: 0 | M73: 0 | N73: 0 | P73: Weiteres | Q73: 0 | R73: 0 | S73: 0 | T73: 0 | U73: 0 | V73: 0 | W73: 0 | X73: 0 | Y73: 0 | Z73: 0 | AA73: 0 | AB73: 0 | AC73: 0 | AD73: 0 | AE73: 0 | AF73: 0 | AG73: 0 | AH73: 0 | AI73: 0 | AJ73: 0 | AK73: 0 | AL73: 0 | AM73: 0 | AN73: 0 | AO73: 0 | AP73: 0 | AQ73: 0 | AR73: 0 | AS73: 0 | AT73: 0 | AU73: 0 | AV73: 0 | AX73: 0 | AY73: 0 | AZ73: 0 | BA73: 0 | BB73: 0 | BC73: 0 | BD73: 0 | BE73: 0 | BF73: 0 | BG73: 0 | BH73: 0 | BI73: 0 | BJ73: 0 | BK73: 0 | BL73: 0 | BM73: 0 | BN73: 0 | BO73: 0 | BP73: 0 | BQ73: 0 | BR73: 0 | BS73: 0 | BT73: 0 | BU73: 0 | BV73: 0 | BW73: 0 | BX73: 0 | BY73: 0 | BZ73: 0 | CA73: 0 | CB73: 0 | CE73: Weiteres | CM73: 1 | CN73: 1 | CQ73: 1 | CR73: 1 | CS73: 1 | CT73: 0 | CU73: 0 | CV73: 0
B74: 6. Wärmeverteilung | P74: 6. Wärmeverteilung | CE74: 6. Wärmeverteilung | CF74: 1 | CG74: 1 | CH74: 1 | CI74: 1 | CJ74: 1 | CK74: 1 | CL74: 1 | CM74: 1 | CN74: 1 | CO74: 1 | CP74: 1 | CQ74: 1 | CR74: 1 | CS74: 1 | CT74: 1 | CU74: 1 | CV74: 1
B75: Heizungsverteiler | E75: 30 | G75: 0.01 | I75: [% Inv.] | K75: 30 | L75: =IF(ISNUMBER(H75),IF(I75=$D$332,IFERROR(H75/D75,"-"),H75/100),IF(ISNUMBER(G75),G75,0)) -> 0.01 | M75: =IF(AND(ISNUMBER(H75),I75=$D$332),H75,L75*D75) -> 0 | N75: =1/K75*D75 -> 0 | P75: Heizungsverteiler | Q75: 0 | R75: =IF(Betrachtungszeit_Heizung<R$26,0,IF(AND(Q$26<>0,Q$26/($K75)=INT(Q$26/($K75))),$D75,0)) -> 0 | S75: 0 | T75: 0 | U75: 0 | V75: 0 | W75: 0 | X75: 0 | Y75: 0 | Z75: 0 | AA75: 0 | AB75: 0 | AC75: 0 | AD75: 0 | AE75: 0 | AF75: 0 | AG75: 0 | AH75: 0 | AI75: 0 | AJ75: 0 | AK75: 0 | AL75: 0 | AM75: 0 | AN75: 0 | AO75: 0 | AP75: 0 | AQ75: 0 | AR75: 0 | AS75: 0 | AT75: 0 | AU75: 0 | AV75: =SUMIF($AX$26:$CB$26,Betrachtungszeit_Heizung,AX75:CB75) -> 0 | AX75: =$D75 -> 0 | AY75: 0 | AZ75: 0 | BA75: 0 | BB75: 0 | BC75: 0 | BD75: 0 | BE75: 0 | BF75: 0 | BG75: 0 | BH75: 0 | BI75: 0 | BJ75: 0 | BK75: 0 | BL75: 0 | BM75: 0 | BN75: 0 | BO75: 0 | BP75: 0 | BQ75: 0 | BR75: 0 | BS75: 0 | BT75: 0 | BU75: 0 | BV75: 0 | BW75: 0 | BX75: 0 | BY75: 0 | BZ75: 0 | CA75: 0 | CB75: 0 | CE75: Heizungsverteiler | CG75: 1 | CH75: 1 | CI75: 1 | CJ75: 1 | CK75: 1 | CL75: 1 | CM75: 1 | CN75: 1 | CO75: 1 | CP75: 1 | CQ75: 1 | CR75: 1 | CS75: 1 | CT75: 0 | CU75: 0 | CV75: 0
B76: Expansion | E76: 20 | G76: 0.01 | I76: [% Inv.] | K76: 20 | L76: 0.01 | M76: 0 | N76: 0 | P76: Expansion | Q76: 0 | R76: 0 | S76: 0 | T76: 0 | U76: 0 | V76: 0 | W76: 0 | X76: 0 | Y76: 0 | Z76: 0 | AA76: 0 | AB76: 0 | AC76: 0 | AD76: 0 | AE76: 0 | AF76: 0 | AG76: 0 | AH76: 0 | AI76: 0 | AJ76: 0 | AK76: 0 | AL76: 0 | AM76: 0 | AN76: 0 | AO76: 0 | AP76: 0 | AQ76: 0 | AR76: 0 | AS76: 0 | AT76: 0 | AU76: 0 | AV76: 0 | AX76: 0 | AY76: 0 | AZ76: 0 | BA76: 0 | BB76: 0 | BC76: 0 | BD76: 0 | BE76: 0 | BF76: 0 | BG76: 0 | BH76: 0 | BI76: 0 | BJ76: 0 | BK76: 0 | BL76: 0 | BM76: 0 | BN76: 0 | BO76: 0 | BP76: 0 | BQ76: 0 | BR76: 0 | BS76: 0 | BT76: 0 | BU76: 0 | BV76: 0 | BW76: 0 | BX76: 0 | BY76: 0 | BZ76: 0 | CA76: 0 | CB76: 0 | CE76: Expansion | CG76: 1 | CH76: 1 | CI76: 1 | CJ76: 1 | CK76: 1 | CL76: 1 | CM76: 1 | CN76: 1 | CO76: 1 | CP76: 1 | CQ76: 1 | CR76: 1 | CS76: 1 | CT76: 0 | CU76: 0 | CV76: 0
B77: Heizgruppen | E77: 20 | G77: 0.01 | I77: [% Inv.] | K77: 20 | L77: 0.01 | M77: 0 | N77: 0 | P77: Heizgruppen | Q77: 0 | R77: 0 | S77: 0 | T77: 0 | U77: 0 | V77: 0 | W77: 0 | X77: 0 | Y77: 0 | Z77: 0 | AA77: 0 | AB77: 0 | AC77: 0 | AD77: 0 | AE77: 0 | AF77: 0 | AG77: 0 | AH77: 0 | AI77: 0 | AJ77: 0 | AK77: 0 | AL77: 0 | AM77: 0 | AN77: 0 | AO77: 0 | AP77: 0 | AQ77: 0 | AR77: 0 | AS77: 0 | AT77: 0 | AU77: 0 | AV77: 0 | AX77: 0 | AY77: 0 | AZ77: 0 | BA77: 0 | BB77: 0 | BC77: 0 | BD77: 0 | BE77: 0 | BF77: 0 | BG77: 0 | BH77: 0 | BI77: 0 | BJ77: 0 | BK77: 0 | BL77: 0 | BM77: 0 | BN77: 0 | BO77: 0 | BP77: 0 | BQ77: 0 | BR77: 0 | BS77: 0 | BT77: 0 | BU77: 0 | BV77: 0 | BW77: 0 | BX77: 0 | BY77: 0 | BZ77: 0 | CA77: 0 | CB77: 0 | CE77: Heizgruppen | CG77: 1 | CH77: 1 | CI77: 1 | CJ77: 1 | CK77: 1 | CL77: 1 | CM77: 1 | CN77: 1 | CO77: 1 | CP77: 1 | CQ77: 1 | CR77: 1 | CS77: 1 | CT77: 0 | CU77: 0 | CV77: 0
B78: Übergabestationen Heizung | E78: 20 | G78: 0.015 | I78: [% Inv.] | K78: 20 | L78: 0.015 | M78: 0 | N78: 0 | P78: Übergabestationen Heizung | Q78: 0 | R78: 0 | S78: 0 | T78: 0 | U78: 0 | V78: 0 | W78: 0 | X78: 0 | Y78: 0 | Z78: 0 | AA78: 0 | AB78: 0 | AC78: 0 | AD78: 0 | AE78: 0 | AF78: 0 | AG78: 0 | AH78: 0 | AI78: 0 | AJ78: 0 | AK78: 0 | AL78: 0 | AM78: 0 | AN78: 0 | AO78: 0 | AP78: 0 | AQ78: 0 | AR78: 0 | AS78: 0 | AT78: 0 | AU78: 0 | AV78: 0 | AX78: 0 | AY78: 0 | AZ78: 0 | BA78: 0 | BB78: 0 | BC78: 0 | BD78: 0 | BE78: 0 | BF78: 0 | BG78: 0 | BH78: 0 | BI78: 0 | BJ78: 0 | BK78: 0 | BL78: 0 | BM78: 0 | BN78: 0 | BO78: 0 | BP78: 0 | BQ78: 0 | BR78: 0 | BS78: 0 | BT78: 0 | BU78: 0 | BV78: 0 | BW78: 0 | BX78: 0 | BY78: 0 | BZ78: 0 | CA78: 0 | CB78: 0 | CE78: Übergabestationen Heizung | CG78: 1 | CH78: 1 | CI78: 1 | CJ78: 1 | CK78: 1 | CL78: 1 | CM78: 1 | CN78: 1 | CO78: 1 | CP78: 1 | CQ78: 1 | CR78: 1 | CS78: 1 | CT78: 0 | CU78: 0 | CV78: 0
B79: Energiemessung | E79: 20 | G79: 0.08 | I79: [% Inv.] | K79: 20 | L79: 0.08 | M79: 0 | N79: 0 | P79: Energiemessung | Q79: 0 | R79: 0 | S79: 0 | T79: 0 | U79: 0 | V79: 0 | W79: 0 | X79: 0 | Y79: 0 | Z79: 0 | AA79: 0 | AB79: 0 | AC79: 0 | AD79: 0 | AE79: 0 | AF79: 0 | AG79: 0 | AH79: 0 | AI79: 0 | AJ79: 0 | AK79: 0 | AL79: 0 | AM79: 0 | AN79: 0 | AO79: 0 | AP79: 0 | AQ79: 0 | AR79: 0 | AS79: 0 | AT79: 0 | AU79: 0 | AV79: 0 | AX79: 0 | AY79: 0 | AZ79: 0 | BA79: 0 | BB79: 0 | BC79: 0 | BD79: 0 | BE79: 0 | BF79: 0 | BG79: 0 | BH79: 0 | BI79: 0 | BJ79: 0 | BK79: 0 | BL79: =BK79-$N79+AE79 -> 0 | BM79: 0 | BN79: 0 | BO79: 0 | BP79: 0 | BQ79: 0 | BR79: 0 | BS79: 0 | BT79: 0 | BU79: 0 | BV79: 0 | BW79: 0 | BX79: 0 | BY79: 0 | BZ79: 0 | CA79: 0 | CB79: 0 | CE79: Energiemessung | CG79: 1 | CH79: 1 | CI79: 1 | CJ79: 1 | CK79: 1 | CL79: 1 | CM79: 1 | CN79: 1 | CO79: 1 | CP79: 1 | CQ79: 1 | CR79: 1 | CS79: 1 | CT79: 0 | CU79: 0 | CV79: 0
B80: Dämmungen | E80: 30 | G80: 0.001 | I80: [% Inv.] | K80: 30 | L80: 0.001 | M80: 0 | N80: 0 | P80: Dämmungen | Q80: 0 | R80: 0 | S80: 0 | T80: 0 | U80: 0 | V80: 0 | W80: 0 | X80: 0 | Y80: 0 | Z80: 0 | AA80: 0 | AB80: 0 | AC80: 0 | AD80: 0 | AE80: 0 | AF80: 0 | AG80: 0 | AH80: 0 | AI80: 0 | AJ80: 0 | AK80: 0 | AL80: 0 | AM80: 0 | AN80: 0 | AO80: 0 | AP80: 0 | AQ80: 0 | AR80: 0 | AS80: 0 | AT80: 0 | AU80: 0 | AV80: 0 | AX80: 0 | AY80: 0 | AZ80: 0 | BA80: 0 | BB80: 0 | BC80: 0 | BD80: 0 | BE80: 0 | BF80: 0 | BG80: 0 | BH80: 0 | BI80: 0 | BJ80: 0 | BK80: 0 | BL80: 0 | BM80: 0 | BN80: 0 | BO80: 0 | BP80: 0 | BQ80: 0 | BR80: 0 | BS80: 0 | BT80: 0 | BU80: 0 | BV80: 0 | BW80: 0 | BX80: 0 | BY80: 0 | BZ80: 0 | CA80: 0 | CB80: 0 | CE80: Dämmungen | CG80: 1 | CH80: 1 | CI80: 1 | CJ80: 1 | CK80: 1 | CL80: 1 | CM80: 1 | CN80: 1 | CO80: 1 | CP80: 1 | CQ80: 1 | CR80: 1 | CS80: 1 | CT80: 0 | CU80: 0 | CV80: 0
B81: Weiteres | E81: 30 | G81: kein Default | I81: [% Inv.] | K81: 30 | L81: 0 | M81: 0 | N81: 0 | P81: Weiteres | Q81: 0 | R81: 0 | S81: 0 | T81: 0 | U81: 0 | V81: 0 | W81: 0 | X81: 0 | Y81: 0 | Z81: 0 | AA81: 0 | AB81: 0 | AC81: 0 | AD81: 0 | AE81: 0 | AF81: 0 | AG81: 0 | AH81: 0 | AI81: 0 | AJ81: 0 | AK81: 0 | AL81: 0 | AM81: 0 | AN81: 0 | AO81: 0 | AP81: 0 | AQ81: 0 | AR81: 0 | AS81: 0 | AT81: 0 | AU81: 0 | AV81: 0 | AX81: 0 | AY81: 0 | AZ81: 0 | BA81: 0 | BB81: 0 | BC81: 0 | BD81: 0 | BE81: 0 | BF81: 0 | BG81: 0 | BH81: 0 | BI81: 0 | BJ81: 0 | BK81: 0 | BL81: 0 | BM81: 0 | BN81: 0 | BO81: 0 | BP81: 0 | BQ81: 0 | BR81: 0 | BS81: 0 | BT81: 0 | BU81: 0 | BV81: 0 | BW81: 0 | BX81: 0 | BY81: 0 | BZ81: 0 | CA81: 0 | CB81: 0 | CE81: Weiteres | CG81: 1 | CH81: 1 | CI81: 1 | CJ81: 1 | CK81: 1 | CL81: 1 | CM81: 1 | CN81: 1 | CO81: 1 | CP81: 1 | CQ81: 1 | CR81: 1 | CS81: 1 | CT81: 0 | CU81: 0 | CV81: 0
B82: 7. Wärmeabgabe | P82: 7. Wärmeabgabe | CE82: 7. Wärmeabgabe | CF82: 1 | CG82: 1 | CH82: 1 | CI82: 1 | CJ82: 1 | CK82: 1 | CL82: 1 | CM82: 1 | CN82: 1 | CO82: 1 | CP82: 1 | CQ82: 1 | CR82: 1 | CS82: 1 | CT82: 1 | CU82: 1 | CV82: 1
B83: Heizkörper | E83: 40 | G83: 0.01 | I83: [% Inv.] | K83: 40 | L83: =IF(ISNUMBER(H83),IF(I83=$D$332,IFERROR(H83/D83,"-"),H83/100),IF(ISNUMBER(G83),G83,0)) -> 0.01 | M83: =IF(AND(ISNUMBER(H83),I83=$D$332),H83,L83*D83) -> 0 | N83: =1/K83*D83 -> 0 | P83: Heizkörper | Q83: 0 | R83: =IF(Betrachtungszeit_Heizung<R$26,0,IF(AND(Q$26<>0,Q$26/($K83)=INT(Q$26/($K83))),$D83,0)) -> 0 | S83: 0 | T83: 0 | U83: 0 | V83: 0 | W83: 0 | X83: 0 | Y83: 0 | Z83: 0 | AA83: 0 | AB83: 0 | AC83: 0 | AD83: 0 | AE83: 0 | AF83: 0 | AG83: 0 | AH83: 0 | AI83: 0 | AJ83: 0 | AK83: 0 | AL83: 0 | AM83: 0 | AN83: 0 | AO83: 0 | AP83: 0 | AQ83: 0 | AR83: 0 | AS83: 0 | AT83: 0 | AU83: 0 | AV83: =SUMIF($AX$26:$CB$26,Betrachtungszeit_Heizung,AX83:CB83) -> 0 | AX83: =$D83 -> 0 | AY83: 0 | AZ83: 0 | BA83: 0 | BB83: 0 | BC83: 0 | BD83: 0 | BE83: 0 | BF83: 0 | BG83: 0 | BH83: 0 | BI83: 0 | BJ83: 0 | BK83: 0 | BL83: 0 | BM83: 0 | BN83: 0 | BO83: 0 | BP83: 0 | BQ83: 0 | BR83: 0 | BS83: 0 | BT83: 0 | BU83: 0 | BV83: 0 | BW83: 0 | BX83: 0 | BY83: 0 | BZ83: =BY83-$N83+AS83 -> 0 | CA83: 0 | CB83: 0 | CE83: Heizkörper | CG83: 1 | CH83: 1 | CI83: 1 | CJ83: 1 | CK83: 1 | CL83: 1 | CM83: 1 | CN83: 1 | CO83: 1 | CP83: 1 | CQ83: 1 | CR83: 1 | CS83: 1 | CT83: 0 | CU83: 0 | CV83: 0
B84: Bodenheizung | E84: 30 | G84: 0.01 | I84: [% Inv.] | K84: 30 | L84: 0.01 | M84: 0 | N84: 0 | P84: Bodenheizung | Q84: 0 | R84: 0 | S84: 0 | T84: 0 | U84: 0 | V84: 0 | W84: 0 | X84: 0 | Y84: 0 | Z84: 0 | AA84: 0 | AB84: 0 | AC84: 0 | AD84: 0 | AE84: 0 | AF84: 0 | AG84: 0 | AH84: 0 | AI84: 0 | AJ84: 0 | AK84: 0 | AL84: 0 | AM84: 0 | AN84: 0 | AO84: 0 | AP84: 0 | AQ84: 0 | AR84: 0 | AS84: 0 | AT84: 0 | AU84: 0 | AV84: 0 | AX84: 0 | AY84: 0 | AZ84: 0 | BA84: 0 | BB84: 0 | BC84: 0 | BD84: 0 | BE84: 0 | BF84: 0 | BG84: 0 | BH84: 0 | BI84: 0 | BJ84: 0 | BK84: 0 | BL84: 0 | BM84: 0 | BN84: 0 | BO84: 0 | BP84: 0 | BQ84: 0 | BR84: 0 | BS84: 0 | BT84: 0 | BU84: 0 | BV84: 0 | BW84: 0 | BX84: 0 | BY84: 0 | BZ84: 0 | CA84: 0 | CB84: 0 | CE84: Bodenheizung | CG84: 1 | CH84: 1 | CI84: 1 | CJ84: 1 | CK84: 1 | CL84: 1 | CM84: 1 | CN84: 1 | CO84: 1 | CP84: 1 | CQ84: 1 | CR84: 1 | CS84: 1 | CT84: 0 | CU84: 0 | CV84: 0
B85: TABs | E85: 40 | G85: 0.01 | I85: [% Inv.] | K85: 40 | L85: 0.01 | M85: 0 | N85: 0 | P85: TABs | Q85: 0 | R85: 0 | S85: 0 | T85: 0 | U85: 0 | V85: 0 | W85: 0 | X85: 0 | Y85: 0 | Z85: 0 | AA85: 0 | AB85: 0 | AC85: 0 | AD85: 0 | AE85: 0 | AF85: 0 | AG85: 0 | AH85: 0 | AI85: 0 | AJ85: 0 | AK85: 0 | AL85: 0 | AM85: 0 | AN85: 0 | AO85: 0 | AP85: 0 | AQ85: 0 | AR85: 0 | AS85: 0 | AT85: 0 | AU85: 0 | AV85: 0 | AX85: 0 | AY85: 0 | AZ85: 0 | BA85: 0 | BB85: 0 | BC85: 0 | BD85: 0 | BE85: 0 | BF85: 0 | BG85: 0 | BH85: 0 | BI85: 0 | BJ85: 0 | BK85: 0 | BL85: 0 | BM85: 0 | BN85: 0 | BO85: 0 | BP85: 0 | BQ85: 0 | BR85: 0 | BS85: 0 | BT85: 0 | BU85: 0 | BV85: 0 | BW85: 0 | BX85: 0 | BY85: 0 | BZ85: 0 | CA85: 0 | CB85: 0 | CE85: TABs | CG85: 1 | CH85: 1 | CI85: 1 | CJ85: 1 | CK85: 1 | CL85: 1 | CM85: 1 | CN85: 1 | CO85: 1 | CP85: 1 | CQ85: 1 | CR85: 1 | CS85: 1 | CT85: 0 | CU85: 0 | CV85: 0
B86: Luftheizapparate | E86: 20 | G86: 0.02 | I86: [% Inv.] | K86: 20 | L86: 0.02 | M86: 0 | N86: 0 | P86: Luftheizapparate | Q86: 0 | R86: 0 | S86: 0 | T86: 0 | U86: 0 | V86: 0 | W86: 0 | X86: 0 | Y86: 0 | Z86: 0 | AA86: 0 | AB86: 0 | AC86: 0 | AD86: 0 | AE86: 0 | AF86: 0 | AG86: 0 | AH86: 0 | AI86: 0 | AJ86: 0 | AK86: 0 | AL86: 0 | AM86: 0 | AN86: 0 | AO86: 0 | AP86: 0 | AQ86: 0 | AR86: 0 | AS86: 0 | AT86: 0 | AU86: 0 | AV86: 0 | AX86: 0 | AY86: 0 | AZ86: 0 | BA86: 0 | BB86: 0 | BC86: 0 | BD86: 0 | BE86: 0 | BF86: 0 | BG86: 0 | BH86: 0 | BI86: 0 | BJ86: 0 | BK86: 0 | BL86: 0 | BM86: 0 | BN86: 0 | BO86: 0 | BP86: 0 | BQ86: 0 | BR86: 0 | BS86: 0 | BT86: 0 | BU86: 0 | BV86: 0 | BW86: 0 | BX86: 0 | BY86: 0 | BZ86: 0 | CA86: 0 | CB86: 0 | CE86: Luftheizapparate | CG86: 1 | CH86: 1 | CI86: 1 | CJ86: 1 | CK86: 1 | CL86: 1 | CM86: 1 | CN86: 1 | CO86: 1 | CP86: 1 | CQ86: 1 | CR86: 1 | CS86: 1 | CT86: 0 | CU86: 0 | CV86: 0
B87: Lufterhitzer-Anschluss | E87: 20 | G87: 0.015 | I87: [% Inv.] | K87: 20 | L87: 0.015 | M87: 0 | N87: 0 | P87: Lufterhitzer-Anschluss | Q87: 0 | R87: 0 | S87: 0 | T87: 0 | U87: 0 | V87: 0 | W87: 0 | X87: 0 | Y87: 0 | Z87: 0 | AA87: 0 | AB87: 0 | AC87: 0 | AD87: 0 | AE87: 0 | AF87: 0 | AG87: 0 | AH87: 0 | AI87: 0 | AJ87: 0 | AK87: 0 | AL87: 0 | AM87: 0 | AN87: 0 | AO87: 0 | AP87: 0 | AQ87: 0 | AR87: 0 | AS87: 0 | AT87: 0 | AU87: 0 | AV87: 0 | AX87: 0 | AY87: 0 | AZ87: 0 | BA87: 0 | BB87: 0 | BC87: 0 | BD87: 0 | BE87: 0 | BF87: 0 | BG87: 0 | BH87: 0 | BI87: 0 | BJ87: 0 | BK87: 0 | BL87: 0 | BM87: 0 | BN87: 0 | BO87: 0 | BP87: 0 | BQ87: 0 | BR87: 0 | BS87: 0 | BT87: 0 | BU87: 0 | BV87: 0 | BW87: 0 | BX87: 0 | BY87: 0 | BZ87: 0 | CA87: 0 | CB87: 0 | CE87: Lufterhitzer-Anschluss | CG87: 1 | CH87: 1 | CI87: 1 | CJ87: 1 | CK87: 1 | CL87: 1 | CM87: 1 | CN87: 1 | CO87: 1 | CP87: 1 | CQ87: 1 | CR87: 1 | CS87: 1 | CT87: 0 | CU87: 0 | CV87: 0
B88: KVS-WRG Lüftung | E88: 20 | G88: 0.025 | I88: [% Inv.] | K88: 20 | L88: 0.025 | M88: 0 | N88: 0 | P88: KVS-WRG Lüftung | Q88: 0 | R88: 0 | S88: 0 | T88: 0 | U88: 0 | V88: 0 | W88: 0 | X88: 0 | Y88: 0 | Z88: 0 | AA88: 0 | AB88: 0 | AC88: 0 | AD88: 0 | AE88: 0 | AF88: 0 | AG88: 0 | AH88: 0 | AI88: 0 | AJ88: 0 | AK88: 0 | AL88: 0 | AM88: 0 | AN88: 0 | AO88: 0 | AP88: 0 | AQ88: 0 | AR88: 0 | AS88: 0 | AT88: 0 | AU88: 0 | AV88: 0 | AX88: 0 | AY88: 0 | AZ88: 0 | BA88: 0 | BB88: =BA88-$N88+U88 -> 0 | BC88: 0 | BD88: 0 | BE88: 0 | BF88: 0 | BG88: 0 | BH88: 0 | BI88: 0 | BJ88: 0 | BK88: 0 | BL88: 0 | BM88: 0 | BN88: 0 | BO88: 0 | BP88: 0 | BQ88: 0 | BR88: 0 | BS88: 0 | BT88: 0 | BU88: 0 | BV88: 0 | BW88: 0 | BX88: 0 | BY88: 0 | BZ88: 0 | CA88: 0 | CB88: 0 | CE88: KVS-WRG Lüftung | CG88: 1 | CH88: 1 | CI88: 1 | CJ88: 1 | CK88: 1 | CL88: 1 | CM88: 1 | CN88: 1 | CO88: 1 | CP88: 1 | CQ88: 1 | CR88: 1 | CS88: 1 | CT88: 0 | CU88: 0 | CV88: 0
B89: Energiemessung | E89: 20 | G89: 0.08 | I89: [% Inv.] | K89: 20 | L89: 0.08 | M89: 0 | N89: 0 | P89: Energiemessung | Q89: 0 | R89: 0 | S89: 0 | T89: 0 | U89: 0 | V89: 0 | W89: 0 | X89: 0 | Y89: 0 | Z89: 0 | AA89: 0 | AB89: 0 | AC89: 0 | AD89: 0 | AE89: 0 | AF89: 0 | AG89: 0 | AH89: 0 | AI89: 0 | AJ89: 0 | AK89: 0 | AL89: 0 | AM89: 0 | AN89: 0 | AO89: 0 | AP89: 0 | AQ89: 0 | AR89: 0 | AS89: 0 | AT89: 0 | AU89: 0 | AV89: 0 | AX89: 0 | AY89: =AX89-$N89+R89 -> 0 | AZ89: 0 | BA89: 0 | BB89: 0 | BC89: 0 | BD89: 0 | BE89: 0 | BF89: 0 | BG89: 0 | BH89: 0 | BI89: 0 | BJ89: 0 | BK89: 0 | BL89: 0 | BM89: 0 | BN89: 0 | BO89: 0 | BP89: 0 | BQ89: 0 | BR89: 0 | BS89: 0 | BT89: 0 | BU89: 0 | BV89: 0 | BW89: 0 | BX89: 0 | BY89: 0 | BZ89: 0 | CA89: 0 | CB89: 0 | CE89: Energiemessung | CG89: 1 | CH89: 1 | CI89: 1 | CJ89: 1 | CK89: 1 | CL89: 1 | CM89: 1 | CN89: 1 | CO89: 1 | CP89: 1 | CQ89: 1 | CR89: 1 | CS89: 1 | CT89: 0 | CU89: 0 | CV89: 0
B90: Dämmungen | E90: 30 | G90: 0.001 | I90: [% Inv.] | K90: 30 | L90: 0.001 | M90: 0 | N90: 0 | P90: =B90 -> Dämmungen | Q90: 0 | R90: 0 | S90: 0 | T90: 0 | U90: 0 | V90: 0 | W90: 0 | X90: 0 | Y90: 0 | Z90: 0 | AA90: 0 | AB90: 0 | AC90: 0 | AD90: 0 | AE90: 0 | AF90: 0 | AG90: 0 | AH90: 0 | AI90: 0 | AJ90: 0 | AK90: 0 | AL90: 0 | AM90: 0 | AN90: 0 | AO90: 0 | AP90: 0 | AQ90: 0 | AR90: 0 | AS90: 0 | AT90: 0 | AU90: 0 | AV90: 0 | AX90: 0 | AY90: 0 | AZ90: 0 | BA90: 0 | BB90: 0 | BC90: 0 | BD90: 0 | BE90: 0 | BF90: 0 | BG90: 0 | BH90: 0 | BI90: 0 | BJ90: 0 | BK90: 0 | BL90: 0 | BM90: 0 | BN90: 0 | BO90: 0 | BP90: 0 | BQ90: 0 | BR90: 0 | BS90: 0 | BT90: 0 | BU90: 0 | BV90: 0 | BW90: 0 | BX90: 0 | BY90: 0 | BZ90: 0 | CA90: 0 | CB90: 0 | CE90: =B90 -> Dämmungen | CG90: 1 | CH90: 1 | CI90: 1 | CJ90: 1 | CK90: 1 | CL90: 1 | CM90: 1 | CN90: 1 | CO90: 1 | CP90: 1 | CQ90: 1 | CR90: 1 | CS90: 1 | CT90: =SUMIF($CF$25:$CS$25,$C$12,CF90:CS90) -> 0 | CU90: =SUMIF($CF$25:$CS$25,$C$20,CF90:CS90) -> 0 | CV90: 0
B91: Weiteres | E91: 30 | G91: kein Default | I91: [% Inv.] | K91: 30 | L91: 0 | M91: 0 | N91: 0 | P91: Weiteres | Q91: 0 | R91: 0 | S91: 0 | T91: 0 | U91: 0 | V91: 0 | W91: 0 | X91: 0 | Y91: 0 | Z91: 0 | AA91: 0 | AB91: 0 | AC91: 0 | AD91: 0 | AE91: 0 | AF91: 0 | AG91: =IF(Betrachtungszeit_Heizung<AG$26,0,IF(AND(AF$26<>0,AF$26/($K91)=INT(AF$26/($K91))),$D91,0)) -> 0 | AH91: 0 | AI91: 0 | AJ91: 0 | AK91: 0 | AL91: 0 | AM91: 0 | AN91: 0 | AO91: 0 | AP91: 0 | AQ91: 0 | AR91: 0 | AS91: 0 | AT91: 0 | AU91: 0 | AV91: 0 | AX91: 0 | AY91: 0 | AZ91: 0 | BA91: 0 | BB91: 0 | BC91: 0 | BD91: 0 | BE91: 0 | BF91: 0 | BG91: 0 | BH91: 0 | BI91: 0 | BJ91: 0 | BK91: 0 | BL91: 0 | BM91: 0 | BN91: 0 | BO91: 0 | BP91: 0 | BQ91: 0 | BR91: 0 | BS91: 0 | BT91: 0 | BU91: 0 | BV91: 0 | BW91: 0 | BX91: 0 | BY91: 0 | BZ91: 0 | CA91: 0 | CB91: 0 | CE91: Weiteres | CG91: 1 | CH91: 1 | CI91: 1 | CJ91: 1 | CK91: 1 | CL91: 1 | CM91: 1 | CN91: 1 | CO91: 1 | CP91: 1 | CQ91: 1 | CR91: 1 | CS91: 1 | CT91: 0 | CU91: 0 | CV91: =IF(CT91+CU91>0,1,0) -> 0
B92: 8. Sicherheit | P92: 8. Sicherheit | CE92: 8. Sicherheit | CF92: 1 | CG92: 1 | CH92: 1 | CI92: 1 | CJ92: 1 | CK92: 1 | CL92: 1 | CM92: 1 | CN92: 1 | CO92: 1 | CP92: 1 | CQ92: 1 | CR92: 1 | CS92: 1 | CT92: 1 | CU92: 1 | CV92: 1
B93: Gaswarnanlage | E93: 15 | G93: 0.03 | I93: [% Inv.] | K93: =IF(ISNUMBER(F93),F93,IF(ISNUMBER(E93),E93,0)) -> 15 | L93: =IF(ISNUMBER(H93),IF(I93=$D$332,IFERROR(H93/D93,"-"),H93/100),IF(ISNUMBER(G93),G93,0)) -> 0.03 | M93: =IF(AND(ISNUMBER(H93),I93=$D$332),H93,L93*D93) -> 0 | N93: =1/K93*D93 -> 0 | P93: Gaswarnanlage | Q93: =D93 -> 0 | R93: =IF(Betrachtungszeit_Heizung<R$26,0,IF(AND(Q$26<>0,Q$26/($K93)=INT(Q$26/($K93))),$D93,0)) -> 0 | S93: 0 | T93: 0 | U93: 0 | V93: 0 | W93: 0 | X93: 0 | Y93: 0 | Z93: 0 | AA93: 0 | AB93: 0 | AC93: 0 | AD93: 0 | AE93: 0 | AF93: 0 | AG93: 0 | AH93: 0 | AI93: 0 | AJ93: 0 | AK93: 0 | AL93: 0 | AM93: 0 | AN93: 0 | AO93: 0 | AP93: 0 | AQ93: 0 | AR93: 0 | AS93: 0 | AT93: 0 | AU93: 0 | AV93: =SUMIF($AX$26:$CB$26,Betrachtungszeit_Heizung,AX93:CB93) -> 0 | AX93: 0 | AY93: =AX93-$N93+R93 -> 0 | AZ93: 0 | BA93: 0 | BB93: 0 | BC93: 0 | BD93: 0 | BE93: 0 | BF93: 0 | BG93: 0 | BH93: 0 | BI93: 0 | BJ93: 0 | BK93: 0 | BL93: 0 | BM93: 0 | BN93: 0 | BO93: =BN93-$N93+AH93 -> 0 | BP93: 0 | BQ93: 0 | BR93: 0 | BS93: 0 | BT93: 0 | BU93: 0 | BV93: 0 | BW93: 0 | BX93: 0 | BY93: 0 | BZ93: 0 | CA93: 0 | CB93: 0 | CE93: Gaswarnanlage | CR93: 1 | CT93: 0 | CU93: 0 | CV93: 0
B94: Öltank Überwachung Erdreich | E94: 15 | G94: 0.03 | I94: [% Inv.] | K94: 15 | L94: 0.03 | M94: 0 | N94: 0 | P94: Öltank Überwachung Erdreich | Q94: 0 | R94: 0 | S94: 0 | T94: 0 | U94: 0 | V94: 0 | W94: 0 | X94: 0 | Y94: 0 | Z94: 0 | AA94: 0 | AB94: 0 | AC94: 0 | AD94: 0 | AE94: 0 | AF94: 0 | AG94: 0 | AH94: 0 | AI94: 0 | AJ94: 0 | AK94: 0 | AL94: 0 | AM94: 0 | AN94: 0 | AO94: 0 | AP94: 0 | AQ94: 0 | AR94: 0 | AS94: 0 | AT94: 0 | AU94: 0 | AV94: =SUMIF($AX$26:$CB$26,Betrachtungszeit_Heizung,AX94:CB94) -> 0 | AX94: 0 | AY94: 0 | AZ94: 0 | BA94: 0 | BB94: 0 | BC94: 0 | BD94: 0 | BE94: 0 | BF94: 0 | BG94: 0 | BH94: 0 | BI94: 0 | BJ94: 0 | BK94: 0 | BL94: 0 | BM94: 0 | BN94: 0 | BO94: 0 | BP94: 0 | BQ94: 0 | BR94: 0 | BS94: 0 | BT94: 0 | BU94: 0 | BV94: 0 | BW94: 0 | BX94: 0 | BY94: 0 | BZ94: 0 | CA94: 0 | CB94: 0 | CE94: Öltank Überwachung Erdreich | CS94: 1 | CT94: 0 | CU94: 0 | CV94: 0
B95: Warnanlage Kältemittel | E95: 15 | G95: 0.03 | I95: [% Inv.] | K95: 15 | L95: 0.03 | M95: 0 | N95: 0 | P95: Warnanlage Kältemittel | Q95: 0 | R95: 0 | S95: 0 | T95: 0 | U95: 0 | V95: 0 | W95: 0 | X95: 0 | Y95: 0 | Z95: 0 | AA95: 0 | AB95: 0 | AC95: 0 | AD95: 0 | AE95: 0 | AF95: 0 | AG95: 0 | AH95: 0 | AI95: 0 | AJ95: 0 | AK95: 0 | AL95: 0 | AM95: 0 | AN95: 0 | AO95: 0 | AP95: 0 | AQ95: 0 | AR95: 0 | AS95: 0 | AT95: 0 | AU95: 0 | AV95: =SUMIF($AX$26:$CB$26,Betrachtungszeit_Heizung,AX95:CB95) -> 0 | AX95: 0 | AY95: 0 | AZ95: 0 | BA95: 0 | BB95: 0 | BC95: 0 | BD95: 0 | BE95: 0 | BF95: 0 | BG95: 0 | BH95: 0 | BI95: 0 | BJ95: 0 | BK95: 0 | BL95: 0 | BM95: 0 | BN95: 0 | BO95: 0 | BP95: 0 | BQ95: 0 | BR95: 0 | BS95: 0 | BT95: 0 | BU95: 0 | BV95: 0 | BW95: 0 | BX95: 0 | BY95: 0 | BZ95: 0 | CA95: 0 | CB95: 0 | CE95: Warnanlage Kältemittel | CG95: 1 | CH95: 1 | CI95: 1 | CJ95: 1 | CK95: 1 | CT95: 0 | CU95: 0 | CV95: 0
B96: Brandmeldeanlage | E96: 15 | G96: 0.03 | I96: [% Inv.] | K96: 15 | L96: 0.03 | M96: 0 | N96: 0 | P96: Brandmeldeanlage | Q96: 0 | R96: 0 | S96: 0 | T96: 0 | U96: 0 | V96: 0 | W96: 0 | X96: 0 | Y96: 0 | Z96: 0 | AA96: 0 | AB96: 0 | AC96: 0 | AD96: 0 | AE96: 0 | AF96: 0 | AG96: 0 | AH96: 0 | AI96: 0 | AJ96: 0 | AK96: 0 | AL96: 0 | AM96: 0 | AN96: 0 | AO96: 0 | AP96: 0 | AQ96: 0 | AR96: 0 | AS96: 0 | AT96: 0 | AU96: 0 | AV96: =SUMIF($AX$26:$CB$26,Betrachtungszeit_Heizung,AX96:CB96) -> 0 | AX96: 0 | AY96: 0 | AZ96: 0 | BA96: 0 | BB96: 0 | BC96: 0 | BD96: 0 | BE96: 0 | BF96: 0 | BG96: 0 | BH96: 0 | BI96: 0 | BJ96: 0 | BK96: 0 | BL96: 0 | BM96: 0 | BN96: 0 | BO96: 0 | BP96: 0 | BQ96: 0 | BR96: 0 | BS96: 0 | BT96: 0 | BU96: 0 | BV96: 0 | BW96: 0 | BX96: 0 | BY96: 0 | BZ96: 0 | CA96: 0 | CB96: 0 | CE96: Brandmeldeanlage | CG96: 1 | CH96: 1 | CI96: 1 | CJ96: 1 | CK96: 1 | CL96: 1 | CM96: 1 | CN96: 1 | CO96: 1 | CP96: 1 | CQ96: 1 | CR96: 1 | CS96: 1 | CT96: 0 | CU96: 0 | CV96: 0
B97: Weiteres | E97: 30 | G97: kein Default | I97: [% Inv.] | K97: 30 | L97: 0 | M97: 0 | N97: 0 | P97: Weiteres | Q97: 0 | R97: 0 | S97: 0 | T97: 0 | U97: 0 | V97: 0 | W97: 0 | X97: 0 | Y97: 0 | Z97: 0 | AA97: 0 | AB97: 0 | AC97: 0 | AD97: 0 | AE97: 0 | AF97: 0 | AG97: 0 | AH97: 0 | AI97: 0 | AJ97: 0 | AK97: 0 | AL97: 0 | AM97: 0 | AN97: 0 | AO97: 0 | AP97: 0 | AQ97: 0 | AR97: 0 | AS97: 0 | AT97: 0 | AU97: 0 | AV97: =SUMIF($AX$26:$CB$26,Betrachtungszeit_Heizung,AX97:CB97) -> 0 | AX97: 0 | AY97: 0 | AZ97: 0 | BA97: 0 | BB97: 0 | BC97: 0 | BD97: 0 | BE97: 0 | BF97: 0 | BG97: 0 | BH97: 0 | BI97: 0 | BJ97: 0 | BK97: 0 | BL97: 0 | BM97: 0 | BN97: 0 | BO97: 0 | BP97: 0 | BQ97: 0 | BR97: 0 | BS97: 0 | BT97: 0 | BU97: 0 | BV97: 0 | BW97: 0 | BX97: 0 | BY97: 0 | BZ97: 0 | CA97: 0 | CB97: 0 | CE97: Weiteres | CG97: 1 | CH97: 1 | CI97: 1 | CJ97: 1 | CK97: 1 | CL97: 1 | CM97: 1 | CN97: 1 | CO97: 1 | CP97: 1 | CQ97: 1 | CR97: 1 | CS97: 1 | CT97: 0 | CU97: 0 | CV97: 0
B98: 9. Sanitär | P98: 9. Sanitär | CE98: 9. Sanitär | CF98: 1 | CG98: 1 | CH98: 1 | CI98: 1 | CJ98: 1 | CK98: 1 | CL98: 1 | CM98: 1 | CN98: 1 | CO98: 1 | CP98: 1 | CQ98: 1 | CR98: 1 | CS98: 1 | CT98: 1 | CU98: 1 | CV98: 1
B99: Warmwasserspeicher | E99: 30 | G99: 0.01 | I99: [% Inv.] | K99: 30 | L99: =IF(ISNUMBER(H99),IF(I99=$D$332,IFERROR(H99/D99,"-"),H99/100),IF(ISNUMBER(G99),G99,0)) -> 0.01 | M99: =IF(AND(ISNUMBER(H99),I99=$D$332),H99,L99*D99) -> 0 | N99: =1/K99*D99 -> 0 | P99: Warmwasserspeicher | Q99: 0 | R99: =IF(Betrachtungszeit_Heizung<R$26,0,IF(AND(Q$26<>0,Q$26/($K99)=INT(Q$26/($K99))),$D99,0)) -> 0 | S99: 0 | T99: 0 | U99: 0 | V99: 0 | W99: 0 | X99: 0 | Y99: 0 | Z99: 0 | AA99: 0 | AB99: 0 | AC99: 0 | AD99: 0 | AE99: 0 | AF99: 0 | AG99: 0 | AH99: 0 | AI99: 0 | AJ99: 0 | AK99: 0 | AL99: 0 | AM99: 0 | AN99: 0 | AO99: 0 | AP99: 0 | AQ99: 0 | AR99: 0 | AS99: 0 | AT99: 0 | AU99: 0 | AV99: =SUMIF($AX$26:$CB$26,Betrachtungszeit_Heizung,AX99:CB99) -> 0 | AX99: 0 | AY99: 0 | AZ99: 0 | BA99: 0 | BB99: 0 | BC99: 0 | BD99: 0 | BE99: 0 | BF99: 0 | BG99: 0 | BH99: 0 | BI99: 0 | BJ99: 0 | BK99: 0 | BL99: 0 | BM99: 0 | BN99: 0 | BO99: 0 | BP99: 0 | BQ99: 0 | BR99: 0 | BS99: 0 | BT99: 0 | BU99: 0 | BV99: 0 | BW99: 0 | BX99: 0 | BY99: 0 | BZ99: 0 | CA99: 0 | CB99: 0 | CE99: Warmwasserspeicher | CG99: 1 | CH99: 1 | CI99: 1 | CJ99: 1 | CK99: 1 | CL99: 1 | CM99: 1 | CN99: 1 | CO99: 1 | CP99: 1 | CQ99: 1 | CR99: 1 | CS99: 1 | CT99: 0 | CU99: 0 | CV99: 0
B100: Verteiler Warmwasser | E100: 40 | G100: 0.015 | I100: [% Inv.] | K100: 40 | L100: 0.015 | M100: 0 | N100: 0 | P100: Verteiler Warmwasser | Q100: 0 | R100: 0 | S100: 0 | T100: 0 | U100: 0 | V100: 0 | W100: 0 | X100: 0 | Y100: 0 | Z100: 0 | AA100: 0 | AB100: 0 | AC100: 0 | AD100: 0 | AE100: 0 | AF100: 0 | AG100: 0 | AH100: 0 | AI100: 0 | AJ100: 0 | AK100: 0 | AL100: 0 | AM100: 0 | AN100: 0 | AO100: 0 | AP100: 0 | AQ100: 0 | AR100: 0 | AS100: 0 | AT100: 0 | AU100: 0 | AV100: 0 | AX100: 0 | AY100: 0 | AZ100: 0 | BA100: 0 | BB100: 0 | BC100: 0 | BD100: 0 | BE100: 0 | BF100: 0 | BG100: 0 | BH100: 0 | BI100: 0 | BJ100: 0 | BK100: 0 | BL100: 0 | BM100: 0 | BN100: 0 | BO100: 0 | BP100: 0 | BQ100: 0 | BR100: 0 | BS100: 0 | BT100: 0 | BU100: 0 | BV100: 0 | BW100: 0 | BX100: 0 | BY100: 0 | BZ100: 0 | CA100: 0 | CB100: 0 | CE100: Verteiler Warmwasser | CG100: 1 | CH100: 1 | CI100: 1 | CJ100: 1 | CK100: 1 | CL100: 1 | CM100: 1 | CN100: 1 | CO100: 1 | CP100: 1 | CQ100: 1 | CR100: 1 | CS100: 1 | CT100: 0 | CU100: 0 | CV100: 0
B101: Schmutzwasserleitungen | E101: 40 | G101: 0.01 | I101: [% Inv.] | K101: 40 | L101: 0.01 | M101: 0 | N101: 0 | P101: Schmutzwasserleitungen | Q101: 0 | R101: 0 | S101: 0 | T101: 0 | U101: 0 | V101: 0 | W101: 0 | X101: 0 | Y101: 0 | Z101: 0 | AA101: 0 | AB101: 0 | AC101: 0 | AD101: 0 | AE101: 0 | AF101: 0 | AG101: 0 | AH101: 0 | AI101: 0 | AJ101: 0 | AK101: 0 | AL101: 0 | AM101: 0 | AN101: 0 | AO101: 0 | AP101: 0 | AQ101: 0 | AR101: 0 | AS101: 0 | AT101: 0 | AU101: 0 | AV101: 0 | AX101: 0 | AY101: 0 | AZ101: 0 | BA101: 0 | BB101: 0 | BC101: 0 | BD101: 0 | BE101: 0 | BF101: 0 | BG101: 0 | BH101: 0 | BI101: 0 | BJ101: 0 | BK101: 0 | BL101: 0 | BM101: 0 | BN101: 0 | BO101: 0 | BP101: 0 | BQ101: 0 | BR101: 0 | BS101: 0 | BT101: 0 | BU101: 0 | BV101: 0 | BW101: 0 | BX101: 0 | BY101: 0 | BZ101: 0 | CA101: 0 | CB101: 0 | CE101: Schmutzwasserleitungen | CG101: 1 | CH101: 1 | CI101: 1 | CJ101: 1 | CK101: 1 | CL101: 1 | CM101: 1 | CN101: 1 | CO101: 1 | CP101: 1 | CQ101: 1 | CR101: 1 | CS101: 1 | CT101: 0 | CU101: 0 | CV101: 0
B102: Apparate | E102: 40 | G102: 0.015 | I102: [% Inv.] | K102: 40 | L102: 0.015 | M102: 0 | N102: 0 | P102: Apparate | Q102: 0 | R102: 0 | S102: 0 | T102: 0 | U102: 0 | V102: 0 | W102: 0 | X102: 0 | Y102: 0 | Z102: 0 | AA102: 0 | AB102: 0 | AC102: 0 | AD102: 0 | AE102: 0 | AF102: 0 | AG102: 0 | AH102: 0 | AI102: 0 | AJ102: 0 | AK102: 0 | AL102: 0 | AM102: 0 | AN102: 0 | AO102: 0 | AP102: 0 | AQ102: 0 | AR102: 0 | AS102: 0 | AT102: 0 | AU102: 0 | AV102: 0 | AX102: 0 | AY102: 0 | AZ102: 0 | BA102: 0 | BB102: 0 | BC102: 0 | BD102: 0 | BE102: 0 | BF102: 0 | BG102: 0 | BH102: 0 | BI102: 0 | BJ102: 0 | BK102: 0 | BL102: 0 | BM102: 0 | BN102: 0 | BO102: 0 | BP102: 0 | BQ102: 0 | BR102: 0 | BS102: 0 | BT102: 0 | BU102: 0 | BV102: 0 | BW102: 0 | BX102: 0 | BY102: 0 | BZ102: 0 | CA102: 0 | CB102: 0 | CE102: Apparate | CG102: 1 | CH102: 1 | CI102: 1 | CJ102: 1 | CK102: 1 | CL102: 1 | CM102: 1 | CN102: 1 | CO102: 1 | CP102: 1 | CQ102: 1 | CR102: 1 | CS102: 1 | CT102: 0 | CU102: 0 | CV102: 0
B103: Zirkulationsleitungen | E103: 40 | G103: 0.01 | I103: [% Inv.] | K103: 40 | L103: 0.01 | M103: 0 | N103: 0 | P103: Zirkulationsleitungen | Q103: 0 | R103: 0 | S103: 0 | T103: 0 | U103: 0 | V103: 0 | W103: 0 | X103: 0 | Y103: 0 | Z103: 0 | AA103: 0 | AB103: 0 | AC103: 0 | AD103: 0 | AE103: 0 | AF103: 0 | AG103: 0 | AH103: 0 | AI103: 0 | AJ103: 0 | AK103: 0 | AL103: 0 | AM103: 0 | AN103: 0 | AO103: 0 | AP103: 0 | AQ103: 0 | AR103: 0 | AS103: 0 | AT103: 0 | AU103: 0 | AV103: 0 | AX103: 0 | AY103: 0 | AZ103: 0 | BA103: 0 | BB103: 0 | BC103: 0 | BD103: 0 | BE103: 0 | BF103: 0 | BG103: 0 | BH103: 0 | BI103: 0 | BJ103: 0 | BK103: 0 | BL103: 0 | BM103: 0 | BN103: 0 | BO103: 0 | BP103: 0 | BQ103: 0 | BR103: 0 | BS103: 0 | BT103: 0 | BU103: 0 | BV103: 0 | BW103: 0 | BX103: 0 | BY103: 0 | BZ103: 0 | CA103: 0 | CB103: 0 | CE103: Zirkulationsleitungen | CG103: 1 | CH103: 1 | CI103: 1 | CJ103: 1 | CK103: 1 | CL103: 1 | CM103: 1 | CN103: 1 | CO103: 1 | CP103: 1 | CQ103: 1 | CR103: 1 | CS103: 1 | CT103: 0 | CU103: 0 | CV103: 0
B104: Energiemessung | E104: 20 | G104: 0.08 | I104: [% Inv.] | K104: 20 | L104: 0.08 | M104: 0 | N104: 0 | P104: Energiemessung | Q104: 0 | R104: 0 | S104: 0 | T104: 0 | U104: 0 | V104: 0 | W104: 0 | X104: 0 | Y104: 0 | Z104: 0 | AA104: 0 | AB104: 0 | AC104: 0 | AD104: 0 | AE104: 0 | AF104: 0 | AG104: 0 | AH104: 0 | AI104: 0 | AJ104: 0 | AK104: 0 | AL104: 0 | AM104: 0 | AN104: 0 | AO104: 0 | AP104: 0 | AQ104: 0 | AR104: 0 | AS104: 0 | AT104: 0 | AU104: 0 | AV104: 0 | AX104: 0 | AY104: 0 | AZ104: 0 | BA104: 0 | BB104: 0 | BC104: 0 | BD104: 0 | BE104: 0 | BF104: 0 | BG104: 0 | BH104: 0 | BI104: 0 | BJ104: 0 | BK104: 0 | BL104: 0 | BM104: 0 | BN104: 0 | BO104: 0 | BP104: 0 | BQ104: 0 | BR104: 0 | BS104: 0 | BT104: 0 | BU104: 0 | BV104: 0 | BW104: 0 | BX104: 0 | BY104: 0 | BZ104: 0 | CA104: 0 | CB104: 0 | CE104: Energiemessung | CG104: 1 | CH104: 1 | CI104: 1 | CJ104: 1 | CK104: 1 | CL104: 1 | CM104: 1 | CN104: 1 | CO104: 1 | CP104: 1 | CQ104: 1 | CR104: 1 | CS104: 1 | CT104: 0 | CU104: 0 | CV104: 0
B105: Dämmungen | E105: 30 | G105: 0.001 | I105: [% Inv.] | K105: 30 | L105: 0.001 | M105: 0 | N105: 0 | P105: Dämmungen | Q105: 0 | R105: 0 | S105: 0 | T105: 0 | U105: 0 | V105: 0 | W105: 0 | X105: 0 | Y105: 0 | Z105: 0 | AA105: 0 | AB105: 0 | AC105: 0 | AD105: 0 | AE105: 0 | AF105: 0 | AG105: 0 | AH105: 0 | AI105: 0 | AJ105: 0 | AK105: 0 | AL105: 0 | AM105: 0 | AN105: 0 | AO105: 0 | AP105: 0 | AQ105: 0 | AR105: 0 | AS105: 0 | AT105: 0 | AU105: 0 | AV105: 0 | AX105: 0 | AY105: 0 | AZ105: 0 | BA105: 0 | BB105: 0 | BC105: 0 | BD105: 0 | BE105: 0 | BF105: 0 | BG105: 0 | BH105: 0 | BI105: 0 | BJ105: 0 | BK105: 0 | BL105: 0 | BM105: 0 | BN105: 0 | BO105: 0 | BP105: 0 | BQ105: 0 | BR105: 0 | BS105: 0 | BT105: 0 | BU105: 0 | BV105: 0 | BW105: 0 | BX105: 0 | BY105: 0 | BZ105: 0 | CA105: 0 | CB105: 0 | CE105: Dämmungen | CG105: 1 | CH105: 1 | CI105: 1 | CJ105: 1 | CK105: 1 | CL105: 1 | CM105: 1 | CN105: 1 | CO105: 1 | CP105: 1 | CQ105: 1 | CR105: 1 | CS105: 1 | CT105: 0 | CU105: 0 | CV105: 0
B106: Weiteres | E106: 30 | G106: kein Default | I106: [% Inv.] | K106: 30 | L106: 0 | M106: 0 | N106: 0 | P106: Weiteres | Q106: 0 | R106: 0 | S106: 0 | T106: 0 | U106: 0 | V106: 0 | W106: 0 | X106: 0 | Y106: 0 | Z106: 0 | AA106: 0 | AB106: 0 | AC106: 0 | AD106: 0 | AE106: 0 | AF106: 0 | AG106: 0 | AH106: 0 | AI106: 0 | AJ106: 0 | AK106: 0 | AL106: 0 | AM106: 0 | AN106: 0 | AO106: 0 | AP106: 0 | AQ106: 0 | AR106: 0 | AS106: 0 | AT106: 0 | AU106: 0 | AV106: 0 | AX106: 0 | AY106: 0 | AZ106: 0 | BA106: 0 | BB106: 0 | BC106: 0 | BD106: 0 | BE106: 0 | BF106: 0 | BG106: 0 | BH106: 0 | BI106: 0 | BJ106: 0 | BK106: 0 | BL106: 0 | BM106: 0 | BN106: 0 | BO106: 0 | BP106: 0 | BQ106: 0 | BR106: 0 | BS106: 0 | BT106: 0 | BU106: 0 | BV106: 0 | BW106: 0 | BX106: 0 | BY106: 0 | BZ106: 0 | CA106: 0 | CB106: 0 | CE106: Weiteres | CG106: 1 | CH106: 1 | CI106: 1 | CJ106: 1 | CK106: 1 | CL106: 1 | CM106: 1 | CN106: 1 | CO106: 1 | CP106: 1 | CQ106: 1 | CR106: 1 | CS106: 1 | CT106: 0 | CU106: 0 | CV106: 0
B107: 10. Lüftung | P107: 10. Lüftung | CE107: 10. Lüftung | CF107: 1 | CG107: 1 | CH107: 1 | CI107: 1 | CJ107: 1 | CK107: 1 | CL107: 1 | CM107: 1 | CN107: 1 | CO107: 1 | CP107: 1 | CQ107: 1 | CR107: 1 | CS107: 1 | CT107: 1 | CU107: 1 | CV107: 1
B108: Lüftungsgeräte/Monoblock | E108: 25 | G108: 0.04 | I108: [% Inv.] | K108: 25 | L108: =IF(ISNUMBER(H108),IF(I108=$D$332,IFERROR(H108/D108,"-"),H108/100),IF(ISNUMBER(G108),G108,0)) -> 0.04 | M108: =IF(AND(ISNUMBER(H108),I108=$D$332),H108,L108*D108) -> 0 | N108: =1/K108*D108 -> 0 | P108: Lüftungsgeräte/Monoblock | Q108: 0 | R108: =IF(Betrachtungszeit_Heizung<R$26,0,IF(AND(Q$26<>0,Q$26/($K108)=INT(Q$26/($K108))),$D108,0)) -> 0 | S108: 0 | T108: 0 | U108: 0 | V108: 0 | W108: 0 | X108: 0 | Y108: 0 | Z108: 0 | AA108: 0 | AB108: 0 | AC108: 0 | AD108: 0 | AE108: 0 | AF108: 0 | AG108: 0 | AH108: 0 | AI108: 0 | AJ108: 0 | AK108: 0 | AL108: 0 | AM108: 0 | AN108: 0 | AO108: 0 | AP108: 0 | AQ108: 0 | AR108: 0 | AS108: 0 | AT108: 0 | AU108: 0 | AV108: =SUMIF($AX$26:$CB$26,Betrachtungszeit_Heizung,AX108:CB108) -> 0 | AX108: 0 | AY108: 0 | AZ108: 0 | BA108: 0 | BB108: 0 | BC108: 0 | BD108: 0 | BE108: 0 | BF108: 0 | BG108: 0 | BH108: 0 | BI108: 0 | BJ108: 0 | BK108: 0 | BL108: 0 | BM108: 0 | BN108: 0 | BO108: 0 | BP108: 0 | BQ108: 0 | BR108: 0 | BS108: 0 | BT108: 0 | BU108: 0 | BV108: 0 | BW108: 0 | BX108: 0 | BY108: 0 | BZ108: 0 | CA108: 0 | CB108: 0 | CE108: Lüftungsgeräte/Monoblock | CG108: 1 | CH108: 1 | CI108: 1 | CJ108: 1 | CK108: 1 | CL108: 1 | CM108: 1 | CN108: 1 | CO108: 1 | CP108: 1 | CQ108: 1 | CR108: 1 | CS108: 1 | CT108: 0 | CU108: 0 | CV108: 0
B109: Armaturen, Instrumente | E109: 15 | G109: 0.01 | I109: [% Inv.] | K109: 15 | L109: 0.01 | M109: 0 | N109: 0 | P109: Armaturen, Instrumente | Q109: 0 | R109: 0 | S109: 0 | T109: 0 | U109: 0 | V109: 0 | W109: 0 | X109: 0 | Y109: 0 | Z109: 0 | AA109: 0 | AB109: 0 | AC109: 0 | AD109: 0 | AE109: 0 | AF109: 0 | AG109: 0 | AH109: 0 | AI109: 0 | AJ109: 0 | AK109: 0 | AL109: 0 | AM109: 0 | AN109: 0 | AO109: 0 | AP109: 0 | AQ109: 0 | AR109: 0 | AS109: 0 | AT109: 0 | AU109: 0 | AV109: =SUMIF($AX$26:$CB$26,Betrachtungszeit_Heizung,AX109:CB109) -> 0 | AX109: 0 | AY109: 0 | AZ109: 0 | BA109: 0 | BB109: 0 | BC109: 0 | BD109: 0 | BE109: 0 | BF109: 0 | BG109: 0 | BH109: 0 | BI109: 0 | BJ109: 0 | BK109: 0 | BL109: 0 | BM109: 0 | BN109: 0 | BO109: 0 | BP109: 0 | BQ109: 0 | BR109: 0 | BS109: 0 | BT109: 0 | BU109: 0 | BV109: 0 | BW109: 0 | BX109: 0 | BY109: 0 | BZ109: 0 | CA109: 0 | CB109: 0 | CE109: Armaturen, Instrumente | CG109: 1 | CH109: 1 | CI109: 1 | CJ109: 1 | CK109: 1 | CL109: 1 | CM109: 1 | CN109: 1 | CO109: 1 | CP109: 1 | CQ109: 1 | CR109: 1 | CS109: 1 | CT109: 0 | CU109: 0 | CV109: 0
B110: Kanäle | E110: 40 | G110: 0.01 | I110: [% Inv.] | K110: 40 | L110: 0.01 | M110: 0 | N110: 0 | P110: Kanäle | Q110: 0 | R110: 0 | S110: 0 | T110: 0 | U110: 0 | V110: 0 | W110: 0 | X110: 0 | Y110: 0 | Z110: 0 | AA110: 0 | AB110: 0 | AC110: 0 | AD110: 0 | AE110: 0 | AF110: 0 | AG110: 0 | AH110: 0 | AI110: 0 | AJ110: 0 | AK110: 0 | AL110: 0 | AM110: 0 | AN110: 0 | AO110: 0 | AP110: 0 | AQ110: 0 | AR110: 0 | AS110: 0 | AT110: 0 | AU110: 0 | AV110: =SUMIF($AX$26:$CB$26,Betrachtungszeit_Heizung,AX110:CB110) -> 0 | AX110: 0 | AY110: 0 | AZ110: 0 | BA110: 0 | BB110: 0 | BC110: 0 | BD110: 0 | BE110: 0 | BF110: 0 | BG110: 0 | BH110: 0 | BI110: 0 | BJ110: 0 | BK110: 0 | BL110: 0 | BM110: 0 | BN110: =BM110-$N110+AG110 -> 0 | BO110: 0 | BP110: 0 | BQ110: 0 | BR110: 0 | BS110: 0 | BT110: 0 | BU110: 0 | BV110: 0 | BW110: 0 | BX110: 0 | BY110: 0 | BZ110: 0 | CA110: 0 | CB110: 0 | CE110: Kanäle | CG110: 1 | CH110: 1 | CI110: 1 | CJ110: 1 | CK110: 1 | CL110: 1 | CM110: 1 | CN110: 1 | CO110: 1 | CP110: 1 | CQ110: 1 | CR110: 1 | CS110: 1 | CT110: 0 | CU110: 0 | CV110: 0
B111: Dämmungen | E111: 30 | G111: 0.001 | I111: [% Inv.] | K111: 30 | L111: 0.001 | M111: 0 | N111: 0 | P111: Dämmungen | Q111: 0 | R111: 0 | S111: 0 | T111: 0 | U111: 0 | V111: 0 | W111: 0 | X111: 0 | Y111: 0 | Z111: 0 | AA111: 0 | AB111: 0 | AC111: 0 | AD111: 0 | AE111: 0 | AF111: 0 | AG111: 0 | AH111: 0 | AI111: 0 | AJ111: 0 | AK111: 0 | AL111: 0 | AM111: 0 | AN111: 0 | AO111: 0 | AP111: 0 | AQ111: 0 | AR111: 0 | AS111: 0 | AT111: 0 | AU111: 0 | AV111: =SUMIF($AX$26:$CB$26,Betrachtungszeit_Heizung,AX111:CB111) -> 0 | AX111: 0 | AY111: =AX111-$N111+R111 -> 0 | AZ111: 0 | BA111: 0 | BB111: 0 | BC111: 0 | BD111: 0 | BE111: 0 | BF111: 0 | BG111: 0 | BH111: 0 | BI111: 0 | BJ111: 0 | BK111: 0 | BL111: 0 | BM111: 0 | BN111: 0 | BO111: 0 | BP111: 0 | BQ111: 0 | BR111: 0 | BS111: 0 | BT111: 0 | BU111: 0 | BV111: 0 | BW111: 0 | BX111: 0 | BY111: 0 | BZ111: 0 | CA111: 0 | CB111: 0 | CE111: Dämmungen | CG111: 1 | CH111: 1 | CI111: 1 | CJ111: 1 | CK111: 1 | CL111: 1 | CM111: 1 | CN111: 1 | CO111: 1 | CP111: 1 | CQ111: 1 | CR111: 1 | CS111: 1 | CT111: 0 | CU111: 0 | CV111: 0
B112: Weiteres | E112: 30 | G112: kein Default | I112: [% Inv.] | K112: 30 | L112: 0 | M112: 0 | N112: 0 | P112: Weiteres | Q112: 0 | R112: 0 | S112: 0 | T112: 0 | U112: 0 | V112: 0 | W112: 0 | X112: 0 | Y112: 0 | Z112: 0 | AA112: 0 | AB112: 0 | AC112: 0 | AD112: 0 | AE112: 0 | AF112: 0 | AG112: 0 | AH112: 0 | AI112: 0 | AJ112: 0 | AK112: 0 | AL112: 0 | AM112: 0 | AN112: 0 | AO112: 0 | AP112: 0 | AQ112: 0 | AR112: 0 | AS112: 0 | AT112: 0 | AU112: 0 | AV112: =SUMIF($AX$26:$CB$26,Betrachtungszeit_Heizung,AX112:CB112) -> 0 | AX112: 0 | AY112: 0 | AZ112: 0 | BA112: 0 | BB112: 0 | BC112: 0 | BD112: 0 | BE112: 0 | BF112: 0 | BG112: 0 | BH112: 0 | BI112: 0 | BJ112: 0 | BK112: 0 | BL112: 0 | BM112: 0 | BN112: 0 | BO112: 0 | BP112: 0 | BQ112: 0 | BR112: 0 | BS112: 0 | BT112: 0 | BU112: 0 | BV112: 0 | BW112: 0 | BX112: 0 | BY112: 0 | BZ112: 0 | CA112: 0 | CB112: 0 | CE112: Weiteres | CG112: 1 | CH112: 1 | CI112: 1 | CJ112: 1 | CK112: 1 | CL112: 1 | CM112: 1 | CN112: 1 | CO112: 1 | CP112: 1 | CQ112: 1 | CR112: 1 | CS112: 1 | CT112: 0 | CU112: 0 | CV112: 0
B113: 11. Metallbauarbeiten | P113: 11. Metallbauarbeiten | AY113: 0 | AZ113: 0 | BA113: 0 | BB113: 0 | BC113: 0 | BD113: 0 | BE113: 0 | BF113: 0 | BG113: 0 | BH113: 0 | BI113: 0 | BJ113: 0 | BK113: 0 | BL113: 0 | BM113: 0 | BN113: 0 | BO113: 0 | BP113: 0 | BQ113: 0 | BR113: =BQ113-$N113+AK113 -> 0 | BS113: 0 | BT113: 0 | BU113: 0 | BV113: 0 | BW113: 0 | BX113: 0 | BY113: 0 | BZ113: 0 | CA113: 0 | CB113: 0 | CE113: 11. Metallbauarbeiten | CF113: 1 | CG113: 1 | CH113: 1 | CI113: 1 | CJ113: 1 | CK113: 1 | CL113: 1 | CM113: 1 | CN113: 1 | CO113: 1 | CP113: 1 | CQ113: 1 | CR113: 1 | CS113: 1 | CT113: 1 | CU113: 1 | CV113: 1
B114: Tore, Türen | E114: 30 | G114: 0.0125 | I114: [% Inv.] | K114: 30 | L114: =IF(ISNUMBER(H114),IF(I114=$D$332,IFERROR(H114/D114,"-"),H114/100),IF(ISNUMBER(G114),G114,0)) -> 0.0125 | M114: =IF(AND(ISNUMBER(H114),I114=$D$332),H114,L114*D114) -> 0 | N114: =1/K114*D114 -> 0 | P114: Tore, Türen | Q114: 0 | R114: =IF(Betrachtungszeit_Heizung<R$26,0,IF(AND(Q$26<>0,Q$26/($K114)=INT(Q$26/($K114))),$D114,0)) -> 0 | S114: 0 | T114: 0 | U114: 0 | V114: 0 | W114: 0 | X114: 0 | Y114: 0 | Z114: 0 | AA114: 0 | AB114: 0 | AC114: 0 | AD114: 0 | AE114: 0 | AF114: 0 | AG114: 0 | AH114: 0 | AI114: 0 | AJ114: 0 | AK114: 0 | AL114: 0 | AM114: 0 | AN114: 0 | AO114: 0 | AP114: 0 | AQ114: 0 | AR114: 0 | AS114: 0 | AT114: 0 | AU114: 0 | AV114: =SUMIF($AX$26:$CB$26,Betrachtungszeit_Heizung,AX114:CB114) -> 0 | AX114: 0 | AY114: 0 | AZ114: 0 | BA114: 0 | BB114: 0 | BC114: 0 | BD114: 0 | BE114: 0 | BF114: 0 | BG114: 0 | BH114: 0 | BI114: 0 | BJ114: 0 | BK114: 0 | BL114: 0 | BM114: 0 | BN114: 0 | BO114: 0 | BP114: 0 | BQ114: 0 | BR114: 0 | BS114: 0 | BT114: 0 | BU114: 0 | BV114: 0 | BW114: 0 | BX114: 0 | BY114: 0 | BZ114: 0 | CA114: 0 | CB114: 0 | CE114: Tore, Türen | CG114: 1 | CH114: 1 | CI114: 1 | CJ114: 1 | CK114: 1 | CL114: 1 | CM114: 1 | CN114: 1 | CO114: 1 | CP114: 1 | CQ114: 1 | CR114: 1 | CS114: 1 | CT114: 0 | CU114: 0 | CV114: 0
B115: Podeste/Geländer | E115: 30 | G115: 0.005 | I115: [% Inv.] | K115: 30 | L115: 0.005 | M115: 0 | N115: 0 | P115: Podeste/Geländer | Q115: 0 | R115: 0 | S115: 0 | T115: 0 | U115: 0 | V115: 0 | W115: 0 | X115: 0 | Y115: 0 | Z115: 0 | AA115: 0 | AB115: 0 | AC115: 0 | AD115: 0 | AE115: 0 | AF115: 0 | AG115: 0 | AH115: 0 | AI115: 0 | AJ115: 0 | AK115: 0 | AL115: 0 | AM115: 0 | AN115: 0 | AO115: 0 | AP115: 0 | AQ115: 0 | AR115: 0 | AS115: 0 | AT115: 0 | AU115: 0 | AV115: =SUMIF($AX$26:$CB$26,Betrachtungszeit_Heizung,AX115:CB115) -> 0 | AX115: 0 | AY115: 0 | AZ115: 0 | BA115: 0 | BB115: 0 | BC115: 0 | BD115: 0 | BE115: 0 | BF115: 0 | BG115: 0 | BH115: 0 | BI115: 0 | BJ115: 0 | BK115: 0 | BL115: 0 | BM115: 0 | BN115: 0 | BO115: 0 | BP115: 0 | BQ115: 0 | BR115: 0 | BS115: 0 | BT115: 0 | BU115: 0 | BV115: 0 | BW115: 0 | BX115: 0 | BY115: 0 | BZ115: 0 | CA115: 0 | CB115: 0 | CE115: Podeste/Geländer | CG115: 1 | CH115: 1 | CI115: 1 | CJ115: 1 | CK115: 1 | CL115: 1 | CM115: 1 | CN115: 1 | CO115: 1 | CP115: 1 | CQ115: 1 | CR115: 1 | CS115: 1 | CT115: 0 | CU115: 0 | CV115: 0
B116: Silodeckel | E116: 15 | G116: 0.02 | I116: [% Inv.] | K116: 15 | L116: 0.02 | M116: 0 | N116: 0 | P116: Silodeckel | Q116: 0 | R116: 0 | S116: 0 | T116: 0 | U116: 0 | V116: 0 | W116: 0 | X116: 0 | Y116: 0 | Z116: 0 | AA116: 0 | AB116: 0 | AC116: 0 | AD116: 0 | AE116: 0 | AF116: 0 | AG116: 0 | AH116: 0 | AI116: 0 | AJ116: 0 | AK116: 0 | AL116: 0 | AM116: 0 | AN116: 0 | AO116: 0 | AP116: 0 | AQ116: 0 | AR116: 0 | AS116: 0 | AT116: 0 | AU116: 0 | AV116: =SUMIF($AX$26:$CB$26,Betrachtungszeit_Heizung,AX116:CB116) -> 0 | AX116: 0 | AY116: 0 | AZ116: 0 | BA116: 0 | BB116: 0 | BC116: 0 | BD116: 0 | BE116: 0 | BF116: 0 | BG116: 0 | BH116: 0 | BI116: 0 | BJ116: 0 | BK116: 0 | BL116: 0 | BM116: 0 | BN116: 0 | BO116: 0 | BP116: 0 | BQ116: 0 | BR116: 0 | BS116: 0 | BT116: 0 | BU116: 0 | BV116: 0 | BW116: 0 | BX116: 0 | BY116: 0 | BZ116: 0 | CA116: 0 | CB116: 0 | CE116: Silodeckel | CM116: 1 | CN116: 1 | CT116: 0 | CU116: 0 | CV116: 0
B117: Stationäre Hebevorrichtungen | E117: 15 | G117: 0.015 | I117: [% Inv.] | K117: 15 | L117: 0.015 | M117: 0 | N117: 0 | P117: Stationäre Hebevorrichtungen | Q117: 0 | R117: 0 | S117: 0 | T117: 0 | U117: 0 | V117: 0 | W117: 0 | X117: 0 | Y117: 0 | Z117: 0 | AA117: 0 | AB117: 0 | AC117: 0 | AD117: 0 | AE117: 0 | AF117: 0 | AG117: 0 | AH117: 0 | AI117: 0 | AJ117: 0 | AK117: 0 | AL117: 0 | AM117: 0 | AN117: 0 | AO117: 0 | AP117: 0 | AQ117: 0 | AR117: 0 | AS117: 0 | AT117: 0 | AU117: 0 | AV117: =SUMIF($AX$26:$CB$26,Betrachtungszeit_Heizung,AX117:CB117) -> 0 | AX117: 0 | AY117: 0 | AZ117: 0 | BA117: 0 | BB117: 0 | BC117: 0 | BD117: 0 | BE117: 0 | BF117: 0 | BG117: 0 | BH117: 0 | BI117: 0 | BJ117: 0 | BK117: 0 | BL117: 0 | BM117: 0 | BN117: 0 | BO117: 0 | BP117: 0 | BQ117: 0 | BR117: 0 | BS117: 0 | BT117: 0 | BU117: 0 | BV117: 0 | BW117: 0 | BX117: 0 | BY117: 0 | BZ117: 0 | CA117: 0 | CB117: 0 | CE117: Stationäre Hebevorrichtungen | CG117: 1 | CH117: 1 | CI117: 1 | CJ117: 1 | CK117: 1 | CL117: 1 | CM117: 1 | CN117: 1 | CO117: 1 | CP117: 1 | CQ117: 1 | CR117: 1 | CS117: 1 | CT117: 0 | CU117: 0 | CV117: 0
B118: Weiteres | E118: 30 | G118: kein Default | I118: [% Inv.] | K118: 30 | L118: 0 | M118: 0 | N118: 0 | P118: Weiteres | Q118: 0 | R118: 0 | S118: 0 | T118: 0 | U118: 0 | V118: 0 | W118: 0 | X118: 0 | Y118: 0 | Z118: 0 | AA118: 0 | AB118: 0 | AC118: 0 | AD118: 0 | AE118: 0 | AF118: 0 | AG118: 0 | AH118: 0 | AI118: 0 | AJ118: 0 | AK118: 0 | AL118: 0 | AM118: 0 | AN118: 0 | AO118: 0 | AP118: 0 | AQ118: 0 | AR118: 0 | AS118: 0 | AT118: 0 | AU118: 0 | AV118: =SUMIF($AX$26:$CB$26,Betrachtungszeit_Heizung,AX118:CB118) -> 0 | AX118: 0 | AY118: 0 | AZ118: 0 | BA118: 0 | BB118: 0 | BC118: 0 | BD118: 0 | BE118: 0 | BF118: 0 | BG118: 0 | BH118: 0 | BI118: 0 | BJ118: 0 | BK118: 0 | BL118: 0 | BM118: 0 | BN118: 0 | BO118: 0 | BP118: 0 | BQ118: 0 | BR118: 0 | BS118: 0 | BT118: 0 | BU118: 0 | BV118: 0 | BW118: 0 | BX118: 0 | BY118: 0 | BZ118: 0 | CA118: 0 | CB118: 0 | CE118: Weiteres | CG118: 1 | CH118: 1 | CI118: 1 | CJ118: 1 | CK118: 1 | CL118: 1 | CM118: 1 | CN118: 1 | CO118: 1 | CP118: 1 | CQ118: 1 | CR118: 1 | CS118: 1 | CT118: 0 | CU118: 0 | CV118: 0
B119: 12. Bauliches Zentrale | P119: 12. Bauliches Zentrale | CE119: 12. Bauliches Zentrale | CF119: 1 | CG119: 1 | CH119: 1 | CI119: 1 | CJ119: 1 | CK119: 1 | CL119: 1 | CM119: 1 | CN119: 1 | CO119: 1 | CP119: 1 | CQ119: 1 | CR119: 1 | CS119: 1 | CT119: 1 | CU119: 1 | CV119: 1
B120: Aushub | E120: 30 | G120: 0 | I120: [% Inv.] | K120: 30 | L120: =IF(ISNUMBER(H120),IF(I120=$D$332,IFERROR(H120/D120,"-"),H120/100),IF(ISNUMBER(G120),G120,0)) -> 0 | M120: =IF(AND(ISNUMBER(H120),I120=$D$332),H120,L120*D120) -> 0 | N120: =1/K120*D120 -> 0 | P120: Aushub | Q120: 0 | R120: =IF(Betrachtungszeit_Heizung<R$26,0,IF(AND(Q$26<>0,Q$26/($K120)=INT(Q$26/($K120))),$D120,0)) -> 0 | S120: 0 | T120: 0 | U120: 0 | V120: 0 | W120: 0 | X120: 0 | Y120: 0 | Z120: 0 | AA120: 0 | AB120: 0 | AC120: 0 | AD120: 0 | AE120: 0 | AF120: 0 | AG120: 0 | AH120: 0 | AI120: 0 | AJ120: 0 | AK120: 0 | AL120: 0 | AM120: 0 | AN120: 0 | AO120: 0 | AP120: 0 | AQ120: 0 | AR120: 0 | AS120: 0 | AT120: 0 | AU120: 0 | AV120: =SUMIF($AX$26:$CB$26,Betrachtungszeit_Heizung,AX120:CB120) -> 0 | AX120: 0 | AY120: 0 | AZ120: 0 | BA120: 0 | BB120: 0 | BC120: 0 | BD120: 0 | BE120: 0 | BF120: 0 | BG120: 0 | BH120: 0 | BI120: 0 | BJ120: 0 | BK120: 0 | BL120: 0 | BM120: 0 | BN120: 0 | BO120: 0 | BP120: 0 | BQ120: 0 | BR120: 0 | BS120: 0 | BT120: 0 | BU120: 0 | BV120: 0 | BW120: 0 | BX120: 0 | BY120: 0 | BZ120: 0 | CA120: 0 | CB120: 0 | CE120: Aushub | CG120: 1 | CH120: 1 | CI120: 1 | CJ120: 1 | CK120: 1 | CL120: 1 | CM120: 1 | CN120: 1 | CO120: 1 | CP120: 1 | CQ120: 1 | CR120: 1 | CS120: 1 | CT120: 0 | CU120: 0 | CV120: 0
B121: Gebäudekostenanteil Zentrale | E121: 30 | G121: 0.015 | I121: [% Inv.] | K121: 30 | L121: 0.015 | M121: 0 | N121: 0 | P121: Gebäudekostenanteil Zentrale | Q121: 0 | R121: 0 | S121: 0 | T121: 0 | U121: 0 | V121: 0 | W121: 0 | X121: 0 | Y121: 0 | Z121: 0 | AA121: 0 | AB121: 0 | AC121: 0 | AD121: 0 | AE121: 0 | AF121: 0 | AG121: 0 | AH121: 0 | AI121: 0 | AJ121: 0 | AK121: 0 | AL121: 0 | AM121: 0 | AN121: 0 | AO121: 0 | AP121: 0 | AQ121: 0 | AR121: 0 | AS121: 0 | AT121: 0 | AU121: 0 | AV121: 0 | AX121: 0 | AY121: 0 | AZ121: 0 | BA121: 0 | BB121: 0 | BC121: 0 | BD121: 0 | BE121: 0 | BF121: 0 | BG121: 0 | BH121: 0 | BI121: 0 | BJ121: 0 | BK121: 0 | BL121: 0 | BM121: 0 | BN121: 0 | BO121: 0 | BP121: 0 | BQ121: 0 | BR121: 0 | BS121: 0 | BT121: 0 | BU121: 0 | BV121: 0 | BW121: 0 | BX121: 0 | BY121: 0 | BZ121: 0 | CA121: 0 | CB121: 0 | CE121: Gebäudekostenanteil Zentrale | CG121: 1 | CH121: 1 | CI121: 1 | CJ121: 1 | CK121: 1 | CL121: 1 | CM121: 1 | CN121: 1 | CO121: 1 | CP121: 1 | CQ121: 1 | CR121: 1 | CS121: 1 | CT121: 0 | CU121: 0 | CV121: 0
B122: Baumeisterarbeiten | E122: 30 | G122: 0.015 | I122: [% Inv.] | K122: 30 | L122: 0.015 | M122: 0 | N122: 0 | P122: Baumeisterarbeiten | Q122: 0 | R122: 0 | S122: 0 | T122: 0 | U122: 0 | V122: 0 | W122: 0 | X122: 0 | Y122: 0 | Z122: 0 | AA122: 0 | AB122: 0 | AC122: 0 | AD122: 0 | AE122: 0 | AF122: 0 | AG122: 0 | AH122: 0 | AI122: 0 | AJ122: 0 | AK122: 0 | AL122: 0 | AM122: 0 | AN122: 0 | AO122: 0 | AP122: 0 | AQ122: 0 | AR122: 0 | AS122: 0 | AT122: 0 | AU122: 0 | AV122: 0 | AX122: 0 | AY122: 0 | AZ122: 0 | BA122: 0 | BB122: 0 | BC122: 0 | BD122: 0 | BE122: 0 | BF122: 0 | BG122: 0 | BH122: 0 | BI122: 0 | BJ122: 0 | BK122: 0 | BL122: 0 | BM122: 0 | BN122: 0 | BO122: 0 | BP122: 0 | BQ122: 0 | BR122: 0 | BS122: 0 | BT122: 0 | BU122: 0 | BV122: 0 | BW122: 0 | BX122: 0 | BY122: 0 | BZ122: 0 | CA122: 0 | CB122: 0 | CE122: Baumeisterarbeiten | CG122: 1 | CH122: 1 | CI122: 1 | CJ122: 1 | CK122: 1 | CL122: 1 | CM122: 1 | CN122: 1 | CO122: 1 | CP122: 1 | CQ122: 1 | CR122: 1 | CS122: 1 | CT122: 0 | CU122: 0 | CV122: 0
B123: Fluchteinrichtungen | E123: 30 | G123: 0.015 | I123: [% Inv.] | K123: 30 | L123: 0.015 | M123: 0 | N123: 0 | P123: Fluchteinrichtungen | Q123: 0 | R123: 0 | S123: 0 | T123: 0 | U123: 0 | V123: 0 | W123: 0 | X123: 0 | Y123: 0 | Z123: 0 | AA123: 0 | AB123: 0 | AC123: 0 | AD123: 0 | AE123: 0 | AF123: 0 | AG123: 0 | AH123: 0 | AI123: 0 | AJ123: 0 | AK123: 0 | AL123: 0 | AM123: 0 | AN123: 0 | AO123: 0 | AP123: 0 | AQ123: 0 | AR123: 0 | AS123: 0 | AT123: 0 | AU123: 0 | AV123: 0 | AX123: 0 | AY123: 0 | AZ123: 0 | BA123: 0 | BB123: 0 | BC123: 0 | BD123: 0 | BE123: 0 | BF123: 0 | BG123: 0 | BH123: 0 | BI123: 0 | BJ123: 0 | BK123: 0 | BL123: 0 | BM123: 0 | BN123: 0 | BO123: 0 | BP123: 0 | BQ123: 0 | BR123: 0 | BS123: 0 | BT123: 0 | BU123: 0 | BV123: 0 | BW123: 0 | BX123: 0 | BY123: 0 | BZ123: 0 | CA123: 0 | CB123: 0 | CE123: Fluchteinrichtungen | CG123: 1 | CH123: 1 | CI123: 1 | CJ123: 1 | CK123: 1 | CL123: 1 | CM123: 1 | CN123: 1 | CO123: 1 | CP123: 1 | CQ123: 1 | CR123: 1 | CS123: 1 | CT123: 0 | CU123: 0 | CV123: 0
B124: Zufahrt Schnitzel-/Pelletsilo | E124: 30 | G124: 0.015 | I124: [% Inv.] | K124: 30 | L124: 0.015 | M124: 0 | N124: 0 | P124: Zufahrt Schnitzel-/Pelletsilo | Q124: 0 | R124: 0 | S124: 0 | T124: 0 | U124: 0 | V124: 0 | W124: 0 | X124: 0 | Y124: 0 | Z124: 0 | AA124: 0 | AB124: 0 | AC124: 0 | AD124: 0 | AE124: 0 | AF124: 0 | AG124: 0 | AH124: 0 | AI124: 0 | AJ124: 0 | AK124: 0 | AL124: 0 | AM124: 0 | AN124: 0 | AO124: 0 | AP124: 0 | AQ124: 0 | AR124: 0 | AS124: 0 | AT124: 0 | AU124: 0 | AV124: 0 | AX124: 0 | AY124: 0 | AZ124: 0 | BA124: 0 | BB124: 0 | BC124: 0 | BD124: 0 | BE124: 0 | BF124: 0 | BG124: 0 | BH124: 0 | BI124: 0 | BJ124: 0 | BK124: 0 | BL124: 0 | BM124: 0 | BN124: 0 | BO124: 0 | BP124: 0 | BQ124: 0 | BR124: 0 | BS124: 0 | BT124: 0 | BU124: 0 | BV124: 0 | BW124: 0 | BX124: 0 | BY124: 0 | BZ124: 0 | CA124: 0 | CB124: 0 | CE124: Zufahrt Schnitzel-/Pelletsilo | CM124: 1 | CN124: 1 | CT124: 0 | CU124: 0 | CV124: 0
B125: Weiteres | E125: 30 | G125: kein Default | I125: [% Inv.] | K125: 30 | L125: 0 | M125: 0 | N125: 0 | P125: Weiteres | Q125: 0 | R125: 0 | S125: 0 | T125: 0 | U125: 0 | V125: 0 | W125: 0 | X125: 0 | Y125: 0 | Z125: 0 | AA125: 0 | AB125: 0 | AC125: 0 | AD125: 0 | AE125: 0 | AF125: 0 | AG125: 0 | AH125: 0 | AI125: 0 | AJ125: 0 | AK125: 0 | AL125: 0 | AM125: 0 | AN125: 0 | AO125: 0 | AP125: 0 | AQ125: 0 | AR125: 0 | AS125: 0 | AT125: 0 | AU125: 0 | AV125: 0 | AX125: 0 | AY125: 0 | AZ125: 0 | BA125: 0 | BB125: 0 | BC125: 0 | BD125: 0 | BE125: 0 | BF125: 0 | BG125: 0 | BH125: 0 | BI125: 0 | BJ125: 0 | BK125: 0 | BL125: 0 | BM125: 0 | BN125: 0 | BO125: 0 | BP125: 0 | BQ125: 0 | BR125: 0 | BS125: 0 | BT125: 0 | BU125: 0 | BV125: 0 | BW125: 0 | BX125: 0 | BY125: 0 | BZ125: 0 | CA125: 0 | CB125: 0 | CE125: Weiteres | CG125: 1 | CH125: 1 | CI125: 1 | CJ125: 1 | CK125: 1 | CL125: 1 | CM125: 1 | CN125: 1 | CO125: 1 | CP125: 1 | CQ125: 1 | CR125: 1 | CS125: 1 | CT125: 0 | CU125: 0 | CV125: 0
B126: 13. Wärmeverbund Baumeister | P126: 13. Wärmeverbund Baumeister | CE126: 13. Wärmeverbund Baumeister | CF126: 1 | CG126: 1 | CH126: 1 | CI126: 1 | CJ126: 1 | CK126: 1 | CL126: 1 | CM126: 1 | CN126: 1 | CO126: 1 | CP126: 1 | CQ126: 1 | CR126: 1 | CS126: 1 | CT126: 1 | CU126: 1 | CV126: 1
B127: Graben Fernleitung | E127: 30 | G127: 0.005 | I127: [% Inv.] | K127: 30 | L127: =IF(ISNUMBER(H127),IF(I127=$D$332,IFERROR(H127/D127,"-"),H127/100),IF(ISNUMBER(G127),G127,0)) -> 0.005 | M127: =IF(AND(ISNUMBER(H127),I127=$D$332),H127,L127*D127) -> 0 | N127: =1/K127*D127 -> 0 | P127: Graben Fernleitung | Q127: 0 | R127: =IF(Betrachtungszeit_Heizung<R$26,0,IF(AND(Q$26<>0,Q$26/($K127)=INT(Q$26/($K127))),$D127,0)) -> 0 | S127: 0 | T127: 0 | U127: 0 | V127: 0 | W127: 0 | X127: 0 | Y127: 0 | Z127: 0 | AA127: 0 | AB127: 0 | AC127: 0 | AD127: 0 | AE127: 0 | AF127: 0 | AG127: 0 | AH127: 0 | AI127: 0 | AJ127: 0 | AK127: 0 | AL127: 0 | AM127: 0 | AN127: 0 | AO127: 0 | AP127: 0 | AQ127: 0 | AR127: 0 | AS127: 0 | AT127: 0 | AU127: 0 | AV127: =SUMIF($AX$26:$CB$26,Betrachtungszeit_Heizung,AX127:CB127) -> 0 | AX127: 0 | AY127: 0 | AZ127: 0 | BA127: 0 | BB127: 0 | BC127: 0 | BD127: 0 | BE127: 0 | BF127: 0 | BG127: 0 | BH127: 0 | BI127: 0 | BJ127: 0 | BK127: 0 | BL127: 0 | BM127: 0 | BN127: 0 | BO127: 0 | BP127: 0 | BQ127: 0 | BR127: 0 | BS127: 0 | BT127: 0 | BU127: 0 | BV127: 0 | BW127: 0 | BX127: 0 | BY127: 0 | BZ127: 0 | CA127: 0 | CB127: 0 | CE127: Graben Fernleitung | CG127: 1 | CH127: 1 | CI127: 1 | CJ127: 1 | CK127: 1 | CL127: 1 | CM127: 1 | CN127: 1 | CO127: 1 | CP127: 1 | CQ127: 1 | CR127: 1 | CS127: 1 | CT127: 0 | CU127: 0 | CV127: 0
B128: Graben Hausanschlüsse | E128: 30 | G128: 0.005 | I128: [% Inv.] | K128: 30 | L128: 0.005 | M128: 0 | N128: 0 | P128: Graben Hausanschlüsse | Q128: 0 | R128: 0 | S128: 0 | T128: 0 | U128: 0 | V128: 0 | W128: 0 | X128: 0 | Y128: 0 | Z128: 0 | AA128: 0 | AB128: 0 | AC128: 0 | AD128: 0 | AE128: 0 | AF128: 0 | AG128: 0 | AH128: 0 | AI128: 0 | AJ128: 0 | AK128: 0 | AL128: 0 | AM128: 0 | AN128: 0 | AO128: 0 | AP128: 0 | AQ128: 0 | AR128: 0 | AS128: 0 | AT128: 0 | AU128: 0 | AV128: =SUMIF($AX$26:$CB$26,Betrachtungszeit_Heizung,AX128:CB128) -> 0 | AX128: 0 | AY128: 0 | AZ128: 0 | BA128: 0 | BB128: 0 | BC128: 0 | BD128: 0 | BE128: 0 | BF128: 0 | BG128: 0 | BH128: 0 | BI128: 0 | BJ128: 0 | BK128: 0 | BL128: 0 | BM128: 0 | BN128: 0 | BO128: 0 | BP128: 0 | BQ128: 0 | BR128: 0 | BS128: 0 | BT128: 0 | BU128: 0 | BV128: 0 | BW128: 0 | BX128: 0 | BY128: 0 | BZ128: 0 | CA128: 0 | CB128: 0 | CE128: Graben Hausanschlüsse | CG128: 1 | CH128: 1 | CI128: 1 | CJ128: 1 | CK128: 1 | CL128: 1 | CM128: 1 | CN128: 1 | CO128: 1 | CP128: 1 | CQ128: 1 | CR128: 1 | CS128: 1 | CT128: 0 | CU128: 0 | CV128: 0
B129: Weiteres | E129: 30 | G129: kein Default | I129: [% Inv.] | K129: 30 | L129: 0 | M129: 0 | N129: 0 | P129: Weiteres | Q129: 0 | R129: 0 | S129: 0 | T129: 0 | U129: 0 | V129: 0 | W129: 0 | X129: 0 | Y129: 0 | Z129: 0 | AA129: 0 | AB129: 0 | AC129: 0 | AD129: 0 | AE129: 0 | AF129: 0 | AG129: 0 | AH129: 0 | AI129: 0 | AJ129: 0 | AK129: 0 | AL129: 0 | AM129: 0 | AN129: 0 | AO129: 0 | AP129: 0 | AQ129: 0 | AR129: 0 | AS129: 0 | AT129: 0 | AU129: 0 | AV129: =SUMIF($AX$26:$CB$26,Betrachtungszeit_Heizung,AX129:CB129) -> 0 | AX129: 0 | AY129: 0 | AZ129: 0 | BA129: 0 | BB129: 0 | BC129: 0 | BD129: 0 | BE129: 0 | BF129: 0 | BG129: 0 | BH129: 0 | BI129: 0 | BJ129: 0 | BK129: 0 | BL129: 0 | BM129: 0 | BN129: 0 | BO129: 0 | BP129: 0 | BQ129: 0 | BR129: 0 | BS129: 0 | BT129: 0 | BU129: 0 | BV129: 0 | BW129: 0 | BX129: 0 | BY129: 0 | BZ129: 0 | CA129: 0 | CB129: 0 | CE129: Weiteres | CG129: 1 | CH129: 1 | CI129: 1 | CJ129: 1 | CK129: 1 | CL129: 1 | CM129: 1 | CN129: 1 | CO129: 1 | CP129: 1 | CQ129: 1 | CR129: 1 | CS129: 1 | CT129: 0 | CU129: 0 | CV129: 0
B130: 14. Wärmeverbund Leitungen | P130: 14. Wärmeverbund Leitungen | CE130: 14. Wärmeverbund Leitungen | CF130: 1 | CG130: 1 | CH130: 1 | CI130: 1 | CJ130: 1 | CK130: 1 | CL130: 1 | CM130: 1 | CN130: 1 | CO130: 1 | CP130: 1 | CQ130: 1 | CR130: 1 | CS130: 1 | CT130: 1 | CU130: 1 | CV130: 1
B131: Kalte Fernleitung | E131: 30 | G131: 0.01 | I131: [% Inv.] | K131: 30 | L131: =IF(ISNUMBER(H131),IF(I131=$D$332,IFERROR(H131/D131,"-"),H131/100),IF(ISNUMBER(G131),G131,0)) -> 0.01 | M131: =IF(AND(ISNUMBER(H131),I131=$D$332),H131,L131*D131) -> 0 | N131: =1/K131*D131 -> 0 | P131: Kalte Fernleitung | Q131: 0 | R131: =IF(Betrachtungszeit_Heizung<R$26,0,IF(AND(Q$26<>0,Q$26/($K131)=INT(Q$26/($K131))),$D131,0)) -> 0 | S131: 0 | T131: 0 | U131: 0 | V131: 0 | W131: 0 | X131: 0 | Y131: 0 | Z131: 0 | AA131: 0 | AB131: 0 | AC131: 0 | AD131: 0 | AE131: 0 | AF131: 0 | AG131: 0 | AH131: 0 | AI131: 0 | AJ131: 0 | AK131: 0 | AL131: 0 | AM131: 0 | AN131: 0 | AO131: 0 | AP131: 0 | AQ131: 0 | AR131: 0 | AS131: 0 | AT131: 0 | AU131: 0 | AV131: =SUMIF($AX$26:$CB$26,Betrachtungszeit_Heizung,AX131:CB131) -> 0 | AX131: 0 | AY131: =AX131-$N131+R131 -> 0 | AZ131: 0 | BA131: 0 | BB131: 0 | BC131: 0 | BD131: 0 | BE131: 0 | BF131: 0 | BG131: 0 | BH131: 0 | BI131: 0 | BJ131: 0 | BK131: 0 | BL131: 0 | BM131: 0 | BN131: 0 | BO131: 0 | BP131: 0 | BQ131: 0 | BR131: 0 | BS131: 0 | BT131: 0 | BU131: 0 | BV131: 0 | BW131: 0 | BX131: 0 | BY131: 0 | BZ131: 0 | CA131: 0 | CB131: 0 | CE131: Kalte Fernleitung | CG131: 1 | CH131: 1 | CI131: 1 | CJ131: 1 | CK131: 1 | CL131: 1 | CM131: 1 | CN131: 1 | CO131: 1 | CP131: 1 | CQ131: 1 | CR131: 1 | CS131: 1 | CT131: 0 | CU131: 0 | CV131: 0
B132: Fernleitung Heizung | E132: 30 | G132: 0.01 | I132: [% Inv.] | K132: 30 | L132: 0.01 | M132: 0 | N132: 0 | P132: Fernleitung Heizung | Q132: 0 | R132: 0 | S132: 0 | T132: 0 | U132: 0 | V132: 0 | W132: 0 | X132: 0 | Y132: 0 | Z132: 0 | AA132: 0 | AB132: 0 | AC132: 0 | AD132: 0 | AE132: 0 | AF132: 0 | AG132: 0 | AH132: 0 | AI132: 0 | AJ132: 0 | AK132: 0 | AL132: 0 | AM132: 0 | AN132: 0 | AO132: 0 | AP132: 0 | AQ132: 0 | AR132: 0 | AS132: 0 | AT132: 0 | AU132: 0 | AV132: 0 | AX132: 0 | AY132: 0 | AZ132: 0 | BA132: 0 | BB132: 0 | BC132: 0 | BD132: 0 | BE132: 0 | BF132: 0 | BG132: 0 | BH132: 0 | BI132: 0 | BJ132: 0 | BK132: 0 | BL132: 0 | BM132: 0 | BN132: 0 | BO132: 0 | BP132: 0 | BQ132: 0 | BR132: 0 | BS132: 0 | BT132: 0 | BU132: 0 | BV132: 0 | BW132: 0 | BX132: 0 | BY132: 0 | BZ132: 0 | CA132: 0 | CB132: 0 | CE132: Fernleitung Heizung | CG132: 1 | CH132: 1 | CI132: 1 | CJ132: 1 | CK132: 1 | CL132: 1 | CM132: 1 | CN132: 1 | CO132: 1 | CP132: 1 | CQ132: 1 | CR132: 1 | CS132: 1 | CT132: 0 | CU132: 0 | CV132: 0
B133: Fernleitung Sanitär | E133: 30 | G133: 0.01 | I133: [% Inv.] | K133: 30 | L133: 0.01 | M133: 0 | N133: 0 | P133: Fernleitung Sanitär | Q133: 0 | R133: 0 | S133: 0 | T133: 0 | U133: 0 | V133: 0 | W133: 0 | X133: 0 | Y133: 0 | Z133: 0 | AA133: 0 | AB133: 0 | AC133: 0 | AD133: 0 | AE133: 0 | AF133: 0 | AG133: 0 | AH133: 0 | AI133: 0 | AJ133: 0 | AK133: 0 | AL133: 0 | AM133: 0 | AN133: 0 | AO133: 0 | AP133: 0 | AQ133: 0 | AR133: 0 | AS133: 0 | AT133: 0 | AU133: 0 | AV133: 0 | AX133: 0 | AY133: 0 | AZ133: 0 | BA133: 0 | BB133: 0 | BC133: 0 | BD133: 0 | BE133: 0 | BF133: 0 | BG133: 0 | BH133: 0 | BI133: 0 | BJ133: 0 | BK133: 0 | BL133: 0 | BM133: 0 | BN133: 0 | BO133: 0 | BP133: 0 | BQ133: 0 | BR133: 0 | BS133: 0 | BT133: 0 | BU133: 0 | BV133: 0 | BW133: 0 | BX133: 0 | BY133: 0 | BZ133: 0 | CA133: 0 | CB133: 0 | CE133: Fernleitung Sanitär | CG133: 1 | CH133: 1 | CI133: 1 | CJ133: 1 | CK133: 1 | CL133: 1 | CM133: 1 | CN133: 1 | CO133: 1 | CP133: 1 | CQ133: 1 | CR133: 1 | CS133: 1 | CT133: 0 | CU133: 0 | CV133: 0
B134: Anschlussleitungen Haus | E134: 30 | G134: 0.015 | I134: [% Inv.] | K134: 30 | L134: 0.015 | M134: 0 | N134: 0 | P134: Anschlussleitungen Haus | Q134: 0 | R134: 0 | S134: 0 | T134: 0 | U134: 0 | V134: 0 | W134: 0 | X134: 0 | Y134: 0 | Z134: 0 | AA134: 0 | AB134: 0 | AC134: 0 | AD134: 0 | AE134: 0 | AF134: 0 | AG134: 0 | AH134: 0 | AI134: 0 | AJ134: 0 | AK134: 0 | AL134: 0 | AM134: 0 | AN134: 0 | AO134: 0 | AP134: 0 | AQ134: 0 | AR134: 0 | AS134: 0 | AT134: 0 | AU134: 0 | AV134: 0 | AX134: 0 | AY134: 0 | AZ134: 0 | BA134: 0 | BB134: 0 | BC134: 0 | BD134: 0 | BE134: 0 | BF134: 0 | BG134: 0 | BH134: 0 | BI134: 0 | BJ134: 0 | BK134: 0 | BL134: 0 | BM134: 0 | BN134: 0 | BO134: 0 | BP134: 0 | BQ134: 0 | BR134: 0 | BS134: 0 | BT134: 0 | BU134: 0 | BV134: 0 | BW134: 0 | BX134: 0 | BY134: 0 | BZ134: 0 | CA134: 0 | CB134: 0 | CE134: Anschlussleitungen Haus | CG134: 1 | CH134: 1 | CI134: 1 | CJ134: 1 | CK134: 1 | CL134: 1 | CM134: 1 | CN134: 1 | CO134: 1 | CP134: 1 | CQ134: 1 | CR134: 1 | CS134: 1 | CT134: 0 | CU134: 0 | CV134: 0
B135: Übergabestationen Heizung | E135: 20 | G135: 0.02 | I135: [% Inv.] | K135: 20 | L135: 0.02 | M135: 0 | N135: 0 | P135: Übergabestationen Heizung | Q135: 0 | R135: 0 | S135: 0 | T135: 0 | U135: 0 | V135: 0 | W135: 0 | X135: 0 | Y135: 0 | Z135: 0 | AA135: 0 | AB135: 0 | AC135: 0 | AD135: 0 | AE135: 0 | AF135: 0 | AG135: 0 | AH135: 0 | AI135: 0 | AJ135: 0 | AK135: 0 | AL135: 0 | AM135: 0 | AN135: 0 | AO135: 0 | AP135: 0 | AQ135: 0 | AR135: 0 | AS135: 0 | AT135: 0 | AU135: 0 | AV135: 0 | AX135: 0 | AY135: 0 | AZ135: 0 | BA135: 0 | BB135: 0 | BC135: 0 | BD135: 0 | BE135: 0 | BF135: 0 | BG135: 0 | BH135: 0 | BI135: 0 | BJ135: 0 | BK135: 0 | BL135: 0 | BM135: 0 | BN135: 0 | BO135: 0 | BP135: 0 | BQ135: 0 | BR135: 0 | BS135: 0 | BT135: 0 | BU135: 0 | BV135: 0 | BW135: 0 | BX135: 0 | BY135: 0 | BZ135: 0 | CA135: 0 | CB135: 0 | CE135: Übergabestationen Heizung | CG135: 1 | CH135: 1 | CI135: 1 | CJ135: 1 | CK135: 1 | CL135: 1 | CM135: 1 | CN135: 1 | CO135: 1 | CP135: 1 | CQ135: 1 | CR135: 1 | CS135: 1 | CT135: 0 | CU135: 0 | CV135: 0
B136: Energiemessung | E136: 20 | G136: 0.08 | I136: [% Inv.] | K136: 20 | L136: 0.08 | M136: 0 | N136: 0 | P136: Energiemessung | Q136: 0 | R136: 0 | S136: 0 | T136: 0 | U136: 0 | V136: 0 | W136: 0 | X136: 0 | Y136: 0 | Z136: 0 | AA136: 0 | AB136: 0 | AC136: 0 | AD136: 0 | AE136: 0 | AF136: 0 | AG136: 0 | AH136: 0 | AI136: 0 | AJ136: 0 | AK136: 0 | AL136: 0 | AM136: 0 | AN136: 0 | AO136: 0 | AP136: 0 | AQ136: 0 | AR136: 0 | AS136: 0 | AT136: 0 | AU136: 0 | AV136: 0 | AX136: 0 | AY136: 0 | AZ136: 0 | BA136: 0 | BB136: 0 | BC136: 0 | BD136: 0 | BE136: 0 | BF136: 0 | BG136: 0 | BH136: 0 | BI136: 0 | BJ136: 0 | BK136: 0 | BL136: 0 | BM136: 0 | BN136: 0 | BO136: 0 | BP136: 0 | BQ136: 0 | BR136: 0 | BS136: 0 | BT136: 0 | BU136: 0 | BV136: 0 | BW136: 0 | BX136: 0 | BY136: 0 | BZ136: 0 | CA136: 0 | CB136: 0 | CE136: Energiemessung | CG136: 1 | CH136: 1 | CI136: 1 | CJ136: 1 | CK136: 1 | CL136: 1 | CM136: 1 | CN136: 1 | CO136: 1 | CP136: 1 | CQ136: 1 | CR136: 1 | CS136: 1 | CT136: 0 | CU136: 0 | CV136: 0
B137: Dämmungen | E137: 30 | G137: 0.001 | I137: [% Inv.] | K137: 30 | L137: 0.001 | M137: 0 | N137: 0 | P137: Dämmungen | Q137: 0 | R137: 0 | S137: 0 | T137: 0 | U137: 0 | V137: 0 | W137: 0 | X137: 0 | Y137: 0 | Z137: 0 | AA137: 0 | AB137: 0 | AC137: 0 | AD137: 0 | AE137: 0 | AF137: 0 | AG137: 0 | AH137: 0 | AI137: 0 | AJ137: 0 | AK137: 0 | AL137: 0 | AM137: 0 | AN137: 0 | AO137: 0 | AP137: 0 | AQ137: 0 | AR137: 0 | AS137: 0 | AT137: 0 | AU137: 0 | AV137: 0 | AX137: 0 | AY137: 0 | AZ137: 0 | BA137: 0 | BB137: 0 | BC137: 0 | BD137: 0 | BE137: 0 | BF137: 0 | BG137: 0 | BH137: 0 | BI137: 0 | BJ137: 0 | BK137: 0 | BL137: 0 | BM137: 0 | BN137: 0 | BO137: 0 | BP137: 0 | BQ137: 0 | BR137: 0 | BS137: 0 | BT137: 0 | BU137: 0 | BV137: 0 | BW137: 0 | BX137: 0 | BY137: 0 | BZ137: 0 | CA137: 0 | CB137: 0 | CE137: Dämmungen | CG137: 1 | CH137: 1 | CI137: 1 | CJ137: 1 | CK137: 1 | CL137: 1 | CM137: 1 | CN137: 1 | CO137: 1 | CP137: 1 | CQ137: 1 | CR137: 1 | CS137: 1 | CT137: 0 | CU137: 0 | CV137: 0
B138: Weiteres | E138: 30 | G138: kein Default | I138: [% Inv.] | K138: 30 | L138: 0 | M138: 0 | N138: 0 | P138: Weiteres | Q138: 0 | R138: 0 | S138: 0 | T138: 0 | U138: 0 | V138: 0 | W138: 0 | X138: 0 | Y138: 0 | Z138: 0 | AA138: 0 | AB138: 0 | AC138: 0 | AD138: 0 | AE138: 0 | AF138: 0 | AG138: 0 | AH138: 0 | AI138: 0 | AJ138: 0 | AK138: 0 | AL138: 0 | AM138: 0 | AN138: 0 | AO138: 0 | AP138: 0 | AQ138: 0 | AR138: 0 | AS138: 0 | AT138: 0 | AU138: 0 | AV138: 0 | AX138: 0 | AY138: 0 | AZ138: 0 | BA138: 0 | BB138: 0 | BC138: 0 | BD138: 0 | BE138: 0 | BF138: 0 | BG138: 0 | BH138: 0 | BI138: 0 | BJ138: 0 | BK138: 0 | BL138: 0 | BM138: 0 | BN138: 0 | BO138: 0 | BP138: 0 | BQ138: 0 | BR138: 0 | BS138: 0 | BT138: 0 | BU138: 0 | BV138: 0 | BW138: 0 | BX138: 0 | BY138: 0 | BZ138: 0 | CA138: 0 | CB138: 0 | CE138: Weiteres | CG138: 1 | CH138: 1 | CI138: 1 | CJ138: 1 | CK138: 1 | CL138: 1 | CM138: 1 | CN138: 1 | CO138: 1 | CP138: 1 | CQ138: 1 | CR138: 1 | CS138: 1 | CT138: 0 | CU138: 0 | CV138: 0
B139: 15. MSRL | P139: 15. MSRL | CE139: 15. MSRL | CF139: 1 | CG139: 1 | CH139: 1 | CI139: 1 | CJ139: 1 | CK139: 1 | CL139: 1 | CM139: 1 | CN139: 1 | CO139: 1 | CP139: 1 | CQ139: 1 | CR139: 1 | CS139: 1 | CT139: 1 | CU139: 1 | CV139: 1
B140: Feldgeräte | E140: 15 | G140: 0.015 | I140: [% Inv.] | K140: 15 | L140: =IF(ISNUMBER(H140),IF(I140=$D$332,IFERROR(H140/D140,"-"),H140/100),IF(ISNUMBER(G140),G140,0)) -> 0.015 | M140: =IF(AND(ISNUMBER(H140),I140=$D$332),H140,L140*D140) -> 0 | N140: 0 | P140: Feldgeräte | Q140: 0 | R140: =IF(Betrachtungszeit_Heizung<R$26,0,IF(AND(Q$26<>0,Q$26/($K140)=INT(Q$26/($K140))),$D140,0)) -> 0 | S140: 0 | T140: 0 | U140: 0 | V140: 0 | W140: 0 | X140: 0 | Y140: 0 | Z140: 0 | AA140: 0 | AB140: 0 | AC140: 0 | AD140: 0 | AE140: 0 | AF140: 0 | AG140: 0 | AH140: 0 | AI140: 0 | AJ140: 0 | AK140: 0 | AL140: 0 | AM140: 0 | AN140: 0 | AO140: 0 | AP140: 0 | AQ140: 0 | AR140: 0 | AS140: 0 | AT140: 0 | AU140: 0 | AV140: =SUMIF($AX$26:$CB$26,Betrachtungszeit_Heizung,AX140:CB140) -> 0 | AX140: 0 | AY140: 0 | AZ140: 0 | BA140: 0 | BB140: 0 | BC140: 0 | BD140: 0 | BE140: 0 | BF140: 0 | BG140: 0 | BH140: 0 | BI140: 0 | BJ140: 0 | BK140: 0 | BL140: 0 | BM140: 0 | BN140: 0 | BO140: 0 | BP140: 0 | BQ140: 0 | BR140: 0 | BS140: 0 | BT140: =BS140-$N140+AM140 -> 0 | BU140: 0 | BV140: 0 | BW140: 0 | BX140: 0 | BY140: 0 | BZ140: 0 | CA140: 0 | CB140: 0 | CE140: Feldgeräte | CG140: 1 | CH140: 1 | CI140: 1 | CJ140: 1 | CK140: 1 | CL140: 1 | CM140: 1 | CN140: 1 | CO140: 1 | CP140: 1 | CQ140: 1 | CR140: 1 | CS140: 1 | CT140: 0 | CU140: 0 | CV140: 0
B141: Schaltschränke | E141: 15 | G141: 0.01 | I141: [% Inv.] | K141: 15 | L141: 0.01 | M141: 0 | N141: 0 | P141: Schaltschränke | Q141: 0 | R141: 0 | S141: 0 | T141: 0 | U141: 0 | V141: 0 | W141: 0 | X141: 0 | Y141: 0 | Z141: 0 | AA141: 0 | AB141: 0 | AC141: 0 | AD141: 0 | AE141: 0 | AF141: 0 | AG141: 0 | AH141: 0 | AI141: 0 | AJ141: 0 | AK141: 0 | AL141: 0 | AM141: 0 | AN141: 0 | AO141: 0 | AP141: 0 | AQ141: 0 | AR141: 0 | AS141: 0 | AT141: 0 | AU141: 0 | AV141: =SUMIF($AX$26:$CB$26,Betrachtungszeit_Heizung,AX141:CB141) -> 0 | AX141: 0 | AY141: 0 | AZ141: 0 | BA141: 0 | BB141: 0 | BC141: 0 | BD141: 0 | BE141: 0 | BF141: 0 | BG141: 0 | BH141: 0 | BI141: 0 | BJ141: 0 | BK141: 0 | BL141: 0 | BM141: 0 | BN141: 0 | BO141: 0 | BP141: 0 | BQ141: 0 | BR141: 0 | BS141: 0 | BT141: 0 | BU141: 0 | BV141: 0 | BW141: 0 | BX141: 0 | BY141: 0 | BZ141: 0 | CA141: 0 | CB141: 0 | CE141: Schaltschränke | CG141: 1 | CH141: 1 | CI141: 1 | CJ141: 1 | CK141: 1 | CL141: 1 | CM141: 1 | CN141: 1 | CO141: 1 | CP141: 1 | CQ141: 1 | CR141: 1 | CS141: 1 | CT141: 0 | CU141: 0 | CV141: 0
B142: Leitsystem | E142: 15 | G142: 0.015 | I142: [% Inv.] | K142: 15 | L142: 0.015 | M142: 0 | N142: 0 | P142: Leitsystem | Q142: 0 | R142: 0 | S142: 0 | T142: 0 | U142: 0 | V142: 0 | W142: 0 | X142: 0 | Y142: 0 | Z142: 0 | AA142: 0 | AB142: 0 | AC142: 0 | AD142: 0 | AE142: 0 | AF142: 0 | AG142: 0 | AH142: 0 | AI142: 0 | AJ142: 0 | AK142: 0 | AL142: 0 | AM142: 0 | AN142: 0 | AO142: 0 | AP142: 0 | AQ142: 0 | AR142: 0 | AS142: 0 | AT142: 0 | AU142: 0 | AV142: =SUMIF($AX$26:$CB$26,Betrachtungszeit_Heizung,AX142:CB142) -> 0 | AX142: 0 | AY142: 0 | AZ142: 0 | BA142: 0 | BB142: 0 | BC142: 0 | BD142: 0 | BE142: 0 | BF142: 0 | BG142: 0 | BH142: 0 | BI142: 0 | BJ142: 0 | BK142: 0 | BL142: 0 | BM142: 0 | BN142: 0 | BO142: 0 | BP142: 0 | BQ142: 0 | BR142: 0 | BS142: 0 | BT142: 0 | BU142: 0 | BV142: 0 | BW142: 0 | BX142: 0 | BY142: 0 | BZ142: 0 | CA142: 0 | CB142: 0 | CE142: Leitsystem | CG142: 1 | CH142: 1 | CI142: 1 | CJ142: 1 | CK142: 1 | CL142: 1 | CM142: 1 | CN142: 1 | CO142: 1 | CP142: 1 | CQ142: 1 | CR142: 1 | CS142: 1 | CT142: 0 | CU142: 0 | CV142: 0
B143: Weiteres | E143: 30 | G143: kein Default | I143: [% Inv.] | K143: 30 | L143: 0 | M143: 0 | N143: 0 | P143: Weiteres | Q143: 0 | R143: 0 | S143: 0 | T143: 0 | U143: 0 | V143: 0 | W143: 0 | X143: 0 | Y143: 0 | Z143: 0 | AA143: 0 | AB143: 0 | AC143: 0 | AD143: 0 | AE143: 0 | AF143: 0 | AG143: 0 | AH143: 0 | AI143: 0 | AJ143: 0 | AK143: 0 | AL143: 0 | AM143: 0 | AN143: 0 | AO143: 0 | AP143: 0 | AQ143: 0 | AR143: 0 | AS143: 0 | AT143: 0 | AU143: 0 | AV143: =SUMIF($AX$26:$CB$26,Betrachtungszeit_Heizung,AX143:CB143) -> 0 | AX143: 0 | AY143: 0 | AZ143: 0 | BA143: 0 | BB143: 0 | BC143: 0 | BD143: 0 | BE143: 0 | BF143: 0 | BG143: 0 | BH143: 0 | BI143: 0 | BJ143: 0 | BK143: 0 | BL143: 0 | BM143: 0 | BN143: 0 | BO143: 0 | BP143: 0 | BQ143: 0 | BR143: 0 | BS143: 0 | BT143: 0 | BU143: 0 | BV143: 0 | BW143: 0 | BX143: 0 | BY143: 0 | BZ143: 0 | CA143: 0 | CB143: 0 | CE143: Weiteres | CG143: 1 | CH143: 1 | CI143: 1 | CJ143: 1 | CK143: 1 | CL143: 1 | CM143: 1 | CN143: 1 | CO143: 1 | CP143: 1 | CQ143: 1 | CR143: 1 | CS143: 1 | CT143: 0 | CU143: 0 | CV143: 0
B144: 16. Elektro | P144: 16. Elektro | CE144: 16. Elektro | CF144: 1 | CG144: 1 | CH144: 1 | CI144: 1 | CJ144: 1 | CK144: 1 | CL144: 1 | CM144: 1 | CN144: 1 | CO144: 1 | CP144: 1 | CQ144: 1 | CR144: 1 | CS144: 1 | CT144: 1 | CU144: 1 | CV144: 1
B145: Baustromverteilung | E145: 25 | G145: 0 | I145: [% Inv.] | K145: 25 | L145: =IF(ISNUMBER(H145),IF(I145=$D$332,IFERROR(H145/D145,"-"),H145/100),IF(ISNUMBER(G145),G145,0)) -> 0 | M145: =IF(AND(ISNUMBER(H145),I145=$D$332),H145,L145*D145) -> 0 | N145: 0 | P145: Baustromverteilung | Q145: 0 | R145: =IF(Betrachtungszeit_Heizung<R$26,0,IF(AND(Q$26<>0,Q$26/($K145)=INT(Q$26/($K145))),$D145,0)) -> 0 | S145: 0 | T145: 0 | U145: 0 | V145: 0 | W145: 0 | X145: 0 | Y145: 0 | Z145: 0 | AA145: 0 | AB145: 0 | AC145: 0 | AD145: 0 | AE145: 0 | AF145: 0 | AG145: 0 | AH145: 0 | AI145: 0 | AJ145: 0 | AK145: 0 | AL145: 0 | AM145: 0 | AN145: 0 | AO145: 0 | AP145: 0 | AQ145: 0 | AR145: 0 | AS145: 0 | AT145: 0 | AU145: 0 | AV145: =SUMIF($AX$26:$CB$26,Betrachtungszeit_Heizung,AX145:CB145) -> 0 | AX145: 0 | AY145: 0 | AZ145: 0 | BA145: 0 | BB145: 0 | BC145: 0 | BD145: 0 | BE145: 0 | BF145: 0 | BG145: 0 | BH145: 0 | BI145: 0 | BJ145: 0 | BK145: 0 | BL145: 0 | BM145: 0 | BN145: 0 | BO145: 0 | BP145: 0 | BQ145: 0 | BR145: 0 | BS145: 0 | BT145: 0 | BU145: 0 | BV145: 0 | BW145: 0 | BX145: 0 | BY145: 0 | BZ145: 0 | CA145: 0 | CB145: 0 | CE145: Baustromverteilung | CG145: 1 | CH145: 1 | CI145: 1 | CJ145: 1 | CK145: 1 | CL145: 1 | CM145: 1 | CN145: 1 | CO145: 1 | CP145: 1 | CQ145: 1 | CR145: 1 | CS145: 1 | CT145: 0 | CU145: 0 | CV145: 0
B146: Demontagen | E146: 25 | G146: 0 | I146: [% Inv.] | K146: 25 | L146: 0 | M146: 0 | N146: 0 | P146: Demontagen | Q146: 0 | R146: 0 | S146: 0 | T146: 0 | U146: 0 | V146: 0 | W146: 0 | X146: 0 | Y146: 0 | Z146: 0 | AA146: 0 | AB146: 0 | AC146: 0 | AD146: 0 | AE146: 0 | AF146: 0 | AG146: 0 | AH146: 0 | AI146: 0 | AJ146: 0 | AK146: 0 | AL146: 0 | AM146: 0 | AN146: 0 | AO146: 0 | AP146: 0 | AQ146: 0 | AR146: 0 | AS146: 0 | AT146: 0 | AU146: 0 | AV146: 0 | AX146: 0 | AY146: 0 | AZ146: 0 | BA146: 0 | BB146: 0 | BC146: 0 | BD146: 0 | BE146: 0 | BF146: 0 | BG146: 0 | BH146: 0 | BI146: 0 | BJ146: 0 | BK146: 0 | BL146: 0 | BM146: 0 | BN146: 0 | BO146: 0 | BP146: 0 | BQ146: 0 | BR146: 0 | BS146: 0 | BT146: 0 | BU146: 0 | BV146: 0 | BW146: 0 | BX146: 0 | BY146: 0 | BZ146: 0 | CA146: 0 | CB146: 0 | CE146: Demontagen | CG146: 1 | CH146: 1 | CI146: 1 | CJ146: 1 | CK146: 1 | CL146: 1 | CM146: 1 | CN146: 1 | CO146: 1 | CP146: 1 | CQ146: 1 | CR146: 1 | CS146: 1 | CT146: 0 | CU146: 0 | CV146: 0
B147: Schaltschränke HV/UV | E147: 20 | G147: 0.01 | I147: [% Inv.] | K147: 20 | L147: 0.01 | M147: 0 | N147: 0 | P147: Schaltschränke HV/UV | Q147: 0 | R147: 0 | S147: 0 | T147: 0 | U147: 0 | V147: 0 | W147: 0 | X147: 0 | Y147: 0 | Z147: 0 | AA147: 0 | AB147: 0 | AC147: 0 | AD147: 0 | AE147: 0 | AF147: 0 | AG147: 0 | AH147: 0 | AI147: 0 | AJ147: 0 | AK147: 0 | AL147: 0 | AM147: 0 | AN147: 0 | AO147: 0 | AP147: 0 | AQ147: 0 | AR147: 0 | AS147: 0 | AT147: 0 | AU147: 0 | AV147: 0 | AX147: =$D147 -> 0 | AY147: 0 | AZ147: 0 | BA147: 0 | BB147: 0 | BC147: 0 | BD147: 0 | BE147: 0 | BF147: 0 | BG147: 0 | BH147: 0 | BI147: 0 | BJ147: 0 | BK147: 0 | BL147: 0 | BM147: 0 | BN147: 0 | BO147: 0 | BP147: 0 | BQ147: 0 | BR147: 0 | BS147: 0 | BT147: 0 | BU147: 0 | BV147: 0 | BW147: 0 | BX147: 0 | BY147: 0 | BZ147: 0 | CA147: 0 | CB147: 0 | CE147: Schaltschränke HV/UV | CG147: 1 | CH147: 1 | CI147: 1 | CJ147: 1 | CK147: 1 | CL147: 1 | CM147: 1 | CN147: 1 | CO147: 1 | CP147: 1 | CQ147: 1 | CR147: 1 | CS147: 1 | CT147: 0 | CU147: 0 | CV147: 0
B148: Elektrotrasse | E148: 30 | G148: 0.005 | I148: [% Inv.] | K148: 30 | L148: 0.005 | M148: 0 | N148: 0 | P148: Elektrotrasse | Q148: 0 | R148: 0 | S148: 0 | T148: 0 | U148: 0 | V148: 0 | W148: 0 | X148: 0 | Y148: 0 | Z148: 0 | AA148: 0 | AB148: 0 | AC148: 0 | AD148: 0 | AE148: 0 | AF148: 0 | AG148: 0 | AH148: 0 | AI148: 0 | AJ148: 0 | AK148: 0 | AL148: 0 | AM148: 0 | AN148: 0 | AO148: 0 | AP148: 0 | AQ148: 0 | AR148: 0 | AS148: 0 | AT148: 0 | AU148: 0 | AV148: 0 | AX148: 0 | AY148: 0 | AZ148: 0 | BA148: 0 | BB148: 0 | BC148: 0 | BD148: 0 | BE148: 0 | BF148: 0 | BG148: 0 | BH148: 0 | BI148: 0 | BJ148: 0 | BK148: 0 | BL148: 0 | BM148: 0 | BN148: 0 | BO148: 0 | BP148: 0 | BQ148: 0 | BR148: 0 | BS148: 0 | BT148: 0 | BU148: 0 | BV148: 0 | BW148: 0 | BX148: 0 | BY148: 0 | BZ148: 0 | CA148: 0 | CB148: 0 | CE148: Elektrotrasse | CG148: 1 | CH148: 1 | CI148: 1 | CJ148: 1 | CK148: 1 | CL148: 1 | CM148: 1 | CN148: 1 | CO148: 1 | CP148: 1 | CQ148: 1 | CR148: 1 | CS148: 1 | CT148: 0 | CU148: 0 | CV148: 0
B149: Beleuchtung | E149: 15 | G149: 0.02 | I149: [% Inv.] | K149: 15 | L149: 0.02 | M149: 0 | N149: 0 | P149: Beleuchtung | Q149: 0 | R149: 0 | S149: 0 | T149: 0 | U149: 0 | V149: 0 | W149: 0 | X149: 0 | Y149: 0 | Z149: 0 | AA149: 0 | AB149: 0 | AC149: 0 | AD149: 0 | AE149: 0 | AF149: 0 | AG149: 0 | AH149: 0 | AI149: 0 | AJ149: 0 | AK149: 0 | AL149: 0 | AM149: 0 | AN149: 0 | AO149: 0 | AP149: 0 | AQ149: 0 | AR149: 0 | AS149: 0 | AT149: 0 | AU149: 0 | AV149: 0 | AX149: 0 | AY149: 0 | AZ149: 0 | BA149: 0 | BB149: 0 | BC149: 0 | BD149: 0 | BE149: 0 | BF149: 0 | BG149: 0 | BH149: 0 | BI149: 0 | BJ149: 0 | BK149: 0 | BL149: 0 | BM149: 0 | BN149: 0 | BO149: 0 | BP149: 0 | BQ149: 0 | BR149: 0 | BS149: 0 | BT149: 0 | BU149: 0 | BV149: 0 | BW149: 0 | BX149: 0 | BY149: 0 | BZ149: 0 | CA149: 0 | CB149: 0 | CE149: Beleuchtung | CG149: 1 | CH149: 1 | CI149: 1 | CJ149: 1 | CK149: 1 | CL149: 1 | CM149: 1 | CN149: 1 | CO149: 1 | CP149: 1 | CQ149: 1 | CR149: 1 | CS149: 1 | CT149: 0 | CU149: 0 | CV149: 0
B150: Verkabelung | E150: 20 | G150: 0.01 | I150: [% Inv.] | K150: 20 | L150: 0.01 | M150: 0 | N150: 0 | P150: Verkabelung | Q150: 0 | R150: 0 | S150: 0 | T150: 0 | U150: 0 | V150: 0 | W150: 0 | X150: 0 | Y150: 0 | Z150: 0 | AA150: 0 | AB150: 0 | AC150: 0 | AD150: 0 | AE150: 0 | AF150: 0 | AG150: 0 | AH150: 0 | AI150: 0 | AJ150: 0 | AK150: 0 | AL150: 0 | AM150: 0 | AN150: 0 | AO150: 0 | AP150: 0 | AQ150: 0 | AR150: 0 | AS150: 0 | AT150: 0 | AU150: 0 | AV150: 0 | AX150: 0 | AY150: =AX150-$N150+R150 -> 0 | AZ150: 0 | BA150: 0 | BB150: 0 | BC150: 0 | BD150: 0 | BE150: 0 | BF150: 0 | BG150: 0 | BH150: 0 | BI150: 0 | BJ150: 0 | BK150: 0 | BL150: 0 | BM150: 0 | BN150: 0 | BO150: 0 | BP150: 0 | BQ150: 0 | BR150: 0 | BS150: 0 | BT150: 0 | BU150: 0 | BV150: 0 | BW150: 0 | BX150: 0 | BY150: 0 | BZ150: 0 | CA150: 0 | CB150: 0 | CE150: Verkabelung | CG150: 1 | CH150: 1 | CI150: 1 | CJ150: 1 | CK150: 1 | CL150: 1 | CM150: 1 | CN150: 1 | CO150: 1 | CP150: 1 | CQ150: 1 | CR150: 1 | CS150: 1 | CT150: 0 | CU150: 0 | CV150: 0
B151: Einspeisung | E151: 20 | G151: 0.01 | I151: [% Inv.] | K151: 20 | L151: 0.01 | M151: 0 | N151: 0 | P151: Einspeisung | Q151: 0 | R151: 0 | S151: 0 | T151: 0 | U151: 0 | V151: 0 | W151: 0 | X151: 0 | Y151: 0 | Z151: 0 | AA151: 0 | AB151: 0 | AC151: 0 | AD151: 0 | AE151: 0 | AF151: 0 | AG151: 0 | AH151: 0 | AI151: 0 | AJ151: 0 | AK151: 0 | AL151: 0 | AM151: 0 | AN151: 0 | AO151: 0 | AP151: 0 | AQ151: 0 | AR151: 0 | AS151: 0 | AT151: 0 | AU151: 0 | AV151: 0 | AX151: 0 | AY151: 0 | AZ151: 0 | BA151: 0 | BB151: 0 | BC151: 0 | BD151: 0 | BE151: 0 | BF151: 0 | BG151: 0 | BH151: 0 | BI151: 0 | BJ151: 0 | BK151: 0 | BL151: 0 | BM151: 0 | BN151: 0 | BO151: 0 | BP151: 0 | BQ151: 0 | BR151: 0 | BS151: 0 | BT151: 0 | BU151: 0 | BV151: 0 | BW151: 0 | BX151: 0 | BY151: 0 | BZ151: 0 | CA151: 0 | CB151: 0 | CE151: Einspeisung | CG151: 1 | CH151: 1 | CI151: 1 | CJ151: 1 | CK151: 1 | CL151: 1 | CM151: 1 | CN151: 1 | CO151: 1 | CP151: 1 | CQ151: 1 | CR151: 1 | CS151: 1 | CT151: 0 | CU151: 0 | CV151: 0
B152: Telefon, Netzwerkanschluss | E152: 15 | G152: 0.025 | I152: [% Inv.] | K152: 15 | L152: 0.025 | M152: 0 | N152: 0 | P152: Telefon, Netzwerkanschluss | Q152: 0 | R152: 0 | S152: 0 | T152: 0 | U152: 0 | V152: 0 | W152: 0 | X152: 0 | Y152: 0 | Z152: 0 | AA152: 0 | AB152: 0 | AC152: 0 | AD152: 0 | AE152: 0 | AF152: 0 | AG152: 0 | AH152: 0 | AI152: 0 | AJ152: 0 | AK152: 0 | AL152: 0 | AM152: 0 | AN152: 0 | AO152: 0 | AP152: 0 | AQ152: 0 | AR152: 0 | AS152: 0 | AT152: 0 | AU152: 0 | AV152: 0 | AX152: 0 | AY152: 0 | AZ152: 0 | BA152: 0 | BB152: 0 | BC152: 0 | BD152: 0 | BE152: 0 | BF152: 0 | BG152: 0 | BH152: 0 | BI152: 0 | BJ152: 0 | BK152: 0 | BL152: 0 | BM152: 0 | BN152: 0 | BO152: 0 | BP152: 0 | BQ152: 0 | BR152: 0 | BS152: 0 | BT152: 0 | BU152: 0 | BV152: 0 | BW152: 0 | BX152: 0 | BY152: 0 | BZ152: 0 | CA152: 0 | CB152: 0 | CE152: Telefon, Netzwerkanschluss | CG152: 1 | CH152: 1 | CI152: 1 | CJ152: 1 | CK152: 1 | CL152: 1 | CM152: 1 | CN152: 1 | CO152: 1 | CP152: 1 | CQ152: 1 | CR152: 1 | CS152: 1 | CT152: 0 | CU152: 0 | CV152: 0
B153: Busleitungen | E153: 15 | G153: 0.025 | I153: [% Inv.] | K153: 15 | L153: 0.025 | M153: 0 | N153: 0 | P153: Busleitungen | Q153: 0 | R153: 0 | S153: 0 | T153: 0 | U153: 0 | V153: 0 | W153: 0 | X153: 0 | Y153: 0 | Z153: 0 | AA153: 0 | AB153: 0 | AC153: 0 | AD153: 0 | AE153: 0 | AF153: 0 | AG153: =IF(Betrachtungszeit_Heizung<AG$26,0,IF(AND(AF$26<>0,AF$26/($K153)=INT(AF$26/($K153))),$D153,0)) -> 0 | AH153: 0 | AI153: 0 | AJ153: 0 | AK153: 0 | AL153: 0 | AM153: 0 | AN153: 0 | AO153: 0 | AP153: 0 | AQ153: 0 | AR153: 0 | AS153: 0 | AT153: 0 | AU153: 0 | AV153: 0 | AX153: 0 | AY153: 0 | AZ153: 0 | BA153: 0 | BB153: 0 | BC153: 0 | BD153: 0 | BE153: 0 | BF153: 0 | BG153: 0 | BH153: 0 | BI153: 0 | BJ153: 0 | BK153: 0 | BL153: 0 | BM153: 0 | BN153: 0 | BO153: 0 | BP153: 0 | BQ153: 0 | BR153: 0 | BS153: 0 | BT153: 0 | BU153: 0 | BV153: 0 | BW153: 0 | BX153: 0 | BY153: 0 | BZ153: 0 | CA153: 0 | CB153: 0 | CE153: Busleitungen | CG153: 1 | CH153: 1 | CI153: 1 | CJ153: 1 | CK153: 1 | CL153: 1 | CM153: 1 | CN153: 1 | CO153: 1 | CP153: 1 | CQ153: 1 | CR153: 1 | CS153: 1 | CT153: 0 | CU153: 0 | CV153: 0
B154: Weiteres | E154: 30 | G154: kein Default | I154: [% Inv.] | K154: 30 | L154: 0 | M154: 0 | N154: 0 | P154: =B154 -> Weiteres | Q154: 0 | R154: =IF(Betrachtungszeit_Heizung<R$26,0,IF(AND(Q$26<>0,Q$26/($K154)=INT(Q$26/($K154))),$D154,0)) -> 0 | S154: 0 | T154: 0 | U154: 0 | V154: 0 | W154: 0 | X154: 0 | Y154: 0 | Z154: 0 | AA154: 0 | AB154: 0 | AC154: 0 | AD154: 0 | AE154: 0 | AF154: 0 | AG154: 0 | AH154: 0 | AI154: 0 | AJ154: 0 | AK154: 0 | AL154: 0 | AM154: 0 | AN154: 0 | AO154: 0 | AP154: 0 | AQ154: 0 | AR154: 0 | AS154: 0 | AT154: 0 | AU154: 0 | AV154: 0 | AX154: 0 | AY154: 0 | AZ154: 0 | BA154: 0 | BB154: 0 | BC154: 0 | BD154: 0 | BE154: 0 | BF154: 0 | BG154: 0 | BH154: 0 | BI154: 0 | BJ154: 0 | BK154: 0 | BL154: 0 | BM154: 0 | BN154: 0 | BO154: 0 | BP154: 0 | BQ154: 0 | BR154: 0 | BS154: 0 | BT154: 0 | BU154: 0 | BV154: 0 | BW154: 0 | BX154: 0 | BY154: 0 | BZ154: 0 | CA154: 0 | CB154: 0 | CE154: =B154 -> Weiteres | CG154: 1 | CH154: 1 | CI154: 1 | CJ154: 1 | CK154: 1 | CL154: 1 | CM154: 1 | CN154: 1 | CO154: 1 | CP154: 1 | CQ154: 1 | CR154: 1 | CS154: 1 | CT154: =SUMIF($CF$25:$CS$25,$C$12,CF154:CS154) -> 0 | CU154: =SUMIF($CF$25:$CS$25,$C$20,CF154:CS154) -> 0 | CV154: 0
B155: 17. Baumeister | P155: 17. Baumeister | CE155: 17. Baumeister | CF155: 1 | CG155: 1 | CH155: 1 | CI155: 1 | CJ155: 1 | CK155: 1 | CL155: 1 | CM155: 1 | CN155: 1 | CO155: 1 | CP155: 1 | CQ155: 1 | CR155: 1 | CS155: 1 | CT155: 1 | CU155: 1 | CV155: =IF(CT155+CU155>0,1,0) -> 1
B156: Provisorien | E156: 20 | G156: 0 | I156: [% Inv.] | K156: =IF(ISNUMBER(F156),F156,IF(ISNUMBER(E156),E156,0)) -> 20 | L156: =IF(ISNUMBER(H156),IF(I156=$D$332,IFERROR(H156/D156,"-"),H156/100),IF(ISNUMBER(G156),G156,0)) -> 0 | M156: =IF(AND(ISNUMBER(H156),I156=$D$332),H156,L156*D156) -> 0 | N156: 0 | P156: Provisorien | Q156: =D156 -> 0 | R156: =IF(Betrachtungszeit_Heizung<R$26,0,IF(AND(Q$26<>0,Q$26/($K156)=INT(Q$26/($K156))),$D156,0)) -> 0 | S156: 0 | T156: 0 | U156: 0 | V156: 0 | W156: 0 | X156: 0 | Y156: 0 | Z156: 0 | AA156: 0 | AB156: 0 | AC156: 0 | AD156: 0 | AE156: 0 | AF156: 0 | AG156: 0 | AH156: 0 | AI156: 0 | AJ156: 0 | AK156: 0 | AL156: 0 | AM156: 0 | AN156: 0 | AO156: 0 | AP156: 0 | AQ156: 0 | AR156: 0 | AS156: 0 | AT156: 0 | AU156: 0 | AV156: =SUMIF($AX$26:$CB$26,Betrachtungszeit_Heizung,AX156:CB156) -> 0 | AX156: =$D156 -> 0 | AY156: =AX156-$N156+R156 -> 0 | AZ156: 0 | BA156: 0 | BB156: 0 | BC156: 0 | BD156: 0 | BE156: 0 | BF156: 0 | BG156: 0 | BH156: 0 | BI156: 0 | BJ156: 0 | BK156: 0 | BL156: 0 | BM156: 0 | BN156: 0 | BO156: =BN156-$N156+AH156 -> 0 | BP156: 0 | BQ156: 0 | BR156: 0 | BS156: 0 | BT156: 0 | BU156: 0 | BV156: 0 | BW156: 0 | BX156: 0 | BY156: 0 | BZ156: 0 | CA156: 0 | CB156: 0 | CE156: Provisorien | CG156: 1 | CH156: 1 | CI156: 1 | CJ156: 1 | CK156: 1 | CL156: 1 | CM156: 1 | CN156: 1 | CO156: 1 | CP156: 1 | CQ156: 1 | CR156: 1 | CS156: 1 | CT156: 0 | CU156: 0 | CV156: 0
B157: Abbrucharbeiten | E157: 20 | G157: 0 | I157: [% Inv.] | K157: 20 | L157: 0 | M157: 0 | N157: 0 | P157: Abbrucharbeiten | Q157: 0 | R157: 0 | S157: 0 | T157: 0 | U157: 0 | V157: 0 | W157: 0 | X157: 0 | Y157: 0 | Z157: 0 | AA157: 0 | AB157: 0 | AC157: 0 | AD157: 0 | AE157: 0 | AF157: 0 | AG157: 0 | AH157: 0 | AI157: 0 | AJ157: 0 | AK157: 0 | AL157: 0 | AM157: 0 | AN157: 0 | AO157: 0 | AP157: 0 | AQ157: 0 | AR157: 0 | AS157: 0 | AT157: 0 | AU157: 0 | AV157: 0 | AX157: 0 | AY157: 0 | AZ157: 0 | BA157: 0 | BB157: 0 | BC157: 0 | BD157: 0 | BE157: 0 | BF157: 0 | BG157: 0 | BH157: 0 | BI157: 0 | BJ157: 0 | BK157: 0 | BL157: 0 | BM157: 0 | BN157: 0 | BO157: 0 | BP157: 0 | BQ157: 0 | BR157: 0 | BS157: 0 | BT157: 0 | BU157: 0 | BV157: 0 | BW157: 0 | BX157: 0 | BY157: 0 | BZ157: 0 | CA157: 0 | CB157: 0 | CE157: Abbrucharbeiten | CG157: 1 | CH157: 1 | CI157: 1 | CJ157: 1 | CK157: 1 | CL157: 1 | CM157: 1 | CN157: 1 | CO157: 1 | CP157: 1 | CQ157: 1 | CR157: 1 | CS157: 1 | CT157: 0 | CU157: 0 | CV157: 0
